Workbook

Sheet Versioni
A1: VER | B1: DATA | C1: NOTE
A2: =B2 -> 2017-03-07 | B2: 2017-03-07 | C2: versione iniziale di sviluppo
A3: 2017-04-18 | B3: 2017-04-18 | C3: versione completa di sviluppo senza importazione dei SAL
A4: 2017-04-26 | B4: 2017-04-26 | C4: inserito PEC degli istituti di credito su base direzione regionale
A5: 2017-05-02 | B5: 2017-05-02 | C5: inserito XSD danni lievi V2 e testato XML domanda di contributo
A6: 2017-05-04 | B6: 2017-05-04 | C6: corretto riferimento alla macro di importazione dati
A7: 2017-05-09 | B7: 2017-05-09 | C7: corretto ruoli dei nuovi soggetti ed Id nuove tipologie di pratiche
C8: inserita gestione delle varianti prima del decreto
C9: aggiornata lista elenchi istituti di credito
C10: pronta per essere la prima versione di produzione
A11: =B11 -> 2017-05-10 | B11: 2017-05-10 | C11: inserito quadro Z - elenco allegati alla richiesta
C12: inserita gestione delle varianti sostanziali con congelamento SAL pagati e decreti
A13: =B13 -> 2017-05-12 | B13: 2017-05-12 | C13: correzione bachi vari foglio RICHIESTA
C14: correzione bachi dentro tutti i SAL
A15: =B15 -> 2017-05-13 | B15: 2017-05-13 | C15: corretto numerosi bachi allo script generazione del CUP
C16: aggiunto CIG generato a mano
A17: =B17 -> 2017-05-15 | B17: 2017-05-15 | C17: corretto baco in RICHIESTA (Magazzino = N invece di NO e IVA detraibile)
A18: =B18 -> 2017-05-17 | B18: 2017-05-17 | C18: corretti diversi bachi struttura XML StaticData
A19: =B19 -> 2017-05-18 | B19: 2017-05-18 | C19: coretti codici ISTAT Regioni in LookupTable
A20: =B20 -> 2017-05-20 | B20: 2017-05-20 | C20: inserita checklist (cortesia di emanuela fugante)
C21: correzione link errato alla tipologia di prestazioni specialistiche in SpeseTecniche
A22: =B22 -> 2017-05-24 | B22: 2017-05-24 | C22: aggiornata lista elenchi istituti di credito
C23: aggiunto campo IVA dentro RICHIESTA tabella UI
C24: modificato formule contributo per esenti IVA in RICHIESTA
A25: =B25 -> 2017-05-25 | B25: 2017-05-25 | C25: corretto ccosto convenzionale abitativo secondo gradone
C26: aggiunta maggiorazione in caso di pertinenza esterna AG138 e successivi
C27: introdotto calcolo del contributo per le pertinenze eterne subordinata alla abitazione e con maggiorazioni diverse
C28: AC137:AF137 poi modificato il calcolo in AK137 e successivi
A29: =B29 -> 2017-06-07 | B29: 2017-06-07 | C29: corretta applicazione instabilità dinamica produttivi Ag*S = 0
C30: corretta formula applicazione IVA se non detraibile RICHIESTA AB101 e successivi (tolto /100)
C31: inseriti due nuovi istituti di credito
C32: corretta gestione IVA in caso di anticipi
C33: aggiunto colonna delle somme da pagare in RICHIESTA e RIDETERMINAZIONE
C34: corretto formula detrazione anticipi in DECRETO e RIDETERMINAZIONE R252:T268
A35: =B35 -> 2017-06-08 | B35: 2017-06-08 | C35: corretto ID destinazione d'uso LookupTable AK2:AN5
C36: aggiunta email istituto di credito BCC RIPATRNSONE
A37: =B37 -> 2017-06-14 | B37: 2017-06-14 | C37: recepito nuove percentuali per spese tecniche in seguito alla ordinanza 29
C38: inserito istituto di credito BCC BASCIANO
A39: =B39 -> 2017-06-15 | B39: 2017-06-15 | C39: rettificata formula riconoscimento divisione territoriale istituto di credito RICHIESTA E134
C40: corretta formula restituzione anticipi AD101:AD116
C41: inserita colonna di costi da RICHIESTA IVATI (K101 e successivi)
C42: inserita nota in decreto che esplicita se ci sono stati tagli per finiture eccedenti la percentuale massima da ordinanze
A43: =B43 -> 2017-06-21 | B43: 2017-06-21 | C43: corretto corredo informativo CUP in caso di attività produttiva
C44: corretta formula calcolo contributo finiture interne ivato RICHIESTA BA138 e successivi
C45: corretta decodifica IdDestinazioneUso prevalente LookupTable
A46: =B46 -> 2017-06-26 | B46: 2017-06-26 | C46: corretto costo convenzionale abitazione e pertinenza
C47: aggiunto L4 produttive ed aggiornati i costi parametrici
C48: abilitato delocalizzazioni in RICHIESTA
C49: aumentato incremento convenzionale per impianti complessi dal 10% al 15%
C50: aumentato incremento convenzionale per copertura cemento-amianto dal 10% al 15% edifici produttivi
C51: aumentato costo parametrico del 80% in caso di abitativa dentro produttiva
C52: modificata formula di riconoscimento incremento al convenzionale per amplificazione sisma
C53: replicato correzioni della RICHIESTA nel CONSUNTIVO
C54: modifica calcolo spese tecniche a consuntivo
A55: =B55 -> 2017-07-03 | B55: 2017-07-03 | C55: inserita gestione compenso AeDES ordinanza n. 29
C56: inserita gestione delle demolizioni collabenti
C57: raggruppato oneri per la sicurezza come da specifiche ordinanza n. 29 RICHIESTA
C58: corretto baco sul calcolo della superficie delle pertinenze esterne G2
A59: =B59 -> 2017-07-04 | B59: 2017-07-04 | C59: attivazione script importazione SAL
C60: corretto TOTALE dentro i SAL
C61: aggiunta gestione centro storico - borgo tipico - zona a
C62: aggiunta importazione XML nuovo modello ordinanza n. 13
A63: =B63 -> 2017-07-06 | B63: 2017-07-06 | C63: modificato corredo informativo CUP
C64: corretta allocazione IVA a CONSUNTIVO sulle parti comununi
C65: corretto riconoscimento istituto di credito e se variato a FINE LAVORI
C66: corretto riconoscimento percentuale avanzamento lavori dentro i SAL
C67: assegnata macro corretta pulsante SAL finale
A68: =B68 -> 2017-07-07 | B68: 2017-07-07 | C68: corretta formula imputazione IVA finiture interne RICHIESTA AW:BA 142 e successivi
A69: =B69 -> 2017-07-11 | B69: 2017-07-11 | C69: inserita PEC BCC Basciano
A70: =B70 -> 2017-07-17 | B70: 2017-07-17 | C70: corretto riconoscimento PEC istituto di credito INTESA SAN PAOLO
C71: inserita gestione delle delocalizzazioni
A72: =B72 -> 2017-07-18 | B72: 2017-07-18 | C72: corretto errore riconoscimento del minimo di €6.000 in SpeseTecniche per costi intervento molto bassi
C73: corretto formule pagamenti per ruolo in RIDETERMINAZIONE R252:R271
A74: =B74 -> 2017-07-27 | B74: 2017-07-27 | C74: coretta la presenza in cratere del comune di Valfornace in LookupTable
C75: corretto riconoscimento superfici pertinenze esterne AE142 e successivi
C76: inserita formula demolizioni al 10% del convenzionale massimo in caso di acquisto X110
C77: inserita maggiorazione 80% per abitazioni o uffici in edificio produttivo S142
C78: incrementato convenzionale del 30% in caso di Demolizione-Ricostruzione + L4 in AK142
A79: =B79 -> 2017-08-01 | B79: 2017-08-01 | C79: corretta indicazione intra-extra cratere LookupTable
A80: =B80 -> 2017-08-10 | B80: 2017-08-10 | C80: corretto riconoscimento intestatario conto corrente ImportedDataRCR ed ImportedSAL
C81: redistribuito le spese tecniche sicurezza e collaudo in caso di riparazione SpeseTecniche
C82: attivata importazione ed inserimento in decreto della PEC dei professinisti
C83: corretto pagamento certificatore energetico DECRETO (W266:Y266)
A84: =B84 -> 2017-08-23 | B84: 2017-08-23 | C84: corretto riconoscimento IVA amministratore di condominio RICHIESTA
C85: corretto riconoscimento certificatore energetico RICHIESTA
A86: =B86 -> 2017-08-30 | B86: 2017-08-30 | C86: modificato la PEC della BCC Velino e Intesa San Paolo
A87: =B87 -> 2017-09-01 | B87: 2017-09-01 | C87: corretto accollo IVA in caso di detrailibilità finiture interne RICHIESTA AZ142 e BA142
C88: corretto collegamenti alla RIDETERIMANZIONE della tabella B in SAL-FINE
A89: =B89 -> 2017-09-22 | B89: 2017-09-22 | C89: modifiche allo script di chiusura CUP
C90: limitata la redistrubuzione spese tecniche sicurezza e collaudo in caso di riparazione SpeseTecniche al minimo dei 6mila
C91: corretto lookup a Tabella177 (ImpotedDataSAL) e non Tabella8 (ImportedDataRCR)
A92: =B92 -> 2017-09-29 | B92: 2017-09-29 | C92: corretto riferimenti alla generazione e chiusura del CUP da StaticData a CheckList
C93: inserita la gestione del nuovo modulo RCR 13
C94: inserita la gestione del nuovo SAL 13
A95: =B95 -> 2017-10-04 | B95: 2017-10-04 | C95: impostata diversa distribuzione del costo convenzionale con priorità alle parti comuni
C96: modificato indirizzo PEC Intesa San Paolo direzione regionale Toscana-Umbria
A97: =B97 -> 2017-10-12 | B97: 2017-10-12 | C97: inserito controllo di assicurazione sulle parti comuni "non negativa" AW142
C98: corretto puntamento alle prestazioni specialistiche aggiuntive RICHIESTA!E131 e successive
C99: ripartizione spese tecniche spostata su valori ante oneri di cassa RICHIESTA!S114 e successive
C100: forzato ulteriori prestazioni specialistiche a €1000 in caso di valore inferiore al 2% del costo dell'intervento
C101: aggiunti due nuovi istituti di credito convenzionati
A102: =B102 -> 2017-10-19 | B102: 2017-10-19 | C102: corretto pagamento ai sal intermedi di geologo ed altri professionisti
C103: riduzione del 30% per magazzino non applicata in caso di ordinanza n. 13
C104: introdotta la possibilità di modificare l'importo da richiesta
A105: =B105 -> 2017-10-30 | B105: 2017-10-30 | C105: corretto il corredo informativo nella generazione del CUP che provocava errore di localizzazione intervento
C106: bloccate le celle da non modificare durante l'attività istruttoria
C107: corretta la formula di calcolo degli accolli in caso di anticipi con IVA detraibile
C108: corretto calcolo accollo in caso di assicurazione ed assenza di finiture interne
C109: corretta la formula di identificazione tipologia di legittimazione in seguito a modifiche da istruttoria
A110: =B110 -> 2017-11-06 | B110: 2017-11-06 | C110: inserita maggiorazione Classo II edificio misto pubblico-privato
C111: corretto riferimento per incremento 80% convenzionale in caso di abitazione dentro produttivo
C112: rimosso il massimo del quinto d'opera dal consuntivo
A113: =B113 -> 2017-11-09 | B113: 2017-11-09 | C113: modificatre le maggiorazioni per ca in opera e muratura ai sensi ordinanza 41
C114: corretto script importazione RCR in sostituzione di altra RCR
C115: risolto problema screen flickering office 2016 - 365
C116: risolto problema di individuazione IBAN soggetti ImportedDataRcr
C117: risolto problema di oscuramento UI in importazione XML
C118: inserita gestione IVA pro-rata
A119: =B119 -> 2017-11-14 | B119: 2017-11-14 | C119: rimossa maggiorazione rimozione macerie per demolizioni volontarie
C120: formula RESTITUIRE per finiture interne ora gestisce meglio condomini misti abitazione-produttivi
A121: =B121 -> 2017-11-22 | B121: 2017-11-22 | C121: modificata formula di riconoscimento finiture a consuntivo H142 e successivi
C122: aggiunto controlli sulle lettere accentate nel corredo informativo del CUP
C123: corretto % avanzamento lavori danni gravi
C124: corretto script di refresh pagine
C125: corretta formula contributo per immobile assicurato in decurtazione diretta
A126: =B126 -> 2017-12-01 | B126: 2017-12-01 | C126: modifiche al corredo informativo CUP per retro-compatibilita imprese al sisma 2009
C127: inserita gestione pagamenti indagini e prove al sal zero
C128: correzione ulteriore script refresh
C129: correzione formula spese tecniche produttive fine lavori oltre €2milioni
A130: =B130 -> 2017-12-07 | B130: 2017-12-07 | C130: correzione script chiusura CUP (strOutput vs strOutputC)
A131: =B131 -> 2017-12-22 | B131: 2017-12-22 | C131: correzione script importazione SAL intermedi rotto 11 luglio 2017 (rng2Test)
C132: correzione formula di calcolo contributo immobile assicurato RICHIESTA colonna W e AA poi AT AU e AV
C133: correzione conteggio UI principali in edificio RICHIESTA D140
C134: correzione stima SAL in DECRETO
C135: correzione riconoscimento SALDO vs SOLUZIONE UNICA ImporteDataSAL F19
C136: correzione formula massimo compilazione AeDES RICHIESTA R113
A137: =B137 -> 2018-01-12 | B137: 2018-01-12 | C137: adeguamento calcolo contributo compilazione AeDES produttivi
C138: correzione importo lavori al solo fine del calcolo delle indagini e prove
C139: inserito XSD RCR danni gravi V1 e testato XML domanda di contributo
C140: inserito XSD SAL danni gravi V1
C141: specificato il numero di US aggregate volontariamente rispetto alle UMI
A142: =B142 -> 2018-01-19 | B142: 2018-01-19 | C142: miglioramento funzione riconoscimento ordine e PEC in ImportedDataSAL
C143: correzione oneri di cassa su tabella riassuntiva
C144: correzione formula maggiorazione risparmio energetico
C145: correzione maggiorazione per cantieri in quota per edifici riconducibili ad abitativi
C146: applicazione sconto impresa solamente su strutture e finiture (no pronto intervento e prove geologiche)
C147: recepito modifiche alla maggiorazione per vincoli art. 136 ordinanza 8 in seguito alla ordinanza 46
C148: aumentato lo spazio per soggetti all'interno di ImportedDataRCR ed ImportedDataSAL
C149: correzione errore di allocazione nei pagamenti pianificati per ONLUS di DECRETO
C150: correzione formula IVA pro-rata ex art. 19-bis DPR 633/1972
A151: =B151 -> 2018-01-26 | B151: 2018-01-26 | C151: inserimento formula IVA detraibile al 100% in caso di assenza di pro-rata
C152: contributo IVA inclusa colonna AX valutato sul pro-rata
C153: modifiche allo script di importazione RCR a variante e SAL
C154: correzione spettanze amministratore a consuntivo
C155: correzione formula individuazione abitazione non principale nella lista
A156: =B156 -> 2018-02-02 | B156: 2018-02-02 | C156: correzione formula restituzione anticipi in caso di IVA pro-rata
A157: =B157 -> 2018-02-23 | B157: 2018-02-23 | C157: esclusione dal minimo €6.000 di spese tecniche per interventi su produttivi
C158: dati di default ISTRUTTORIA resi uguali a RICHIESTA e non ImportedData
C159: correzione formula rapporto strutture-finiture per recepire il vincolo architettonico
C160: correzione formula restituzione anticipi in caso di IVA detraibile
C161: correzione script importazione a SALDO
C162: correzione formule per la gestione delle spese tecniche nelle demolizioni
A163: =B163 -> 2018-03-02 | B163: 2018-03-02 | C163: correzione formula IVA detraibile pro-rata dentro la singola UI
C164: correzione formule detrazione assicurazione sia in caso di condominio che comunione
A165: =B165 -> 2018-03-16 | B165: 2018-03-16 | C165: applicazione incremento 30% in caso di DR limitatamente alle DELOCALIZZAZIONI
C166: gestione assicurazione dichiarata al lordo dell'IVA
C167: calcolo spese tecniche sul computo da prezzario prima dello sconto d'impresa
C168: indicati in decreto i veicoli societari dei professionisti invece dei professionisti iscritti
A169: =B169 -> 2018-03-30 | B169: 2018-03-30 | C169: correzione errore taglio finiture interne RICHIESTA X109
C170: modifica al quadro riepilogativo
A171: =B171 -> 2018-04-06 | B171: 2018-04-06 | C171: correzione formula arrotondamento centesimi suddivisione contributo in DECRETO
A172: =B172 -> 2018-04-20 | B172: 2018-04-20 | C172: correzione formula maggiorazione per aggregato per includere aggregati non isolato con 8+ edifici
C173: correzione riduzione convenzionale al 70% per produttivi solo in caso di livello operativo L0
C174: minimo di €6.000 per spese tecniche non è riconoscibile in caso di demolizione collabente
C175: modificata ragione sociale ed indirizzo PEC della BANCA DEL VOMENO ora GRAN SASSO
A176: =B176 -> 2018-04-27 | B176: 2018-04-27 | C176: riduzione 30% del convenzionale esteso a ordinanza 19 e 4 oltre che 13
C177: inserimento funzione ottenimento automatico CIG
A178: =B178 -> 2018-05-11 | B178: 2018-05-11 | C178: recepito redistribuzione spese tecniche inferiori a 6mila come da vademecum professionisti
C179: correzione formula applicazione IVA alla quota comune del contributo per ogni UI
C180: correzione formula applicazione IVA alla assicurazione devoluta alle parti comuni per ogni UI
C181: inserita una tabella in DECRETO con esplosione degli accolli delle parti comuni
C182: correzione riferimento F109
A183: =B183 -> 2018-06-07 | B183: 2018-06-07 | C183: correzione formula confronto spese tecniche richieste ante oneri
C184: aggiunto controllo sulla variazione soggetto e relativo IBAN dedicato ad ogni SAL
C185: corretta attribuzione prioritaria accollo alle finiture interne
C186: correzione formula di determinazione IVA sul contributo interno in caso di IVA detraibile
C187: correzione lordo e netti pagati per indagini e prove al SAL iniziale in caso di pagamento epr SAL
C188: aperto alla riallocazione spese tecniche collaudo e sicurezza anche sopra €6mila
C189: in assenza di SAL ZERO prove distribuite per SAL e non per SALDO
A190: =B190 -> 2018-06-22 | B190: 2018-06-22 | C190: verifica non negatività contributo interno ivato in caso di assicurazione (RICHIESTA-BC)
C191: corretta formula in DECRETO su allocazione parti comuni condominio pubblico-privato
C192: modifica allo script di recupero CIG
C193: aggiunto contributo per parti comuni in tabella A-bis
A194: =B194 -> 2018-07-06 | B194: 2018-07-06 | C194: inserito controllo su AeDES inferiore al massimo delle spese tecniche di progettazione
C195: corretto un piccolo baco su pagamenti SAL0 delocalizzazioni edifici misti pubblici-privati
A196: =B196 -> 2018-07-25 | B196: 2018-07-25 | C196: corretta formula verifica di presenza prima casa in condominio fuori cratere
C197: corretta formula decurtazione finiture interne fuori cratere
C198: corretta formula rideterminazione al saldo conrtributo professionisti
C199: razionalizzazione formula peso contributo post assicurazione
A200: =B200 -> 2018-08-10 | B200: 2018-08-10 | C200: corretto formula taglio parti comuni edificio di seconde case fuori cratere AW BB
... 418 more rows

Sheet Tabella 100 (hidden)
B2: Calcolo dell’ammontare del contributo
C4: - relativamente alla istanza con nome MUDE | D4: =RICHIESTA!C2 -> 
C6: CERTIFICA CHE
C8: - il costo convenzionale dell’intervento, che rientra nelle soglie per le quali si rende applicabile la disciplina declinata
C9: nell’ordinanza 100, è stato calcolato attraverso l’ausilio del foglio di calcolo del contributo in allegato e con le applicazioni
C10: delle maggiorazioni previste dalle ordinanze commissariali sopra indicate
C12: - si segnala, in via eccezionale, di avere utilizzato le seguenti deroghe motivate
C17: - Il costo dei lavori da computo al netto dell'IVA ammonta ad euro | D17: =SUM(RICHIESTA!E121:E128) -> 1e-12
C19: - il ribasso % ottenuto mediante la procedura selettiva ovvero dall’impresa individuata è pari al | D19: =RICHIESTA!M117 -> 0
C21: - i costi per la sicurezza ammontano ad euro (oltre IVA) | D21: =RICHIESTA!M116 -> 0
C23: - l’importo delle spese tecniche calcolato sulle opere ammissibili a contributo asseverate dal | D23: =SUM(RICHIESTA!E131:E150) -> 0
C24: professionista (ovvero come da parcella vistata dall’ordine professionale di appartenenza)
C25: ammonta ad euro (oltre IVA)
C27: - l’importo del contributo concedibile ammonta ad euro oltre IVA di legge | D27: =RICHIESTA!AA152 -> 2e-12
C29: ed è determinato nei limiti del costo ammissibile, con le modalità previste dalle ordinanze commissariali, e attraverso l’utilizzo
C30: senza alcuna manomissione, del foglio di calcolo versione n. | D30: =MAX(Versioni!A:A) -> 2025-07-01
C31: reperito sul sito del Commissario Straordinario e che la stampa allegata (in formato PDF/A) è il risultato della compilazione del
C32: foglio utilizzato allegato.
C35: - l'adesione al DM 140 crea un aggravio per il committente pari ad euro (oltre IVA) | D35: =RICHIESTA!BU164 -> 0
C40: costo parametrico ponderale | D40: =ROUND(RICHIESTA!AJ164,0)&" - "&ROUND(RICHIESTA!AK164,0)&" - "&ROUND(RICHIESTA!AL164,0)&" - "&ROUND(RICHIESTA!AM164,0) -> 400 - 330 - 300 - 300
C43: si certifica che il costo convenzionale complessivo dell’intervento al netto di IVA è pari a euro | D43: =RICHIESTA!AN164 -> 4.4e-10
C46: - Il costo complessivo dell'intervento al lordo dell'IVA se non recuperabile è pari a euro | D46: =SUM(RICHIESTA!E120:E151)+SUM(RICHIESTA!Z166:Z265*RICHIESTA!BS166:BS265*SUM(RICHIESTA!E120:E151*RICHIESTA!G120:G151/100))+SUM(RICHIESTA!H166:H265*RICHIESTA!BS166:BS265*RICHIESTA!J166:J265/100) -> 1e-12
C48: - il ribasso ottenuto mediante la procedura selettiva ovvero dall’impresa individuata è pari al | D48: =RICHIESTA!M117 -> 0
C50: - il costo complessivo dell'intervento, al lordo dell'IVA se non recuperabile, al netto del ribasso | D50: =SUM(RICHIESTA!J120:J151)+SUM(RICHIESTA!Z166:Z265*RICHIESTA!BS166:BS265*SUM(RICHIESTA!J120:J151*RICHIESTA!G120:G151/100))+SUM(RICHIESTA!AP166:AP265*RICHIESTA!BS166:BS265*RICHIESTA!J166:J265/100) -> 2e-12
C54: - sono presenti opere non ammissibili per un importo pari a euro | D54: =RICHIESTA!AD152 -> 0
C57: ammontare del contributo | D57: =DECRETO!J284 -> 0

Sheet RICHIESTA
B1: ORDINANZA 100 | C1: =ImportedDataRCR!F134&" - "&ImportedDataRCR!E134 -> VERO - ART. 12-BIS COMMA 1 | F1: REGIME | G1: =ImportedDataRCR!E2 -> NESSUNA | H1: =INDEX(LookupTable!BW:BW,MATCH(G1,LookupTable!BX:BX,0)) -> 0 | J1: username GEDISI
B2: RCR MUDE | C2: =ImportedDataRCR!E3 ->  | F2: username CUP | G2: ="" ->  | J2: password GEDISI | N2: S
B3: Protocollo | C3: ="Numero / Anno" -> Numero / Anno | F3: password CUP | G3: ="" ->  | J3: username SIMOG | N3: N
B4: Codice CUP | F4: Messaggio CUP | G4: ="" ->  | J4: password SIMOG
B5: Codice CIG | F5: Esito CUP | G5: ="" ->  | J5: Esito CIG
A6: A | B6: LOCALIZZAZIONE | J6: Messaggio CIG
B8: REGIONE | C8: =VLOOKUP(C9,LookupTable!A:J,3,FALSE) -> Lazio | E8: =VLOOKUP(C9,LookupTable!A:L,6,FALSE) -> 12 | I8: COMUNI | J8: INTERNE
B9: COMUNE | C9: =ImportedDataRCR!E9 -> Accumoli | D9: =VLOOKUP(C9,LookupTable!A:J,2,FALSE) -> RI | E9: =VLOOKUP(C9,LookupTable!A:L,10,FALSE) -> 057001 | G9: CRATERE | H9: =VLOOKUP(C9,LookupTable!A:J,4,FALSE) -> TRUE | I9: 1 | J9: 1 | K9: PRIME
B10: Indirizzo | C10: =ImportedDataRCR!E18 -> 0 0 | D10: CAP | E10: =VLOOKUP(C9,LookupTable!A:L,11,FALSE) -> 02011 | G10: CENTRO STORICO-BORGO TIPICO | H10: =ImportedDataRCR!E10 -> FALSE | I10: =IF(OR(H9,H10,E164),100%,50%) -> 1 | J10: =IF(H11,0%,IF(OR(H9,H10),100%,50%)) -> 1 | K10: SECONDE
B11: Catastale | C11: =ImportedDataRCR!E20 -> FG: 0 MAP: 0 | G11: ABITAZIONE COLPITA DA SISMA PRECEDENTE | H11: FALSE | I11: =IF(S164="N",I9,IF($H9,60%,50%)) -> 1 | J11: =IF($H9,60%,30%) -> 0.6 | K11: BENI SCORTE
B12: Disambigua edificio | C12: ="" ->  | G12: ALLEGATO 7 | H12: =VLOOKUP(C9,LookupTable!A:J,7,FALSE) -> TRUE
A14: E1 | B14: DICHIARAZIONI | D14: ="RICHIESTA DI CONTRIBUTO PER "&RICHIESTA!F23&" DI "&RICHIESTA!F20&" CON RIFERIMENTO AD "&G23 -> RICHIESTA DI CONTRIBUTO PER RIPARAZIONE CON RAFFORZAMENTO LOCALE DI EDIFICIO AD USO ABITATIVO CON RIFERIMENTO AD OC N.4/2016
B15: Titolo Richiesta
C16: Tipo proprietà richiedente | D16: =INDEX(LookupTable!Q2:Q12,MATCH(E17,LookupTable!R2:R12,0)) -> 11 | E16: =INDEX(J161:J163,MATCH(MAX(I161:I163),I161:I163,0)) -> Privata
C17: Legittimazione | D17: =INDEX(LookupTable!S2:S12,MATCH(E17,LookupTable!R2:R12,0)) -> 1 | E17: =ImportedDataRCR!E663 -> Altro | F17: =F27 -> CodiceFiscale | G17: =G27 -> Cognome Nome | H17: rappresentato da | I17: =IF(D17=1,"",F53) ->  | J17: =IF(D17=1,"se stesso",G53) -> se stesso
C18: Interni separati | E18: =INDEX(LookupTable!T2:T12,MATCH(E17,LookupTable!R2:R12,)) -> N | H18: coordinatore intervento | I18: =ImportedDataRCR!F53 -> CodiceFiscale | J18: =ImportedDataRCR!G53 -> Cognome Nome | K18: =ImportedDataRCR!M53 -> PEC
C19: IVA strutture detraibile | E19: =ImportedDataRCR!E664 -> N | F19: =IF(E19="N",0%,100%) -> 0 | G19: IVA detratta (pro-rata)
C20: Destinazione d'uso prevalente | D20: =VLOOKUP($E20,LookupTable!$AM2:$AO5,2,FALSE) -> A | E20: =VLOOKUP(ImportedDataRCR!E123,LookupTable!$AL2:$AO5,2,FALSE) -> Abitativa | F20: =VLOOKUP($E20,LookupTable!$AM2:$AO5,3,FALSE) -> EDIFICIO AD USO ABITATIVO | G20: =VLOOKUP($E20,LookupTable!$AM2:$AP5,4,FALSE) -> ABITATIVO
B22: Intervento | C22: Livello operativo | E22: =ImportedDataRCR!E121 -> L0 | H22: Percentuale minima strutture | I22: DISABILITA
B23: =MATCH($E23,LookupTable!$W:$W,0) -> 2 | C23: Tipologia intervento | D23: =INDEX(LookupTable!$X:$X,$B23) -> R | E23: =ImportedDataRCR!E117 -> Rafforzamento | F23: =INDEX(LookupTable!Y:Y,B23) -> RIPARAZIONE CON RAFFORZAMENTO LOCALE | G23: =INDEX(LookupTable!AD:AD,MATCH(F23,LookupTable!Y:Y,0)) -> OC N.4/2016 | H23: =IF(I23,-1%, IF(E23="Rafforzamento",50%, IF(D20="P",-1%, IF(E23="Ricostruzione",25%,IF(OR(E23="Miglioram",E23="Adeguamento"),IF(E60="N",45%,40%),-1%))))) -> 0.5 | I23: FALSE
C24: Demolizione e ricostruzione | E24: =ImportedDataRCR!E119 -> N | F24: =IF(AND(E22="L4",E24="S"),"CONSIGLIATA",IF(E22="L0","NON AMMESSA",IF(AND(E22<>"L4",E24="S"),"VOLONTARIA","NON PRESENTE"))) -> NON AMMESSA
A25: B | B25: SOGGETTI | C25: Delocalizzazione obbligatoria | E25: =ImportedDataRCR!G119 -> N
E26: Tipo | F26: CF/PIVA | G26: Nome Cognome / Ragione sociale | H26: Ordine | I26: Provincia | J26: Numero | K26: Oneri | L26: IBAN | M26: Intestatario CC | N26: PEC
C27: Avente titolo | D27: 1 | E27: =ImportedDataRCR!E24 -> PF | F27: =ImportedDataRCR!F24 -> CodiceFiscale | G27: =ImportedDataRCR!G24 -> Cognome Nome | L27: =ImportedDataRCR!K24 -> IBAN | M27: =ImportedDataRCR!L24 -> IntestatarioCC | N27: =ImportedDataRCR!M24 -> PEC
C28: Indagini e prove 1 | D28: =IF(F28="CodiceFiscale2",0,1) -> 0 | E28: =ImportedDataRCR!E25 -> RS | F28: =ImportedDataRCR!F25 -> CodiceFiscale2 | G28: =ImportedDataRCR!G25 -> RagioneSociale | H28: =VLOOKUP(ImportedDataRCR!H25,SpeseTecniche!A$81:C$92,2) -> Ordine | I28: =ImportedDataRCR!I25 -> 0 | J28: =ImportedDataRCR!J25 -> 0 | L28: =ImportedDataRCR!K25 -> IBAN | M28: =ImportedDataRCR!L25 -> RagioneSociale | N28: =ImportedDataRCR!M25 -> PEC
C29: Indagini e prove 2 | D29: =IF(F29="CodiceFiscale2",0,1) -> 0 | E29: =ImportedDataRCR!E26 -> RS | F29: =ImportedDataRCR!F26 -> CodiceFiscale2 | G29: =ImportedDataRCR!G26 -> RagioneSociale | H29: =VLOOKUP(ImportedDataRCR!H26,SpeseTecniche!A$81:C$92,2) -> Ordine | I29: =ImportedDataRCR!I26 -> 0 | J29: =ImportedDataRCR!J26 -> 0 | L29: =ImportedDataRCR!K26 -> IBAN | M29: =ImportedDataRCR!L26 -> RagioneSociale | N29: =ImportedDataRCR!M26 -> PEC
C30: Indagini e prove 3 | D30: =IF(F30="CodiceFiscale2",0,1) -> 0 | E30: =ImportedDataRCR!E27 -> RS | F30: =ImportedDataRCR!F27 -> CodiceFiscale2 | G30: =ImportedDataRCR!G27 -> RagioneSociale | H30: =VLOOKUP(ImportedDataRCR!H27,SpeseTecniche!A$81:C$92,2) -> Ordine | I30: =ImportedDataRCR!I27 -> 0 | J30: =ImportedDataRCR!J27 -> 0 | L30: =ImportedDataRCR!K27 -> IBAN | M30: =ImportedDataRCR!L27 -> RagioneSociale | N30: =ImportedDataRCR!M27 -> PEC
C31: Impresa opere provvisionali | D31: =IF(F31="CodiceFiscale2",0,1) -> 0 | E31: =ImportedDataRCR!E28 -> RS | F31: =ImportedDataRCR!F28 -> CodiceFiscale2 | G31: =ImportedDataRCR!G28 -> RagioneSociale | H31: =VLOOKUP(ImportedDataRCR!H28,SpeseTecniche!A$81:C$92,2) -> Ordine | I31: =ImportedDataRCR!I28 -> 0 | J31: =ImportedDataRCR!J28 -> 0 | L31: =ImportedDataRCR!K28 -> IBAN | M31: =ImportedDataRCR!L28 -> RagioneSociale | N31: =ImportedDataRCR!M28 -> PEC
C32: Impresa esecutrice lavori | D32: 1 | E32: =ImportedDataRCR!E29 -> RS | F32: =ImportedDataRCR!F29 -> CodiceFiscale2 | G32: =ImportedDataRCR!G29 -> RagioneSociale | H32: =VLOOKUP(ImportedDataRCR!H29,SpeseTecniche!A$81:C$92,2) -> Ordine | I32: =ImportedDataRCR!I29 -> 0 | J32: =ImportedDataRCR!J29 -> 0 | L32: =ImportedDataRCR!K29 -> IBAN | M32: =ImportedDataRCR!L29 -> RagioneSociale | N32: =ImportedDataRCR!M29 -> PEC
C33: Compilatore scheda AeDES 1 | D33: =IF(F33="CodiceFiscale",0,1) -> 0 | E33: =ImportedDataRCR!E30 -> PF | F33: =ImportedDataRCR!F30 -> CodiceFiscale | G33: =ImportedDataRCR!G30 -> Cognome Nome | H33: =VLOOKUP(ImportedDataRCR!H30,SpeseTecniche!A$81:C$92,2) -> Ordine | I33: =ImportedDataRCR!I30 -> 0 | J33: =ImportedDataRCR!J30 -> 0 | K33: =VLOOKUP(H33,SpeseTecniche!B$81:C$95,2,FALSE) -> 0 | L33: =ImportedDataRCR!K30 -> IBAN | M33: =ImportedDataRCR!L30 -> IntestatarioCC | N33: =ImportedDataRCR!M30 -> PEC
C34: Compilatore scheda AeDES 2 | D34: 0 | E34: =ImportedDataRCR!E31 -> PF | F34: =ImportedDataRCR!F31 -> CodiceFiscale | G34: =ImportedDataRCR!G31 -> Cognome Nome | H34: =VLOOKUP(ImportedDataRCR!H31,SpeseTecniche!A$81:C$92,2) -> Ordine | I34: =ImportedDataRCR!I31 -> 0 | J34: =ImportedDataRCR!J31 -> 0 | K34: =VLOOKUP(H34,SpeseTecniche!B$81:C$95,2,FALSE) -> 0 | L34: =ImportedDataRCR!K31 -> IBAN | M34: =ImportedDataRCR!L31 -> IntestatarioCC | N34: =ImportedDataRCR!M31 -> PEC
C35: Compilatore scheda AeDES 3 | D35: 0 | E35: =ImportedDataRCR!E32 -> PF | F35: =ImportedDataRCR!F32 -> CodiceFiscale | G35: =ImportedDataRCR!G32 -> Cognome Nome | H35: =VLOOKUP(ImportedDataRCR!H32,SpeseTecniche!A$81:C$92,2) -> Ordine | I35: =ImportedDataRCR!I32 -> 0 | J35: =ImportedDataRCR!J32 -> 0 | K35: =VLOOKUP(H35,SpeseTecniche!B$81:C$95,2,FALSE) -> 0 | L35: =ImportedDataRCR!K32 -> IBAN | M35: =ImportedDataRCR!L32 -> IntestatarioCC | N35: =ImportedDataRCR!M32 -> PEC
C36: Progettazione Architettonica | D36: 0 | E36: =ImportedDataRCR!E33 -> PF | F36: =ImportedDataRCR!F33 -> CodiceFiscale | G36: =ImportedDataRCR!G33 -> Cognome Nome | H36: =VLOOKUP(ImportedDataRCR!H33,SpeseTecniche!A$81:C$92,2) -> Ordine | I36: =ImportedDataRCR!I33 -> 0 | J36: =ImportedDataRCR!J33 -> 0 | K36: =VLOOKUP(H36,SpeseTecniche!B$81:C$95,2,FALSE) -> 0 | L36: =ImportedDataRCR!K33 -> IBAN | M36: =ImportedDataRCR!L33 -> IntestatarioCC | N36: =ImportedDataRCR!M33 -> PEC
C37: Progettista Strutture | D37: 0 | E37: =ImportedDataRCR!E34 -> PF | F37: =ImportedDataRCR!F34 -> CodiceFiscale | G37: =ImportedDataRCR!G34 -> Cognome Nome | H37: =VLOOKUP(ImportedDataRCR!H34,SpeseTecniche!A$81:C$92,2) -> Ordine | I37: =ImportedDataRCR!I34 -> 0 | J37: =ImportedDataRCR!J34 -> 0 | K37: =VLOOKUP(H37,SpeseTecniche!B$81:C$95,2,FALSE) -> 0 | L37: =ImportedDataRCR!K34 -> IBAN | M37: =ImportedDataRCR!L34 -> IntestatarioCC | N37: =ImportedDataRCR!M34 -> PEC
C38: Progettista Impianti elettrici | D38: 0 | E38: =ImportedDataRCR!E35 -> PF | F38: =ImportedDataRCR!F35 -> CodiceFiscale | G38: =ImportedDataRCR!G35 -> Cognome Nome | H38: =VLOOKUP(ImportedDataRCR!H35,SpeseTecniche!A$81:C$92,2) -> Ordine | I38: =ImportedDataRCR!I35 -> 0 | J38: =ImportedDataRCR!J35 -> 0 | K38: =VLOOKUP(H38,SpeseTecniche!B$81:C$95,2,FALSE) -> 0 | L38: =ImportedDataRCR!K35 -> IBAN | M38: =ImportedDataRCR!L35 -> IntestatarioCC | N38: =ImportedDataRCR!M35 -> PEC
C39: Progettista impianti termici | D39: 0 | E39: =ImportedDataRCR!E36 -> PF | F39: =ImportedDataRCR!F36 -> CodiceFiscale | G39: =ImportedDataRCR!G36 -> Cognome Nome | H39: =VLOOKUP(ImportedDataRCR!H36,SpeseTecniche!A$81:C$92,2) -> Ordine | I39: =ImportedDataRCR!I36 -> 0 | J39: =ImportedDataRCR!J36 -> 0 | K39: =VLOOKUP(H39,SpeseTecniche!B$81:C$95,2,FALSE) -> 0 | L39: =ImportedDataRCR!K36 -> IBAN | M39: =ImportedDataRCR!L36 -> IntestatarioCC | N39: =ImportedDataRCR!M36 -> PEC
C40: Progettazioni specialistiche 1 | D40: 0 | E40: =ImportedDataRCR!E37 -> PF | F40: =ImportedDataRCR!F37 -> CodiceFiscale | G40: =ImportedDataRCR!G37 -> Cognome Nome | H40: =VLOOKUP(ImportedDataRCR!H37,SpeseTecniche!A$81:C$92,2) -> Ordine | I40: =ImportedDataRCR!I37 -> 0 | J40: =ImportedDataRCR!J37 -> 0 | K40: =VLOOKUP(H40,SpeseTecniche!B$81:C$95,2,FALSE) -> 0 | L40: =ImportedDataRCR!K37 -> IBAN | M40: =ImportedDataRCR!L37 -> IntestatarioCC | N40: =ImportedDataRCR!M37 -> PEC
C41: Progettazioni specialistiche 2 | D41: 0 | E41: =ImportedDataRCR!E38 -> PF | F41: =ImportedDataRCR!F38 -> CodiceFiscale | G41: =ImportedDataRCR!G38 -> Cognome Nome | H41: =VLOOKUP(ImportedDataRCR!H38,SpeseTecniche!A$81:C$92,2) -> Ordine | I41: =ImportedDataRCR!I38 -> 0 | J41: =ImportedDataRCR!J38 -> 0 | K41: =VLOOKUP(H41,SpeseTecniche!B$81:C$95,2,FALSE) -> 0 | L41: =ImportedDataRCR!K38 -> IBAN | M41: =ImportedDataRCR!L38 -> IntestatarioCC | N41: =ImportedDataRCR!M38 -> PEC
C42: Coord. Sicurezza Progettaz. | D42: 0 | E42: =ImportedDataRCR!E39 -> PF | F42: =ImportedDataRCR!F39 -> CodiceFiscale | G42: =ImportedDataRCR!G39 -> Cognome Nome | H42: =VLOOKUP(ImportedDataRCR!H39,SpeseTecniche!A$81:C$92,2) -> Ordine | I42: =ImportedDataRCR!I39 -> 0 | J42: =ImportedDataRCR!J39 -> 0 | K42: =VLOOKUP(H42,SpeseTecniche!B$81:C$95,2,FALSE) -> 0 | L42: =ImportedDataRCR!K39 -> IBAN | M42: =ImportedDataRCR!L39 -> IntestatarioCC | N42: =ImportedDataRCR!M39 -> PEC
C43: Coord. Sicurezza Esecuz. | D43: 0 | E43: =ImportedDataRCR!E40 -> PF | F43: =ImportedDataRCR!F40 -> CodiceFiscale | G43: =ImportedDataRCR!G40 -> Cognome Nome | H43: =VLOOKUP(ImportedDataRCR!H40,SpeseTecniche!A$81:C$92,2) -> Ordine | I43: =ImportedDataRCR!I40 -> 0 | J43: =ImportedDataRCR!J40 -> 0 | K43: =VLOOKUP(H43,SpeseTecniche!B$81:C$95,2,FALSE) -> 0 | L43: =ImportedDataRCR!K40 -> IBAN | M43: =ImportedDataRCR!L40 -> IntestatarioCC | N43: =ImportedDataRCR!M40 -> PEC
C44: Direttore Lavori | D44: 0 | E44: =ImportedDataRCR!E41 -> PF | F44: =ImportedDataRCR!F41 -> CodiceFiscale | G44: =ImportedDataRCR!G41 -> Cognome Nome | H44: =VLOOKUP(ImportedDataRCR!H41,SpeseTecniche!A$81:C$92,2) -> Ordine | I44: =ImportedDataRCR!I41 -> 0 | J44: =ImportedDataRCR!J41 -> 0 | K44: =VLOOKUP(H44,SpeseTecniche!B$81:C$95,2,FALSE) -> 0 | L44: =ImportedDataRCR!K41 -> IBAN | M44: =ImportedDataRCR!L41 -> IntestatarioCC | N44: =ImportedDataRCR!M41 -> PEC
C45: Direttore specialistico strutturale | D45: 0 | E45: =ImportedDataRCR!E42 -> PF | F45: =ImportedDataRCR!F42 -> CodiceFiscale | G45: =ImportedDataRCR!G42 -> Cognome Nome | H45: =VLOOKUP(ImportedDataRCR!H42,SpeseTecniche!A$81:C$92,2) -> Ordine | I45: =ImportedDataRCR!I42 -> 0 | J45: =ImportedDataRCR!J42 -> 0 | K45: =VLOOKUP(H45,SpeseTecniche!B$81:C$95,2,FALSE) -> 0 | L45: =ImportedDataRCR!K42 -> IBAN | M45: =ImportedDataRCR!L42 -> IntestatarioCC | N45: =ImportedDataRCR!M42 -> PEC
C46: Contabilita lavori | D46: 0 | E46: =ImportedDataRCR!E43 -> PF | F46: =ImportedDataRCR!F43 -> CodiceFiscale | G46: =ImportedDataRCR!G43 -> Cognome Nome | H46: =VLOOKUP(ImportedDataRCR!H43,SpeseTecniche!A$81:C$92,2) -> Ordine | I46: =ImportedDataRCR!I43 -> 0 | J46: =ImportedDataRCR!J43 -> 0 | K46: =VLOOKUP(H46,SpeseTecniche!B$81:C$95,2,FALSE) -> 0 | L46: =ImportedDataRCR!K43 -> IBAN | M46: =ImportedDataRCR!L43 -> IntestatarioCC | N46: =ImportedDataRCR!M43 -> PEC
C47: Collaudatore | D47: 0 | E47: =ImportedDataRCR!E44 -> PF | F47: =ImportedDataRCR!F44 -> CodiceFiscale | G47: =ImportedDataRCR!G44 -> Cognome Nome | H47: =VLOOKUP(ImportedDataRCR!H44,SpeseTecniche!A$81:C$92,2) -> Ordine | I47: =ImportedDataRCR!I44 -> 0 | J47: =ImportedDataRCR!J44 -> 0 | K47: =VLOOKUP(H47,SpeseTecniche!B$81:C$95,2,FALSE) -> 0 | L47: =ImportedDataRCR!K44 -> IBAN | M47: =ImportedDataRCR!L44 -> IntestatarioCC | N47: =ImportedDataRCR!M44 -> PEC
C48: Certificatore energetico | D48: 0 | E48: =ImportedDataRCR!E45 -> PF | F48: =ImportedDataRCR!F45 -> CodiceFiscale | G48: =ImportedDataRCR!G45 -> Cognome Nome | H48: =VLOOKUP(ImportedDataRCR!H45,SpeseTecniche!A$81:C$92,2) -> Ordine | I48: =ImportedDataRCR!I45 -> 0 | J48: =ImportedDataRCR!J45 -> 0 | K48: =VLOOKUP(H48,SpeseTecniche!B$81:C$95,2,FALSE) -> 0 | L48: =ImportedDataRCR!K45 -> IBAN | M48: =ImportedDataRCR!L45 -> IntestatarioCC | N48: =ImportedDataRCR!M45 -> PEC
C49: Geologo | D49: 0 | E49: =ImportedDataRCR!E46 -> PF | F49: =ImportedDataRCR!F46 -> CodiceFiscale | G49: =ImportedDataRCR!G46 -> Cognome Nome | H49: =VLOOKUP(ImportedDataRCR!H46,SpeseTecniche!A$81:C$92,2) -> Ordine | I49: =ImportedDataRCR!I46 -> 0 | J49: =ImportedDataRCR!J46 -> 0 | K49: =VLOOKUP(H49,SpeseTecniche!B$81:C$95,2,FALSE) -> 0 | L49: =ImportedDataRCR!K46 -> IBAN | M49: =ImportedDataRCR!L46 -> IntestatarioCC | N49: =ImportedDataRCR!M46 -> PEC
C50: Altre prestazioni 1 | D50: 0 | E50: =ImportedDataRCR!E47 -> PF | F50: =ImportedDataRCR!F47 -> CodiceFiscale | G50: =ImportedDataRCR!G47 -> Cognome Nome | H50: =VLOOKUP(ImportedDataRCR!H47,SpeseTecniche!A$81:C$92,2) -> Ordine | I50: =ImportedDataRCR!I47 -> 0 | J50: =ImportedDataRCR!J47 -> 0 | K50: =VLOOKUP(H50,SpeseTecniche!B$81:C$95,2,FALSE) -> 0 | L50: =ImportedDataRCR!K47 -> IBAN | M50: =ImportedDataRCR!L47 -> IntestatarioCC | N50: =ImportedDataRCR!M47 -> PEC
C51: Altre prestazioni 2 | D51: 0 | E51: =ImportedDataRCR!E48 -> PF | F51: =ImportedDataRCR!F48 -> CodiceFiscale | G51: =ImportedDataRCR!G48 -> Cognome Nome | H51: =VLOOKUP(ImportedDataRCR!H48,SpeseTecniche!A$81:C$92,2) -> Ordine | I51: =ImportedDataRCR!I48 -> 0 | J51: =ImportedDataRCR!J48 -> 0 | K51: =VLOOKUP(H51,SpeseTecniche!B$81:C$95,2,FALSE) -> 0 | L51: =ImportedDataRCR!K48 -> IBAN | M51: =ImportedDataRCR!L48 -> IntestatarioCC | N51: =ImportedDataRCR!M48 -> PEC
C52: Altre prestazioni 3 | D52: 0 | E52: =ImportedDataRCR!E49 -> PF | F52: =ImportedDataRCR!F49 -> CodiceFiscale | G52: =ImportedDataRCR!G49 -> Cognome Nome | H52: =VLOOKUP(ImportedDataRCR!H49,SpeseTecniche!A$81:C$92,2) -> Ordine | I52: =ImportedDataRCR!I49 -> 0 | J52: =ImportedDataRCR!J49 -> 0 | K52: =VLOOKUP(H52,SpeseTecniche!B$81:C$95,2,FALSE) -> 0 | L52: =ImportedDataRCR!K49 -> IBAN | M52: =ImportedDataRCR!L49 -> IntestatarioCC | N52: =ImportedDataRCR!M49 -> PEC
C53: Delegato / Amministratore | D53: 0 | E53: =ImportedDataRCR!E50 -> PF | F53: =ImportedDataRCR!F50 -> CodiceFiscale | G53: =ImportedDataRCR!G50 -> Cognome Nome | H53: =ImportedDataRCR!F666 -> NON 71-BIS | K53: =IF(H53="71-BIS",50%,0) -> 0 | L53: =ImportedDataRCR!K50 -> IBAN | M53: =ImportedDataRCR!L50 -> IntestatarioCC | N53: =ImportedDataRCR!M50 -> PEC
C54: Notaio | D54: 0 | E54: =ImportedDataRCR!E51 -> PF | F54: =ImportedDataRCR!F51 -> CodiceFiscale | G54: =ImportedDataRCR!G51 -> Cognome Nome | H54: =ImportedDataRCR!H51 -> Notai | L54: =ImportedDataRCR!K51 -> IBAN | M54: =ImportedDataRCR!L51 -> Cognome Nome | N54: =ImportedDataRCR!M51 -> PEC
A55: C | B55: DATI GENERALI
G56: MAGAZZINO | H56: ABITAZIONE/ATTIVITA | I56: % AGGREGATO
C57: Riduzioni per magazzino o pertinenza esterna | F57: =IF(OR(D23="DC",D20="P"),0,-30%) -> -0.3 | G57: =F57 -> -0.3
B59: Maggiorazioni per vincoli | D59: =SUM(D60:D63) -> 0 | E59: =IF(D59=0,"N","S") -> N | F59: =IF(OR(D23="DC",E59="N"),0,MAX(F60:F63)) -> 0 | G59: =$F59*$I59 -> 0 | H59: =$F59*$I59 -> 0 | I59: =ImportedDataRCR!H683 -> 1
C60: Parte II del Dlgs 42/2004 (Bene culturale) | D60: =IF(E60="S",1,0) -> 0 | E60: =ImportedDataRCR!E683 -> N | F60: =IF(U163,0,IF(E60="S",CostoParametrico!F$156,0)) -> 0
C61: art. 136 del Dlgs 42/2004 (Notevole interesse pubblico) | D61: 0 | E61: =ImportedDataRCR!E684 -> N | F61: =IF(U163,0,IF(E61="S",CostoParametrico!G$156,0)) -> 0
C62: art. 142 del Dlgs 42/2004 (In aree di interesse paesaggistico) | D62: 0 | E62: =ImportedDataRCR!E685 -> N | F62: =IF(U163,0,IF(E62="S",CostoParametrico!H$156,0)) -> 0
C63: art. 45 Dlgs 42/2004 | D63: 0 | E63: =ImportedDataRCR!E686 -> N | F63: =IF(U163,0,IF(E63="S",CostoParametrico!I$156,0)) -> 0 | I63: MAX
C64: Interventi richiesti da MIBAC per esigenze di tutela su art. 45 | E64: N | H64: L0 | I64: =SUM(H$70:H$116) -> 0.1
C65: Elementi architettonici peculiari (es. torri, portali, fontane) | E65: N | F65: =IF(AND(E65="S",D59>0),80%,0%) -> 0 | H65: L123 | I65: =IF(D$20="P",I$64,70%)*$F$68*NOT($F$67) -> 0.7
H66: L4 | I66: =IF(D$20="P",I$64,90%)*$F$68*NOT($F$67) -> 0.9
C67: TOTALE ALTRE MAGGIORAZIONI | F67: =OR(D23="DC",D23="CS",D23="CA") -> FALSE | G67: =MIN(SUM(G70:G116),$I67) -> 0.1 | H67: =MIN(SUM(H70:H116),$I67) -> 0.1 | I67: =IF(E22="L4",I66,IF(E22="L0",I64,I65)) -> 0.1
C68: Computo redatto sulla base del P.U.C. | E68: =ImportedDataRCR!E7 -> N | F68: =IF(AND(E68="N",H1=4),0,100%) -> 1
B69: Maggiorazioni aggregati
C70: Messa in sicurezzza collabente centro storico | E70: =IF(AND(H10,D23="SC"),"S","N") -> N | F70: =IF(E70="N",0,100%) -> 0 | H70: =$F70*$I70 -> 0 | I70: 1
C71: Aggregato Volontario - UMI | D71: =IF(F71="S","UMI",IF(OR(E71="S",E72>1),"Volontario","N")) -> N | E71: =ImportedDataRCR!E125 -> N | F71: =ImportedDataRCR!E126 -> N
C72: Numero di US in Aggregato - UMI | E72: =VALUE(ImportedDataRCR!E127) -> 1 | F72: =ImportedDataRCR!F127 -> 0
C73: Aggregato art. 15-bis | Aggregato coincide con Isolato | D73: =ImportedDataRCR!E130 -> N | E73: =ImportedDataRCR!E128 -> N | F73: =IF($H$1>=4, IF(E72>=8,20%,IF(AND(E72>=5,E73="S"),20%,IF(AND(E72>=5,E73="N",E72<8),17%,IF(AND(E72>=3,E72<5),12%,0)))), IF(E72>=8,17%,IF(AND(E72>=5,E73="S"),17%,IF(AND(E72>=5,E73="N",E72<8),15%,IF(AND(E72>=3,E72<5),10%,0))))) *IF(AND(H1<3,D73="S"),50%,100%)*OR(D16=7,H1>=3) -> 0 | H73: =$F73*$I73 -> 0 | I73: 1
C74: Art. 14 Livello di sicrezza uniforme | E74: =ImportedDataRCR!F130 -> N | F74: =IF(AND(E74="S",$H$1=4,F90=0),10%,0) -> 0 | H74: =$F74*$I74 -> 0 | I74: 1
C75: Delocalizzazione obbligatoria | E75: =IF(AND(E22="L4",E25="S"),"S","N") -> N | F75: =IF(AND(E75="S",E25="S"),IF(D23="DR",30%,IF(D23="C",20%,0)),0) -> 0
B77: Maggiorazioni generali
C78: Zona sismica | E78: =ImportedDataRCR!E21 -> 3 | F78: =IF(AND(F79=0,$H$1=4),IF(AND(E78=1,F24<>"VOLONTARIA"),12%,IF(E78=2,7%,0)),0) -> 0 | G78: =$F78*$I78 -> 0 | H78: 0 | I78: 1
C79: Pericolosita sismica Ag * S | E79: =ImportedDataRCR!E137 -> 1e-10 | F79: =CostoParametrico!A55 -> 0 | G79: 0 | H79: 0 | I79: 1
C80: Instabilita dinamica in fase sismica per liquefazione | E80: =ImportedDataRCR!E136 -> N | F80: =IF(AND(E80="S",D23<>"R"),10%,0) -> 0 | G80: 0 | H80: 0 | I80: 1
C81: n) comune allegato 7 | E81: =IF(H12,"S","N") -> S | F81: =IF(AND(E81="S",OR($F$88=0,$H$1=4)),10%,0) -> 0.1 | G81: 0.1 | H81: 0.1 | I81: 1
C82: o) oppure art. 9 c. 4 - riduzione superficie > 25% | > 50% | D82: =ImportedDataRCR!F151 -> N | E82: =ImportedDataRCR!E151 -> N | F82: =IF(E24="S",IF(E82="S",IF($H$1=4,20%,15%),IF(D82="S",IF($H$1=4,10%,8%),0)),0) -> 0 | H82: =$F82*$I82 -> 0 | I82: 1
C83: p) progettazione volontaria alberghi Classe IV | E83: =ImportedDataRCR!F159 -> N | F83: =IF(AND($H$1=4,E83="S"),20%,0%) -> 0 | H83: =$F83*$I83 -> 0 | I83: 1
B85: Maggiorazioni edifici abitativi (Tab 7)
C86: a) efficientamento energetico L1 L2 L3 (riduzione 30%) | E86: =ImportedDataRCR!E675 -> N
C87: b) efficientamento energetico L4 (classe A) | E87: =ImportedDataRCR!E676 -> N | F87: =IF(AND(E87="S",$H$1>3,D23=LookupTable!$X$5),12%,IF(AND(OR(E86="S",E87="S"),E$22<>"L0",D20<>"P"),10%,0)) -> 0 | H87: =$F87*$I87 -> 0 | I87: =ImportedDataRCR!H675 -> 1
C88: c) ubicazione disagiata del cantiere | E88: =ImportedDataRCR!E139 -> N | F88: =IF(E88="S",CostoParametrico!A72,0) -> 0 | G88: =$F88*$I88 -> 0 | H88: 0 | I88: 1
C89: d) smaltimento demolizioni 20% + | 40% + | D89: =ImportedDataRCR!E140 -> N | E89: =ImportedDataRCR!F140 -> N | F89: =CostoParametrico!A80 -> 0 | G89: =$F89*$I89 -> 0 | H89: 0 | I89: =ImportedDataRCR!H140 -> 1
C90: e) ricostruzione Edifici uni/bi-familiari | E90: =ImportedDataRCR!E141 -> N | F90: =IF(E90="S",CostoParametrico!A94,0) -> 0 | H90: 0 | I90: 1
C91: g) miglioramento sismico di abitazioni di residenti disabili | E91: =ImportedDataRCR!E142 -> N | F91: =IF(E91="S",CostoParametrico!A113,0) -> 0 | H91: 0 | I91: =ImportedDataRCR!H142 -> 1
C92: 1.g) edificio con murature spesse (SUL/SUN>1,2) | E92: =ImportedDataRCR!E143 -> N | F92: =IF(E92="S",CostoParametrico!A114+IF(E93="S",CostoParametrico!A115,0),0) -> 0 | G92: =$F92*$I92 -> 0 | H92: 0 | I92: =ImportedDataRCR!H143 -> 1
C93: 2.g) murature spesse costituite da pietrame e ciotoli | E93: =ImportedDataRCR!F143 -> N
C94: h) misto pubblico-privato in classe d'uso superiore a II | E94: =IF(OR(ImportedDataRCR!E159="S",AND(R164>0,I162>0)),"S","N") -> N | F94: =IF(AND(E94="S",E$22<>"L0"),3%,0) -> 0 | H94: =$F94*$I94 -> 0 | I94: =ImportedDataRCR!H159 -> 1
C95: i2) edificio ad altitudine 700m + slm | E95: =ImportedDataRCR!F145 -> N
C96: i1) edificio ad altitudine 1000m + slm | E96: =ImportedDataRCR!E145 -> N | F96: =CostoParametrico!A163 -> 0 | G96: =$F96*$I96 -> 0 | H96: =$F96*$I96 -> 0 | I96: 1
C97: j) trattamento faccia vista | E97: =ImportedDataRCR!E152 -> N | F97: =IF(AND(E97="S",AND(NOT(BeniCulturali!$E$1),E$59="N"),OR(D$20<>"P",D$20="R")),IF(E$22<>"L0",3%,0),0) -> 0 | H97: =$F97*$I97 -> 0 | I97: =ImportedDataRCR!H152 -> 1
C98: k) realizzazione solai in legno | E98: =ImportedDataRCR!E153 -> N | F98: =IF(AND(E98="S",F99=0,AND(NOT(BeniCulturali!$E$1),E$59="N"),OR(D$20<>"P",D$20="R")),IF(E$22<>"L0",2%,0),0) -> 0 | H98: =$F98*$I98 -> 0 | I98: =ImportedDataRCR!H153 -> 1
C99: k-bis) strutture portanti in legno ricostruzione L4 | E99: =ImportedDataRCR!F153 -> N | F99: =IF(AND(E99="S",E22="L4",D23="DR"),10%,0) -> 0 | H99: =$F99*$I99 -> 0 | I99: =ImportedDataRCR!I153 -> 1
C100: l) realizzazione di almeno il 90% di infissi in legno | E100: =ImportedDataRCR!E154 -> N | F100: =IF(AND(E100="S",AND(NOT(BeniCulturali!$E$1),E$59="N"),OR(D$20<>"P",D$20="R")),IF(E$22<>"L0",2%,0),0) -> 0 | H100: =$F100*$I100 -> 0 | I100: =ImportedDataRCR!H154 -> 1
C101: m) interventi di ripristino strutturale opere sostegno | E101: =ImportedDataRCR!E138 -> N | F101: =IF(AND(E101="S",D$23<>"R"),10%,0) -> 0 | G101: =$F101*$I101 -> 0 | H101: =$F101*$I101 -> 0 | I101: 1
B103: Maggiorazioni edifici speciali
C104: Altezza media del piano | E104: =ImportedDataRCR!E155 -> < 5m | F104: =INDEX(LookupTable!BS$2:BS$7,MATCH(E104,LookupTable!BR$2:BR$7,0)) -> 0 | H104: =$F104*$I104 -> 0 | I104: 1
C105: Adeguamento normativa antincendio | E105: =ImportedDataRCR!E156 -> N | F105: =IF(E105="S",5%,0) -> 0 | H105: =$F105*$I105 -> 0 | I105: 1
C106: Adeguamento normativa barriere architettoniche | E106: =ImportedDataRCR!E157 -> N | F106: =IF(E106="S",5%,0) -> 0 | H106: =$F106*$I106 -> 0 | I106: 1
B108: Maggiorazioni edifici produttivi
C109: tab 6) cemento armato prefabbricato o in opera L1 L2 L3 L4 | E109: =ImportedDataRCR!E149 -> N | F109: =IF(AND(E109="S",E$20="Produttiva",$E$22<>"L0"),IF($H$1>1,30%,IF($H$1=1,20%,10%)),0) -> 0 | G109: =$F109*$I109 -> 0 | H109: 0 | I109: =ImportedDataRCR!H149 -> 1
C110: tab 6) produttivo costruito in muratura | E110: =ImportedDataRCR!E150 -> N | F110: =IF(AND(E110="S",E$20="Produttiva",$E$22<>"L0",F109=0),IF($H$1>0,30%,20%),0) -> 0 | G110: 0 | H110: 0 | I110: =ImportedDataRCR!H150 -> 1
C111: N.126/22 art. 8 struttura in acciaio | E111: =ImportedDataRCR!E158 -> N | F111: =IF(AND(E111="S",E$20="Produttiva",$E$22<>"L0",F109=0,F110=0),IF($H$1>1,40%,0%),0) -> 0 | G111: 0 | H111: 0 | I111: =ImportedDataRCR!H158 -> 1
C112: tab 7.1) altezza sotto trave 4m+ | E112: =ImportedDataRCR!E144 -> N | F112: =IF(E112="S",CostoParametrico!A120,0) -> 0 | G112: 0 | H112: 0 | I112: =ImportedDataRCR!H144 -> 1
C113: tab 7.2) impianti industriali di particolare complessità | E113: =ImportedDataRCR!E146 -> N | F113: =IF(AND(E113="S",E$20="Produttiva",E$22<>"L0",D$20="P"),30%,0) -> 0 | H113: =$F113*$I113 -> 0 | I113: 1
C114: tab 7.7.1) copertura in cemento-amianto 25%+ | E114: =ImportedDataRCR!F148 -> N
C115: tab 7.7.2) copertura in cemento-amianto 50%+ | E115: =ImportedDataRCR!E148 -> N | F115: =CostoParametrico!A173 -> 0 | G115: =$F115*$I115 -> 0 | H115: =$F115*$I115 -> 0 | I115: =ImportedDataRCR!H148 -> 1
C116: tab 7.3) interferenza lavori con l'attività di impresa | E116: =ImportedDataRCR!E147 -> N | F116: =IF(AND(E$116="S",E$20="Produttiva",E$22<>"L0",E$24="N"),IF(D$20="P",15%,5%),0) -> 0 | H116: =$F116*$I116 -> 0 | I116: =ImportedDataRCR!H147 -> 1 | L116: QUOTA NON SOGGETTA A RIBASSO | M116: =ImportedDataRCR!E194 -> 0 | P116: MAGGIORAZIONE DELOC | Q116: =MIN(R116/BL164,F75) -> 0 | R116: =SUM(Q128:Q130) -> 1e-12
K117: SCONTO | L117: =IF(M117>0,"S",ImportedDataSAL!E194) -> N | M117: =ImportedDataRCR!E195 -> 0 | P117: STRUTTURE MINIME | Q117: =H23 -> 0.5 | R117: =SpeseTecniche!D6 -> 6e-14 | V117: APPLICA DM 140 | W117: S
C118: Contestuale intervento superbonus | D118: =ImportedDataRCR!E161 -> N | P118: STRUTTURE MISURATE | Q118: =SUM(M121:M125)/MAX(SUM(M121:M127),0.0001) -> 1e-08 | R118: =SUM(Q121:Q123) -> 0 | T118: ORD12 | V118: DELTA DM140 | W118: =SUM(IF((W131:W150-T131:T150)>0,W131:W150-T131:T150)) -> 0
B119: Quadro Economico | D119: FORZA ACCOLLO | E119: RICHIESTA | F119: ISTRUTTORIA | G119: IVA | H119: ANTICIPO | I119: IVA | J119: RICHIESTA | K119: RICHIESTA IVATA | L119: PESO | M119: ISTRUTTORIA | N119: IVA | O119: ISTRUTT-IVATO | P119: AMMISSIBILI | Q119: FINITURE | R119: PROVE | T119: SPESE TECNICHE | U119: ONERI | V119: PESO | W119: AMMESSE | X119: AMMESSE-IVATE | Y119: ASSICURAZIONE | Z119: ASSIC-IVATA | AA119: CONTRIBUTO | AB119: CONTR-IVATO | AC119: ACCOLLO | AD119: ACCOLLO-IVATO | AE119: RESTITUIRE | AF119: RESTITUIRE-IVATO | AG119: PAGARE | AH119: PAGARE-IVATO | GI119: POSIZIONE
C120: Occupazione suolo pubblico | D120: 0 | E120: 0 | F120: =E120 -> 0 | J120: =E120 -> 0 | K120: =J120 -> 0 | L120: =M120/MAX(1,M$152-M$127) -> 0 | M120: =ROUND(F120,2) -> 0 | N120: 1 | O120: =ROUND(M120,2) -> 0 | P120: =MAX(0,M120-D120) -> 0 | Q120: =M120 -> 0 | R120: =Q120 -> 0 | T120: =R120 -> 0 | V120: =(W120)/MAX(1,W$152-W$127) -> 0 | W120: =ROUND(MIN(T120,P120),2) -> 0 | X120: =ROUND(W120*N120,2) -> 0 | Y120: =Z120/N120 -> 0 | Z120: =INDIRECT(GI120&164) -> 0 | AA120: =ROUND($V120*AY$164,2) -> 0 | AB120: =ROUND('SAL-INT2'!S36+(AA120-'SAL-INT2'!R36)*SUM(Z$166:Z$265*(1+BS$166:BS$265*G120/100)),2) -> 0 | AC120: =ROUND((M120-AA120)-Y120,2) -> 0 | AD120: =ROUND((O120-AB120)-Z120,2) -> 0 | AE120: =MAX(0,AA120-MAX(0,(M120-H120))) -> 0 | AF120: =MAX(0,AA120-MAX(0,(M120-H120)))*(1+I120/100*(1-$F$19)) -> 0 | AG120: =AA120-AE120 -> 0 | AH120: =AB120-AF120 -> 0 | GI120: GI
C121: Indagini e prove 1 | D121: 0 | E121: =ImportedDataRCR!E162 -> 0 | F121: 0 | G121: =ImportedDataRCR!F162 -> 10 | H121: =ImportedDataRCR!G162 -> 0 | I121: =ImportedDataRCR!H162 -> 10 | J121: =E121 -> 0 | K121: =J121*(1+G121/100) -> 0 | L121: 0 | M121: =ROUND(F121,2) -> 0 | N121: =(1+G121/100) -> 1.1 | O121: =ROUND(M121*(1+G121/100),2) -> 0 | P121: 0 | Q121: 0 | R121: =MIN(R117:R118) -> 0 | S121: =M121/MAX(1,SUM(M$121:M$123)) -> 0 | T121: =R$121*S121 -> 0 | V121: =(W121)/MAX(1,W$152-W$127) -> 0 | W121: =IF($H$1>=3,P121,MIN(P121,ROUND(T121,2))) -> 0 | X121: =ROUND(W121*N121,2) -> 0 | Y121: =Z121/N121 -> 0 | Z121: 0 | AA121: =ROUND($V121*AY$164,2) -> 0 | AB121: =ROUND('SAL-INT2'!S37+(AA121-'SAL-INT2'!R37)*SUM(Z$166:Z$265*(1+BS$166:BS$265*G121/100)),2) -> 0 | AC121: 0 | AD121: 0 | AE121: 0 | AF121: 0 | AG121: 0 | AH121: 0 | GI121: GJ
C122: Indagini e prove 2 | D122: 0 | E122: =ImportedDataRCR!E163 -> 0 | F122: 0 | G122: =ImportedDataRCR!F163 -> 10 | H122: =ImportedDataRCR!G163 -> 0 | I122: =ImportedDataRCR!H163 -> 10 | J122: =E122 -> 0 | K122: =J122*(1+G122/100) -> 0 | L122: 0 | M122: =ROUND(F122,2) -> 0 | N122: =(1+G122/100) -> 1.1 | O122: =ROUND(M122*(1+G122/100),2) -> 0 | P122: 0 | Q122: 0 | S122: =M122/MAX(1,SUM(M$121:M$123)) -> 0 | T122: =R$121*S122 -> 0 | V122: 0 | W122: =IF($H$1>=3,P122,MIN(P122,ROUND(T122,2))) -> 0 | X122: =ROUND(W122*N122,2) -> 0 | Y122: 0 | Z122: 0 | AA122: =ROUND($V122*AY$164,2) -> 0 | AB122: =ROUND('SAL-INT2'!S38+(AA122-'SAL-INT2'!R38)*SUM(Z$166:Z$265*(1+BS$166:BS$265*G122/100)),2) -> 0 | AC122: 0 | AD122: 0 | AE122: 0 | AF122: 0 | AG122: 0 | AH122: 0 | GI122: GK
C123: Indagini e prove 3 | D123: 0 | E123: =ImportedDataRCR!E164 -> 0 | F123: 0 | G123: =ImportedDataRCR!F164 -> 10 | H123: =ImportedDataRCR!G164 -> 0 | I123: =ImportedDataRCR!H164 -> 10 | J123: =E123 -> 0 | K123: 0 | L123: 0 | M123: =ROUND(F123,2) -> 0 | N123: 1.1 | O123: 0 | P123: 0 | Q123: 0 | S123: =M123/MAX(1,SUM(M$121:M$123)) -> 0 | T123: =R$121*S123 -> 0 | V123: 0 | W123: =IF($H$1>=3,P123,MIN(P123,ROUND(T123,2))) -> 0 | X123: =ROUND(W123*N123,2) -> 0 | Y123: 0 | Z123: 0 | AA123: =ROUND($V123*AY$164,2) -> 0 | AB123: =ROUND('SAL-INT2'!S39+(AA123-'SAL-INT2'!R39)*SUM(Z$166:Z$265*(1+BS$166:BS$265*G123/100)),2) -> 0 | AC123: 0 | AD123: 0 | AE123: 0 | AF123: 0 | AG123: 0 | AH123: 0 | GI123: GL
C124: Opere provvisionali | D124: 0 | E124: =ImportedDataRCR!E165 -> 0 | F124: 0 | G124: =ImportedDataRCR!F165 -> 10 | H124: =ImportedDataRCR!G165 -> 0 | I124: =ImportedDataRCR!H165 -> 10 | J124: =E124 -> 0 | K124: 0 | L124: 0 | M124: =ROUND(F124,2) -> 0 | N124: 1.1 | O124: 0 | P124: 0 | Q124: 0 | R124: =Q124 -> 0 | T124: =R124 -> 0 | V124: 0 | W124: =ROUND(MIN(T124,P124),2) -> 0 | X124: =ROUND(W124*N124,2) -> 0 | Y124: 0 | Z124: 0 | AA124: =ROUND($V124*AY$164,2) -> 0 | AB124: =ROUND('SAL-INT2'!S40+(AA124-'SAL-INT2'!R40)*SUM(Z$166:Z$265*(1+BS$166:BS$265*G124/100)),2) -> 0 | AC124: 0 | AD124: 0 | AE124: 0 | AF124: 0 | AG124: 0 | AH124: 0 | GI124: GM
C125: Opere sulle strutture | D125: 0 | E125: =ImportedDataRCR!E166 -> 1e-12 | F125: 1e-12 | G125: =ImportedDataRCR!F166 -> 10 | H125: =ImportedDataRCR!G166 -> 0 | I125: =ImportedDataRCR!H166 -> 10 | J125: =MAX(10^-12,ROUND((E125-IF(E125>10^-12,M116,0))*(1-$M$117)+IF(E125>10^-12,M116,0),2)) -> 1e-12 | K125: 1.1e-12 | L125: 1e-12 | M125: =MAX(10^-12,ROUND((F125-IF(F125>10^-12,M116,0))*(1-$M$117)+IF(F125>10^-12,M116,0),2)) -> 1e-12 | N125: 1.1 | O125: =MAX(10^-12,ROUND(M125*(1+G125/100),2)) -> 1e-12 | P125: =MAX(0,M125-D125*(1-$M$117)) -> 1e-12 | Q125: 1e-12 | R125: =Q125 -> 1e-12 | T125: =IF(ROUND(Q$125,2)>0,(Q125-M$116)/(1-$M$117)+M$116,Q125/(1-$M$117)) -> 1e-12 | V125: =V152-SUM(V120:V124,V126:V151) -> 1 | W125: =MAX(10^-12,ROUND(MIN(R125,P125),2)) -> 1e-12 | X125: =MAX(10^-12,ROUND((W125-'SAL-INT2'!R41)*N125+'SAL-INT2'!S41,2)) -> 1e-12 | Y125: 0 | Z125: 0 | AA125: =MAX(ROUND($V125*AY$164,2),10^-12) -> 1e-12 | AB125: =ROUND('SAL-INT2'!S41+(AA125-'SAL-INT2'!R41)*SUM(Z$166:Z$265*(1+BS$166:BS$265*G125/100)),2) -> 0 | AC125: 0 | AD125: 0 | AE125: 0 | AF125: 0 | AG125: 1e-12 | AH125: 0 | GI125: GN
C126: Finiture parti comuni | D126: 0 | E126: =ImportedDataRCR!E167 -> 0 | F126: 0 | G126: =ImportedDataRCR!F167 -> 10 | H126: =ImportedDataRCR!G167 -> 0 | I126: =ImportedDataRCR!H167 -> 10 | J126: =ROUND(E126*(1-$M$117),2) -> 0 | K126: 0 | L126: 0 | M126: =ROUND(F126*(1-$M$117),2) -> 0 | N126: 1.1 | O126: 0 | P126: =MAX(0,M126-D126*(1-$M$117)) -> 0 | Q126: =IF(Q$118>Q$117,M126,SUM(Q$121:Q$125)*(1-Q$117)/Q$117*S126) -> 0 | R126: =Q126 -> 0 | S126: =M126/MAX(1,SUM(M$126:M$127)) -> 0 | T126: =R126/(1-$M$117) -> 0 | V126: =(W126)/MAX(1,W$152-W$127) -> 0 | W126: =ROUND(MIN(R126,P126),2) -> 0 | X126: =ROUND(W126*N126,2) -> 0 | Y126: 0 | Z126: 0 | AA126: =ROUND($V126*AY$164,2) -> 0 | AB126: =ROUND(AA126*SUM(Z$166:Z$265*(1+BS$166:BS$265*G126/100)),2) -> 0 | AC126: 0 | AD126: 0 | AE126: 0 | AF126: 0 | AG126: 0 | AH126: 0 | GI126: GO
A127: ANTICIPO DEMOLIZIONI IMPRESA | C127: Finiture interne | E127: =ImportedDataRCR!E168 -> 0 | H127: =ImportedDataRCR!G168 -> 0 | I127: =ImportedDataRCR!H168 -> 10 | J127: =ROUND(E127*(1-$M$117),2) -> 0 | K127: =J127*(1+G125/100) -> 0 | M127: =ROUND(AP164,2) -> 0 | N127: =N125 -> 1.1 | O127: =ROUND(BI164,2) -> 0 | P127: =M127 -> 0 | Q127: =IF(Q$118>Q$117,M127,SUM(Q$121:Q$125)*(1-Q$117)/Q$117*S127) -> 0 | R127: =Q127 -> 0 | S127: =M127/MAX(1,SUM(M$126:M$127)) -> 0 | T127: =R127/(1-$M$117) -> 0 | W127: =ROUND(R127,2) -> 0 | X127: =ROUND(BK164,2) -> 0 | Y127: =AX164 -> 0 | Z127: 0 | AA127: =ROUND(AZ164,2) -> 0 | AB127: =ROUND(BE164,2) -> 0 | AC127: 0 | AD127: =ROUND(BF164,2) -> 0 | AE127: =MAX(0,AA127-MAX(0,SUM(H166:H265)-H127)) -> 0 | AF127: =MAX(0,AB127-MAX(0, SUM(H166:H265*(1+J166:J265/100*IF(K166:K265="N",1,1-$F$19))) -H127*(1+I127/100*(1-$F$19)))) -> 0 | AG127: 0 | AH127: 0 | GI127: GP
A128: NETTO | B128: 0 | C128: Demolizioni | D128: 0 | E128: =ImportedDataRCR!E169 -> 0 | F128: =E128 -> 0 | G128: =ImportedDataRCR!F169 -> 10 | H128: =ImportedDataRCR!G169 -> 0 | I128: =ImportedDataRCR!H169 -> 10 | J128: =MAX(10^-12,ROUND((E128-IF(E125<=10^-12,M116,0))*(1-$M$117)+IF(E125<=10^-12,M116,0),2)) -> 1e-12 | K128: 1.1e-12 | L128: =M128/MAX(1,M$152-M$127) -> 1e-12 | M128: =MAX(10^-12,ROUND((F128-IF(F125<=10^-12,M116,0))*(1-$M$117)+IF(F125<=10^-12,M116,0),2)) -> 1e-12 | N128: 1.1 | O128: =MAX(10^-12,ROUND(M128*(1+G128/100),2)) -> 1e-12 | P128: =MAX(0,M128-D128) -> 1e-12 | Q128: =M128 -> 1e-12 | T128: =IF(ROUND(Q$125,2)=0,(Q128-M$116)/(1-$M$117)+M$116,Q128/(1-$M$117)) -> 1e-12 | V128: =(W128)/MAX(1,W$152-W$127) -> 0 | W128: =ROUND(MIN(T128,P128),2) -> 0 | X128: =MAX(ROUND(W128*N128,2),10^-12) -> 1e-12 | Y128: =Z128/N128 -> 0 | Z128: 0 | AA128: =MAX(ROUND($V128*AY$164,2),10^-12) -> 1e-12 | AB128: =ROUND((AA128)*SUM(Z$166:Z$265*(1+BS$166:BS$265*G128/100)),2) -> 0 | AC128: 0 | AD128: =ROUND((O128-AB128)-Z128,2) -> 0 | AE128: =MAX(0,AA128-MAX(0,(M128-H128))) -> 0 | AF128: =MAX(0,AA128-MAX(0,(M128-H128)))*(1+I128/100*(1-$F$19)) -> 0 | AG128: 1e-12 | AH128: 0 | GI128: GQ
A129: IVATO | B129: =B128*N128 -> 0 | C129: Acquisto Terreni | D129: 0 | E129: =ImportedDataRCR!E170 -> 0 | F129: =D473 -> 1e-12 | G129: =E473 -> 0 | J129: 0 | K129: 0 | L129: 0 | M129: =ROUND(F129,2) -> 0 | N129: 1 | O129: =ROUND(M129*(1+G129/100),2) -> 0 | P129: 0 | Q129: =M129 -> 0 | T129: =Q129 -> 0 | V129: 0 | W129: =ROUND(MIN(T129,P129),2) -> 0 | X129: =ROUND(W129*N129,2) -> 0 | Y129: 0 | Z129: 0 | AA129: =ROUND($V129*AY$164,2) -> 0 | AB129: =ROUND((AA129)*SUM(Z$166:Z$265*(1+BS$166:BS$265*G129/100)),2) -> 0 | AC129: 0 | AD129: 0 | AE129: 0 | AF129: 0 | AG129: 0 | AH129: 0 | GI129: GR
C130: Oneri fiscali Acquisto Terreni | D130: 0 | E130: =ImportedDataRCR!E171 -> 0 | F130: =F473 -> 0 | J130: 0 | K130: 0 | L130: 0 | M130: 0 | N130: 1 | O130: 0 | P130: 0 | Q130: =M130 -> 0 | R130: MAX | T130: =Q130 -> 0 | V130: 0 | W130: =ROUND(MIN(T130,P130),2) -> 0 | X130: =ROUND(W130*N130,2) -> 0 | Y130: 0 | Z130: 0 | AA130: 0 | AB130: =ROUND((AA130)*SUM(Z$166:Z$265),2) -> 0 | AC130: 0 | AD130: 0 | AE130: 0 | AF130: 0 | AG130: 0 | AH130: 0 | GI130: GS
C131: Compilazione scheda AeDES 1 | D131: 0 | E131: =ImportedDataRCR!E172 -> 0 | F131: =E131 -> 0 | G131: =ImportedDataRCR!F172 -> 22 | H131: =ImportedDataRCR!G172 -> 0 | I131: =ImportedDataRCR!H172 -> 22 | J131: 0 | K131: =ROUND(J131*(1+G131/100)+'SAL-INT2'!U42-'SAL-INT2'!R42*(1+G131/100),2) -> 0 | L131: 0 | M131: 0 | N131: 1.22 | O131: =ROUND(M131*(1+G131/100)+'SAL-INT2'!U42-'SAL-INT2'!R42*(1+G131/100),2) -> 0 | P131: =MAX(0,M131-D131) -> 0 | Q131: =M131/(1+U131) -> 0 | R131: =MIN(M131/(1+U131),SpeseTecniche!J33,SpeseTecniche!M4) -> 0 | S131: =P131/(1+U131)/MAX(1,SUM(P$131:P$133/(1+U$131:U$133))) -> 0 | T131: =ROUND(S131*R$131*(1+U131),2) -> 0 | U131: =K33 -> 0 | V131: 0 | W131: =IF(W$117="S",P131,MIN(P131,ROUND(T131,2))) -> 0 | X131: =ROUND((W131-'SAL-INT2'!R42)*N131+'SAL-INT2'!S42,2) -> 0 | Y131: 0 | Z131: 0 | AA131: 0 | AB131: =ROUND('SAL-INT2'!S42+(AA131-'SAL-INT2'!R42)*SUM(Z$166:Z$265*(1+BS$166:BS$265*G131/100)),2) -> 0 | AC131: 0 | AD131: 0 | AE131: 0 | AF131: 0 | AG131: 0 | AH131: 0 | GI131: GT
C132: Compilazione scheda AeDES 2 | D132: 0 | E132: =ImportedDataRCR!E173 -> 0 | F132: =E132 -> 0 | G132: =ImportedDataRCR!F173 -> 22 | H132: =ImportedDataRCR!G173 -> 0 | I132: =ImportedDataRCR!H173 -> 22 | J132: 0 | K132: =ROUND(J132*(1+G132/100)+'SAL-INT2'!U43-'SAL-INT2'!R43*(1+G132/100),2) -> 0 | L132: 0 | M132: 0 | N132: 1.22 | O132: =ROUND(M132*(1+G132/100)+'SAL-INT2'!U43-'SAL-INT2'!R43*(1+G132/100),2) -> 0 | P132: =MAX(0,M132-D132) -> 0 | Q132: 0 | S132: =P132/(1+U132)/MAX(1,SUM(P$131:P$133/(1+U$131:U$133))) -> 0 | T132: =ROUND(S132*R$131*(1+U132),2) -> 0 | U132: 0 | V132: 0 | W132: 0 | X132: =ROUND((W132-'SAL-INT2'!R43)*N132+'SAL-INT2'!S43,2) -> 0 | Y132: 0 | Z132: 0 | AA132: 0 | AB132: =ROUND('SAL-INT2'!S43+(AA132-'SAL-INT2'!R43)*SUM(Z$166:Z$265*(1+BS$166:BS$265*G132/100)),2) -> 0 | AC132: 0 | AD132: 0 | AE132: 0 | AF132: 0 | AG132: 0 | AH132: 0 | GI132: GU
C133: Compilazione scheda AeDES 3 | D133: 0 | E133: =ImportedDataRCR!E174 -> 0 | F133: 0 | G133: =ImportedDataRCR!F174 -> 22 | H133: =ImportedDataRCR!G174 -> 0 | I133: =ImportedDataRCR!H174 -> 22 | J133: 0 | K133: =ROUND(J133*(1+G133/100)+'SAL-INT2'!U44-'SAL-INT2'!R44*(1+G133/100),2) -> 0 | L133: 0 | M133: 0 | N133: 1.22 | O133: =ROUND(M133*(1+G133/100)+'SAL-INT2'!U44-'SAL-INT2'!R44*(1+G133/100),2) -> 0 | P133: 0 | Q133: 0 | S133: =P133/(1+U133)/MAX(1,SUM(P$131:P$133/(1+U$131:U$133))) -> 0 | T133: =ROUND(S133*R$131*(1+U133),2) -> 0 | U133: 0 | V133: 0 | W133: 0 | X133: =ROUND((W133-'SAL-INT2'!R44)*N133+'SAL-INT2'!S44,2) -> 0 | Y133: 0 | Z133: 0 | AA133: 0 | AB133: =ROUND('SAL-INT2'!S44+(AA133-'SAL-INT2'!R44)*SUM(Z$166:Z$265*(1+BS$166:BS$265*G133/100)),2) -> 0 | AC133: 0 | AD133: 0 | AE133: 0 | AF133: 0 | AG133: 0 | AH133: 0 | GI133: GV
A134: NETTO | B134: 0 | C134: Progetto Architettonico | D134: 0 | E134: =ImportedDataRCR!E175 -> 0 | F134: 0 | G134: =ImportedDataRCR!F175 -> 22 | H134: =ImportedDataRCR!G175 -> 0 | I134: =ImportedDataRCR!H175 -> 22 | J134: 0 | K134: =ROUND(J134*(1+G134/100)+'SAL-INT2'!U45-'SAL-INT2'!R45*(1+G134/100),2) -> 0 | L134: 0 | M134: 0 | N134: 1.22 | O134: =ROUND(M134*(1+G134/100)+'SAL-INT2'!U45-'SAL-INT2'!R45*(1+G134/100),2) -> 0 | P134: 0 | Q134: 0 | R134: =SpeseTecniche!M$4-R131 -> 0 | S134: =P134/(1+U134)/MAX(1,SUM(P$134:P$139/(1+U$134:U$139))) -> 0 | T134: =ROUND(S134*R$134*(1+U134),2) -> 0 | U134: 0 | V134: 0 | W134: 0 | X134: =ROUND((W134-'SAL-INT2'!R45)*N134+'SAL-INT2'!S45,2) -> 0 | Y134: 0 | Z134: 0 | AA134: 0 | AB134: =ROUND('SAL-INT2'!S45+(AA134-'SAL-INT2'!R45)*SUM(Z$166:Z$265*(1+BS$166:BS$265*G134/100)),2) -> 0 | AC134: 0 | AD134: 0 | AE134: 0 | AF134: 0 | AG134: 0 | AH134: 0 | GI134: GW
A135: IVATO | B135: =B134*N134 -> 0 | C135: Progetto Strutture | D135: 0 | E135: =ImportedDataRCR!E176 -> 0 | F135: 0 | G135: =ImportedDataRCR!F176 -> 22 | H135: =ImportedDataRCR!G176 -> 0 | I135: =ImportedDataRCR!H176 -> 22 | J135: 0 | K135: =ROUND(J135*(1+G135/100)+'SAL-INT2'!U46-'SAL-INT2'!R46*(1+G135/100),2) -> 0 | L135: 0 | M135: 0 | N135: 1.22 | O135: =ROUND(M135*(1+G135/100)+'SAL-INT2'!U46-'SAL-INT2'!R46*(1+G135/100),2) -> 0 | P135: 0 | Q135: 0 | S135: =P135/(1+U135)/MAX(1,SUM(P$134:P$139/(1+U$134:U$139))) -> 0 | T135: 0 | U135: 0 | V135: 0 | W135: 0 | X135: =ROUND((W135-'SAL-INT2'!R46)*N135+'SAL-INT2'!S46,2) -> 0 | Y135: 0 | Z135: 0 | AA135: 0 | AB135: =ROUND('SAL-INT2'!S46+(AA135-'SAL-INT2'!R46)*SUM(Z$166:Z$265*(1+BS$166:BS$265*G135/100)),2) -> 0 | AC135: 0 | AD135: 0 | AE135: 0 | AF135: 0 | AG135: 0 | AH135: 0 | GI135: GX
C136: Progetto impianti elettrici | D136: 0 | E136: =ImportedDataRCR!E177 -> 0 | F136: 0 | G136: =ImportedDataRCR!F177 -> 22 | H136: =ImportedDataRCR!G177 -> 0 | I136: =ImportedDataRCR!H177 -> 22 | J136: 0 | K136: =ROUND(J136*(1+G136/100)+'SAL-INT2'!U47-'SAL-INT2'!R47*(1+G136/100),2) -> 0 | L136: 0 | M136: 0 | N136: 1.22 | O136: =ROUND(M136*(1+G136/100)+'SAL-INT2'!U47-'SAL-INT2'!R47*(1+G136/100),2) -> 0 | P136: 0 | Q136: 0 | S136: =P136/(1+U136)/MAX(1,SUM(P$134:P$139/(1+U$134:U$139))) -> 0 | T136: 0 | U136: 0 | V136: 0 | W136: 0 | X136: =ROUND((W136-'SAL-INT2'!R47)*N136+'SAL-INT2'!S47,2) -> 0 | Y136: 0 | Z136: 0 | AA136: 0 | AB136: =ROUND('SAL-INT2'!S47+(AA136-'SAL-INT2'!R47)*SUM(Z$166:Z$265*(1+BS$166:BS$265*G136/100)),2) -> 0 | AC136: 0 | AD136: 0 | AE136: 0 | AF136: 0 | AG136: 0 | AH136: 0 | GI136: GY
C137: Progetto impianti termici | D137: 0 | E137: =ImportedDataRCR!E178 -> 0 | F137: 0 | G137: =ImportedDataRCR!F178 -> 22 | H137: =ImportedDataRCR!G178 -> 0 | I137: =ImportedDataRCR!H178 -> 22 | J137: 0 | K137: =ROUND(J137*(1+G137/100)+'SAL-INT2'!U48-'SAL-INT2'!R48*(1+G137/100),2) -> 0 | L137: 0 | M137: 0 | N137: 1.22 | O137: =ROUND(M137*(1+G137/100)+'SAL-INT2'!U48-'SAL-INT2'!R48*(1+G137/100),2) -> 0 | P137: 0 | Q137: 0 | S137: =P137/(1+U137)/MAX(1,SUM(P$134:P$139/(1+U$134:U$139))) -> 0 | T137: 0 | U137: 0 | V137: 0 | W137: 0 | X137: =ROUND((W137-'SAL-INT2'!R48)*N137+'SAL-INT2'!S48,2) -> 0 | Y137: 0 | Z137: 0 | AA137: 0 | AB137: =ROUND('SAL-INT2'!S48+(AA137-'SAL-INT2'!R48)*SUM(Z$166:Z$265*(1+BS$166:BS$265*G137/100)),2) -> 0 | AC137: 0 | AD137: 0 | AE137: 0 | AF137: 0 | AG137: 0 | AH137: 0 | GI137: GZ
C138: Progettazioni specialistiche 1 | D138: 0 | E138: =ImportedDataRCR!E179 -> 0 | F138: 0 | G138: =ImportedDataRCR!F179 -> 22 | H138: =ImportedDataRCR!G179 -> 0 | I138: =ImportedDataRCR!H179 -> 22 | J138: 0 | K138: =ROUND(J138*(1+G138/100)+'SAL-INT2'!U49-'SAL-INT2'!R49*(1+G138/100),2) -> 0 | L138: 0 | M138: 0 | N138: 1.22 | O138: =ROUND(M138*(1+G138/100)+'SAL-INT2'!U49-'SAL-INT2'!R49*(1+G138/100),2) -> 0 | P138: 0 | Q138: 0 | S138: =P138/(1+U138)/MAX(1,SUM(P$134:P$139/(1+U$134:U$139))) -> 0 | T138: 0 | U138: 0 | V138: 0 | W138: 0 | X138: =ROUND((W138-'SAL-INT2'!R49)*N138+'SAL-INT2'!S49,2) -> 0 | Y138: 0 | Z138: 0 | AA138: 0 | AB138: =ROUND('SAL-INT2'!S49+(AA138-'SAL-INT2'!R49)*SUM(Z$166:Z$265*(1+BS$166:BS$265*G138/100)),2) -> 0 | AC138: 0 | AD138: 0 | AE138: 0 | AF138: 0 | AG138: 0 | AH138: 0 | GI138: HA
C139: Progettazioni specialistiche 2 | D139: 0 | E139: =ImportedDataRCR!E180 -> 0 | F139: 0 | G139: =ImportedDataRCR!F180 -> 22 | H139: =ImportedDataRCR!G180 -> 0 | I139: =ImportedDataRCR!H180 -> 22 | J139: 0 | K139: =ROUND(J139*(1+G139/100)+'SAL-INT2'!U50-'SAL-INT2'!R50*(1+G139/100),2) -> 0 | L139: 0 | M139: 0 | N139: 1.22 | O139: =ROUND(M139*(1+G139/100)+'SAL-INT2'!U50-'SAL-INT2'!R50*(1+G139/100),2) -> 0 | P139: 0 | Q139: 0 | S139: =P139/(1+U139)/MAX(1,SUM(P$134:P$139/(1+U$134:U$139))) -> 0 | T139: 0 | U139: 0 | V139: 0 | W139: 0 | X139: =ROUND((W139-'SAL-INT2'!R50)*N139+'SAL-INT2'!S50,2) -> 0 | Y139: 0 | Z139: 0 | AA139: 0 | AB139: =ROUND('SAL-INT2'!S50+(AA139-'SAL-INT2'!R50)*SUM(Z$166:Z$265*(1+BS$166:BS$265*G139/100)),2) -> 0 | AC139: 0 | AD139: 0 | AE139: 0 | AF139: 0 | AG139: 0 | AH139: 0 | GI139: HB
C140: Sicurezza Progettazione | D140: 0 | E140: =ImportedDataRCR!E181 -> 0 | F140: 0 | G140: =ImportedDataRCR!F181 -> 22 | H140: =ImportedDataRCR!G181 -> 0 | I140: =ImportedDataRCR!H181 -> 22 | J140: 0 | K140: =ROUND(J140*(1+G140/100)+'SAL-INT2'!U51-'SAL-INT2'!R51*(1+G140/100),2) -> 0 | L140: 0 | M140: 0 | N140: 1.22 | O140: =ROUND(M140*(1+G140/100)+'SAL-INT2'!U51-'SAL-INT2'!R51*(1+G140/100),2) -> 0 | P140: 0 | Q140: 0 | R140: =SpeseTecniche!M$5 -> 0 | S140: =P140/(1+U140)/MAX(1,SUM(P$140:P$141/(1+U$140:U$141))) -> 0 | T140: =ROUND(S140*R$140*(1+U140),2) -> 0 | U140: 0 | V140: 0 | W140: 0 | X140: =ROUND((W140-'SAL-INT2'!R51)*N140+'SAL-INT2'!S51,2) -> 0 | Y140: 0 | Z140: 0 | AA140: 0 | AB140: =ROUND('SAL-INT2'!S51+(AA140-'SAL-INT2'!R51)*SUM(Z$166:Z$265*(1+BS$166:BS$265*G140/100)),2) -> 0 | AC140: 0 | AD140: 0 | AE140: 0 | AF140: 0 | AG140: 0 | AH140: 0 | GI140: HC
C141: Sicurezza Esecuzione | D141: 0 | E141: =ImportedDataRCR!E182 -> 0 | F141: 0 | G141: =ImportedDataRCR!F182 -> 22 | H141: =ImportedDataRCR!G182 -> 0 | I141: =ImportedDataRCR!H182 -> 22 | J141: 0 | K141: =ROUND(J141*(1+G141/100)+'SAL-INT2'!U52-'SAL-INT2'!R52*(1+G141/100),2) -> 0 | L141: 0 | M141: 0 | N141: 1.22 | O141: =ROUND(M141*(1+G141/100)+'SAL-INT2'!U52-'SAL-INT2'!R52*(1+G141/100),2) -> 0 | P141: 0 | Q141: 0 | S141: =P141/(1+U141)/MAX(1,SUM(P$140:P$141/(1+U$140:U$141))) -> 0 | T141: =ROUND(S141*R$140*(1+U141),2) -> 0 | U141: 0 | V141: 0 | W141: 0 | X141: =ROUND((W141-'SAL-INT2'!R52)*N141+'SAL-INT2'!S52,2) -> 0 | Y141: 0 | Z141: 0 | AA141: 0 | AB141: =ROUND('SAL-INT2'!S52+(AA141-'SAL-INT2'!R52)*SUM(Z$166:Z$265*(1+BS$166:BS$265*G141/100)),2) -> 0 | AC141: 0 | AD141: 0 | AE141: 0 | AF141: 0 | AG141: 0 | AH141: 0 | GI141: HD
C142: Direzione Lavori architettonici | D142: 0 | E142: =ImportedDataRCR!E183 -> 0 | F142: 0 | G142: =ImportedDataRCR!F183 -> 22 | H142: =ImportedDataRCR!G183 -> 0 | I142: =ImportedDataRCR!H183 -> 22 | J142: 0 | K142: =ROUND(J142*(1+G142/100)+'SAL-INT2'!U53-'SAL-INT2'!R53*(1+G142/100),2) -> 0 | L142: 0 | M142: 0 | N142: 1.22 | O142: =ROUND(M142*(1+G142/100)+'SAL-INT2'!U53-'SAL-INT2'!R53*(1+G142/100),2) -> 0 | P142: 0 | Q142: 0 | R142: =SpeseTecniche!M$6 -> 0 | S142: =P142/(1+U142)/MAX(1,SUM(P$142:P$144/(1+U$142:U$144))) -> 0 | T142: =ROUND(S142*R$142*(1+U142),2) -> 0 | U142: 0 | V142: 0 | W142: 0 | X142: =ROUND((W142-'SAL-INT2'!R53)*N142+'SAL-INT2'!S53,2) -> 0 | Y142: 0 | Z142: 0 | AA142: 0 | AB142: =ROUND('SAL-INT2'!S53+(AA142-'SAL-INT2'!R53)*SUM(Z$166:Z$265*(1+BS$166:BS$265*G142/100)),2) -> 0 | AC142: 0 | AD142: 0 | AE142: 0 | AF142: 0 | AG142: 0 | AH142: 0 | GI142: HE
C143: Direzione Lavori strutturali | D143: 0 | E143: =ImportedDataRCR!E184 -> 0 | F143: 0 | G143: =ImportedDataRCR!F184 -> 22 | H143: =ImportedDataRCR!G184 -> 0 | I143: =ImportedDataRCR!H184 -> 22 | J143: 0 | K143: =ROUND(J143*(1+G143/100)+'SAL-INT2'!U54-'SAL-INT2'!R54*(1+G143/100),2) -> 0 | L143: 0 | M143: 0 | N143: 1.22 | O143: =ROUND(M143*(1+G143/100)+'SAL-INT2'!U54-'SAL-INT2'!R54*(1+G143/100),2) -> 0 | P143: 0 | Q143: 0 | S143: =P143/(1+U143)/MAX(1,SUM(P$142:P$144/(1+U$142:U$144))) -> 0 | T143: =ROUND(S143*R$142*(1+U143),2) -> 0 | U143: 0 | V143: 0 | W143: 0 | X143: =ROUND((W143-'SAL-INT2'!R54)*N143+'SAL-INT2'!S54,2) -> 0 | Y143: 0 | Z143: 0 | AA143: 0 | AB143: =ROUND('SAL-INT2'!S54+(AA143-'SAL-INT2'!R54)*SUM(Z$166:Z$265*(1+BS$166:BS$265*G143/100)),2) -> 0 | AC143: 0 | AD143: 0 | AE143: 0 | AF143: 0 | AG143: 0 | AH143: 0 | GI143: HF
C144: Contabilita lavori | D144: 0 | E144: =ImportedDataRCR!E185 -> 0 | F144: 0 | G144: =ImportedDataRCR!F185 -> 22 | H144: =ImportedDataRCR!G185 -> 0 | I144: =ImportedDataRCR!H185 -> 22 | J144: 0 | K144: =ROUND(J144*(1+G144/100)+'SAL-INT2'!U55-'SAL-INT2'!R55*(1+G144/100),2) -> 0 | L144: 0 | M144: 0 | N144: 1.22 | O144: =ROUND(M144*(1+G144/100)+'SAL-INT2'!U55-'SAL-INT2'!R55*(1+G144/100),2) -> 0 | P144: 0 | Q144: 0 | S144: =P144/(1+U144)/MAX(1,SUM(P$142:P$144/(1+U$142:U$144))) -> 0 | T144: =ROUND(S144*R$142*(1+U144),2) -> 0 | U144: 0 | V144: 0 | W144: 0 | X144: =ROUND((W144-'SAL-INT2'!R55)*N144+'SAL-INT2'!S55,2) -> 0 | Y144: 0 | Z144: 0 | AA144: 0 | AB144: =ROUND('SAL-INT2'!S55+(AA144-'SAL-INT2'!R55)*SUM(Z$166:Z$265*(1+BS$166:BS$265*G144/100)),2) -> 0 | AC144: 0 | AD144: 0 | AE144: 0 | AF144: 0 | AG144: 0 | AH144: 0 | GI144: HG
C145: Collaudo | D145: 0 | E145: =ImportedDataRCR!E186 -> 0 | F145: 0 | G145: =ImportedDataRCR!F186 -> 22 | H145: =ImportedDataRCR!G186 -> 0 | I145: =ImportedDataRCR!H186 -> 22 | J145: 0 | K145: =ROUND(J145*(1+G145/100)+'SAL-INT2'!U56-'SAL-INT2'!R56*(1+G145/100),2) -> 0 | L145: 0 | M145: 0 | N145: 1.22 | O145: =ROUND(M145*(1+G145/100)+'SAL-INT2'!U56-'SAL-INT2'!R56*(1+G145/100),2) -> 0 | P145: 0 | Q145: 0 | R145: =SpeseTecniche!M$7 -> 0 | S145: =P145/(1+U145)/MAX(1,SUM(P$145:P$146/(1+U$145:U$146))) -> 0 | T145: =ROUND(S145*R$145*(1+U145),2) -> 0 | U145: 0 | V145: 0 | W145: 0 | X145: =ROUND((W145-'SAL-INT2'!R56)*N145+'SAL-INT2'!S56,2) -> 0 | Y145: 0 | Z145: 0 | AA145: 0 | AB145: =ROUND('SAL-INT2'!S56+(AA145-'SAL-INT2'!R56)*SUM(Z$166:Z$265*(1+BS$166:BS$265*G145/100)),2) -> 0 | AC145: 0 | AD145: 0 | AE145: 0 | AF145: 0 | AG145: 0 | AH145: 0 | GI145: HF
C146: Certificazione energetica | D146: 0 | E146: =ImportedDataRCR!E187 -> 0 | F146: 0 | G146: =ImportedDataRCR!F187 -> 22 | H146: =ImportedDataRCR!G187 -> 0 | I146: =ImportedDataRCR!H187 -> 22 | J146: 0 | K146: =ROUND(J146*(1+G146/100)+'SAL-INT2'!U57-'SAL-INT2'!R57*(1+G146/100),2) -> 0 | L146: 0 | M146: 0 | N146: 1.22 | O146: =ROUND(M146*(1+G146/100)+'SAL-INT2'!U57-'SAL-INT2'!R57*(1+G146/100),2) -> 0 | P146: 0 | Q146: 0 | S146: =P146/(1+U146)/MAX(1,SUM(P$145:P$146/(1+U$145:U$146))) -> 0 | T146: =ROUND(S146*R$145*(1+U146),2) -> 0 | U146: 0 | V146: 0 | W146: 0 | X146: =ROUND((W146-'SAL-INT2'!R57)*N146+'SAL-INT2'!S57,2) -> 0 | Y146: 0 | Z146: 0 | AA146: 0 | AB146: =ROUND('SAL-INT2'!S57+(AA146-'SAL-INT2'!R57)*SUM(Z$166:Z$265*(1+BS$166:BS$265*G146/100)),2) -> 0 | AC146: 0 | AD146: 0 | AE146: 0 | AF146: 0 | AG146: 0 | AH146: 0 | GI146: HI
C147: Relazione geologica | D147: 0 | E147: =ImportedDataRCR!E188 -> 0 | F147: 0 | G147: =ImportedDataRCR!F188 -> 22 | H147: =ImportedDataRCR!G188 -> 0 | I147: =ImportedDataRCR!H188 -> 22 | J147: 0 | K147: =ROUND(J147*(1+G147/100)+'SAL-INT2'!U58-'SAL-INT2'!R58*(1+G147/100),2) -> 0 | L147: 0 | M147: 0 | N147: 1.22 | O147: =ROUND(M147*(1+G147/100)+'SAL-INT2'!U58-'SAL-INT2'!R58*(1+G147/100),2) -> 0 | P147: 0 | Q147: 0 | R147: =SpeseTecniche!E$32 -> 0 | S147: =SpeseTecniche!H$35 -> 0 | T147: =ROUND(S147*R$147*(1+U147),2) -> 0 | U147: 0 | V147: 0 | W147: 0 | X147: =ROUND((W147-'SAL-INT2'!R58)*N147+'SAL-INT2'!S58,2) -> 0 | Y147: 0 | Z147: 0 | AA147: 0 | AB147: =ROUND('SAL-INT2'!S58+(AA147-'SAL-INT2'!R58)*SUM(Z$166:Z$265*(1+BS$166:BS$265*G147/100)),2) -> 0 | AC147: 0 | AD147: 0 | AE147: 0 | AF147: 0 | AG147: 0 | AH147: 0 | GI147: HJ
C148: Altre prestazioni 1 | D148: 0 | E148: =ImportedDataRCR!E189 -> 0 | F148: 0 | G148: =ImportedDataRCR!F189 -> 22 | H148: =ImportedDataRCR!G189 -> 0 | I148: =ImportedDataRCR!H189 -> 22 | J148: 0 | K148: =ROUND(J148*(1+G148/100)+'SAL-INT2'!U59-'SAL-INT2'!R59*(1+G148/100),2) -> 0 | L148: 0 | M148: 0 | N148: 1.22 | O148: =ROUND(M148*(1+G148/100)+'SAL-INT2'!U59-'SAL-INT2'!R59*(1+G148/100),2) -> 0 | P148: 0 | Q148: 0 | S148: =SpeseTecniche!H$36*P148/(1+U148)/MAX(1,SUM(P$148:P$150/(1+U$148:U$150))) -> 0 | T148: =ROUND(S148*R$147*(1+U148),2) -> 0 | U148: 0 | V148: 0 | W148: 0 | X148: =ROUND((W148-'SAL-INT2'!R59)*N148+'SAL-INT2'!S59,2) -> 0 | Y148: 0 | Z148: 0 | AA148: 0 | AB148: =ROUND('SAL-INT2'!S59+(AA148-'SAL-INT2'!R59)*SUM(Z$166:Z$265*(1+BS$166:BS$265*G148/100)),2) -> 0 | AC148: 0 | AD148: 0 | AE148: 0 | AF148: 0 | AG148: 0 | AH148: 0 | GI148: HK
C149: Altre prestazioni 2 | D149: 0 | E149: =ImportedDataRCR!E190 -> 0 | F149: 0 | G149: =ImportedDataRCR!F190 -> 22 | H149: =ImportedDataRCR!G190 -> 0 | I149: =ImportedDataRCR!H190 -> 22 | J149: 0 | K149: =ROUND(J149*(1+G149/100)+'SAL-INT2'!U60-'SAL-INT2'!R60*(1+G149/100),2) -> 0 | L149: 0 | M149: 0 | N149: 1.22 | O149: =ROUND(M149*(1+G149/100)+'SAL-INT2'!U60-'SAL-INT2'!R60*(1+G149/100),2) -> 0 | P149: 0 | Q149: 0 | S149: =SpeseTecniche!H$36*P149/(1+U149)/MAX(1,SUM(P$148:P$150/(1+U$148:U$150))) -> 0 | T149: =ROUND(S149*R$147*(1+U149),2) -> 0 | U149: 0 | V149: 0 | W149: 0 | X149: =ROUND((W149-'SAL-INT2'!R60)*N149+'SAL-INT2'!S60,2) -> 0 | Y149: 0 | Z149: 0 | AA149: 0 | AB149: =ROUND('SAL-INT2'!S60+(AA149-'SAL-INT2'!R60)*SUM(Z$166:Z$265*(1+BS$166:BS$265*G149/100)),2) -> 0 | AC149: 0 | AD149: 0 | AE149: 0 | AF149: 0 | AG149: 0 | AH149: 0 | GI149: HL
C150: Altre prestazioni 3 | D150: 0 | E150: =ImportedDataRCR!E191 -> 0 | F150: =E150 -> 0 | G150: =ImportedDataRCR!F191 -> 22 | H150: =ImportedDataRCR!G191 -> 0 | I150: =ImportedDataRCR!H191 -> 22 | J150: 0 | K150: =ROUND(J150*(1+G150/100)+'SAL-INT2'!U61-'SAL-INT2'!R61*(1+G150/100),2) -> 0 | L150: 0 | M150: 0 | N150: 1.22 | O150: =ROUND(M150*(1+G150/100)+'SAL-INT2'!U61-'SAL-INT2'!R61*(1+G150/100),2) -> 0 | P150: 0 | Q150: 0 | S150: =SpeseTecniche!H$36*P150/(1+U150)/MAX(1,SUM(P$148:P$150/(1+U$148:U$150))) -> 0 | T150: =ROUND(S150*R$147*(1+U150),2) -> 0 | U150: 0 | V150: 0 | W150: 0 | X150: =ROUND((W150-'SAL-INT2'!R61)*N150+'SAL-INT2'!S61,2) -> 0 | Y150: 0 | Z150: 0 | AA150: 0 | AB150: =ROUND('SAL-INT2'!S61+(AA150-'SAL-INT2'!R61)*SUM(Z$166:Z$265*(1+BS$166:BS$265*G150/100)),2) -> 0 | AC150: 0 | AD150: 0 | AE150: 0 | AF150: 0 | AG150: 0 | AH150: 0 | GI150: HM
C151: Amministratore | D151: 0 | E151: =ImportedDataRCR!E192 -> 0 | F151: 0 | G151: =ImportedDataRCR!F192 -> 22 | H151: =ImportedDataRCR!G192 -> 0 | I151: =ImportedDataRCR!H192 -> 22 | J151: 0 | K151: =ROUND(J151*(1+G151/100)+'SAL-INT2'!U62-'SAL-INT2'!R62*(1+G151/100),2) -> 0 | L151: 0 | M151: 0 | N151: 1.22 | O151: =ROUND(M151*(1+G151/100)+'SAL-INT2'!U62-'SAL-INT2'!R62*(1+G151/100),2) -> 0 | P151: 0 | Q151: =M151 -> 0 | R151: =SpeseTecniche!D$47 -> 0 | S151: =M151/MAX(1,SUM(M$151)) -> 0 | T151: =ROUND(S151*R$151,2) -> 0 | V151: 0 | W151: =MIN(P151,ROUND(T151,2)) -> 0 | X151: =ROUND((W151-'SAL-INT2'!R62)*N151+'SAL-INT2'!S62,2) -> 0 | Y151: 0 | Z151: 0 | AA151: 0 | AB151: =ROUND('SAL-INT2'!S62+(AA151-'SAL-INT2'!R62)*SUM(Z$166:Z$265*(1+BS$166:BS$265*G151/100)),2) -> 0 | AC151: 0 | AD151: 0 | AE151: 0 | AF151: =MAX(0,AA151-MAX(0,(O151-H151)))*(1+I151/100*(1-$F$19)) -> 0 | AG151: 0 | AH151: 0 | GI151: HN
D152: =SUM(D120:D151) -> 0 | E152: =SUM(E120:E151) -> 1e-12 | F152: =SUM(F120:F151) -> 2e-12 | H152: =SUM(H120:H151) -> 0 | J152: =SUM(J120:J151) -> 2e-12 | K152: =SUM(K120:K151) -> 2.2e-12 | M152: =SUM(M120:M151) -> 2e-12 | O152: =SUM(O120:O151) -> 2e-12 | P152: =SUM(P120:P151) -> 2e-12 | Q152: =SUM(Q120:Q151) -> 2e-12 | R152: =SUM(R120:R151) -> 1e-12 | T152: =SUM(T120:T151) -> 2e-12 | V152: 1 | W152: =SUM(W120:W151) -> 1e-12 | X152: 2e-12 | Y152: 0 | Z152: 0 | AA152: =SUM(AA120:AA151) -> 2e-12 | AB152: 0 | AC152: 0 | AD152: 0 | AE152: 0 | AF152: 0 | AG152: 2e-12 | AH152: 0
B153: Altre prestazioni professionali
B154: Prestazioni | C154: Altre prestazioni professionali | D154: =SUM(D155:D159) -> 0 | E154: =IF(D154>0,"S","N") -> N
C155: Accatastamento | D155: =IF(E155="S",1,0) -> 0 | E155: =ImportedDataRCR!E199 -> N
C156: Relazioni ambientali | D156: 0 | E156: =ImportedDataRCR!E200 -> N
C157: Rilievo geometrico-informatico | D157: 0 | E157: =ImportedDataRCR!E201 -> N
C158: Rilievo storico-critico | D158: 0 | E158: =ImportedDataRCR!E202 -> N
C159: Relazione geologica | D159: 0 | E159: =ImportedDataRCR!E203 -> N
C160: Analisi risposta sismica locale | D160: 0 | E160: =ImportedDataRCR!E204 -> N | AR160: FINITURE RICONOSCIUTE AL | AS160: =W127/MAX($M127,1) -> 0 | BZ160: N | CA160: COLONNA | CB160: 120 | CC160: 121 | CD160: 122 | CE160: 123 | CF160: 124 | CG160: 125 | CH160: 126 | CI160: 127 | CJ160: 128 | CK160: 129 | CL160: 130 | CM160: 131 | CN160: 132 | CO160: 133 | CP160: 134 | CQ160: 135 | CR160: 136 | CS160: 137 | CT160: 138 | CU160: 139 | CV160: 140 | CW160: 141 | CX160: 142 | CY160: 143 | CZ160: 144 | DA160: 145 | DB160: 146 | DC160: 147 | DD160: 148 | DE160: 149 | DF160: 150 | DG160: 151 | DK160: G | DL160: COLONNA | DM160: 120 | DN160: 121 | DO160: 122 | DP160: 123 | DQ160: 124 | DR160: 125 | DS160: 126 | DT160: 127 | DU160: 128 | DV160: 129 | DW160: 130 | DX160: 131 | DY160: 132 | DZ160: 133 | EA160: 134 | EB160: 135 | EC160: 136 | ED160: 137 | EE160: 138 | EF160: 139 | EG160: 140 | EH160: 141 | EI160: 142 | EJ160: 143 | EK160: 144 | EL160: 145 | EM160: 146 | EN160: 147 | EO160: 148 | EP160: 149 | EQ160: 150 | ER160: 151 | EV160: G | EW160: COLONNA | EX160: 120 | EY160: 121 | EZ160: 122 | FA160: 123 | FB160: 124 | FC160: 125 | FD160: 126 | FE160: 127 | FF160: 128 | FG160: 129 | FH160: 130 | FI160: 131 | FJ160: 132 | FK160: 133 | FL160: 134 | FM160: 135 | FN160: 136 | FO160: 137 | FP160: 138 | FQ160: 139 | FR160: 140 | FS160: 141 | FT160: 142 | FU160: 143 | FV160: 144 | FW160: 145 | FX160: 146 | FY160: 147 | FZ160: 148 | GA160: 149 | GB160: 150 | GC160: 151 | GH160: COLONNA | GI160: 120 | GJ160: 121 | GK160: 122 | GL160: 123 | GM160: 124 | GN160: 125 | GO160: 126 | GP160: 127 | GQ160: 128 | GR160: 129 | GS160: 130 | GT160: 131 | GU160: 132 | GV160: 133 | GW160: 134 | GX160: 135 | GY160: 136 | GZ160: 137 | HA160: 138 | HB160: 139 | HC160: 140 | HD160: 141 | HE160: 142 | HF160: 143 | HG160: 144 | HH160: 145 | HI160: 146 | HJ160: 147 | HK160: 148 | HL160: 149 | HM160: 150 | HN160: 151 | HR160: V | HS160: COLONNA | HT160: 120 | HU160: 121 | HV160: 122 | HW160: 123 | HX160: 124 | HY160: 125 | HZ160: 126 | IA160: 127 | IB160: 128 | IC160: 129 | ID160: 130 | IE160: 131 | IF160: 132 | IG160: 133 | IH160: 134 | II160: 135 | IJ160: 136 | IK160: 137 | IL160: 138 | IM160: 139 | IN160: 140 | IO160: 141 | IP160: 142 | IQ160: 143 | IR160: 144 | IS160: 145 | IT160: 146 | IU160: 147 | IV160: 148 | IW160: 149 | IX160: 150 | IY160: 151 | JC160: N | JD160: COLONNA | JE160: 120 | JF160: 121 | JG160: 122 | JH160: 123 | JI160: 124 | JJ160: 125 | JK160: 126 | JL160: 127 | JM160: 128 | JN160: 129 | JO160: 130 | JP160: 131 | JQ160: 132 | JR160: 133 | JS160: 134 | JT160: 135 | JU160: 136 | JV160: 137 | JW160: 138 | JX160: 139 | JY160: 140 | JZ160: 141 | KA160: 142 | KB160: 143 | KC160: 144 | KD160: 145 | KE160: 146 | KF160: 147 | KG160: 148 | KH160: 149 | KI160: 150 | KJ160: 151
B161: Istituto di credito prescelto | I161: =SUMIF(I$166:I$265,J161,Z$166:Z$265) -> 1e-12 | J161: Privata | AM161: Privata | AN161: =SUMIF($I$166:$I$265,$AM161,AN$166:AN$265) -> 4.4e-10 | AO161: 2e-24 | AP161: 0 | AQ161: 2e-24 | AR161: 1e-24 | AS161: 0 | AT161: 1e-24 | AV161: =SUMIF($I$166:$I$265,$AM161,AV$166:AV$265) -> 1e-24 | AW161: 0 | AX161: 0 | AY161: 1e-08 | AZ161: 0 | BA161: 1e-24 | BB161: 0 | BC161: 0 | BD161: 1.1e-24 | BE161: 0 | BF161: =SUMIF($I$166:$I$265,$AM161,BF$166:BF$265) -> 0 | BG161: 9e-25 | BH161: 2e-24 | BI161: 0 | BJ161: 2e-24 | BK161: 0 | BL161: 4.4e-10 | BU161: =SUMIF($I$166:$I$265,$AM161,BU$166:BU$265) -> 0 | CA161: Privata | CB161: =IF($BZ$162="N",SUMIF($I$166:$I$265,$AM161,CB$166:CB$265),SUM(CB$166:CB$265)*($CA161=$BZ$163)) -> 0 | CC161: =IF($BZ$162="N",SUMIF($I$166:$I$265,$AM161,CC$166:CC$265),SUM(CC$166:CC$265)*($CA161=$BZ$163)) -> 0 | CD161: 0 | CE161: 0 | CF161: 0 | CG161: 1e-24 | CH161: 0 | CI161: =SUMIF($I$166:$I$265,$AM161,CI$166:CI$265) -> 0 | CJ161: =IF($BZ$162="N",SUMIF($I$166:$I$265,$AM161,CJ$166:CJ$265),SUM(CJ$166:CJ$265)*($CA161=$BZ$163)) -> 0 | CK161: 0 | CL161: 0 | CM161: 0 | CN161: 0 | CO161: 0 | CP161: 0 | CQ161: 0 | CR161: 0 | CS161: 0 | CT161: 0 | CU161: 0 | CV161: 0 | CW161: 0 | CX161: 0 | CY161: 0 | CZ161: 0 | DA161: 0 | DB161: 0 | DC161: 0 | DD161: 0 | DE161: 0 | DF161: 0 | DG161: 0 | DK161: ="'"&"SAL-INT2"&"'"&"!" -> 'SAL-INT2'! | DL161: Privata | DM161: =IF($BZ$162="N",SUMIF($I$166:$I$265,$AM161,DM$166:DM$265),SUM(DM$166:DM$265)*($CA161=$BZ$163)) -> 0 | DN161: =IF($BZ$162="N",SUMIF($I$166:$I$265,$AM161,DN$166:DN$265),SUM(DN$166:DN$265)*($CA161=$BZ$163)) -> 0 | DO161: 0 | DP161: 0 | DQ161: 0 | DR161: 1.1e-24 | DS161: 0 | DT161: =SUMIF($I$166:$I$265,$AM161,DT$166:DT$265) -> 0 | DU161: =IF($BZ$162="N",SUMIF($I$166:$I$265,$AM161,DU$166:DU$265),SUM(DU$166:DU$265)*($CA161=$BZ$163)) -> 0 | DV161: 0 | DW161: 0 | DX161: 0 | DY161: 0 | DZ161: 0 | EA161: 0 | EB161: 0 | EC161: 0 | ED161: 0 | EE161: 0 | EF161: 0 | EG161: 0 | EH161: 0 | EI161: 0 | EJ161: 0 | EK161: 0 | EL161: 0 | EM161: 0 | EN161: 0 | EO161: 0 | EP161: 0 | EQ161: 0 | ER161: 0 | EV161: ="'"&"SAL-INT2"&"'"&"!" -> 'SAL-INT2'! | EW161: Privata | EX161: =IF($BZ$162="N",SUMIF($I$166:$I$265,$AM161,EX$166:EX$265),SUM(EX$166:EX$265)*($CA161=$BZ$163)) -> 0 | EY161: 0 | EZ161: 0 | FA161: 0 | FB161: 0 | FC161: 1.1e-24 | FD161: 0 | FE161: 0 | FF161: 0 | FG161: 0 | FH161: 0 | FI161: 0 | FJ161: 0 | FK161: 0 | FL161: 0 | FM161: 0 | FN161: 0 | FO161: 0 | FP161: 0 | FQ161: 0 | FR161: 0 | FS161: 0 | FT161: 0 | FU161: 0 | FV161: 0 | FW161: 0 | FX161: 0 | FY161: 0 | FZ161: 0 | GA161: 0 | GB161: 0 | GC161: 0 | GH161: =IF($BZ$162="N",SUMIF($I$166:$I$265,$AM161,GH$166:GH$265),SUM(GH$166:GH$265)*($CA161=$BZ$163)) -> 0 | GI161: 0 | GJ161: 0 | GK161: 0 | GL161: 0 | GM161: 0 | GN161: 0 | GO161: 0 | GP161: 0 | GQ161: 0 | GR161: 0 | GS161: 0 | GT161: 0 | GU161: 0 | GV161: 0 | GW161: 0 | GX161: =IF($BZ$162="N",SUMIF($I$166:$I$265,$AM161,GX$166:GX$265),SUM(GX$166:GX$265)*($CA161=$BZ$163)) -> 0 | GY161: 0 | GZ161: 0 | HA161: 0 | HB161: 0 | HC161: 0 | HD161: 0 | HE161: 0 | HF161: 0 | HG161: 0 | HH161: 0 | HI161: 0 | HJ161: 0 | HK161: 0 | HL161: 0 | HM161: 0 | HN161: =IF($BZ$162="N",SUMIF($I$166:$I$265,$AM161,HN$166:HN$265),SUM(HN$166:HN$265)*($CA161=$BZ$163)) -> 0 | HS161: =IF($BZ$162="N",SUMIF($I$166:$I$265,$AM161,HS$166:HS$265),SUM(HS$166:HS$265)*($CA161=$BZ$163)) -> 1e-24 | HT161: 0 | HU161: 0 | HV161: 0 | HW161: 0 | HX161: 0 | HY161: 1e-24 | HZ161: 0 | IA161: 0 | IB161: 0 | IC161: 0 | ID161: 0 | IE161: 0 | IF161: 0 | IG161: 0 | IH161: 0 | II161: =IF($BZ$162="N",SUMIF($I$166:$I$265,$AM161,II$166:II$265),SUM(II$166:II$265)*($CA161=$BZ$163)) -> 0 | IJ161: 0 | IK161: 0 | IL161: 0 | IM161: 0 | IN161: 0 | IO161: 0 | IP161: 0 | IQ161: 0 | IR161: 0 | IS161: 0 | IT161: 0 | IU161: 0 | IV161: 0 | IW161: 0 | IX161: 0 | IY161: =IF($BZ$162="N",SUMIF($I$166:$I$265,$AM161,IY$166:IY$265),SUM(IY$166:IY$265)*($CA161=$BZ$163)) -> 0 | JD161: Privata | JE161: =IF($BZ$162="N",SUMIF($I$166:$I$265,$AM161,JE$166:JE$265),SUM(JE$166:JE$265)*($CA161=$BZ$163)) -> 0 | JF161: =IF($BZ$162="N",SUMIF($I$166:$I$265,$AM161,JF$166:JF$265),SUM(JF$166:JF$265)*($CA161=$BZ$163)) -> 0 | JG161: 0 | JH161: 0 | JI161: 0 | JJ161: 0 | JK161: 0 | JL161: =SUMIF($I$166:$I$265,$AM161,JL$166:JL$265) -> 0 | JM161: =IF($BZ$162="N",SUMIF($I$166:$I$265,$AM161,JM$166:JM$265),SUM(JM$166:JM$265)*($CA161=$BZ$163)) -> 0 | JN161: 0 | JO161: 0 | JP161: 0 | JQ161: 0 | JR161: 0 | JS161: 0 | JT161: 0 | JU161: 0 | JV161: 0 | JW161: 0 | JX161: 0 | JY161: 0 | JZ161: 0 | KA161: 0 | KB161: 0 | KC161: 0 | KD161: 0 | KE161: 0 | KF161: 0 | KG161: 0 | KH161: 0 | KI161: 0 | KJ161: 0
C162: =ImportedDataRCR!E209 -> BANCA DEI SIBILLINI CREDITO COOPERATIVO DI CASAVECCHIA | E162: =VLOOKUP(C162,LookupTable!BA:BF,IF(E8=10,6,IF(E8=11,4,IF(E8=12,5,3))),FALSE) -> banca.sibillini@legalmail.it | I162: =SUMIF(I$166:I$265,J162,Z$166:Z$265) -> 0 | J162: Pubblica | W162: Totale | X162: =SUM(X166:X265) -> 1e-12 | Y162: =Y164+Y163 -> 0 | Z162: ART. 18 C. 6 | AM162: Pubblica | AN162: 0 | AO162: 0 | AP162: 0 | AQ162: 0 | AR162: 0 | AS162: 0 | AT162: 0 | AV162: 0 | AW162: 0 | AX162: 0 | AY162: 0 | AZ162: 0 | BA162: 0 | BB162: 0 | BC162: 0 | BD162: 0 | BE162: 0 | BF162: 0 | BG162: 0 | BH162: 0 | BI162: 0 | BJ162: 0 | BK162: 0 | BL162: 0 | BU162: =SUMIF($I$166:$I$265,$AM162,BU$166:BU$265) -> 0 | BZ162: =$E$18 -> N | CA162: Pubblica | CB162: =IF($BZ$162="N",SUMIF($I$166:$I$265,$AM162,CB$166:CB$265),SUM(CB$166:CB$265)*($CA162=$BZ$163)) -> 0 | CC162: 0 | CD162: 0 | CE162: 0 | CF162: 0 | CG162: 0 | CH162: 0 | CI162: 0 | CJ162: 0 | CK162: 0 | CL162: 0 | CM162: 0 | CN162: 0 | CO162: 0 | CP162: 0 | CQ162: 0 | CR162: 0 | CS162: 0 | CT162: 0 | CU162: 0 | CV162: 0 | CW162: 0 | CX162: 0 | CY162: 0 | CZ162: 0 | DA162: 0 | DB162: 0 | DC162: 0 | DD162: 0 | DE162: 0 | DF162: 0 | DG162: 0 | DK162: 89 | DL162: Pubblica | DM162: =IF($BZ$162="N",SUMIF($I$166:$I$265,$AM162,DM$166:DM$265),SUM(DM$166:DM$265)*($CA162=$BZ$163)) -> 0 | DN162: 0 | DO162: 0 | DP162: 0 | DQ162: 0 | DR162: 0 | DS162: 0 | DT162: 0 | DU162: 0 | DV162: 0 | DW162: 0 | DX162: 0 | DY162: 0 | DZ162: 0 | EA162: 0 | EB162: 0 | EC162: 0 | ED162: 0 | EE162: 0 | EF162: 0 | EG162: 0 | EH162: 0 | EI162: 0 | EJ162: 0 | EK162: 0 | EL162: 0 | EM162: 0 | EN162: 0 | EO162: 0 | EP162: 0 | EQ162: 0 | ER162: 0 | EV162: 89 | EW162: Pubblica | EX162: 0 | EY162: 0 | EZ162: 0 | FA162: 0 | FB162: 0 | FC162: 0 | FD162: 0 | FE162: 0 | FF162: 0 | FG162: 0 | FH162: 0 | FI162: 0 | FJ162: 0 | FK162: 0 | FL162: 0 | FM162: 0 | FN162: 0 | FO162: 0 | FP162: 0 | FQ162: 0 | FR162: 0 | FS162: 0 | FT162: 0 | FU162: 0 | FV162: 0 | FW162: 0 | FX162: 0 | FY162: 0 | FZ162: 0 | GA162: 0 | GB162: 0 | GC162: 0 | GH162: 0 | GI162: 0 | GJ162: 0 | GK162: 0 | GL162: 0 | GM162: 0 | GN162: 0 | GO162: 0 | GP162: 0 | GQ162: 0 | GR162: 0 | GS162: 0 | GT162: 0 | GU162: 0 | GV162: 0 | GW162: 0 | GX162: 0 | GY162: 0 | GZ162: 0 | HA162: 0 | HB162: 0 | HC162: 0 | HD162: 0 | HE162: 0 | HF162: 0 | HG162: 0 | HH162: 0 | HI162: 0 | HJ162: 0 | HK162: 0 | HL162: 0 | HM162: 0 | HN162: 0 | HS162: 0 | HT162: 0 | HU162: 0 | HV162: 0 | HW162: 0 | HX162: 0 | HY162: 0 | HZ162: 0 | IA162: 0 | IB162: 0 | IC162: 0 | ID162: 0 | IE162: 0 | IF162: 0 | IG162: 0 | IH162: 0 | II162: 0 | IJ162: 0 | IK162: 0 | IL162: 0 | IM162: 0 | IN162: 0 | IO162: 0 | IP162: 0 | IQ162: 0 | IR162: 0 | IS162: 0 | IT162: 0 | IU162: 0 | IV162: 0 | IW162: 0 | IX162: 0 | IY162: 0 | JD162: Pubblica | JE162: =IF($BZ$162="N",SUMIF($I$166:$I$265,$AM162,JE$166:JE$265),SUM(JE$166:JE$265)*($CA162=$BZ$163)) -> 0 | JF162: 0 | JG162: 0 | JH162: 0 | JI162: 0 | JJ162: 0 | JK162: 0 | JL162: 0 | JM162: 0 | JN162: 0 | JO162: 0 | JP162: 0 | JQ162: 0 | JR162: 0 | JS162: 0 | JT162: 0 | JU162: 0 | JV162: 0 | JW162: 0 | JX162: 0 | JY162: 0 | JZ162: 0 | KA162: 0 | KB162: 0 | KC162: 0 | KD162: 0 | KE162: 0 | KF162: 0 | KG162: 0 | KH162: 0 | KI162: 0 | KJ162: 0
I163: =SUMIF(I$166:I$265,J163,Z$166:Z$265) -> 0 | J163: ONLUS | T163: APPLICA 116 | U163: =BeniCulturali!E1 -> FALSE | W163: US Collabente | X163: =SUMIF($BO$166:$BO$265,"Z",X$166:X$265)*($D$71<>"N") -> 0 | Y163: =SUMIF($BO$166:$BO$265,"Z",Y$166:Y$265) -> 0 | Z163: =((X163+Y163)/(X162+Y162)*60%)*($D$71<>"N") -> 0 | AM163: ONLUS | AN163: 0 | AO163: 0 | AP163: 0 | AQ163: 0 | AR163: 0 | AS163: 0 | AT163: 0 | AV163: 0 | AW163: 0 | AX163: 0 | AY163: 0 | AZ163: 0 | BA163: 0 | BB163: 0 | BC163: 0 | BD163: 0 | BE163: 0 | BF163: 0 | BG163: 0 | BH163: 0 | BI163: 0 | BJ163: 0 | BK163: 0 | BL163: 0 | BU163: =SUMIF($I$166:$I$265,$AM163,BU$166:BU$265) -> 0 | BZ163: =$E$16 -> Privata | CA163: ONLUS | CB163: =IF($BZ$162="N",SUMIF($I$166:$I$265,$AM163,CB$166:CB$265),SUM(CB$166:CB$265)*($CA163=$BZ$163)) -> 0 | CC163: 0 | CD163: 0 | CE163: 0 | CF163: 0 | CG163: 0 | CH163: 0 | CI163: 0 | CJ163: 0 | CK163: 0 | CL163: 0 | CM163: 0 | CN163: 0 | CO163: 0 | CP163: 0 | CQ163: 0 | CR163: 0 | CS163: 0 | CT163: 0 | CU163: 0 | CV163: 0 | CW163: 0 | CX163: 0 | CY163: 0 | CZ163: 0 | DA163: 0 | DB163: 0 | DC163: 0 | DD163: 0 | DE163: 0 | DF163: 0 | DG163: 0 | DL163: ONLUS | DM163: =IF($BZ$162="N",SUMIF($I$166:$I$265,$AM163,DM$166:DM$265),SUM(DM$166:DM$265)*($CA163=$BZ$163)) -> 0 | DN163: 0 | DO163: 0 | DP163: 0 | DQ163: 0 | DR163: 0 | DS163: 0 | DT163: 0 | DU163: 0 | DV163: 0 | DW163: 0 | DX163: 0 | DY163: 0 | DZ163: 0 | EA163: 0 | EB163: 0 | EC163: 0 | ED163: 0 | EE163: 0 | EF163: 0 | EG163: 0 | EH163: 0 | EI163: 0 | EJ163: 0 | EK163: 0 | EL163: 0 | EM163: 0 | EN163: 0 | EO163: 0 | EP163: 0 | EQ163: 0 | ER163: 0 | EW163: ONLUS | EX163: 0 | EY163: 0 | EZ163: 0 | FA163: 0 | FB163: 0 | FC163: 0 | FD163: 0 | FE163: 0 | FF163: 0 | FG163: 0 | FH163: 0 | FI163: 0 | FJ163: 0 | FK163: 0 | FL163: 0 | FM163: 0 | FN163: 0 | FO163: 0 | FP163: 0 | FQ163: 0 | FR163: 0 | FS163: 0 | FT163: 0 | FU163: 0 | FV163: 0 | FW163: 0 | FX163: 0 | FY163: 0 | FZ163: 0 | GA163: 0 | GB163: 0 | GC163: 0 | GH163: 0 | GI163: 0 | GJ163: 0 | GK163: 0 | GL163: 0 | GM163: 0 | GN163: 0 | GO163: 0 | GP163: 0 | GQ163: 0 | GR163: 0 | GS163: 0 | GT163: 0 | GU163: 0 | GV163: 0 | GW163: 0 | GX163: 0 | GY163: 0 | GZ163: 0 | HA163: 0 | HB163: 0 | HC163: 0 | HD163: 0 | HE163: 0 | HF163: 0 | HG163: 0 | HH163: 0 | HI163: 0 | HJ163: 0 | HK163: 0 | HL163: 0 | HM163: 0 | HN163: 0 | HS163: 0 | HT163: 0 | HU163: 0 | HV163: 0 | HW163: 0 | HX163: 0 | HY163: 0 | HZ163: 0 | IA163: 0 | IB163: 0 | IC163: 0 | ID163: 0 | IE163: 0 | IF163: 0 | IG163: 0 | IH163: 0 | II163: 0 | IJ163: 0 | IK163: 0 | IL163: 0 | IM163: 0 | IN163: 0 | IO163: 0 | IP163: 0 | IQ163: 0 | IR163: 0 | IS163: 0 | IT163: 0 | IU163: 0 | IV163: 0 | IW163: 0 | IX163: 0 | IY163: 0 | JD163: ONLUS | JE163: =IF($BZ$162="N",SUMIF($I$166:$I$265,$AM163,JE$166:JE$265),SUM(JE$166:JE$265)*($CA163=$BZ$163)) -> 0 | JF163: 0 | JG163: 0 | JH163: 0 | JI163: 0 | JJ163: 0 | JK163: 0 | JL163: 0 | JM163: 0 | JN163: 0 | JO163: 0 | JP163: 0 | JQ163: 0 | JR163: 0 | JS163: 0 | JT163: 0 | JU163: 0 | JV163: 0 | JW163: 0 | JX163: 0 | JY163: 0 | JZ163: 0 | KA163: 0 | KB163: 0 | KC163: 0 | KD163: 0 | KE163: 0 | KF163: 0 | KG163: 0 | KH163: 0 | KI163: 0 | KJ163: 0
A164: D1 | B164: UNITA IMMOBILIARI | E164: =AND(COUNTIF(Z166:Z265,">0")>0,COUNTIF(E166:E265,"S")>0) -> TRUE | G164: =SUM(G166:G265) -> 0 | H164: =SUM(H166:H265) -> 0 | J164: =SUM(H166:H265*J166:J265)/MAX(H164,10^-12) -> 0 | K164: =IF(OR(E19="S",SUMIF(K$166:K$265,"S",$A$166:$A$265)>0),"S","N") -> N | L164: =SUM(L166:L265) -> 1e-12 | M164: =SUM(M166:M265) -> 0 | N164: =SUM(N166:N265) -> 0 | O164: =SUM(O166:O265) -> 0 | R164: =COUNTIFS($R$166:$R$265,">=2",$I$166:$I$265,"Pubblica") -> 0 | S164: =IF(AND(COUNTIF(S$166:S$265,"S")>0,COUNTIF(S$166:S$265,"S")=COUNTIF($Z$166:$Z$265,">0")),"S","N") -> N | W164: Utile | X164: =X162-X163 -> 1e-12 | Y164: =SUMIF($BO$166:$BO$265,"<>Z",Y$166:Y$265) -> 0 | Z164: =SUM(Z166:Z265) -> 1e-12 | AB164: Principale | AF164: Pertinenza esterna | AJ164: =SUM((NOT($I166:$I265=$J$162))*AJ166:AJ265*($Z166:$Z265/($I$161+$I$163))) -> 400 | AK164: =SUM((NOT($I166:$I265=$J$162))*AK166:AK265*($Z166:$Z265/($I$161+$I$163))) -> 330 | AL164: =SUM((NOT($I166:$I265=$J$162))*AL166:AL265*($Z166:$Z265/($I$161+$I$163))) -> 300 | AM164: =SUM((NOT($I166:$I265=$J$162))*AM166:AM265*($Z166:$Z265/($I$161+$I$163))) -> 300 | AN164: =SUM(AN166:AN265) -> 4.4e-10 | AO164: 2e-24 | AP164: 0 | AQ164: 2e-24 | AR164: 1e-24 | AS164: 0 | AT164: 1e-24 | AU164: =IF(SUMIF(AU$166:AU$265,"<1",$A$166:$A$265)>0,"S","N") -> N | AV164: =SUM(AV166:AV265) -> 1e-24 | AW164: =SUM(AW166:AW265) -> 0 | AX164: =SUM(AX166:AX265) -> 0 | AY164: =SUM(AY166:AY265) -> 1e-08 | AZ164: 0 | BA164: 1e-24 | BB164: =SUM(BB166:BB265) -> 0 | BC164: =SUM(BC166:BC265) -> 0 | BD164: =SUM(BD166:BD265) -> 1.1e-24 | BE164: =SUM(BE166:BE265) -> 0 | BF164: 0 | BG164: 9e-25 | BH164: 2e-24 | BI164: =SUM(BI166:BI265) -> 0 | BJ164: =SUM(BJ166:BJ265) -> 2e-24 | BK164: =SUM(BK166:BK265) -> 0 | BL164: =SUM(BL166:BL265) -> 4.4e-10 | BP164: TRUE | BQ164: =IF($H$1>=3,10,IF($H$1=2,155%,IF($E$22="L0",130%,115%))) -> 1.3 | BR164: =INDEX(LookupTable!Q2:Q12,MATCH($E$17,LookupTable!R2:R12,0)) -> 11 | BU164: =SUM(BU166:BU265) -> 0 | BZ164: CONT NOIVA | CA164: =SUM(CA166:CA265) -> 1e-24 | CB164: =SUM(CB166:CB265) -> 0 | CC164: =SUM(CC166:CC265) -> 0 | CD164: 0 | CE164: 0 | CF164: 0 | CG164: 1e-24 | CH164: 0 | CI164: 0 | CJ164: 0 | CK164: 0 | CL164: 0 | CM164: 0 | CN164: 0 | CO164: 0 | CP164: 0 | CQ164: 0 | CR164: 0 | CS164: 0 | CT164: 0 | CU164: 0 | CV164: 0 | CW164: 0 | CX164: 0 | CY164: 0 | CZ164: 0 | DA164: 0 | DB164: 0 | DC164: 0 | DD164: 0 | DE164: 0 | DF164: 0 | DG164: 0 | DK164: CONT IVA | DL164: =SUM(DL166:DL265) -> 1.1e-24 | DM164: =SUM(DM166:DM265) -> 0 | DN164: =SUM(DN166:DN265) -> 0 | DO164: 0 | DP164: 0 | DQ164: 0 | DR164: 1.1e-24 | DS164: 0 | DT164: 0 | DU164: 0 | DV164: 0 | DW164: 0 | DX164: 0 | DY164: 0 | DZ164: 0 | EA164: 0 | EB164: 0 | EC164: 0 | ED164: 0 | EE164: 0 | EF164: 0 | EG164: 0 | EH164: 0 | EI164: 0 | EJ164: 0 | EK164: 0 | EL164: 0 | EM164: 0 | EN164: 0 | EO164: 0 | EP164: 0 | EQ164: 0 | ER164: 0 | EV164: CONT PREASS IVA | EW164: =SUM(EW166:EW265) -> 1.1e-24 | EX164: 0 | EY164: 0 | EZ164: 0 | FA164: 0 | FB164: 0 | FC164: 1.1e-24 | FD164: 0 | FE164: 0 | FF164: 0 | FG164: 0 | FH164: 0 | FI164: 0 | FJ164: 0 | FK164: 0 | FL164: 0 | FM164: 0 | FN164: 0 | FO164: 0 | FP164: 0 | FQ164: 0 | FR164: 0 | FS164: 0 | FT164: 0 | FU164: 0 | FV164: 0 | FW164: 0 | FX164: 0 | FY164: 0 | FZ164: 0 | GA164: 0 | GB164: 0 | GC164: 0 | GG164: ASS IVA | GH164: =SUM(GH166:GH265) -> 0 | GI164: 0 | GJ164: 0 | GK164: 0 | GL164: 0 | GM164: 0 | GN164: 0 | GO164: 0 | GP164: 0 | GQ164: 0 | GR164: 0 | GS164: 0 | GT164: 0 | GU164: 0 | GV164: 0 | GW164: 0 | GX164: 0 | GY164: 0 | GZ164: 0 | HA164: 0 | HB164: 0 | HC164: 0 | HD164: 0 | HE164: 0 | HF164: 0 | HG164: 0 | HH164: 0 | HI164: 0 | HJ164: 0 | HK164: 0 | HL164: 0 | HM164: 0 | HN164: 0 | HR164: CONT PREASS NOIVA | HS164: =SUM(HS166:HS265) -> 1e-24 | HT164: 0 | HU164: 0 | HV164: 0 | HW164: 0 | HX164: 0 | HY164: 1e-24 | HZ164: 0 | IA164: 0 | IB164: 0 | IC164: 0 | ID164: 0 | IE164: 0 | IF164: 0 | IG164: 0 | IH164: 0 | II164: 0 | IJ164: 0 | IK164: 0 | IL164: 0 | IM164: 0 | IN164: 0 | IO164: 0 | IP164: 0 | IQ164: 0 | IR164: 0 | IS164: 0 | IT164: 0 | IU164: 0 | IV164: 0 | IW164: 0 | IX164: 0 | IY164: 0 | JC164: ASS NOIVA | JD164: =SUM(JD166:JD265) -> 0 | JE164: =SUM(JE166:JE265) -> 0 | JF164: =SUM(JF166:JF265) -> 0 | JG164: 0 | JH164: 0 | JI164: 0 | JJ164: 0 | JK164: 0 | JL164: 0 | JM164: 0 | JN164: 0 | JO164: 0 | JP164: 0 | JQ164: 0 | JR164: 0 | JS164: 0 | JT164: 0 | JU164: 0 | JV164: 0 | JW164: 0 | JX164: 0 | JY164: 0 | JZ164: 0 | KA164: 0 | KB164: 0 | KC164: 0 | KD164: 0 | KE164: 0 | KF164: 0 | KG164: 0 | KH164: 0 | KI164: 0 | KJ164: 0
A165: COMUNI | B165: INTERNI | C165: UI | D165: Edificio | E165: Principale | F165: Destinazione | G165: Assicurazione | H165: Importo Finiture | I165: Proprieta | J165: IVA | K165: IVA Detraibile | L165: SuAbit | M165: SuPertInt | N165: SuPertEst | O165: SuPartiComuni | P165: Magazzino A | Q165: Magazzino Pert | R165: Classe | S165: Bene Merce | T165: Livello | U165: M bene culturale | V165: Mabitazione | W165: MperEst | X165: Sabit | Y165: SperEst | Z165: Sup% | AA165: IdParametrico | AB165: G1 | AC165: G2 | AD165: G3 | AE165: G4 | AF165: G1 | AG165: G2 | AH165: G3 | AI165: G4 | AJ165: CP1 | AK165: CP2 | AL165: CP3 | AM165: CP4 | AN165: Ponderale | AO165: PreCom | AP165: PreInt | AQ165: PreTOT | AR165: PostCom | AS165: PostInt | AT165: PosTOT | AU165: Param% | AV165: ContrPreAss | AW165: AssiCom | AX165: AssiInt | AY165: ContrCom | AZ165: ContrInt | BA165: ConTOT | BB165: AssComIVA | BC165: AssIntIVA | BD165: ContComIVA | BE165: ConIntIVA | BF165: AccIntIVA | BG165: AccComIVA | BH165: PreComIVA | BI165: PreIntIVA | BJ165: PostComIVA | BK165: PostIntIVA | BL165: Parametrico | BM165: IVAint | BN165: Rinuncia | BO165: Destinazione | BP165: ConTOTIniziale | BQ165: MaxVariante | BR165: IVAComDet | BS165: IVAComDet1 | BT165: AltreMagg | BU165: Accollo DM140 | CA165: Totale | CB165: Occupazione suolo pubblico | CC165: Indagini e prove 1 | CD165: Indagini e prove 2 | CE165: Indagini e prove 3 | CF165: Opere provvisionali | CG165: Opere sulle strutture | CH165: Finiture parti comuni | CI165: Finiture interne | CJ165: Demolizioni | CK165: Acquisto Terreni | CL165: Oneri fiscali Acquisto Terreni | CM165: Compilazione scheda AeDES 1 | CN165: Compilazione scheda AeDES 2 | CO165: Compilazione scheda AeDES 3 | CP165: Progetto Architettonico | CQ165: Progetto Strutture | CR165: Progetto impianti elettrici | CS165: Progetto impianti termici | CT165: Progettazioni specialistiche 1 | CU165: Progettazioni specialistiche 2 | CV165: Sicurezza Progettazione | CW165: Sicurezza Esecuzione | CX165: Direzione Lavori architettonici | CY165: Direzione Lavori strutturali | CZ165: Contabilita lavori | DA165: Collaudo | DB165: Certificazione energetica | DC165: Relazione geologica | DD165: Altre prestazioni specialistiche 1 | DE165: Altre prestazioni specialistiche 2 | DF165: Altre prestazioni specialistiche 3 | DG165: Amministratore | DL165: TOTALE | DM165: Occupazione suolo pubblico | DN165: Indagini e prove 1 | DO165: Indagini e prove 2 | DP165: Indagini e prove 3 | DQ165: Opere provvisionali | DR165: Opere sulle strutture | DS165: Finiture parti comuni | DT165: Finiture interne | DU165: Demolizioni | DV165: Acquisto Terreni | DW165: Oneri fiscali Acquisto Terreni | DX165: Compilazione scheda AeDES 1 | DY165: Compilazione scheda AeDES 2 | DZ165: Compilazione scheda AeDES 3 | EA165: Progetto Architettonico | EB165: Progetto Strutture | EC165: Progetto impianti elettrici | ED165: Progetto impianti termici | EE165: Progettazioni specialistiche 1 | EF165: Progettazioni specialistiche 2 | EG165: Sicurezza Progettazione | EH165: Sicurezza Esecuzione | EI165: Direzione Lavori architettonici | EJ165: Direzione Lavori strutturali | EK165: Contabilita lavori | EL165: Collaudo | EM165: Certificazione energetica | EN165: Relazione geologica | EO165: Altre prestazioni specialistiche 1 | EP165: Altre prestazioni specialistiche 2 | EQ165: Altre prestazioni specialistiche 3 | ER165: Amministratore | EW165: PRE IVA | EX165: Occupazione suolo pubblico | EY165: Indagini e prove 1 | EZ165: Indagini e prove 2 | FA165: Indagini e prove 3 | FB165: Opere provvisionali | FC165: Opere sulle strutture | FD165: Finiture parti comuni | FE165: Finiture interne | FF165: Demolizioni | FG165: Acquisto Terreni | FH165: Oneri fiscali Acquisto Terreni | FI165: Compilazione scheda AeDES 1 | FJ165: Compilazione scheda AeDES 2 | FK165: Compilazione scheda AeDES 3 | FL165: Progetto Architettonico | FM165: Progetto Strutture | FN165: Progetto impianti elettrici | FO165: Progetto impianti termici | FP165: Progettazioni specialistiche 1 | FQ165: Progettazioni specialistiche 2 | FR165: Sicurezza Progettazione | FS165: Sicurezza Esecuzione | FT165: Direzione Lavori architettonici | FU165: Direzione Lavori strutturali | FV165: Contabilita lavori | FW165: Collaudo | FX165: Certificazione energetica | FY165: Relazione geologica | FZ165: Altre prestazioni specialistiche 1 | GA165: Altre prestazioni specialistiche 2 | GB165: Altre prestazioni specialistiche 3 | GC165: Amministratore | GH165: Totale | GI165: Occupazione suolo pubblico | GJ165: Indagini e prove 1 | GK165: Indagini e prove 2 | GL165: Indagini e prove 3 | GM165: Opere provvisionali | GN165: Opere sulle strutture | GO165: Finiture parti comuni | GP165: Finiture interne | GQ165: Demolizioni | GR165: Acquisto Terreni | GS165: Oneri fiscali Acquisto Terreni | GT165: Compilazione scheda AeDES 1 | GU165: Compilazione scheda AeDES 2 | GV165: Compilazione scheda AeDES 3 | GW165: Progetto Architettonico | GX165: Progetto Strutture | GY165: Progetto impianti elettrici | GZ165: Progetto impianti termici | HA165: Progettazioni specialistiche 1 | HB165: Progettazioni specialistiche 2 | HC165: Sicurezza Progettazione | HD165: Sicurezza Esecuzione | HE165: Direzione Lavori architettonici | HF165: Direzione Lavori strutturali | HG165: Contabilita lavori | HH165: Collaudo | HI165: Certificazione energetica | HJ165: Relazione geologica | HK165: Altre prestazioni specialistiche 1 | HL165: Altre prestazioni specialistiche 2 | HM165: Altre prestazioni specialistiche 3 | HN165: Amministratore | HS165: Totale | HT165: Occupazione suolo pubblico | HU165: Indagini e prove 1 | HV165: Indagini e prove 2 | HW165: Indagini e prove 3 | HX165: Opere provvisionali | HY165: Opere sulle strutture | HZ165: Finiture parti comuni | IA165: Finiture interne | IB165: Demolizioni | IC165: Acquisto Terreni | ID165: Oneri fiscali Acquisto Terreni | IE165: Compilazione scheda AeDES 1 | IF165: Compilazione scheda AeDES 2 | IG165: Compilazione scheda AeDES 3 | IH165: Progetto Architettonico | II165: Progetto Strutture | IJ165: Progetto impianti elettrici | IK165: Progetto impianti termici | IL165: Progettazioni specialistiche 1 | IM165: Progettazioni specialistiche 2 | IN165: Sicurezza Progettazione | IO165: Sicurezza Esecuzione | IP165: Direzione Lavori architettonici | IQ165: Direzione Lavori strutturali | IR165: Contabilita lavori | IS165: Collaudo | IT165: Certificazione energetica | IU165: Relazione geologica | IV165: Altre prestazioni specialistiche 1 | IW165: Altre prestazioni specialistiche 2 | IX165: Altre prestazioni specialistiche 3 | IY165: Amministratore | JD165: Totale | JE165: Occupazione suolo pubblico | JF165: Indagini e prove 1 | JG165: Indagini e prove 2 | JH165: Indagini e prove 3 | JI165: Opere provvisionali | JJ165: Opere sulle strutture | JK165: Finiture parti comuni | JL165: Finiture interne | JM165: Demolizioni | JN165: Acquisto Terreni | JO165: Oneri fiscali Acquisto Terreni | JP165: Compilazione scheda AeDES 1 | JQ165: Compilazione scheda AeDES 2 | JR165: Compilazione scheda AeDES 3 | JS165: Progetto Architettonico | JT165: Progetto Strutture | JU165: Progetto impianti elettrici | JV165: Progetto impianti termici | JW165: Progettazioni specialistiche 1 | JX165: Progettazioni specialistiche 2 | JY165: Sicurezza Progettazione | JZ165: Sicurezza Esecuzione | KA165: Direzione Lavori architettonici | KB165: Direzione Lavori strutturali | KC165: Contabilita lavori | KD165: Collaudo | KE165: Certificazione energetica | KF165: Relazione geologica | KG165: Altre prestazioni specialistiche 1 | KH165: Altre prestazioni specialistiche 2 | KI165: Altre prestazioni specialistiche 3 | KJ165: Amministratore
A166: =IF(OR(D$23="DC",D$23="SC",$I166="Pubblica"),100%,IF(AND($BN166="S",$E$18="N"),0,IF($S$164="S",$I$11,IF($E166="S",I$9,I$10)))) -> 1 | B166: =IF(OR(D$23="DC",D$23="SC",$I166="Pubblica"),100%,IF(OR(AND($H$11,$E166="N"),BN166="S"),0,IF(S166="S",$J$11,IF($E166="S",J$9,IF(BO166="A",J$10,0))))) -> 1 | C166: =ImportedDataRCR!C213 -> 1 | D166: =ImportedDataRCR!D213 -> 1 | E166: =ImportedDataRCR!E213 -> S | F166: =ImportedDataRCR!F213 -> A - Abitativo | G166: =ImportedDataRCR!G213 -> 0 | H166: =ImportedDataRCR!H213 -> 0 | I166: =ImportedDataRCR!I213 -> Privata | J166: =ImportedDataRCR!F$168 -> 10 | K166: =ImportedDataRCR!J213 -> N | L166: =ImportedDataRCR!K213 -> 1e-12 | M166: =ImportedDataRCR!L213 -> 0 | N166: =ImportedDataRCR!M213 -> 0 | O166: =ImportedDataRCR!N213 -> 0 | P166: =ImportedDataRCR!O213 -> N | Q166: =P166 -> N | R166: =ImportedDataRCR!P213 -> 2 | S166: =ImportedDataRCR!R213 -> N | T166: =ImportedDataRCR!S213 -> L0 | U166: =IF($U$163,BeniCulturali!H21,$H$59)*($S166="N") -> 0 | V166: =(BT166+U166)*($S166="N") -> 0.1 | W166: =($G$67+U166)*($S166="N") -> 0.1 | X166: =SUM(L166:M166,O166) -> 1e-12 | Y166: =IF(X166=0,N166,MIN(70%*L166,N166)) -> 0 | Z166: =NOT(AND($D$71<>"N",$BO166="Z"))*(X166+Y166)/MAX(1,(X$164+Y$164)) -> 1e-12 | AA166: =IF(AND($B$23>6,$B$23<>12),$E$23,$E$20&"-"&T166) -> Abitativa-L0 | AB166: =MAX(0,(X166)-AC166-AD166-AE166) -> 1e-12 | AC166: =MAX(0,(X166)-INDEX(CostoParametrico!$E$3:$L$22,MATCH($AA166,CostoParametrico!$D$3:$D$22,0),1)-AD166-AE166)*OR($E$90<>"S",$F$90=0,$H$1<2)*OR($D$20="P",AND($D$20="R",$BO166="B"),$BO166="A") -> 0 | AD166: =MAX(0,(X166)-INDEX(CostoParametrico!$E$3:$L$22,MATCH($AA166,CostoParametrico!$D$3:$D$22,0),2)-AE166)*OR($D$20="P",AND($D$20="R",$BO166="B"),$BO166="A") -> 0 | AE166: =MAX(0,(X166)-INDEX(CostoParametrico!$E$3:$L$22,MATCH($AA166,CostoParametrico!$D$3:$D$22,0),3))*OR($D$20="P",AND($D$20="R",$BO166="B"),$BO166="A") -> 0 | AF166: =MAX(0,(Y166)-AE166-AG166-AH166-AI166) -> 0 | AG166: =MAX(0,(X166+Y166)-INDEX(CostoParametrico!$E$3:$L$22,MATCH($AA166,CostoParametrico!$D$3:$D$22,0),1)-AC166-AD166-AE166-AH166-AI166)*OR($E$90<>"S",$F$90=0,$H$1<2)*OR($D$20="P",AND($D$20="R",$BO166="B"),$BO166="A") -> 0 | AH166: =MAX(0,(X166+Y166)-INDEX(CostoParametrico!$E$3:$L$22,MATCH($AA166,CostoParametrico!$D$3:$D$22,0),2)-AD166-AE166-AI166)*OR($D$20="P",AND($D$20="R",$BO166="B"),$BO166="A") -> 0 | AI166: =MAX(0,(X166+Y166)-INDEX(CostoParametrico!$E$3:$L$22,MATCH($AA166,CostoParametrico!$D$3:$D$22,0),3)-AE166)*OR($D$20="P",AND($D$20="R",$BO166="B"),$BO166="A") -> 0 | AJ166: =INDEX(CostoParametrico!$E$3:$L$22,MATCH($AA166,CostoParametrico!$D$3:$D$22,0),5) -> 400 | AK166: =INDEX(CostoParametrico!$E$3:$L$22,MATCH($AA166,CostoParametrico!$D$3:$D$22,0),6) -> 330 | AL166: =INDEX(CostoParametrico!$E$3:$L$22,MATCH($AA166,CostoParametrico!$D$3:$D$22,0),7) -> 300 | AM166: =INDEX(CostoParametrico!$E$3:$L$22,MATCH($AA166,CostoParametrico!$D$3:$D$22,0),8) -> 300 | AN166: =IF(($I166="Pubblica"),AO166+AP166,NOT(AND($D$71<>"N",$BO166="Z"))* ((1+V166)*(AB166*AJ$164+AC166*AK$164+AD166*AL$164+AE166*AM$164)*(1+IF(OR($P166="N",$D$23="DC"),0,$G$57)) +(1+W166)*(AF166*AJ$164+AG166*AK$164+AH166*AL$164+AI166*AM$164)*(1+IF(OR($Q166="N",$D$23="DC"),0,$G$57))) *(1+IF(AND($T166="L4",$E$25="S",$E$75="S"),$Q$116,0)) *IF(AND(OR($H$11,BO166="Z"),E166="N"),65%,100%)*(1-$F$65)*(1+$Z$163)+AT166*$F$65) -> 4.4e-10 | AO166: =($M$152-$M$127)*Z166 -> 2e-24 | AP166: =H166*(1-M$117)*(BO166<>"Z") -> 0 | AQ166: =AO166+AP166 -> 2e-24 | AR166: =$Z166*($W$152-$W$127) -> 1e-24 | AS166: =IF($H$164>0,AS$160,0)*AP166 -> 0 | AT166: =AR166+AS166 -> 1e-24 | AU166: =MIN(1,MAX(AN166,1)/MAX(IF($H$11,AR166,AT166),1)) -> 1 | AV166: =MIN(BQ166,A166*AN166,A166*AR166+B166*AS166) -> 1e-24 | AW166: =JD166-JL166 -> 0 | AX166: =BC166/(1+J166/100) -> 0 | AY166: =MAX(10^-10,MIN(AR166-AW166,BA166)) -> 1e-10 | AZ166: =MAX(0,MIN(AS166-AX166,BA166-AY166-AW166)) -> 0 | BA166: =MIN(AN166,MAX(0,AT166-AW166-AX166),AV166) -> 1e-24 | BB166: =MIN(MAX(0,G166-BC166),BH166) -> 0 | BC166: =MAX(0,MIN(BK166,G166)) -> 0 | BD166: =DL166-BE166 -> 1.1e-24 | BE166: =MAX(0,AZ166*BM166) -> 0 | BF166: =AP166*(1+J166/100)-BE166-BC166 -> 0 | BG166: =BH166-BD166-BB166 -> 9e-25 | BH166: =(AO166)*($O$152-$O$127)/($M$152-$M$127) -> 2e-24 | BI166: =AP166*(1+J166/100) -> 0 | BJ166: =$Z166*($X$152-$X$127) -> 2e-24 | BK166: =AS166*(1+J166/100) -> 0 | BL166: =IF(($I166="Pubblica"),AO166+AP166, ((1+V166)*(AB166*AJ166+AC166*AK166+AD166*AL166+AE166*AM166)*(1+IF(OR($P166="N",$D$23="DC"),0,$G$57)) +(1+W166)*(AF166*AJ166+AG166*AK166+AH166*AL166+AI166*AM166)*(1+IF(OR($Q166="N",$D$23="DC"),0,$G$57))) *IF(AND(OR($H$11,BO166="Z"),E166="N"),65%,100%)*(1-$F$65)*(1+$Z$163)) -> 4.4e-10 | BM166: =(1+J166/100*(1-IF(K166="N",0,IF($F$19=0,1,$F$19)))) -> 1.1 | BN166: N | BO166: =MID(F166,1,1) -> A | BP166: =AN166 -> 4.4e-10 | BQ166: =IF(($I166="Pubblica"),AO166+AP166,BP166*BQ$164) -> 5.72e-10 | BR166: =IF(BR$164=7,K166,$E$19) -> N | BS166: =IF(BR166="N",1,1-$F$19) -> 1 | BT166: =(MIN($H$67,IF(T166="L4",$I$66,IF(T166="L0",$I$64,$I$65)))+IF(AND($D$20="P",OR($BO166="A",$BO166="D"),T166<>"L0"),80%,0)) -> 0.1 | BU166: =MAX(0,Z166*$W$118-MIN(AN166,AT166)+MIN(AN166,AT166-Z166*$W$118)) -> 0 | CA166: =SUM(CB166:DG166) -> 1e-24 | CB166: =DM166/INDIRECT($BZ$160&CB$160) -> 0 | CC166: =DN166/INDIRECT($BZ$160&CC$160) -> 0 | CD166: 0 | CE166: 0 | CF166: 0 | CG166: 1e-24 | CH166: 0 | CI166: =DT166/BM166 -> 0 | CJ166: =DU166/INDIRECT($BZ$160&CJ$160) -> 0 | CK166: 0 | CL166: 0 | CM166: 0 | CN166: 0 | CO166: 0 | CP166: 0 | CQ166: 0 | CR166: 0 | CS166: 0 | CT166: 0 | CU166: 0 | CV166: 0 | CW166: 0 | CX166: 0 | CY166: 0 | CZ166: 0 | DA166: 0 | DB166: 0 | DC166: 0 | DD166: 0 | DE166: 0 | DF166: 0 | DG166: 0 | DL166: =SUM(DM166:ER166) -> 1.1e-24 | DM166: =EX166-GI166 -> 0 | DN166: 0 | DO166: 0 | DP166: 0 | DQ166: 0 | DR166: 1.1e-24 | DS166: 0 | DT166: 0 | DU166: 0 | DV166: 0 | DW166: 0 | DX166: 0 | DY166: 0 | DZ166: 0 | EA166: 0 | EB166: 0 | EC166: 0 | ED166: 0 | EE166: 0 | EF166: 0 | EG166: 0 | EH166: 0 | EI166: 0 | EJ166: 0 | EK166: 0 | EL166: 0 | EM166: 0 | EN166: 0 | EO166: 0 | EP166: 0 | EQ166: 0 | ER166: 0 | EW166: =SUM(EX166:GC166) -> 1.1e-24 | EX166: =$Z166*INDIRECT($EV$161&IF($BS166=0,"P","Q")&(EX$160-$EV$162+5))+( HT166-$Z166*INDIRECT($EV$161&"P"&(EX$160-$EV$162+5)) )*(1+$BS166*INDIRECT($EV$160&EX$160)/100) -> 0 | EY166: =$Z166*INDIRECT($EV$161&IF($BS166=0,"P","Q")&(EY$160-$EV$162+5))+( HU166-$Z166*INDIRECT($EV$161&"P"&(EY$160-$EV$162+5)) )*(1+$BS166*INDIRECT($EV$160&EY$160)/100) -> 0 | EZ166: 0 | FA166: 0 | FB166: 0 | FC166: 1.1e-24 | FD166: 0 | FE166: =BE166 -> 0 | FF166: =$Z166*INDIRECT($EV$161&IF($BS166=0,"P","Q")&(FF$160-$EV$162+5))+( IB166-$Z166*INDIRECT($EV$161&"P"&(FF$160-$EV$162+5)) )*(1+$BS166*INDIRECT($EV$160&FF$160)/100) -> 0 | FG166: 0 | FH166: 0 | FI166: 0 | FJ166: 0 | FK166: 0 | FL166: 0 | FM166: 0 | FN166: 0 | FO166: 0 | FP166: 0 | FQ166: 0 | FR166: 0 | FS166: 0 | FT166: 0 | FU166: 0 | FV166: 0 | FW166: 0 | FX166: 0 | FY166: 0 | FZ166: 0 | GA166: 0 | GB166: 0 | GC166: 0 | GH166: =SUM(GI166:HN166) -> 0 | GI166: =MAX(0,MIN($BB166-SUM(GJ166:$GO166),EX166)) -> 0 | GJ166: =MAX(0,MIN($BB166-SUM(GK166:$GO166),EY166)) -> 0 | GK166: =MAX(0,MIN($BB166-SUM(GL166:$GO166),EZ166)) -> 0 | GL166: =MAX(0,MIN($BB166-SUM(GM166:$GO166),FA166)) -> 0 | GM166: =MAX(0,MIN($BB166-SUM(GN166:$GO166),FB166)) -> 0 | GN166: =MAX(0,MIN($BB166-SUM(GO166:$GO166),FC166)) -> 0 | GO166: =MAX(0,MIN($BB166,FD166)) -> 0 | GP166: =BC166 -> 0 | GQ166: =MAX(0,MIN($BB166-SUM($GI166:$GO166),FF166)) -> 0 | GR166: =MAX(0,MIN($BB166-SUM($GI166:$GO166,$GQ166:GQ166),FG166)) -> 0 | GS166: =MAX(0,MIN($BB166-SUM($GI166:$GO166,$GQ166:GR166),FH166)) -> 0 | GT166: =MAX(0,MIN($BB166-SUM($GI166:$GO166,$GQ166:GS166),FI166)) -> 0 | GU166: =MAX(0,MIN($BB166-SUM($GI166:$GO166,$GQ166:GT166),FJ166)) -> 0 | GV166: =MAX(0,MIN($BB166-SUM($GI166:$GO166,$GQ166:GU166),FK166)) -> 0 | GW166: =MAX(0,MIN($BB166-SUM($GI166:$GO166,$GQ166:GV166),FL166)) -> 0 | GX166: =MAX(0,MIN($BB166-SUM($GI166:$GO166,$GQ166:GW166),FM166)) -> 0 | GY166: =MAX(0,MIN($BB166-SUM($GI166:$GO166,$GQ166:GX166),FN166)) -> 0 | GZ166: =MAX(0,MIN($BB166-SUM($GI166:$GO166,$GQ166:GY166),FO166)) -> 0 | HA166: =MAX(0,MIN($BB166-SUM($GI166:$GO166,$GQ166:GZ166),FP166)) -> 0 | HB166: =MAX(0,MIN($BB166-SUM($GI166:$GO166,$GQ166:HA166),FQ166)) -> 0 | HC166: =MAX(0,MIN($BB166-SUM($GI166:$GO166,$GQ166:HB166),FR166)) -> 0 | HD166: =MAX(0,MIN($BB166-SUM($GI166:$GO166,$GQ166:HC166),FS166)) -> 0 | HE166: =MAX(0,MIN($BB166-SUM($GI166:$GO166,$GQ166:HD166),FT166)) -> 0 | HF166: =MAX(0,MIN($BB166-SUM($GI166:$GO166,$GQ166:HE166),FU166)) -> 0 | HG166: =MAX(0,MIN($BB166-SUM($GI166:$GO166,$GQ166:HF166),FV166)) -> 0 | HH166: =MAX(0,MIN($BB166-SUM($GI166:$GO166,$GQ166:HG166),FW166)) -> 0 | HI166: =MAX(0,MIN($BB166-SUM($GI166:$GO166,$GQ166:HH166),FX166)) -> 0 | HJ166: =MAX(0,MIN($BB166-SUM($GI166:$GO166,$GQ166:HI166),FY166)) -> 0 | HK166: =MAX(0,MIN($BB166-SUM($GI166:$GO166,$GQ166:HJ166),FZ166)) -> 0 | HL166: =MAX(0,MIN($BB166-SUM($GI166:$GO166,$GQ166:HK166),GA166)) -> 0 | HM166: =MAX(0,MIN($BB166-SUM($GI166:$GO166,$GQ166:HL166),GB166)) -> 0 | HN166: =MAX(0,MIN($BB166-SUM($GI166:$GO166,$GQ166:HM166),GC166)) -> 0 | HS166: =SUM(HT166:IY166) -> 1e-24 | HT166: =MIN($BQ166,$A166*$AN166,$A166*$AR166)*INDIRECT($HR$160&HT$160) -> 0 | HU166: 0 | HV166: 0 | HW166: 0 | HX166: 0 | HY166: 1e-24 | HZ166: 0 | IA166: =$AZ166 -> 0 | IB166: =MIN($BQ166,$A166*$AN166,$A166*$AR166)*INDIRECT($HR$160&IB$160) -> 0 | IC166: 0 | ID166: 0 | IE166: 0 | IF166: 0 | IG166: 0 | IH166: 0 | II166: 0 | IJ166: 0 | IK166: 0 | IL166: 0 | IM166: 0 | IN166: 0 | IO166: 0 | IP166: 0 | IQ166: 0 | IR166: 0 | IS166: 0 | IT166: 0 | IU166: 0 | IV166: 0 | IW166: 0 | IX166: 0 | IY166: 0 | JD166: =SUM(JE166:KJ166) -> 0 | JE166: =GI166/INDIRECT($JC$160&JE$160) -> 0 | JF166: =GJ166/INDIRECT($JC$160&JF$160) -> 0 | JG166: 0 | JH166: 0 | JI166: 0 | JJ166: 0 | JK166: 0 | JL166: =AX166 -> 0 | JM166: =GQ166/INDIRECT($JC$160&JM$160) -> 0 | JN166: 0 | JO166: 0 | JP166: 0 | JQ166: 0 | JR166: 0 | JS166: 0 | JT166: 0 | JU166: 0 | JV166: 0 | JW166: 0 | JX166: 0 | JY166: 0 | JZ166: 0 | KA166: 0 | KB166: 0 | KC166: 0 | KD166: 0 | KE166: 0 | KF166: 0 | KG166: 0 | KH166: 0 | KI166: 0 | KJ166: 0
A167: =IF(OR(D$23="DC",D$23="SC",$I167="Pubblica"),100%,IF(AND($BN167="S",$E$18="N"),0,IF($S$164="S",$I$11,IF($E167="S",I$9,I$10)))) -> 1 | B167: =IF(OR(D$23="DC",D$23="SC",$I167="Pubblica"),100%,IF(OR(AND($H$11,$E167="N"),BN167="S"),0,IF(S167="S",$J$11,IF($E167="S",J$9,IF(BO167="A",J$10,0))))) -> 1 | C167: =ImportedDataRCR!C214 -> 2 | D167: =ImportedDataRCR!D214 -> 0 | E167: =ImportedDataRCR!E214 -> N | F167: =ImportedDataRCR!F214 -> A - Abitativo | G167: =ImportedDataRCR!G214 -> 0 | H167: =ImportedDataRCR!H214 -> 0 | I167: =ImportedDataRCR!I214 -> Privata | J167: =ImportedDataRCR!F$168 -> 10 | K167: =ImportedDataRCR!J214 -> N | L167: =ImportedDataRCR!K214 -> 0 | M167: =ImportedDataRCR!L214 -> 0 | N167: =ImportedDataRCR!M214 -> 0 | O167: =ImportedDataRCR!N214 -> 0 | P167: =ImportedDataRCR!O214 -> N | Q167: =P167 -> N | R167: =ImportedDataRCR!P214 -> 2 | S167: =ImportedDataRCR!R214 -> N | T167: =ImportedDataRCR!S214 -> L0 | U167: =IF($U$163,BeniCulturali!H22,$H$59)*($S167="N") -> 0 | V167: =(BT167+U167)*($S167="N") -> 0.1 | W167: =($G$67+U167)*($S167="N") -> 0.1 | X167: 0 | Y167: =IF(X167=0,N167,MIN(70%*L167,N167)) -> 0 | Z167: =NOT(AND($D$71<>"N",$BO167="Z"))*(X167+Y167)/MAX(1,(X$164+Y$164)) -> 0 | AA167: =IF(AND($B$23>6,$B$23<>12),$E$23,$E$20&"-"&T167) -> Abitativa-L0 | AB167: =MAX(0,(X167)-AC167-AD167-AE167) -> 0 | AC167: =MAX(0,(X167)-INDEX(CostoParametrico!$E$3:$L$22,MATCH($AA167,CostoParametrico!$D$3:$D$22,0),1)-AD167-AE167)*OR($E$90<>"S",$F$90=0,$H$1<2)*OR($D$20="P",AND($D$20="R",$BO167="B"),$BO167="A") -> 0 | AD167: =MAX(0,(X167)-INDEX(CostoParametrico!$E$3:$L$22,MATCH($AA167,CostoParametrico!$D$3:$D$22,0),2)-AE167)*OR($D$20="P",AND($D$20="R",$BO167="B"),$BO167="A") -> 0 | AE167: =MAX(0,(X167)-INDEX(CostoParametrico!$E$3:$L$22,MATCH($AA167,CostoParametrico!$D$3:$D$22,0),3))*OR($D$20="P",AND($D$20="R",$BO167="B"),$BO167="A") -> 0 | AF167: =MAX(0,(Y167)-AE167-AG167-AH167-AI167) -> 0 | AG167: =MAX(0,(X167+Y167)-INDEX(CostoParametrico!$E$3:$L$22,MATCH($AA167,CostoParametrico!$D$3:$D$22,0),1)-AC167-AD167-AE167-AH167-AI167)*OR($E$90<>"S",$F$90=0,$H$1<2)*OR($D$20="P",AND($D$20="R",$BO167="B"),$BO167="A") -> 0 | AH167: =MAX(0,(X167+Y167)-INDEX(CostoParametrico!$E$3:$L$22,MATCH($AA167,CostoParametrico!$D$3:$D$22,0),2)-AD167-AE167-AI167)*OR($D$20="P",AND($D$20="R",$BO167="B"),$BO167="A") -> 0 | AI167: =MAX(0,(X167+Y167)-INDEX(CostoParametrico!$E$3:$L$22,MATCH($AA167,CostoParametrico!$D$3:$D$22,0),3)-AE167)*OR($D$20="P",AND($D$20="R",$BO167="B"),$BO167="A") -> 0 | AJ167: =INDEX(CostoParametrico!$E$3:$L$22,MATCH($AA167,CostoParametrico!$D$3:$D$22,0),5) -> 400 | AK167: =INDEX(CostoParametrico!$E$3:$L$22,MATCH($AA167,CostoParametrico!$D$3:$D$22,0),6) -> 330 | AL167: =INDEX(CostoParametrico!$E$3:$L$22,MATCH($AA167,CostoParametrico!$D$3:$D$22,0),7) -> 300 | AM167: =INDEX(CostoParametrico!$E$3:$L$22,MATCH($AA167,CostoParametrico!$D$3:$D$22,0),8) -> 300 | AN167: 0 | AO167: =($M$152-$M$127)*Z167 -> 0 | AP167: =H167*(1-M$117)*(BO167<>"Z") -> 0 | AQ167: =AO167+AP167 -> 0 | AR167: =$Z167*($W$152-$W$127) -> 0 | AS167: =IF($H$164>0,AS$160,0)*AP167 -> 0 | AT167: =AR167+AS167 -> 0 | AU167: =MIN(1,MAX(AN167,1)/MAX(IF($H$11,AR167,AT167),1)) -> 1 | AV167: =MIN(BQ167,A167*AN167,A167*AR167+B167*AS167) -> 0 | AW167: =JD167-JL167 -> 0 | AX167: 0 | AY167: =MAX(10^-10,MIN(AR167-AW167,BA167)) -> 1e-10 | AZ167: =MAX(0,MIN(AS167-AX167,BA167-AY167-AW167)) -> 0 | BA167: =MIN(AN167,MAX(0,AT167-AW167-AX167),AV167) -> 0 | BB167: 0 | BC167: =MAX(0,MIN(BK167,G167)) -> 0 | BD167: =DL167-BE167 -> 0 | BE167: =MAX(0,AZ167*BM167) -> 0 | BF167: =AP167*(1+J167/100)-BE167-BC167 -> 0 | BG167: =BH167-BD167-BB167 -> 0 | BH167: =(AO167)*($O$152-$O$127)/($M$152-$M$127) -> 0 | BI167: =AP167*(1+J167/100) -> 0 | BJ167: 0 | BK167: =AS167*(1+J167/100) -> 0 | BL167: =IF(($I167="Pubblica"),AO167+AP167, ((1+V167)*(AB167*AJ167+AC167*AK167+AD167*AL167+AE167*AM167)*(1+IF(OR($P167="N",$D$23="DC"),0,$G$57)) +(1+W167)*(AF167*AJ167+AG167*AK167+AH167*AL167+AI167*AM167)*(1+IF(OR($Q167="N",$D$23="DC"),0,$G$57))) *IF(AND(OR($H$11,BO167="Z"),E167="N"),65%,100%)*(1-$F$65)*(1+$Z$163)) -> 0 | BM167: =(1+J167/100*(1-IF(K167="N",0,IF($F$19=0,1,$F$19)))) -> 1.1 | BN167: N | BO167: A | BP167: =AN167 -> 0 | BQ167: =IF(($I167="Pubblica"),AO167+AP167,BP167*BQ$164) -> 0 | BR167: N | BS167: =IF(BR167="N",1,1-$F$19) -> 1 | BT167: =(MIN($H$67,IF(T167="L4",$I$66,IF(T167="L0",$I$64,$I$65)))+IF(AND($D$20="P",OR($BO167="A",$BO167="D"),T167<>"L0"),80%,0)) -> 0.1 | BU167: 0 | CA167: =SUM(CB167:DG167) -> 0 | CB167: =DM167/INDIRECT($BZ$160&CB$160) -> 0 | CC167: 0 | CD167: 0 | CE167: 0 | CF167: 0 | CG167: 0 | CH167: 0 | CI167: =DT167/BM167 -> 0 | CJ167: 0 | CK167: 0 | CL167: 0 | CM167: 0 | CN167: 0 | CO167: 0 | CP167: 0 | CQ167: 0 | CR167: 0 | CS167: 0 | CT167: 0 | CU167: 0 | CV167: 0 | CW167: 0 | CX167: 0 | CY167: 0 | CZ167: 0 | DA167: 0 | DB167: 0 | DC167: 0 | DD167: 0 | DE167: 0 | DF167: 0 | DG167: 0 | DL167: =SUM(DM167:ER167) -> 0 | DM167: 0 | DN167: 0 | DO167: 0 | DP167: 0 | DQ167: 0 | DR167: 0 | DS167: 0 | DT167: 0 | DU167: 0 | DV167: 0 | DW167: 0 | DX167: 0 | DY167: 0 | DZ167: 0 | EA167: 0 | EB167: 0 | EC167: 0 | ED167: 0 | EE167: 0 | EF167: 0 | EG167: 0 | EH167: 0 | EI167: 0 | EJ167: 0 | EK167: 0 | EL167: 0 | EM167: 0 | EN167: 0 | EO167: 0 | EP167: 0 | EQ167: 0 | ER167: 0 | EW167: =SUM(EX167:GC167) -> 0 | EX167: =$Z167*INDIRECT($EV$161&IF($BS167=0,"P","Q")&(EX$160-$EV$162+5))+( HT167-$Z167*INDIRECT($EV$161&"P"&(EX$160-$EV$162+5)) )*(1+$BS167*INDIRECT($EV$160&EX$160)/100) -> 0 | EY167: 0 | EZ167: 0 | FA167: 0 | FB167: 0 | FC167: 0 | FD167: 0 | FE167: =BE167 -> 0 | FF167: 0 | FG167: 0 | FH167: 0 | FI167: 0 | FJ167: 0 | FK167: 0 | FL167: 0 | FM167: 0 | FN167: 0 | FO167: 0 | FP167: 0 | FQ167: 0 | FR167: 0 | FS167: 0 | FT167: 0 | FU167: 0 | FV167: 0 | FW167: 0 | FX167: 0 | FY167: 0 | FZ167: 0 | GA167: 0 | GB167: 0 | GC167: 0 | GH167: =SUM(GI167:HN167) -> 0 | GI167: =MAX(0,MIN($BB167-SUM(GJ167:$GO167),EX167)) -> 0 | GJ167: =MAX(0,MIN($BB167-SUM(GK167:$GO167),EY167)) -> 0 | GK167: =MAX(0,MIN($BB167-SUM(GL167:$GO167),EZ167)) -> 0 | GL167: =MAX(0,MIN($BB167-SUM(GM167:$GO167),FA167)) -> 0 | GM167: =MAX(0,MIN($BB167-SUM(GN167:$GO167),FB167)) -> 0 | GN167: =MAX(0,MIN($BB167-SUM(GO167:$GO167),FC167)) -> 0 | GO167: =MAX(0,MIN($BB167,FD167)) -> 0 | GP167: =BC167 -> 0 | GQ167: =MAX(0,MIN($BB167-SUM($GI167:$GO167),FF167)) -> 0 | GR167: =MAX(0,MIN($BB167-SUM($GI167:$GO167,$GQ167:GQ167),FG167)) -> 0 | GS167: =MAX(0,MIN($BB167-SUM($GI167:$GO167,$GQ167:GR167),FH167)) -> 0 | GT167: =MAX(0,MIN($BB167-SUM($GI167:$GO167,$GQ167:GS167),FI167)) -> 0 | GU167: =MAX(0,MIN($BB167-SUM($GI167:$GO167,$GQ167:GT167),FJ167)) -> 0 | GV167: =MAX(0,MIN($BB167-SUM($GI167:$GO167,$GQ167:GU167),FK167)) -> 0 | GW167: =MAX(0,MIN($BB167-SUM($GI167:$GO167,$GQ167:GV167),FL167)) -> 0 | GX167: =MAX(0,MIN($BB167-SUM($GI167:$GO167,$GQ167:GW167),FM167)) -> 0 | GY167: =MAX(0,MIN($BB167-SUM($GI167:$GO167,$GQ167:GX167),FN167)) -> 0 | GZ167: =MAX(0,MIN($BB167-SUM($GI167:$GO167,$GQ167:GY167),FO167)) -> 0 | HA167: =MAX(0,MIN($BB167-SUM($GI167:$GO167,$GQ167:GZ167),FP167)) -> 0 | HB167: =MAX(0,MIN($BB167-SUM($GI167:$GO167,$GQ167:HA167),FQ167)) -> 0 | HC167: =MAX(0,MIN($BB167-SUM($GI167:$GO167,$GQ167:HB167),FR167)) -> 0 | HD167: =MAX(0,MIN($BB167-SUM($GI167:$GO167,$GQ167:HC167),FS167)) -> 0 | HE167: =MAX(0,MIN($BB167-SUM($GI167:$GO167,$GQ167:HD167),FT167)) -> 0 | HF167: =MAX(0,MIN($BB167-SUM($GI167:$GO167,$GQ167:HE167),FU167)) -> 0 | HG167: =MAX(0,MIN($BB167-SUM($GI167:$GO167,$GQ167:HF167),FV167)) -> 0 | HH167: =MAX(0,MIN($BB167-SUM($GI167:$GO167,$GQ167:HG167),FW167)) -> 0 | HI167: =MAX(0,MIN($BB167-SUM($GI167:$GO167,$GQ167:HH167),FX167)) -> 0 | HJ167: =MAX(0,MIN($BB167-SUM($GI167:$GO167,$GQ167:HI167),FY167)) -> 0 | HK167: =MAX(0,MIN($BB167-SUM($GI167:$GO167,$GQ167:HJ167),FZ167)) -> 0 | HL167: =MAX(0,MIN($BB167-SUM($GI167:$GO167,$GQ167:HK167),GA167)) -> 0 | HM167: =MAX(0,MIN($BB167-SUM($GI167:$GO167,$GQ167:HL167),GB167)) -> 0 | HN167: =MAX(0,MIN($BB167-SUM($GI167:$GO167,$GQ167:HM167),GC167)) -> 0 | HS167: =SUM(HT167:IY167) -> 0 | HT167: 0 | HU167: 0 | HV167: 0 | HW167: 0 | HX167: 0 | HY167: 0 | HZ167: 0 | IA167: =$AZ167 -> 0 | IB167: 0 | IC167: 0 | ID167: 0 | IE167: 0 | IF167: 0 | IG167: 0 | IH167: 0 | II167: 0 | IJ167: 0 | IK167: 0 | IL167: 0 | IM167: 0 | IN167: 0 | IO167: 0 | IP167: 0 | IQ167: 0 | IR167: 0 | IS167: 0 | IT167: 0 | IU167: 0 | IV167: 0 | IW167: 0 | IX167: 0 | IY167: 0 | JD167: =SUM(JE167:KJ167) -> 0 | JE167: =GI167/INDIRECT($JC$160&JE$160) -> 0 | JF167: 0 | JG167: 0 | JH167: 0 | JI167: 0 | JJ167: 0 | JK167: 0 | JL167: =AX167 -> 0 | JM167: 0 | JN167: 0 | JO167: 0 | JP167: 0 | JQ167: 0 | JR167: 0 | JS167: 0 | JT167: 0 | JU167: 0 | JV167: 0 | JW167: 0 | JX167: 0 | JY167: 0 | JZ167: 0 | KA167: 0 | KB167: 0 | KC167: 0 | KD167: 0 | KE167: 0 | KF167: 0 | KG167: 0 | KH167: 0 | KI167: 0 | KJ167: 0
A168: 1 | B168: 1 | C168: =ImportedDataRCR!C215 -> 3 | D168: =ImportedDataRCR!D215 -> 0 | E168: =ImportedDataRCR!E215 -> N | F168: =ImportedDataRCR!F215 -> A - Abitativo | G168: =ImportedDataRCR!G215 -> 0 | H168: =ImportedDataRCR!H215 -> 0 | I168: =ImportedDataRCR!I215 -> Privata | J168: =ImportedDataRCR!F$168 -> 10 | K168: =ImportedDataRCR!J215 -> N | L168: =ImportedDataRCR!K215 -> 0 | M168: =ImportedDataRCR!L215 -> 0 | N168: =ImportedDataRCR!M215 -> 0 | O168: =ImportedDataRCR!N215 -> 0 | P168: =ImportedDataRCR!O215 -> N | Q168: N | R168: =ImportedDataRCR!P215 -> 2 | S168: =ImportedDataRCR!R215 -> N | T168: =ImportedDataRCR!S215 -> L0 | U168: =IF($U$163,BeniCulturali!H23,$H$59)*($S168="N") -> 0 | V168: 0.1 | W168: 0.1 | X168: 0 | Y168: 0 | Z168: 0 | AA168: Abitativa-L0 | AB168: 0 | AC168: =MAX(0,(X168)-INDEX(CostoParametrico!$E$3:$L$22,MATCH($AA168,CostoParametrico!$D$3:$D$22,0),1)-AD168-AE168)*OR($E$90<>"S",$F$90=0,$H$1<2)*OR($D$20="P",AND($D$20="R",$BO168="B"),$BO168="A") -> 0 | AD168: =MAX(0,(X168)-INDEX(CostoParametrico!$E$3:$L$22,MATCH($AA168,CostoParametrico!$D$3:$D$22,0),2)-AE168)*OR($D$20="P",AND($D$20="R",$BO168="B"),$BO168="A") -> 0 | AE168: =MAX(0,(X168)-INDEX(CostoParametrico!$E$3:$L$22,MATCH($AA168,CostoParametrico!$D$3:$D$22,0),3))*OR($D$20="P",AND($D$20="R",$BO168="B"),$BO168="A") -> 0 | AF168: 0 | AG168: =MAX(0,(X168+Y168)-INDEX(CostoParametrico!$E$3:$L$22,MATCH($AA168,CostoParametrico!$D$3:$D$22,0),1)-AC168-AD168-AE168-AH168-AI168)*OR($E$90<>"S",$F$90=0,$H$1<2)*OR($D$20="P",AND($D$20="R",$BO168="B"),$BO168="A") -> 0 | AH168: =MAX(0,(X168+Y168)-INDEX(CostoParametrico!$E$3:$L$22,MATCH($AA168,CostoParametrico!$D$3:$D$22,0),2)-AD168-AE168-AI168)*OR($D$20="P",AND($D$20="R",$BO168="B"),$BO168="A") -> 0 | AI168: =MAX(0,(X168+Y168)-INDEX(CostoParametrico!$E$3:$L$22,MATCH($AA168,CostoParametrico!$D$3:$D$22,0),3)-AE168)*OR($D$20="P",AND($D$20="R",$BO168="B"),$BO168="A") -> 0 | AJ168: =INDEX(CostoParametrico!$E$3:$L$22,MATCH($AA168,CostoParametrico!$D$3:$D$22,0),5) -> 400 | AK168: =INDEX(CostoParametrico!$E$3:$L$22,MATCH($AA168,CostoParametrico!$D$3:$D$22,0),6) -> 330 | AL168: =INDEX(CostoParametrico!$E$3:$L$22,MATCH($AA168,CostoParametrico!$D$3:$D$22,0),7) -> 300 | AM168: =INDEX(CostoParametrico!$E$3:$L$22,MATCH($AA168,CostoParametrico!$D$3:$D$22,0),8) -> 300 | AN168: 0 | AO168: 0 | AP168: 0 | AQ168: 0 | AR168: 0 | AS168: 0 | AT168: 0 | AU168: 1 | AV168: 0 | AW168: 0 | AX168: 0 | AY168: 1e-10 | AZ168: 0 | BA168: 0 | BB168: 0 | BC168: 0 | BD168: 0 | BE168: 0 | BF168: 0 | BG168: 0 | BH168: 0 | BI168: 0 | BJ168: 0 | BK168: 0 | BL168: 0 | BM168: 1.1 | BN168: N | BO168: A | BP168: 0 | BQ168: 0 | BR168: N | BS168: 1 | BT168: 0.1 | BU168: 0 | CA168: 0 | CB168: 0 | CC168: 0 | CD168: 0 | CE168: 0 | CF168: 0 | CG168: 0 | CH168: 0 | CI168: 0 | CJ168: 0 | CK168: 0 | CL168: 0 | CM168: 0 | CN168: 0 | CO168: 0 | CP168: 0 | CQ168: 0 | CR168: 0 | CS168: 0 | CT168: 0 | CU168: 0 | CV168: 0 | CW168: 0 | CX168: 0 | CY168: 0 | CZ168: 0 | DA168: 0 | DB168: 0 | DC168: 0 | DD168: 0 | DE168: 0 | DF168: 0 | DG168: 0 | DL168: 0 | DM168: 0 | DN168: 0 | DO168: 0 | DP168: 0 | DQ168: 0 | DR168: 0 | DS168: 0 | DT168: 0 | DU168: 0 | DV168: 0 | DW168: 0 | DX168: 0 | DY168: 0 | DZ168: 0 | EA168: 0 | EB168: 0 | EC168: 0 | ED168: 0 | EE168: 0 | EF168: 0 | EG168: 0 | EH168: 0 | EI168: 0 | EJ168: 0 | EK168: 0 | EL168: 0 | EM168: 0 | EN168: 0 | EO168: 0 | EP168: 0 | EQ168: 0 | ER168: 0 | EW168: 0 | EX168: 0 | EY168: 0 | EZ168: 0 | FA168: 0 | FB168: 0 | FC168: 0 | FD168: 0 | FE168: 0 | FF168: 0 | FG168: 0 | FH168: 0 | FI168: 0 | FJ168: 0 | FK168: 0 | FL168: 0 | FM168: 0 | FN168: 0 | FO168: 0 | FP168: 0 | FQ168: 0 | FR168: 0 | FS168: 0 | FT168: 0 | FU168: 0 | FV168: 0 | FW168: 0 | FX168: 0 | FY168: 0 | FZ168: 0 | GA168: 0 | GB168: 0 | GC168: 0 | GH168: 0 | GI168: =MAX(0,MIN($BB168-SUM(GJ168:$GO168),EX168)) -> 0 | GJ168: =MAX(0,MIN($BB168-SUM(GK168:$GO168),EY168)) -> 0 | GK168: =MAX(0,MIN($BB168-SUM(GL168:$GO168),EZ168)) -> 0 | GL168: =MAX(0,MIN($BB168-SUM(GM168:$GO168),FA168)) -> 0 | GM168: =MAX(0,MIN($BB168-SUM(GN168:$GO168),FB168)) -> 0 | GN168: =MAX(0,MIN($BB168-SUM(GO168:$GO168),FC168)) -> 0 | GO168: 0 | GP168: 0 | GQ168: 0 | GR168: =MAX(0,MIN($BB168-SUM($GI168:$GO168,$GQ168:GQ168),FG168)) -> 0 | GS168: =MAX(0,MIN($BB168-SUM($GI168:$GO168,$GQ168:GR168),FH168)) -> 0 | GT168: =MAX(0,MIN($BB168-SUM($GI168:$GO168,$GQ168:GS168),FI168)) -> 0 | GU168: =MAX(0,MIN($BB168-SUM($GI168:$GO168,$GQ168:GT168),FJ168)) -> 0 | GV168: =MAX(0,MIN($BB168-SUM($GI168:$GO168,$GQ168:GU168),FK168)) -> 0 | GW168: =MAX(0,MIN($BB168-SUM($GI168:$GO168,$GQ168:GV168),FL168)) -> 0 | GX168: =MAX(0,MIN($BB168-SUM($GI168:$GO168,$GQ168:GW168),FM168)) -> 0 | GY168: =MAX(0,MIN($BB168-SUM($GI168:$GO168,$GQ168:GX168),FN168)) -> 0 | GZ168: =MAX(0,MIN($BB168-SUM($GI168:$GO168,$GQ168:GY168),FO168)) -> 0 | HA168: =MAX(0,MIN($BB168-SUM($GI168:$GO168,$GQ168:GZ168),FP168)) -> 0 | HB168: =MAX(0,MIN($BB168-SUM($GI168:$GO168,$GQ168:HA168),FQ168)) -> 0 | HC168: =MAX(0,MIN($BB168-SUM($GI168:$GO168,$GQ168:HB168),FR168)) -> 0 | HD168: =MAX(0,MIN($BB168-SUM($GI168:$GO168,$GQ168:HC168),FS168)) -> 0 | HE168: =MAX(0,MIN($BB168-SUM($GI168:$GO168,$GQ168:HD168),FT168)) -> 0 | HF168: =MAX(0,MIN($BB168-SUM($GI168:$GO168,$GQ168:HE168),FU168)) -> 0 | HG168: =MAX(0,MIN($BB168-SUM($GI168:$GO168,$GQ168:HF168),FV168)) -> 0 | HH168: =MAX(0,MIN($BB168-SUM($GI168:$GO168,$GQ168:HG168),FW168)) -> 0 | HI168: =MAX(0,MIN($BB168-SUM($GI168:$GO168,$GQ168:HH168),FX168)) -> 0 | HJ168: =MAX(0,MIN($BB168-SUM($GI168:$GO168,$GQ168:HI168),FY168)) -> 0 | HK168: =MAX(0,MIN($BB168-SUM($GI168:$GO168,$GQ168:HJ168),FZ168)) -> 0 | HL168: =MAX(0,MIN($BB168-SUM($GI168:$GO168,$GQ168:HK168),GA168)) -> 0 | HM168: =MAX(0,MIN($BB168-SUM($GI168:$GO168,$GQ168:HL168),GB168)) -> 0 | HN168: =MAX(0,MIN($BB168-SUM($GI168:$GO168,$GQ168:HM168),GC168)) -> 0 | HS168: 0 | HT168: 0 | HU168: 0 | HV168: 0 | HW168: 0 | HX168: 0 | HY168: 0 | HZ168: 0 | IA168: 0 | IB168: 0 | IC168: 0 | ID168: 0 | IE168: 0 | IF168: 0 | IG168: 0 | IH168: 0 | II168: 0 | IJ168: 0 | IK168: 0 | IL168: 0 | IM168: 0 | IN168: 0 | IO168: 0 | IP168: 0 | IQ168: 0 | IR168: 0 | IS168: 0 | IT168: 0 | IU168: 0 | IV168: 0 | IW168: 0 | IX168: 0 | IY168: 0 | JD168: 0 | JE168: 0 | JF168: 0 | JG168: 0 | JH168: 0 | JI168: 0 | JJ168: 0 | JK168: 0 | JL168: 0 | JM168: 0 | JN168: 0 | JO168: 0 | JP168: 0 | JQ168: 0 | JR168: 0 | JS168: 0 | JT168: 0 | JU168: 0 | JV168: 0 | JW168: 0 | JX168: 0 | JY168: 0 | JZ168: 0 | KA168: 0 | KB168: 0 | KC168: 0 | KD168: 0 | KE168: 0 | KF168: 0 | KG168: 0 | KH168: 0 | KI168: 0 | KJ168: 0
A169: 1 | B169: 1 | C169: =ImportedDataRCR!C216 -> 4 | D169: =ImportedDataRCR!D216 -> 0 | E169: =ImportedDataRCR!E216 -> N | F169: =ImportedDataRCR!F216 -> A - Abitativo | G169: =ImportedDataRCR!G216 -> 0 | H169: =ImportedDataRCR!H216 -> 0 | I169: =ImportedDataRCR!I216 -> Privata | J169: =ImportedDataRCR!F$168 -> 10 | K169: =ImportedDataRCR!J216 -> N | L169: =ImportedDataRCR!K216 -> 0 | M169: =ImportedDataRCR!L216 -> 0 | N169: =ImportedDataRCR!M216 -> 0 | O169: =ImportedDataRCR!N216 -> 0 | P169: =ImportedDataRCR!O216 -> N | Q169: N | R169: =ImportedDataRCR!P216 -> 2 | S169: =ImportedDataRCR!R216 -> N | T169: =ImportedDataRCR!S216 -> L0 | U169: =IF($U$163,BeniCulturali!H24,$H$59)*($S169="N") -> 0 | V169: 0.1 | W169: 0.1 | X169: 0 | Y169: 0 | Z169: 0 | AA169: Abitativa-L0 | AB169: 0 | AC169: =MAX(0,(X169)-INDEX(CostoParametrico!$E$3:$L$22,MATCH($AA169,CostoParametrico!$D$3:$D$22,0),1)-AD169-AE169)*OR($E$90<>"S",$F$90=0,$H$1<2)*OR($D$20="P",AND($D$20="R",$BO169="B"),$BO169="A") -> 0 | AD169: =MAX(0,(X169)-INDEX(CostoParametrico!$E$3:$L$22,MATCH($AA169,CostoParametrico!$D$3:$D$22,0),2)-AE169)*OR($D$20="P",AND($D$20="R",$BO169="B"),$BO169="A") -> 0 | AE169: =MAX(0,(X169)-INDEX(CostoParametrico!$E$3:$L$22,MATCH($AA169,CostoParametrico!$D$3:$D$22,0),3))*OR($D$20="P",AND($D$20="R",$BO169="B"),$BO169="A") -> 0 | AF169: 0 | AG169: =MAX(0,(X169+Y169)-INDEX(CostoParametrico!$E$3:$L$22,MATCH($AA169,CostoParametrico!$D$3:$D$22,0),1)-AC169-AD169-AE169-AH169-AI169)*OR($E$90<>"S",$F$90=0,$H$1<2)*OR($D$20="P",AND($D$20="R",$BO169="B"),$BO169="A") -> 0 | AH169: =MAX(0,(X169+Y169)-INDEX(CostoParametrico!$E$3:$L$22,MATCH($AA169,CostoParametrico!$D$3:$D$22,0),2)-AD169-AE169-AI169)*OR($D$20="P",AND($D$20="R",$BO169="B"),$BO169="A") -> 0 | AI169: =MAX(0,(X169+Y169)-INDEX(CostoParametrico!$E$3:$L$22,MATCH($AA169,CostoParametrico!$D$3:$D$22,0),3)-AE169)*OR($D$20="P",AND($D$20="R",$BO169="B"),$BO169="A") -> 0 | AJ169: =INDEX(CostoParametrico!$E$3:$L$22,MATCH($AA169,CostoParametrico!$D$3:$D$22,0),5) -> 400 | AK169: =INDEX(CostoParametrico!$E$3:$L$22,MATCH($AA169,CostoParametrico!$D$3:$D$22,0),6) -> 330 | AL169: =INDEX(CostoParametrico!$E$3:$L$22,MATCH($AA169,CostoParametrico!$D$3:$D$22,0),7) -> 300 | AM169: =INDEX(CostoParametrico!$E$3:$L$22,MATCH($AA169,CostoParametrico!$D$3:$D$22,0),8) -> 300 | AN169: 0 | AO169: 0 | AP169: 0 | AQ169: 0 | AR169: 0 | AS169: 0 | AT169: 0 | AU169: 1 | AV169: 0 | AW169: 0 | AX169: 0 | AY169: 1e-10 | AZ169: 0 | BA169: 0 | BB169: 0 | BC169: 0 | BD169: 0 | BE169: 0 | BF169: 0 | BG169: 0 | BH169: 0 | BI169: 0 | BJ169: 0 | BK169: 0 | BL169: 0 | BM169: 1.1 | BN169: N | BO169: A | BP169: 0 | BQ169: 0 | BR169: N | BS169: 1 | BT169: 0.1 | BU169: 0 | CA169: 0 | CB169: 0 | CC169: 0 | CD169: 0 | CE169: 0 | CF169: 0 | CG169: 0 | CH169: 0 | CI169: 0 | CJ169: 0 | CK169: 0 | CL169: 0 | CM169: 0 | CN169: 0 | CO169: 0 | CP169: 0 | CQ169: 0 | CR169: 0 | CS169: 0 | CT169: 0 | CU169: 0 | CV169: 0 | CW169: 0 | CX169: 0 | CY169: 0 | CZ169: 0 | DA169: 0 | DB169: 0 | DC169: 0 | DD169: 0 | DE169: 0 | DF169: 0 | DG169: 0 | DL169: 0 | DM169: 0 | DN169: 0 | DO169: 0 | DP169: 0 | DQ169: 0 | DR169: 0 | DS169: 0 | DT169: 0 | DU169: 0 | DV169: 0 | DW169: 0 | DX169: 0 | DY169: 0 | DZ169: 0 | EA169: 0 | EB169: 0 | EC169: 0 | ED169: 0 | EE169: 0 | EF169: 0 | EG169: 0 | EH169: 0 | EI169: 0 | EJ169: 0 | EK169: 0 | EL169: 0 | EM169: 0 | EN169: 0 | EO169: 0 | EP169: 0 | EQ169: 0 | ER169: 0 | EW169: 0 | EX169: 0 | EY169: 0 | EZ169: 0 | FA169: 0 | FB169: 0 | FC169: 0 | FD169: 0 | FE169: 0 | FF169: 0 | FG169: 0 | FH169: 0 | FI169: 0 | FJ169: 0 | FK169: 0 | FL169: 0 | FM169: 0 | FN169: 0 | FO169: 0 | FP169: 0 | FQ169: 0 | FR169: 0 | FS169: 0 | FT169: 0 | FU169: 0 | FV169: 0 | FW169: 0 | FX169: 0 | FY169: 0 | FZ169: 0 | GA169: 0 | GB169: 0 | GC169: 0 | GH169: 0 | GI169: =MAX(0,MIN($BB169-SUM(GJ169:$GO169),EX169)) -> 0 | GJ169: =MAX(0,MIN($BB169-SUM(GK169:$GO169),EY169)) -> 0 | GK169: =MAX(0,MIN($BB169-SUM(GL169:$GO169),EZ169)) -> 0 | GL169: =MAX(0,MIN($BB169-SUM(GM169:$GO169),FA169)) -> 0 | GM169: =MAX(0,MIN($BB169-SUM(GN169:$GO169),FB169)) -> 0 | GN169: =MAX(0,MIN($BB169-SUM(GO169:$GO169),FC169)) -> 0 | GO169: 0 | GP169: 0 | GQ169: 0 | GR169: =MAX(0,MIN($BB169-SUM($GI169:$GO169,$GQ169:GQ169),FG169)) -> 0 | GS169: =MAX(0,MIN($BB169-SUM($GI169:$GO169,$GQ169:GR169),FH169)) -> 0 | GT169: =MAX(0,MIN($BB169-SUM($GI169:$GO169,$GQ169:GS169),FI169)) -> 0 | GU169: =MAX(0,MIN($BB169-SUM($GI169:$GO169,$GQ169:GT169),FJ169)) -> 0 | GV169: =MAX(0,MIN($BB169-SUM($GI169:$GO169,$GQ169:GU169),FK169)) -> 0 | GW169: =MAX(0,MIN($BB169-SUM($GI169:$GO169,$GQ169:GV169),FL169)) -> 0 | GX169: =MAX(0,MIN($BB169-SUM($GI169:$GO169,$GQ169:GW169),FM169)) -> 0 | GY169: =MAX(0,MIN($BB169-SUM($GI169:$GO169,$GQ169:GX169),FN169)) -> 0 | GZ169: =MAX(0,MIN($BB169-SUM($GI169:$GO169,$GQ169:GY169),FO169)) -> 0 | HA169: =MAX(0,MIN($BB169-SUM($GI169:$GO169,$GQ169:GZ169),FP169)) -> 0 | HB169: =MAX(0,MIN($BB169-SUM($GI169:$GO169,$GQ169:HA169),FQ169)) -> 0 | HC169: =MAX(0,MIN($BB169-SUM($GI169:$GO169,$GQ169:HB169),FR169)) -> 0 | HD169: =MAX(0,MIN($BB169-SUM($GI169:$GO169,$GQ169:HC169),FS169)) -> 0 | HE169: =MAX(0,MIN($BB169-SUM($GI169:$GO169,$GQ169:HD169),FT169)) -> 0 | HF169: =MAX(0,MIN($BB169-SUM($GI169:$GO169,$GQ169:HE169),FU169)) -> 0 | HG169: =MAX(0,MIN($BB169-SUM($GI169:$GO169,$GQ169:HF169),FV169)) -> 0 | HH169: =MAX(0,MIN($BB169-SUM($GI169:$GO169,$GQ169:HG169),FW169)) -> 0 | HI169: =MAX(0,MIN($BB169-SUM($GI169:$GO169,$GQ169:HH169),FX169)) -> 0 | HJ169: =MAX(0,MIN($BB169-SUM($GI169:$GO169,$GQ169:HI169),FY169)) -> 0 | HK169: =MAX(0,MIN($BB169-SUM($GI169:$GO169,$GQ169:HJ169),FZ169)) -> 0 | HL169: =MAX(0,MIN($BB169-SUM($GI169:$GO169,$GQ169:HK169),GA169)) -> 0 | HM169: =MAX(0,MIN($BB169-SUM($GI169:$GO169,$GQ169:HL169),GB169)) -> 0 | HN169: =MAX(0,MIN($BB169-SUM($GI169:$GO169,$GQ169:HM169),GC169)) -> 0 | HS169: 0 | HT169: 0 | HU169: 0 | HV169: 0 | HW169: 0 | HX169: 0 | HY169: 0 | HZ169: 0 | IA169: 0 | IB169: 0 | IC169: 0 | ID169: 0 | IE169: 0 | IF169: 0 | IG169: 0 | IH169: 0 | II169: 0 | IJ169: 0 | IK169: 0 | IL169: 0 | IM169: 0 | IN169: 0 | IO169: 0 | IP169: 0 | IQ169: 0 | IR169: 0 | IS169: 0 | IT169: 0 | IU169: 0 | IV169: 0 | IW169: 0 | IX169: 0 | IY169: 0 | JD169: 0 | JE169: 0 | JF169: 0 | JG169: 0 | JH169: 0 | JI169: 0 | JJ169: 0 | JK169: 0 | JL169: 0 | JM169: 0 | JN169: 0 | JO169: 0 | JP169: 0 | JQ169: 0 | JR169: 0 | JS169: 0 | JT169: 0 | JU169: 0 | JV169: 0 | JW169: 0 | JX169: 0 | JY169: 0 | JZ169: 0 | KA169: 0 | KB169: 0 | KC169: 0 | KD169: 0 | KE169: 0 | KF169: 0 | KG169: 0 | KH169: 0 | KI169: 0 | KJ169: 0
A170: 1 | B170: 1 | C170: =ImportedDataRCR!C217 -> 5 | D170: =ImportedDataRCR!D217 -> 0 | E170: =ImportedDataRCR!E217 -> N | F170: =ImportedDataRCR!F217 -> A - Abitativo | G170: =ImportedDataRCR!G217 -> 0 | H170: =ImportedDataRCR!H217 -> 0 | I170: =ImportedDataRCR!I217 -> Privata | J170: =ImportedDataRCR!F$168 -> 10 | K170: =ImportedDataRCR!J217 -> N | L170: =ImportedDataRCR!K217 -> 0 | M170: =ImportedDataRCR!L217 -> 0 | N170: =ImportedDataRCR!M217 -> 0 | O170: =ImportedDataRCR!N217 -> 0 | P170: =ImportedDataRCR!O217 -> N | Q170: N | R170: =ImportedDataRCR!P217 -> 2 | S170: =ImportedDataRCR!R217 -> N | T170: =ImportedDataRCR!S217 -> L0 | U170: =IF($U$163,BeniCulturali!H25,$H$59)*($S170="N") -> 0 | V170: 0.1 | W170: 0.1 | X170: 0 | Y170: 0 | Z170: 0 | AA170: Abitativa-L0 | AB170: 0 | AC170: =MAX(0,(X170)-INDEX(CostoParametrico!$E$3:$L$22,MATCH($AA170,CostoParametrico!$D$3:$D$22,0),1)-AD170-AE170)*OR($E$90<>"S",$F$90=0,$H$1<2)*OR($D$20="P",AND($D$20="R",$BO170="B"),$BO170="A") -> 0 | AD170: =MAX(0,(X170)-INDEX(CostoParametrico!$E$3:$L$22,MATCH($AA170,CostoParametrico!$D$3:$D$22,0),2)-AE170)*OR($D$20="P",AND($D$20="R",$BO170="B"),$BO170="A") -> 0 | AE170: =MAX(0,(X170)-INDEX(CostoParametrico!$E$3:$L$22,MATCH($AA170,CostoParametrico!$D$3:$D$22,0),3))*OR($D$20="P",AND($D$20="R",$BO170="B"),$BO170="A") -> 0 | AF170: 0 | AG170: =MAX(0,(X170+Y170)-INDEX(CostoParametrico!$E$3:$L$22,MATCH($AA170,CostoParametrico!$D$3:$D$22,0),1)-AC170-AD170-AE170-AH170-AI170)*OR($E$90<>"S",$F$90=0,$H$1<2)*OR($D$20="P",AND($D$20="R",$BO170="B"),$BO170="A") -> 0 | AH170: =MAX(0,(X170+Y170)-INDEX(CostoParametrico!$E$3:$L$22,MATCH($AA170,CostoParametrico!$D$3:$D$22,0),2)-AD170-AE170-AI170)*OR($D$20="P",AND($D$20="R",$BO170="B"),$BO170="A") -> 0 | AI170: =MAX(0,(X170+Y170)-INDEX(CostoParametrico!$E$3:$L$22,MATCH($AA170,CostoParametrico!$D$3:$D$22,0),3)-AE170)*OR($D$20="P",AND($D$20="R",$BO170="B"),$BO170="A") -> 0 | AJ170: =INDEX(CostoParametrico!$E$3:$L$22,MATCH($AA170,CostoParametrico!$D$3:$D$22,0),5) -> 400 | AK170: =INDEX(CostoParametrico!$E$3:$L$22,MATCH($AA170,CostoParametrico!$D$3:$D$22,0),6) -> 330 | AL170: =INDEX(CostoParametrico!$E$3:$L$22,MATCH($AA170,CostoParametrico!$D$3:$D$22,0),7) -> 300 | AM170: =INDEX(CostoParametrico!$E$3:$L$22,MATCH($AA170,CostoParametrico!$D$3:$D$22,0),8) -> 300 | AN170: 0 | AO170: 0 | AP170: 0 | AQ170: 0 | AR170: 0 | AS170: 0 | AT170: 0 | AU170: 1 | AV170: 0 | AW170: 0 | AX170: 0 | AY170: 1e-10 | AZ170: 0 | BA170: 0 | BB170: 0 | BC170: 0 | BD170: 0 | BE170: 0 | BF170: 0 | BG170: 0 | BH170: 0 | BI170: 0 | BJ170: 0 | BK170: 0 | BL170: 0 | BM170: 1.1 | BN170: N | BO170: A | BP170: 0 | BQ170: 0 | BR170: N | BS170: 1 | BT170: 0.1 | BU170: 0 | CA170: 0 | CB170: 0 | CC170: 0 | CD170: 0 | CE170: 0 | CF170: 0 | CG170: 0 | CH170: 0 | CI170: 0 | CJ170: 0 | CK170: 0 | CL170: 0 | CM170: 0 | CN170: 0 | CO170: 0 | CP170: 0 | CQ170: 0 | CR170: 0 | CS170: 0 | CT170: 0 | CU170: 0 | CV170: 0 | CW170: 0 | CX170: 0 | CY170: 0 | CZ170: 0 | DA170: 0 | DB170: 0 | DC170: 0 | DD170: 0 | DE170: 0 | DF170: 0 | DG170: 0 | DL170: 0 | DM170: 0 | DN170: 0 | DO170: 0 | DP170: 0 | DQ170: 0 | DR170: 0 | DS170: 0 | DT170: 0 | DU170: 0 | DV170: 0 | DW170: 0 | DX170: 0 | DY170: 0 | DZ170: 0 | EA170: 0 | EB170: 0 | EC170: 0 | ED170: 0 | EE170: 0 | EF170: 0 | EG170: 0 | EH170: 0 | EI170: 0 | EJ170: 0 | EK170: 0 | EL170: 0 | EM170: 0 | EN170: 0 | EO170: 0 | EP170: 0 | EQ170: 0 | ER170: 0 | EW170: 0 | EX170: 0 | EY170: 0 | EZ170: 0 | FA170: 0 | FB170: 0 | FC170: 0 | FD170: 0 | FE170: 0 | FF170: 0 | FG170: 0 | FH170: 0 | FI170: 0 | FJ170: 0 | FK170: 0 | FL170: 0 | FM170: 0 | FN170: 0 | FO170: 0 | FP170: 0 | FQ170: 0 | FR170: 0 | FS170: 0 | FT170: 0 | FU170: 0 | FV170: 0 | FW170: 0 | FX170: 0 | FY170: 0 | FZ170: 0 | GA170: 0 | GB170: 0 | GC170: 0 | GH170: 0 | GI170: =MAX(0,MIN($BB170-SUM(GJ170:$GO170),EX170)) -> 0 | GJ170: =MAX(0,MIN($BB170-SUM(GK170:$GO170),EY170)) -> 0 | GK170: =MAX(0,MIN($BB170-SUM(GL170:$GO170),EZ170)) -> 0 | GL170: =MAX(0,MIN($BB170-SUM(GM170:$GO170),FA170)) -> 0 | GM170: =MAX(0,MIN($BB170-SUM(GN170:$GO170),FB170)) -> 0 | GN170: =MAX(0,MIN($BB170-SUM(GO170:$GO170),FC170)) -> 0 | GO170: 0 | GP170: 0 | GQ170: 0 | GR170: =MAX(0,MIN($BB170-SUM($GI170:$GO170,$GQ170:GQ170),FG170)) -> 0 | GS170: =MAX(0,MIN($BB170-SUM($GI170:$GO170,$GQ170:GR170),FH170)) -> 0 | GT170: =MAX(0,MIN($BB170-SUM($GI170:$GO170,$GQ170:GS170),FI170)) -> 0 | GU170: =MAX(0,MIN($BB170-SUM($GI170:$GO170,$GQ170:GT170),FJ170)) -> 0 | GV170: =MAX(0,MIN($BB170-SUM($GI170:$GO170,$GQ170:GU170),FK170)) -> 0 | GW170: =MAX(0,MIN($BB170-SUM($GI170:$GO170,$GQ170:GV170),FL170)) -> 0 | GX170: =MAX(0,MIN($BB170-SUM($GI170:$GO170,$GQ170:GW170),FM170)) -> 0 | GY170: =MAX(0,MIN($BB170-SUM($GI170:$GO170,$GQ170:GX170),FN170)) -> 0 | GZ170: =MAX(0,MIN($BB170-SUM($GI170:$GO170,$GQ170:GY170),FO170)) -> 0 | HA170: =MAX(0,MIN($BB170-SUM($GI170:$GO170,$GQ170:GZ170),FP170)) -> 0 | HB170: =MAX(0,MIN($BB170-SUM($GI170:$GO170,$GQ170:HA170),FQ170)) -> 0 | HC170: =MAX(0,MIN($BB170-SUM($GI170:$GO170,$GQ170:HB170),FR170)) -> 0 | HD170: =MAX(0,MIN($BB170-SUM($GI170:$GO170,$GQ170:HC170),FS170)) -> 0 | HE170: =MAX(0,MIN($BB170-SUM($GI170:$GO170,$GQ170:HD170),FT170)) -> 0 | HF170: =MAX(0,MIN($BB170-SUM($GI170:$GO170,$GQ170:HE170),FU170)) -> 0 | HG170: =MAX(0,MIN($BB170-SUM($GI170:$GO170,$GQ170:HF170),FV170)) -> 0 | HH170: =MAX(0,MIN($BB170-SUM($GI170:$GO170,$GQ170:HG170),FW170)) -> 0 | HI170: =MAX(0,MIN($BB170-SUM($GI170:$GO170,$GQ170:HH170),FX170)) -> 0 | HJ170: =MAX(0,MIN($BB170-SUM($GI170:$GO170,$GQ170:HI170),FY170)) -> 0 | HK170: =MAX(0,MIN($BB170-SUM($GI170:$GO170,$GQ170:HJ170),FZ170)) -> 0 | HL170: =MAX(0,MIN($BB170-SUM($GI170:$GO170,$GQ170:HK170),GA170)) -> 0 | HM170: =MAX(0,MIN($BB170-SUM($GI170:$GO170,$GQ170:HL170),GB170)) -> 0 | HN170: =MAX(0,MIN($BB170-SUM($GI170:$GO170,$GQ170:HM170),GC170)) -> 0 | HS170: 0 | HT170: 0 | HU170: 0 | HV170: 0 | HW170: 0 | HX170: 0 | HY170: 0 | HZ170: 0 | IA170: 0 | IB170: 0 | IC170: 0 | ID170: 0 | IE170: 0 | IF170: 0 | IG170: 0 | IH170: 0 | II170: 0 | IJ170: 0 | IK170: 0 | IL170: 0 | IM170: 0 | IN170: 0 | IO170: 0 | IP170: 0 | IQ170: 0 | IR170: 0 | IS170: 0 | IT170: 0 | IU170: 0 | IV170: 0 | IW170: 0 | IX170: 0 | IY170: 0 | JD170: 0 | JE170: 0 | JF170: 0 | JG170: 0 | JH170: 0 | JI170: 0 | JJ170: 0 | JK170: 0 | JL170: 0 | JM170: 0 | JN170: 0 | JO170: 0 | JP170: 0 | JQ170: 0 | JR170: 0 | JS170: 0 | JT170: 0 | JU170: 0 | JV170: 0 | JW170: 0 | JX170: 0 | JY170: 0 | JZ170: 0 | KA170: 0 | KB170: 0 | KC170: 0 | KD170: 0 | KE170: 0 | KF170: 0 | KG170: 0 | KH170: 0 | KI170: 0 | KJ170: 0
A171: 1 | B171: 1 | C171: =ImportedDataRCR!C218 -> 6 | D171: =ImportedDataRCR!D218 -> 0 | E171: =ImportedDataRCR!E218 -> N | F171: =ImportedDataRCR!F218 -> A - Abitativo | G171: =ImportedDataRCR!G218 -> 0 | H171: =ImportedDataRCR!H218 -> 0 | I171: =ImportedDataRCR!I218 -> Privata | J171: =ImportedDataRCR!F$168 -> 10 | K171: =ImportedDataRCR!J218 -> N | L171: =ImportedDataRCR!K218 -> 0 | M171: =ImportedDataRCR!L218 -> 0 | N171: =ImportedDataRCR!M218 -> 0 | O171: =ImportedDataRCR!N218 -> 0 | P171: =ImportedDataRCR!O218 -> N | Q171: N | R171: =ImportedDataRCR!P218 -> 2 | S171: =ImportedDataRCR!R218 -> N | T171: =ImportedDataRCR!S218 -> L0 | U171: =IF($U$163,BeniCulturali!H26,$H$59)*($S171="N") -> 0 | V171: 0.1 | W171: 0.1 | X171: 0 | Y171: 0 | Z171: 0 | AA171: Abitativa-L0 | AB171: 0 | AC171: =MAX(0,(X171)-INDEX(CostoParametrico!$E$3:$L$22,MATCH($AA171,CostoParametrico!$D$3:$D$22,0),1)-AD171-AE171)*OR($E$90<>"S",$F$90=0,$H$1<2)*OR($D$20="P",AND($D$20="R",$BO171="B"),$BO171="A") -> 0 | AD171: =MAX(0,(X171)-INDEX(CostoParametrico!$E$3:$L$22,MATCH($AA171,CostoParametrico!$D$3:$D$22,0),2)-AE171)*OR($D$20="P",AND($D$20="R",$BO171="B"),$BO171="A") -> 0 | AE171: =MAX(0,(X171)-INDEX(CostoParametrico!$E$3:$L$22,MATCH($AA171,CostoParametrico!$D$3:$D$22,0),3))*OR($D$20="P",AND($D$20="R",$BO171="B"),$BO171="A") -> 0 | AF171: 0 | AG171: =MAX(0,(X171+Y171)-INDEX(CostoParametrico!$E$3:$L$22,MATCH($AA171,CostoParametrico!$D$3:$D$22,0),1)-AC171-AD171-AE171-AH171-AI171)*OR($E$90<>"S",$F$90=0,$H$1<2)*OR($D$20="P",AND($D$20="R",$BO171="B"),$BO171="A") -> 0 | AH171: =MAX(0,(X171+Y171)-INDEX(CostoParametrico!$E$3:$L$22,MATCH($AA171,CostoParametrico!$D$3:$D$22,0),2)-AD171-AE171-AI171)*OR($D$20="P",AND($D$20="R",$BO171="B"),$BO171="A") -> 0 | AI171: =MAX(0,(X171+Y171)-INDEX(CostoParametrico!$E$3:$L$22,MATCH($AA171,CostoParametrico!$D$3:$D$22,0),3)-AE171)*OR($D$20="P",AND($D$20="R",$BO171="B"),$BO171="A") -> 0 | AJ171: =INDEX(CostoParametrico!$E$3:$L$22,MATCH($AA171,CostoParametrico!$D$3:$D$22,0),5) -> 400 | AK171: =INDEX(CostoParametrico!$E$3:$L$22,MATCH($AA171,CostoParametrico!$D$3:$D$22,0),6) -> 330 | AL171: =INDEX(CostoParametrico!$E$3:$L$22,MATCH($AA171,CostoParametrico!$D$3:$D$22,0),7) -> 300 | AM171: =INDEX(CostoParametrico!$E$3:$L$22,MATCH($AA171,CostoParametrico!$D$3:$D$22,0),8) -> 300 | AN171: 0 | AO171: 0 | AP171: 0 | AQ171: 0 | AR171: 0 | AS171: 0 | AT171: 0 | AU171: 1 | AV171: 0 | AW171: 0 | AX171: 0 | AY171: 1e-10 | AZ171: 0 | BA171: 0 | BB171: 0 | BC171: 0 | BD171: 0 | BE171: 0 | BF171: 0 | BG171: 0 | BH171: 0 | BI171: 0 | BJ171: 0 | BK171: 0 | BL171: 0 | BM171: 1.1 | BN171: N | BO171: A | BP171: 0 | BQ171: 0 | BR171: N | BS171: 1 | BT171: 0.1 | BU171: 0 | CA171: 0 | CB171: 0 | CC171: 0 | CD171: 0 | CE171: 0 | CF171: 0 | CG171: 0 | CH171: 0 | CI171: 0 | CJ171: 0 | CK171: 0 | CL171: 0 | CM171: 0 | CN171: 0 | CO171: 0 | CP171: 0 | CQ171: 0 | CR171: 0 | CS171: 0 | CT171: 0 | CU171: 0 | CV171: 0 | CW171: 0 | CX171: 0 | CY171: 0 | CZ171: 0 | DA171: 0 | DB171: 0 | DC171: 0 | DD171: 0 | DE171: 0 | DF171: 0 | DG171: 0 | DL171: 0 | DM171: 0 | DN171: 0 | DO171: 0 | DP171: 0 | DQ171: 0 | DR171: 0 | DS171: 0 | DT171: 0 | DU171: 0 | DV171: 0 | DW171: 0 | DX171: 0 | DY171: 0 | DZ171: 0 | EA171: 0 | EB171: 0 | EC171: 0 | ED171: 0 | EE171: 0 | EF171: 0 | EG171: 0 | EH171: 0 | EI171: 0 | EJ171: 0 | EK171: 0 | EL171: 0 | EM171: 0 | EN171: 0 | EO171: 0 | EP171: 0 | EQ171: 0 | ER171: 0 | EW171: 0 | EX171: 0 | EY171: 0 | EZ171: 0 | FA171: 0 | FB171: 0 | FC171: 0 | FD171: 0 | FE171: 0 | FF171: 0 | FG171: 0 | FH171: 0 | FI171: 0 | FJ171: 0 | FK171: 0 | FL171: 0 | FM171: 0 | FN171: 0 | FO171: 0 | FP171: 0 | FQ171: 0 | FR171: 0 | FS171: 0 | FT171: 0 | FU171: 0 | FV171: 0 | FW171: 0 | FX171: 0 | FY171: 0 | FZ171: 0 | GA171: 0 | GB171: 0 | GC171: 0 | GH171: 0 | GI171: =MAX(0,MIN($BB171-SUM(GJ171:$GO171),EX171)) -> 0 | GJ171: =MAX(0,MIN($BB171-SUM(GK171:$GO171),EY171)) -> 0 | GK171: =MAX(0,MIN($BB171-SUM(GL171:$GO171),EZ171)) -> 0 | GL171: =MAX(0,MIN($BB171-SUM(GM171:$GO171),FA171)) -> 0 | GM171: =MAX(0,MIN($BB171-SUM(GN171:$GO171),FB171)) -> 0 | GN171: =MAX(0,MIN($BB171-SUM(GO171:$GO171),FC171)) -> 0 | GO171: 0 | GP171: 0 | GQ171: 0 | GR171: =MAX(0,MIN($BB171-SUM($GI171:$GO171,$GQ171:GQ171),FG171)) -> 0 | GS171: =MAX(0,MIN($BB171-SUM($GI171:$GO171,$GQ171:GR171),FH171)) -> 0 | GT171: =MAX(0,MIN($BB171-SUM($GI171:$GO171,$GQ171:GS171),FI171)) -> 0 | GU171: =MAX(0,MIN($BB171-SUM($GI171:$GO171,$GQ171:GT171),FJ171)) -> 0 | GV171: =MAX(0,MIN($BB171-SUM($GI171:$GO171,$GQ171:GU171),FK171)) -> 0 | GW171: =MAX(0,MIN($BB171-SUM($GI171:$GO171,$GQ171:GV171),FL171)) -> 0 | GX171: =MAX(0,MIN($BB171-SUM($GI171:$GO171,$GQ171:GW171),FM171)) -> 0 | GY171: =MAX(0,MIN($BB171-SUM($GI171:$GO171,$GQ171:GX171),FN171)) -> 0 | GZ171: =MAX(0,MIN($BB171-SUM($GI171:$GO171,$GQ171:GY171),FO171)) -> 0 | HA171: =MAX(0,MIN($BB171-SUM($GI171:$GO171,$GQ171:GZ171),FP171)) -> 0 | HB171: =MAX(0,MIN($BB171-SUM($GI171:$GO171,$GQ171:HA171),FQ171)) -> 0 | HC171: =MAX(0,MIN($BB171-SUM($GI171:$GO171,$GQ171:HB171),FR171)) -> 0 | HD171: =MAX(0,MIN($BB171-SUM($GI171:$GO171,$GQ171:HC171),FS171)) -> 0 | HE171: =MAX(0,MIN($BB171-SUM($GI171:$GO171,$GQ171:HD171),FT171)) -> 0 | HF171: =MAX(0,MIN($BB171-SUM($GI171:$GO171,$GQ171:HE171),FU171)) -> 0 | HG171: =MAX(0,MIN($BB171-SUM($GI171:$GO171,$GQ171:HF171),FV171)) -> 0 | HH171: =MAX(0,MIN($BB171-SUM($GI171:$GO171,$GQ171:HG171),FW171)) -> 0 | HI171: =MAX(0,MIN($BB171-SUM($GI171:$GO171,$GQ171:HH171),FX171)) -> 0 | HJ171: =MAX(0,MIN($BB171-SUM($GI171:$GO171,$GQ171:HI171),FY171)) -> 0 | HK171: =MAX(0,MIN($BB171-SUM($GI171:$GO171,$GQ171:HJ171),FZ171)) -> 0 | HL171: =MAX(0,MIN($BB171-SUM($GI171:$GO171,$GQ171:HK171),GA171)) -> 0 | HM171: =MAX(0,MIN($BB171-SUM($GI171:$GO171,$GQ171:HL171),GB171)) -> 0 | HN171: =MAX(0,MIN($BB171-SUM($GI171:$GO171,$GQ171:HM171),GC171)) -> 0 | HS171: 0 | HT171: 0 | HU171: 0 | HV171: 0 | HW171: 0 | HX171: 0 | HY171: 0 | HZ171: 0 | IA171: 0 | IB171: 0 | IC171: 0 | ID171: 0 | IE171: 0 | IF171: 0 | IG171: 0 | IH171: 0 | II171: 0 | IJ171: 0 | IK171: 0 | IL171: 0 | IM171: 0 | IN171: 0 | IO171: 0 | IP171: 0 | IQ171: 0 | IR171: 0 | IS171: 0 | IT171: 0 | IU171: 0 | IV171: 0 | IW171: 0 | IX171: 0 | IY171: 0 | JD171: 0 | JE171: 0 | JF171: 0 | JG171: 0 | JH171: 0 | JI171: 0 | JJ171: 0 | JK171: 0 | JL171: 0 | JM171: 0 | JN171: 0 | JO171: 0 | JP171: 0 | JQ171: 0 | JR171: 0 | JS171: 0 | JT171: 0 | JU171: 0 | JV171: 0 | JW171: 0 | JX171: 0 | JY171: 0 | JZ171: 0 | KA171: 0 | KB171: 0 | KC171: 0 | KD171: 0 | KE171: 0 | KF171: 0 | KG171: 0 | KH171: 0 | KI171: 0 | KJ171: 0
A172: 1 | B172: 1 | C172: =ImportedDataRCR!C219 -> 7 | D172: =ImportedDataRCR!D219 -> 0 | E172: =ImportedDataRCR!E219 -> N | F172: =ImportedDataRCR!F219 -> A - Abitativo | G172: =ImportedDataRCR!G219 -> 0 | H172: =ImportedDataRCR!H219 -> 0 | I172: =ImportedDataRCR!I219 -> Privata | J172: =ImportedDataRCR!F$168 -> 10 | K172: =ImportedDataRCR!J219 -> N | L172: =ImportedDataRCR!K219 -> 0 | M172: =ImportedDataRCR!L219 -> 0 | N172: =ImportedDataRCR!M219 -> 0 | O172: =ImportedDataRCR!N219 -> 0 | P172: =ImportedDataRCR!O219 -> N | Q172: N | R172: =ImportedDataRCR!P219 -> 2 | S172: =ImportedDataRCR!R219 -> N | T172: =ImportedDataRCR!S219 -> L0 | U172: =IF($U$163,BeniCulturali!H27,$H$59)*($S172="N") -> 0 | V172: 0.1 | W172: 0.1 | X172: 0 | Y172: 0 | Z172: 0 | AA172: Abitativa-L0 | AB172: 0 | AC172: =MAX(0,(X172)-INDEX(CostoParametrico!$E$3:$L$22,MATCH($AA172,CostoParametrico!$D$3:$D$22,0),1)-AD172-AE172)*OR($E$90<>"S",$F$90=0,$H$1<2)*OR($D$20="P",AND($D$20="R",$BO172="B"),$BO172="A") -> 0 | AD172: =MAX(0,(X172)-INDEX(CostoParametrico!$E$3:$L$22,MATCH($AA172,CostoParametrico!$D$3:$D$22,0),2)-AE172)*OR($D$20="P",AND($D$20="R",$BO172="B"),$BO172="A") -> 0 | AE172: =MAX(0,(X172)-INDEX(CostoParametrico!$E$3:$L$22,MATCH($AA172,CostoParametrico!$D$3:$D$22,0),3))*OR($D$20="P",AND($D$20="R",$BO172="B"),$BO172="A") -> 0 | AF172: 0 | AG172: =MAX(0,(X172+Y172)-INDEX(CostoParametrico!$E$3:$L$22,MATCH($AA172,CostoParametrico!$D$3:$D$22,0),1)-AC172-AD172-AE172-AH172-AI172)*OR($E$90<>"S",$F$90=0,$H$1<2)*OR($D$20="P",AND($D$20="R",$BO172="B"),$BO172="A") -> 0 | AH172: =MAX(0,(X172+Y172)-INDEX(CostoParametrico!$E$3:$L$22,MATCH($AA172,CostoParametrico!$D$3:$D$22,0),2)-AD172-AE172-AI172)*OR($D$20="P",AND($D$20="R",$BO172="B"),$BO172="A") -> 0 | AI172: =MAX(0,(X172+Y172)-INDEX(CostoParametrico!$E$3:$L$22,MATCH($AA172,CostoParametrico!$D$3:$D$22,0),3)-AE172)*OR($D$20="P",AND($D$20="R",$BO172="B"),$BO172="A") -> 0 | AJ172: =INDEX(CostoParametrico!$E$3:$L$22,MATCH($AA172,CostoParametrico!$D$3:$D$22,0),5) -> 400 | AK172: =INDEX(CostoParametrico!$E$3:$L$22,MATCH($AA172,CostoParametrico!$D$3:$D$22,0),6) -> 330 | AL172: =INDEX(CostoParametrico!$E$3:$L$22,MATCH($AA172,CostoParametrico!$D$3:$D$22,0),7) -> 300 | AM172: =INDEX(CostoParametrico!$E$3:$L$22,MATCH($AA172,CostoParametrico!$D$3:$D$22,0),8) -> 300 | AN172: 0 | AO172: 0 | AP172: 0 | AQ172: 0 | AR172: 0 | AS172: 0 | AT172: 0 | AU172: 1 | AV172: 0 | AW172: 0 | AX172: 0 | AY172: 1e-10 | AZ172: 0 | BA172: 0 | BB172: 0 | BC172: 0 | BD172: 0 | BE172: 0 | BF172: 0 | BG172: 0 | BH172: 0 | BI172: 0 | BJ172: 0 | BK172: 0 | BL172: 0 | BM172: 1.1 | BN172: N | BO172: A | BP172: 0 | BQ172: 0 | BR172: N | BS172: 1 | BT172: 0.1 | BU172: 0 | CA172: 0 | CB172: 0 | CC172: 0 | CD172: 0 | CE172: 0 | CF172: 0 | CG172: 0 | CH172: 0 | CI172: 0 | CJ172: 0 | CK172: 0 | CL172: 0 | CM172: 0 | CN172: 0 | CO172: 0 | CP172: 0 | CQ172: 0 | CR172: 0 | CS172: 0 | CT172: 0 | CU172: 0 | CV172: 0 | CW172: 0 | CX172: 0 | CY172: 0 | CZ172: 0 | DA172: 0 | DB172: 0 | DC172: 0 | DD172: 0 | DE172: 0 | DF172: 0 | DG172: 0 | DL172: 0 | DM172: 0 | DN172: 0 | DO172: 0 | DP172: 0 | DQ172: 0 | DR172: 0 | DS172: 0 | DT172: 0 | DU172: 0 | DV172: 0 | DW172: 0 | DX172: 0 | DY172: 0 | DZ172: 0 | EA172: 0 | EB172: 0 | EC172: 0 | ED172: 0 | EE172: 0 | EF172: 0 | EG172: 0 | EH172: 0 | EI172: 0 | EJ172: 0 | EK172: 0 | EL172: 0 | EM172: 0 | EN172: 0 | EO172: 0 | EP172: 0 | EQ172: 0 | ER172: 0 | EW172: 0 | EX172: 0 | EY172: 0 | EZ172: 0 | FA172: 0 | FB172: 0 | FC172: 0 | FD172: 0 | FE172: 0 | FF172: 0 | FG172: 0 | FH172: 0 | FI172: 0 | FJ172: 0 | FK172: 0 | FL172: 0 | FM172: 0 | FN172: 0 | FO172: 0 | FP172: 0 | FQ172: 0 | FR172: 0 | FS172: 0 | FT172: 0 | FU172: 0 | FV172: 0 | FW172: 0 | FX172: 0 | FY172: 0 | FZ172: 0 | GA172: 0 | GB172: 0 | GC172: 0 | GH172: 0 | GI172: =MAX(0,MIN($BB172-SUM(GJ172:$GO172),EX172)) -> 0 | GJ172: =MAX(0,MIN($BB172-SUM(GK172:$GO172),EY172)) -> 0 | GK172: =MAX(0,MIN($BB172-SUM(GL172:$GO172),EZ172)) -> 0 | GL172: =MAX(0,MIN($BB172-SUM(GM172:$GO172),FA172)) -> 0 | GM172: =MAX(0,MIN($BB172-SUM(GN172:$GO172),FB172)) -> 0 | GN172: =MAX(0,MIN($BB172-SUM(GO172:$GO172),FC172)) -> 0 | GO172: 0 | GP172: 0 | GQ172: 0 | GR172: =MAX(0,MIN($BB172-SUM($GI172:$GO172,$GQ172:GQ172),FG172)) -> 0 | GS172: =MAX(0,MIN($BB172-SUM($GI172:$GO172,$GQ172:GR172),FH172)) -> 0 | GT172: =MAX(0,MIN($BB172-SUM($GI172:$GO172,$GQ172:GS172),FI172)) -> 0 | GU172: =MAX(0,MIN($BB172-SUM($GI172:$GO172,$GQ172:GT172),FJ172)) -> 0 | GV172: =MAX(0,MIN($BB172-SUM($GI172:$GO172,$GQ172:GU172),FK172)) -> 0 | GW172: =MAX(0,MIN($BB172-SUM($GI172:$GO172,$GQ172:GV172),FL172)) -> 0 | GX172: =MAX(0,MIN($BB172-SUM($GI172:$GO172,$GQ172:GW172),FM172)) -> 0 | GY172: =MAX(0,MIN($BB172-SUM($GI172:$GO172,$GQ172:GX172),FN172)) -> 0 | GZ172: =MAX(0,MIN($BB172-SUM($GI172:$GO172,$GQ172:GY172),FO172)) -> 0 | HA172: =MAX(0,MIN($BB172-SUM($GI172:$GO172,$GQ172:GZ172),FP172)) -> 0 | HB172: =MAX(0,MIN($BB172-SUM($GI172:$GO172,$GQ172:HA172),FQ172)) -> 0 | HC172: =MAX(0,MIN($BB172-SUM($GI172:$GO172,$GQ172:HB172),FR172)) -> 0 | HD172: =MAX(0,MIN($BB172-SUM($GI172:$GO172,$GQ172:HC172),FS172)) -> 0 | HE172: =MAX(0,MIN($BB172-SUM($GI172:$GO172,$GQ172:HD172),FT172)) -> 0 | HF172: =MAX(0,MIN($BB172-SUM($GI172:$GO172,$GQ172:HE172),FU172)) -> 0 | HG172: =MAX(0,MIN($BB172-SUM($GI172:$GO172,$GQ172:HF172),FV172)) -> 0 | HH172: =MAX(0,MIN($BB172-SUM($GI172:$GO172,$GQ172:HG172),FW172)) -> 0 | HI172: =MAX(0,MIN($BB172-SUM($GI172:$GO172,$GQ172:HH172),FX172)) -> 0 | HJ172: =MAX(0,MIN($BB172-SUM($GI172:$GO172,$GQ172:HI172),FY172)) -> 0 | HK172: =MAX(0,MIN($BB172-SUM($GI172:$GO172,$GQ172:HJ172),FZ172)) -> 0 | HL172: =MAX(0,MIN($BB172-SUM($GI172:$GO172,$GQ172:HK172),GA172)) -> 0 | HM172: =MAX(0,MIN($BB172-SUM($GI172:$GO172,$GQ172:HL172),GB172)) -> 0 | HN172: =MAX(0,MIN($BB172-SUM($GI172:$GO172,$GQ172:HM172),GC172)) -> 0 | HS172: 0 | HT172: 0 | HU172: 0 | HV172: 0 | HW172: 0 | HX172: 0 | HY172: 0 | HZ172: 0 | IA172: 0 | IB172: 0 | IC172: 0 | ID172: 0 | IE172: 0 | IF172: 0 | IG172: 0 | IH172: 0 | II172: 0 | IJ172: 0 | IK172: 0 | IL172: 0 | IM172: 0 | IN172: 0 | IO172: 0 | IP172: 0 | IQ172: 0 | IR172: 0 | IS172: 0 | IT172: 0 | IU172: 0 | IV172: 0 | IW172: 0 | IX172: 0 | IY172: 0 | JD172: 0 | JE172: 0 | JF172: 0 | JG172: 0 | JH172: 0 | JI172: 0 | JJ172: 0 | JK172: 0 | JL172: 0 | JM172: 0 | JN172: 0 | JO172: 0 | JP172: 0 | JQ172: 0 | JR172: 0 | JS172: 0 | JT172: 0 | JU172: 0 | JV172: 0 | JW172: 0 | JX172: 0 | JY172: 0 | JZ172: 0 | KA172: 0 | KB172: 0 | KC172: 0 | KD172: 0 | KE172: 0 | KF172: 0 | KG172: 0 | KH172: 0 | KI172: 0 | KJ172: 0
A173: 1 | B173: 1 | C173: =ImportedDataRCR!C220 -> 8 | D173: =ImportedDataRCR!D220 -> 0 | E173: =ImportedDataRCR!E220 -> N | F173: =ImportedDataRCR!F220 -> A - Abitativo | G173: =ImportedDataRCR!G220 -> 0 | H173: =ImportedDataRCR!H220 -> 0 | I173: =ImportedDataRCR!I220 -> Privata | J173: =ImportedDataRCR!F$168 -> 10 | K173: =ImportedDataRCR!J220 -> N | L173: =ImportedDataRCR!K220 -> 0 | M173: =ImportedDataRCR!L220 -> 0 | N173: =ImportedDataRCR!M220 -> 0 | O173: =ImportedDataRCR!N220 -> 0 | P173: =ImportedDataRCR!O220 -> N | Q173: N | R173: =ImportedDataRCR!P220 -> 2 | S173: =ImportedDataRCR!R220 -> N | T173: =ImportedDataRCR!S220 -> L0 | U173: =IF($U$163,BeniCulturali!H28,$H$59)*($S173="N") -> 0 | V173: 0.1 | W173: 0.1 | X173: 0 | Y173: 0 | Z173: 0 | AA173: Abitativa-L0 | AB173: 0 | AC173: =MAX(0,(X173)-INDEX(CostoParametrico!$E$3:$L$22,MATCH($AA173,CostoParametrico!$D$3:$D$22,0),1)-AD173-AE173)*OR($E$90<>"S",$F$90=0,$H$1<2)*OR($D$20="P",AND($D$20="R",$BO173="B"),$BO173="A") -> 0 | AD173: =MAX(0,(X173)-INDEX(CostoParametrico!$E$3:$L$22,MATCH($AA173,CostoParametrico!$D$3:$D$22,0),2)-AE173)*OR($D$20="P",AND($D$20="R",$BO173="B"),$BO173="A") -> 0 | AE173: =MAX(0,(X173)-INDEX(CostoParametrico!$E$3:$L$22,MATCH($AA173,CostoParametrico!$D$3:$D$22,0),3))*OR($D$20="P",AND($D$20="R",$BO173="B"),$BO173="A") -> 0 | AF173: 0 | AG173: =MAX(0,(X173+Y173)-INDEX(CostoParametrico!$E$3:$L$22,MATCH($AA173,CostoParametrico!$D$3:$D$22,0),1)-AC173-AD173-AE173-AH173-AI173)*OR($E$90<>"S",$F$90=0,$H$1<2)*OR($D$20="P",AND($D$20="R",$BO173="B"),$BO173="A") -> 0 | AH173: =MAX(0,(X173+Y173)-INDEX(CostoParametrico!$E$3:$L$22,MATCH($AA173,CostoParametrico!$D$3:$D$22,0),2)-AD173-AE173-AI173)*OR($D$20="P",AND($D$20="R",$BO173="B"),$BO173="A") -> 0 | AI173: =MAX(0,(X173+Y173)-INDEX(CostoParametrico!$E$3:$L$22,MATCH($AA173,CostoParametrico!$D$3:$D$22,0),3)-AE173)*OR($D$20="P",AND($D$20="R",$BO173="B"),$BO173="A") -> 0 | AJ173: =INDEX(CostoParametrico!$E$3:$L$22,MATCH($AA173,CostoParametrico!$D$3:$D$22,0),5) -> 400 | AK173: =INDEX(CostoParametrico!$E$3:$L$22,MATCH($AA173,CostoParametrico!$D$3:$D$22,0),6) -> 330 | AL173: =INDEX(CostoParametrico!$E$3:$L$22,MATCH($AA173,CostoParametrico!$D$3:$D$22,0),7) -> 300 | AM173: =INDEX(CostoParametrico!$E$3:$L$22,MATCH($AA173,CostoParametrico!$D$3:$D$22,0),8) -> 300 | AN173: 0 | AO173: 0 | AP173: 0 | AQ173: 0 | AR173: 0 | AS173: 0 | AT173: 0 | AU173: 1 | AV173: 0 | AW173: 0 | AX173: 0 | AY173: 1e-10 | AZ173: 0 | BA173: 0 | BB173: 0 | BC173: 0 | BD173: 0 | BE173: 0 | BF173: 0 | BG173: 0 | BH173: 0 | BI173: 0 | BJ173: 0 | BK173: 0 | BL173: 0 | BM173: 1.1 | BN173: N | BO173: A | BP173: 0 | BQ173: 0 | BR173: N | BS173: 1 | BT173: 0.1 | BU173: 0 | CA173: 0 | CB173: 0 | CC173: 0 | CD173: 0 | CE173: 0 | CF173: 0 | CG173: 0 | CH173: 0 | CI173: 0 | CJ173: 0 | CK173: 0 | CL173: 0 | CM173: 0 | CN173: 0 | CO173: 0 | CP173: 0 | CQ173: 0 | CR173: 0 | CS173: 0 | CT173: 0 | CU173: 0 | CV173: 0 | CW173: 0 | CX173: 0 | CY173: 0 | CZ173: 0 | DA173: 0 | DB173: 0 | DC173: 0 | DD173: 0 | DE173: 0 | DF173: 0 | DG173: 0 | DL173: 0 | DM173: 0 | DN173: 0 | DO173: 0 | DP173: 0 | DQ173: 0 | DR173: 0 | DS173: 0 | DT173: 0 | DU173: 0 | DV173: 0 | DW173: 0 | DX173: 0 | DY173: 0 | DZ173: 0 | EA173: 0 | EB173: 0 | EC173: 0 | ED173: 0 | EE173: 0 | EF173: 0 | EG173: 0 | EH173: 0 | EI173: 0 | EJ173: 0 | EK173: 0 | EL173: 0 | EM173: 0 | EN173: 0 | EO173: 0 | EP173: 0 | EQ173: 0 | ER173: =GC173-HN173 -> 0 | EW173: 0 | EX173: 0 | EY173: 0 | EZ173: 0 | FA173: 0 | FB173: 0 | FC173: 0 | FD173: 0 | FE173: 0 | FF173: 0 | FG173: 0 | FH173: 0 | FI173: 0 | FJ173: 0 | FK173: 0 | FL173: 0 | FM173: 0 | FN173: 0 | FO173: 0 | FP173: 0 | FQ173: 0 | FR173: 0 | FS173: 0 | FT173: 0 | FU173: 0 | FV173: 0 | FW173: 0 | FX173: 0 | FY173: 0 | FZ173: 0 | GA173: 0 | GB173: 0 | GC173: 0 | GH173: 0 | GI173: =MAX(0,MIN($BB173-SUM(GJ173:$GO173),EX173)) -> 0 | GJ173: =MAX(0,MIN($BB173-SUM(GK173:$GO173),EY173)) -> 0 | GK173: =MAX(0,MIN($BB173-SUM(GL173:$GO173),EZ173)) -> 0 | GL173: =MAX(0,MIN($BB173-SUM(GM173:$GO173),FA173)) -> 0 | GM173: =MAX(0,MIN($BB173-SUM(GN173:$GO173),FB173)) -> 0 | GN173: =MAX(0,MIN($BB173-SUM(GO173:$GO173),FC173)) -> 0 | GO173: 0 | GP173: 0 | GQ173: 0 | GR173: =MAX(0,MIN($BB173-SUM($GI173:$GO173,$GQ173:GQ173),FG173)) -> 0 | GS173: =MAX(0,MIN($BB173-SUM($GI173:$GO173,$GQ173:GR173),FH173)) -> 0 | GT173: =MAX(0,MIN($BB173-SUM($GI173:$GO173,$GQ173:GS173),FI173)) -> 0 | GU173: =MAX(0,MIN($BB173-SUM($GI173:$GO173,$GQ173:GT173),FJ173)) -> 0 | GV173: =MAX(0,MIN($BB173-SUM($GI173:$GO173,$GQ173:GU173),FK173)) -> 0 | GW173: =MAX(0,MIN($BB173-SUM($GI173:$GO173,$GQ173:GV173),FL173)) -> 0 | GX173: =MAX(0,MIN($BB173-SUM($GI173:$GO173,$GQ173:GW173),FM173)) -> 0 | GY173: =MAX(0,MIN($BB173-SUM($GI173:$GO173,$GQ173:GX173),FN173)) -> 0 | GZ173: =MAX(0,MIN($BB173-SUM($GI173:$GO173,$GQ173:GY173),FO173)) -> 0 | HA173: =MAX(0,MIN($BB173-SUM($GI173:$GO173,$GQ173:GZ173),FP173)) -> 0 | HB173: =MAX(0,MIN($BB173-SUM($GI173:$GO173,$GQ173:HA173),FQ173)) -> 0 | HC173: =MAX(0,MIN($BB173-SUM($GI173:$GO173,$GQ173:HB173),FR173)) -> 0 | HD173: =MAX(0,MIN($BB173-SUM($GI173:$GO173,$GQ173:HC173),FS173)) -> 0 | HE173: =MAX(0,MIN($BB173-SUM($GI173:$GO173,$GQ173:HD173),FT173)) -> 0 | HF173: =MAX(0,MIN($BB173-SUM($GI173:$GO173,$GQ173:HE173),FU173)) -> 0 | HG173: =MAX(0,MIN($BB173-SUM($GI173:$GO173,$GQ173:HF173),FV173)) -> 0 | HH173: =MAX(0,MIN($BB173-SUM($GI173:$GO173,$GQ173:HG173),FW173)) -> 0 | HI173: =MAX(0,MIN($BB173-SUM($GI173:$GO173,$GQ173:HH173),FX173)) -> 0 | HJ173: =MAX(0,MIN($BB173-SUM($GI173:$GO173,$GQ173:HI173),FY173)) -> 0 | HK173: =MAX(0,MIN($BB173-SUM($GI173:$GO173,$GQ173:HJ173),FZ173)) -> 0 | HL173: =MAX(0,MIN($BB173-SUM($GI173:$GO173,$GQ173:HK173),GA173)) -> 0 | HM173: =MAX(0,MIN($BB173-SUM($GI173:$GO173,$GQ173:HL173),GB173)) -> 0 | HN173: =MAX(0,MIN($BB173-SUM($GI173:$GO173,$GQ173:HM173),GC173)) -> 0 | HS173: 0 | HT173: 0 | HU173: 0 | HV173: 0 | HW173: 0 | HX173: 0 | HY173: 0 | HZ173: 0 | IA173: 0 | IB173: 0 | IC173: 0 | ID173: 0 | IE173: 0 | IF173: 0 | IG173: 0 | IH173: 0 | II173: 0 | IJ173: 0 | IK173: 0 | IL173: 0 | IM173: 0 | IN173: 0 | IO173: 0 | IP173: 0 | IQ173: 0 | IR173: 0 | IS173: 0 | IT173: 0 | IU173: 0 | IV173: 0 | IW173: 0 | IX173: 0 | IY173: 0 | JD173: 0 | JE173: 0 | JF173: 0 | JG173: 0 | JH173: 0 | JI173: 0 | JJ173: 0 | JK173: 0 | JL173: 0 | JM173: 0 | JN173: 0 | JO173: 0 | JP173: 0 | JQ173: 0 | JR173: 0 | JS173: 0 | JT173: 0 | JU173: 0 | JV173: 0 | JW173: 0 | JX173: 0 | JY173: 0 | JZ173: 0 | KA173: 0 | KB173: 0 | KC173: 0 | KD173: 0 | KE173: 0 | KF173: 0 | KG173: 0 | KH173: 0 | KI173: 0 | KJ173: 0
A174: 1 | B174: 1 | C174: =ImportedDataRCR!C221 -> 9 | D174: =ImportedDataRCR!D221 -> 0 | E174: =ImportedDataRCR!E221 -> N | F174: =ImportedDataRCR!F221 -> A - Abitativo | G174: =ImportedDataRCR!G221 -> 0 | H174: =ImportedDataRCR!H221 -> 0 | I174: =ImportedDataRCR!I221 -> Privata | J174: =ImportedDataRCR!F$168 -> 10 | K174: =ImportedDataRCR!J221 -> N | L174: =ImportedDataRCR!K221 -> 0 | M174: =ImportedDataRCR!L221 -> 0 | N174: =ImportedDataRCR!M221 -> 0 | O174: =ImportedDataRCR!N221 -> 0 | P174: =ImportedDataRCR!O221 -> N | Q174: N | R174: =ImportedDataRCR!P221 -> 2 | S174: =ImportedDataRCR!R221 -> N | T174: =ImportedDataRCR!S221 -> L0 | U174: =IF($U$163,BeniCulturali!H29,$H$59)*($S174="N") -> 0 | V174: 0.1 | W174: 0.1 | X174: 0 | Y174: 0 | Z174: 0 | AA174: Abitativa-L0 | AB174: 0 | AC174: =MAX(0,(X174)-INDEX(CostoParametrico!$E$3:$L$22,MATCH($AA174,CostoParametrico!$D$3:$D$22,0),1)-AD174-AE174)*OR($E$90<>"S",$F$90=0,$H$1<2)*OR($D$20="P",AND($D$20="R",$BO174="B"),$BO174="A") -> 0 | AD174: =MAX(0,(X174)-INDEX(CostoParametrico!$E$3:$L$22,MATCH($AA174,CostoParametrico!$D$3:$D$22,0),2)-AE174)*OR($D$20="P",AND($D$20="R",$BO174="B"),$BO174="A") -> 0 | AE174: =MAX(0,(X174)-INDEX(CostoParametrico!$E$3:$L$22,MATCH($AA174,CostoParametrico!$D$3:$D$22,0),3))*OR($D$20="P",AND($D$20="R",$BO174="B"),$BO174="A") -> 0 | AF174: 0 | AG174: =MAX(0,(X174+Y174)-INDEX(CostoParametrico!$E$3:$L$22,MATCH($AA174,CostoParametrico!$D$3:$D$22,0),1)-AC174-AD174-AE174-AH174-AI174)*OR($E$90<>"S",$F$90=0,$H$1<2)*OR($D$20="P",AND($D$20="R",$BO174="B"),$BO174="A") -> 0 | AH174: =MAX(0,(X174+Y174)-INDEX(CostoParametrico!$E$3:$L$22,MATCH($AA174,CostoParametrico!$D$3:$D$22,0),2)-AD174-AE174-AI174)*OR($D$20="P",AND($D$20="R",$BO174="B"),$BO174="A") -> 0 | AI174: =MAX(0,(X174+Y174)-INDEX(CostoParametrico!$E$3:$L$22,MATCH($AA174,CostoParametrico!$D$3:$D$22,0),3)-AE174)*OR($D$20="P",AND($D$20="R",$BO174="B"),$BO174="A") -> 0 | AJ174: =INDEX(CostoParametrico!$E$3:$L$22,MATCH($AA174,CostoParametrico!$D$3:$D$22,0),5) -> 400 | AK174: =INDEX(CostoParametrico!$E$3:$L$22,MATCH($AA174,CostoParametrico!$D$3:$D$22,0),6) -> 330 | AL174: =INDEX(CostoParametrico!$E$3:$L$22,MATCH($AA174,CostoParametrico!$D$3:$D$22,0),7) -> 300 | AM174: =INDEX(CostoParametrico!$E$3:$L$22,MATCH($AA174,CostoParametrico!$D$3:$D$22,0),8) -> 300 | AN174: 0 | AO174: 0 | AP174: 0 | AQ174: 0 | AR174: 0 | AS174: 0 | AT174: 0 | AU174: 1 | AV174: 0 | AW174: 0 | AX174: 0 | AY174: 1e-10 | AZ174: 0 | BA174: 0 | BB174: 0 | BC174: 0 | BD174: 0 | BE174: 0 | BF174: 0 | BG174: 0 | BH174: 0 | BI174: 0 | BJ174: 0 | BK174: 0 | BL174: 0 | BM174: 1.1 | BN174: N | BO174: A | BP174: 0 | BQ174: 0 | BR174: N | BS174: 1 | BT174: 0.1 | BU174: 0 | CA174: 0 | CB174: 0 | CC174: 0 | CD174: 0 | CE174: 0 | CF174: 0 | CG174: 0 | CH174: 0 | CI174: 0 | CJ174: 0 | CK174: 0 | CL174: 0 | CM174: 0 | CN174: 0 | CO174: 0 | CP174: 0 | CQ174: 0 | CR174: 0 | CS174: 0 | CT174: 0 | CU174: 0 | CV174: 0 | CW174: 0 | CX174: 0 | CY174: 0 | CZ174: 0 | DA174: 0 | DB174: 0 | DC174: 0 | DD174: 0 | DE174: 0 | DF174: 0 | DG174: 0 | DL174: 0 | DM174: =EX174-GI174 -> 0 | DN174: 0 | DO174: 0 | DP174: 0 | DQ174: 0 | DR174: 0 | DS174: 0 | DT174: 0 | DU174: 0 | DV174: 0 | DW174: 0 | DX174: 0 | DY174: 0 | DZ174: 0 | EA174: 0 | EB174: 0 | EC174: =FN174-GY174 -> 0 | ED174: 0 | EE174: 0 | EF174: 0 | EG174: 0 | EH174: 0 | EI174: 0 | EJ174: 0 | EK174: 0 | EL174: 0 | EM174: 0 | EN174: 0 | EO174: 0 | EP174: 0 | EQ174: 0 | ER174: 0 | EW174: 0 | EX174: 0 | EY174: 0 | EZ174: 0 | FA174: 0 | FB174: 0 | FC174: 0 | FD174: 0 | FE174: 0 | FF174: 0 | FG174: 0 | FH174: 0 | FI174: 0 | FJ174: 0 | FK174: 0 | FL174: 0 | FM174: 0 | FN174: 0 | FO174: 0 | FP174: 0 | FQ174: 0 | FR174: 0 | FS174: 0 | FT174: 0 | FU174: 0 | FV174: 0 | FW174: 0 | FX174: 0 | FY174: 0 | FZ174: 0 | GA174: 0 | GB174: 0 | GC174: 0 | GH174: 0 | GI174: =MAX(0,MIN($BB174-SUM(GJ174:$GO174),EX174)) -> 0 | GJ174: =MAX(0,MIN($BB174-SUM(GK174:$GO174),EY174)) -> 0 | GK174: =MAX(0,MIN($BB174-SUM(GL174:$GO174),EZ174)) -> 0 | GL174: =MAX(0,MIN($BB174-SUM(GM174:$GO174),FA174)) -> 0 | GM174: =MAX(0,MIN($BB174-SUM(GN174:$GO174),FB174)) -> 0 | GN174: =MAX(0,MIN($BB174-SUM(GO174:$GO174),FC174)) -> 0 | GO174: 0 | GP174: 0 | GQ174: 0 | GR174: =MAX(0,MIN($BB174-SUM($GI174:$GO174,$GQ174:GQ174),FG174)) -> 0 | GS174: =MAX(0,MIN($BB174-SUM($GI174:$GO174,$GQ174:GR174),FH174)) -> 0 | GT174: =MAX(0,MIN($BB174-SUM($GI174:$GO174,$GQ174:GS174),FI174)) -> 0 | GU174: =MAX(0,MIN($BB174-SUM($GI174:$GO174,$GQ174:GT174),FJ174)) -> 0 | GV174: =MAX(0,MIN($BB174-SUM($GI174:$GO174,$GQ174:GU174),FK174)) -> 0 | GW174: =MAX(0,MIN($BB174-SUM($GI174:$GO174,$GQ174:GV174),FL174)) -> 0 | GX174: =MAX(0,MIN($BB174-SUM($GI174:$GO174,$GQ174:GW174),FM174)) -> 0 | GY174: =MAX(0,MIN($BB174-SUM($GI174:$GO174,$GQ174:GX174),FN174)) -> 0 | GZ174: =MAX(0,MIN($BB174-SUM($GI174:$GO174,$GQ174:GY174),FO174)) -> 0 | HA174: =MAX(0,MIN($BB174-SUM($GI174:$GO174,$GQ174:GZ174),FP174)) -> 0 | HB174: =MAX(0,MIN($BB174-SUM($GI174:$GO174,$GQ174:HA174),FQ174)) -> 0 | HC174: =MAX(0,MIN($BB174-SUM($GI174:$GO174,$GQ174:HB174),FR174)) -> 0 | HD174: =MAX(0,MIN($BB174-SUM($GI174:$GO174,$GQ174:HC174),FS174)) -> 0 | HE174: =MAX(0,MIN($BB174-SUM($GI174:$GO174,$GQ174:HD174),FT174)) -> 0 | HF174: =MAX(0,MIN($BB174-SUM($GI174:$GO174,$GQ174:HE174),FU174)) -> 0 | HG174: =MAX(0,MIN($BB174-SUM($GI174:$GO174,$GQ174:HF174),FV174)) -> 0 | HH174: =MAX(0,MIN($BB174-SUM($GI174:$GO174,$GQ174:HG174),FW174)) -> 0 | HI174: =MAX(0,MIN($BB174-SUM($GI174:$GO174,$GQ174:HH174),FX174)) -> 0 | HJ174: =MAX(0,MIN($BB174-SUM($GI174:$GO174,$GQ174:HI174),FY174)) -> 0 | HK174: =MAX(0,MIN($BB174-SUM($GI174:$GO174,$GQ174:HJ174),FZ174)) -> 0 | HL174: =MAX(0,MIN($BB174-SUM($GI174:$GO174,$GQ174:HK174),GA174)) -> 0 | HM174: =MAX(0,MIN($BB174-SUM($GI174:$GO174,$GQ174:HL174),GB174)) -> 0 | HN174: =MAX(0,MIN($BB174-SUM($GI174:$GO174,$GQ174:HM174),GC174)) -> 0 | HS174: 0 | HT174: 0 | HU174: 0 | HV174: 0 | HW174: 0 | HX174: 0 | HY174: 0 | HZ174: 0 | IA174: 0 | IB174: 0 | IC174: 0 | ID174: 0 | IE174: 0 | IF174: 0 | IG174: 0 | IH174: 0 | II174: 0 | IJ174: 0 | IK174: 0 | IL174: 0 | IM174: 0 | IN174: 0 | IO174: 0 | IP174: 0 | IQ174: 0 | IR174: 0 | IS174: 0 | IT174: 0 | IU174: 0 | IV174: 0 | IW174: 0 | IX174: 0 | IY174: 0 | JD174: 0 | JE174: 0 | JF174: 0 | JG174: 0 | JH174: 0 | JI174: 0 | JJ174: 0 | JK174: 0 | JL174: 0 | JM174: 0 | JN174: 0 | JO174: 0 | JP174: 0 | JQ174: 0 | JR174: 0 | JS174: 0 | JT174: 0 | JU174: 0 | JV174: 0 | JW174: 0 | JX174: 0 | JY174: 0 | JZ174: 0 | KA174: 0 | KB174: 0 | KC174: 0 | KD174: 0 | KE174: 0 | KF174: 0 | KG174: 0 | KH174: 0 | KI174: 0 | KJ174: 0
A175: 1 | B175: 1 | C175: =ImportedDataRCR!C222 -> 10 | D175: =ImportedDataRCR!D222 -> 0 | E175: =ImportedDataRCR!E222 -> N | F175: =ImportedDataRCR!F222 -> A - Abitativo | G175: =ImportedDataRCR!G222 -> 0 | H175: =ImportedDataRCR!H222 -> 0 | I175: =ImportedDataRCR!I222 -> Privata | J175: =ImportedDataRCR!F$168 -> 10 | K175: =ImportedDataRCR!J222 -> N | L175: =ImportedDataRCR!K222 -> 0 | M175: =ImportedDataRCR!L222 -> 0 | N175: =ImportedDataRCR!M222 -> 0 | O175: =ImportedDataRCR!N222 -> 0 | P175: =ImportedDataRCR!O222 -> N | Q175: N | R175: =ImportedDataRCR!P222 -> 2 | S175: =ImportedDataRCR!R222 -> N | T175: =ImportedDataRCR!S222 -> L0 | U175: =IF($U$163,BeniCulturali!H30,$H$59)*($S175="N") -> 0 | V175: 0.1 | W175: 0.1 | X175: 0 | Y175: 0 | Z175: 0 | AA175: Abitativa-L0 | AB175: 0 | AC175: =MAX(0,(X175)-INDEX(CostoParametrico!$E$3:$L$22,MATCH($AA175,CostoParametrico!$D$3:$D$22,0),1)-AD175-AE175)*OR($E$90<>"S",$F$90=0,$H$1<2)*OR($D$20="P",AND($D$20="R",$BO175="B"),$BO175="A") -> 0 | AD175: =MAX(0,(X175)-INDEX(CostoParametrico!$E$3:$L$22,MATCH($AA175,CostoParametrico!$D$3:$D$22,0),2)-AE175)*OR($D$20="P",AND($D$20="R",$BO175="B"),$BO175="A") -> 0 | AE175: =MAX(0,(X175)-INDEX(CostoParametrico!$E$3:$L$22,MATCH($AA175,CostoParametrico!$D$3:$D$22,0),3))*OR($D$20="P",AND($D$20="R",$BO175="B"),$BO175="A") -> 0 | AF175: 0 | AG175: =MAX(0,(X175+Y175)-INDEX(CostoParametrico!$E$3:$L$22,MATCH($AA175,CostoParametrico!$D$3:$D$22,0),1)-AC175-AD175-AE175-AH175-AI175)*OR($E$90<>"S",$F$90=0,$H$1<2)*OR($D$20="P",AND($D$20="R",$BO175="B"),$BO175="A") -> 0 | AH175: =MAX(0,(X175+Y175)-INDEX(CostoParametrico!$E$3:$L$22,MATCH($AA175,CostoParametrico!$D$3:$D$22,0),2)-AD175-AE175-AI175)*OR($D$20="P",AND($D$20="R",$BO175="B"),$BO175="A") -> 0 | AI175: =MAX(0,(X175+Y175)-INDEX(CostoParametrico!$E$3:$L$22,MATCH($AA175,CostoParametrico!$D$3:$D$22,0),3)-AE175)*OR($D$20="P",AND($D$20="R",$BO175="B"),$BO175="A") -> 0 | AJ175: =INDEX(CostoParametrico!$E$3:$L$22,MATCH($AA175,CostoParametrico!$D$3:$D$22,0),5) -> 400 | AK175: =INDEX(CostoParametrico!$E$3:$L$22,MATCH($AA175,CostoParametrico!$D$3:$D$22,0),6) -> 330 | AL175: =INDEX(CostoParametrico!$E$3:$L$22,MATCH($AA175,CostoParametrico!$D$3:$D$22,0),7) -> 300 | AM175: =INDEX(CostoParametrico!$E$3:$L$22,MATCH($AA175,CostoParametrico!$D$3:$D$22,0),8) -> 300 | AN175: 0 | AO175: 0 | AP175: 0 | AQ175: 0 | AR175: 0 | AS175: 0 | AT175: 0 | AU175: 1 | AV175: 0 | AW175: 0 | AX175: 0 | AY175: 1e-10 | AZ175: 0 | BA175: 0 | BB175: 0 | BC175: 0 | BD175: 0 | BE175: 0 | BF175: 0 | BG175: 0 | BH175: 0 | BI175: 0 | BJ175: 0 | BK175: 0 | BL175: 0 | BM175: 1.1 | BN175: N | BO175: A | BP175: 0 | BQ175: 0 | BR175: N | BS175: 1 | BT175: 0.1 | BU175: 0 | CA175: 0 | CB175: 0 | CC175: 0 | CD175: 0 | CE175: 0 | CF175: 0 | CG175: 0 | CH175: 0 | CI175: 0 | CJ175: 0 | CK175: 0 | CL175: 0 | CM175: 0 | CN175: 0 | CO175: 0 | CP175: 0 | CQ175: 0 | CR175: 0 | CS175: 0 | CT175: 0 | CU175: 0 | CV175: 0 | CW175: 0 | CX175: 0 | CY175: 0 | CZ175: 0 | DA175: 0 | DB175: 0 | DC175: 0 | DD175: 0 | DE175: 0 | DF175: 0 | DG175: 0 | DL175: 0 | DM175: 0 | DN175: 0 | DO175: 0 | DP175: 0 | DQ175: 0 | DR175: 0 | DS175: 0 | DT175: 0 | DU175: 0 | DV175: 0 | DW175: 0 | DX175: 0 | DY175: 0 | DZ175: 0 | EA175: 0 | EB175: 0 | EC175: 0 | ED175: 0 | EE175: 0 | EF175: 0 | EG175: 0 | EH175: 0 | EI175: 0 | EJ175: 0 | EK175: 0 | EL175: 0 | EM175: 0 | EN175: 0 | EO175: 0 | EP175: 0 | EQ175: 0 | ER175: 0 | EW175: 0 | EX175: 0 | EY175: 0 | EZ175: 0 | FA175: 0 | FB175: 0 | FC175: 0 | FD175: 0 | FE175: 0 | FF175: 0 | FG175: 0 | FH175: 0 | FI175: 0 | FJ175: 0 | FK175: 0 | FL175: 0 | FM175: 0 | FN175: 0 | FO175: 0 | FP175: 0 | FQ175: 0 | FR175: 0 | FS175: 0 | FT175: 0 | FU175: 0 | FV175: 0 | FW175: 0 | FX175: 0 | FY175: 0 | FZ175: 0 | GA175: 0 | GB175: 0 | GC175: 0 | GH175: 0 | GI175: =MAX(0,MIN($BB175-SUM(GJ175:$GO175),EX175)) -> 0 | GJ175: =MAX(0,MIN($BB175-SUM(GK175:$GO175),EY175)) -> 0 | GK175: =MAX(0,MIN($BB175-SUM(GL175:$GO175),EZ175)) -> 0 | GL175: =MAX(0,MIN($BB175-SUM(GM175:$GO175),FA175)) -> 0 | GM175: =MAX(0,MIN($BB175-SUM(GN175:$GO175),FB175)) -> 0 | GN175: =MAX(0,MIN($BB175-SUM(GO175:$GO175),FC175)) -> 0 | GO175: 0 | GP175: 0 | GQ175: 0 | GR175: =MAX(0,MIN($BB175-SUM($GI175:$GO175,$GQ175:GQ175),FG175)) -> 0 | GS175: =MAX(0,MIN($BB175-SUM($GI175:$GO175,$GQ175:GR175),FH175)) -> 0 | GT175: =MAX(0,MIN($BB175-SUM($GI175:$GO175,$GQ175:GS175),FI175)) -> 0 | GU175: =MAX(0,MIN($BB175-SUM($GI175:$GO175,$GQ175:GT175),FJ175)) -> 0 | GV175: =MAX(0,MIN($BB175-SUM($GI175:$GO175,$GQ175:GU175),FK175)) -> 0 | GW175: =MAX(0,MIN($BB175-SUM($GI175:$GO175,$GQ175:GV175),FL175)) -> 0 | GX175: =MAX(0,MIN($BB175-SUM($GI175:$GO175,$GQ175:GW175),FM175)) -> 0 | GY175: =MAX(0,MIN($BB175-SUM($GI175:$GO175,$GQ175:GX175),FN175)) -> 0 | GZ175: =MAX(0,MIN($BB175-SUM($GI175:$GO175,$GQ175:GY175),FO175)) -> 0 | HA175: =MAX(0,MIN($BB175-SUM($GI175:$GO175,$GQ175:GZ175),FP175)) -> 0 | HB175: =MAX(0,MIN($BB175-SUM($GI175:$GO175,$GQ175:HA175),FQ175)) -> 0 | HC175: =MAX(0,MIN($BB175-SUM($GI175:$GO175,$GQ175:HB175),FR175)) -> 0 | HD175: =MAX(0,MIN($BB175-SUM($GI175:$GO175,$GQ175:HC175),FS175)) -> 0 | HE175: =MAX(0,MIN($BB175-SUM($GI175:$GO175,$GQ175:HD175),FT175)) -> 0 | HF175: =MAX(0,MIN($BB175-SUM($GI175:$GO175,$GQ175:HE175),FU175)) -> 0 | HG175: =MAX(0,MIN($BB175-SUM($GI175:$GO175,$GQ175:HF175),FV175)) -> 0 | HH175: =MAX(0,MIN($BB175-SUM($GI175:$GO175,$GQ175:HG175),FW175)) -> 0 | HI175: =MAX(0,MIN($BB175-SUM($GI175:$GO175,$GQ175:HH175),FX175)) -> 0 | HJ175: =MAX(0,MIN($BB175-SUM($GI175:$GO175,$GQ175:HI175),FY175)) -> 0 | HK175: =MAX(0,MIN($BB175-SUM($GI175:$GO175,$GQ175:HJ175),FZ175)) -> 0 | HL175: =MAX(0,MIN($BB175-SUM($GI175:$GO175,$GQ175:HK175),GA175)) -> 0 | HM175: =MAX(0,MIN($BB175-SUM($GI175:$GO175,$GQ175:HL175),GB175)) -> 0 | HN175: =MAX(0,MIN($BB175-SUM($GI175:$GO175,$GQ175:HM175),GC175)) -> 0 | HS175: 0 | HT175: 0 | HU175: 0 | HV175: 0 | HW175: 0 | HX175: 0 | HY175: 0 | HZ175: 0 | IA175: 0 | IB175: 0 | IC175: 0 | ID175: 0 | IE175: 0 | IF175: 0 | IG175: 0 | IH175: 0 | II175: 0 | IJ175: 0 | IK175: 0 | IL175: 0 | IM175: 0 | IN175: 0 | IO175: 0 | IP175: 0 | IQ175: 0 | IR175: 0 | IS175: 0 | IT175: 0 | IU175: 0 | IV175: 0 | IW175: 0 | IX175: 0 | IY175: 0 | JD175: 0 | JE175: 0 | JF175: 0 | JG175: 0 | JH175: 0 | JI175: 0 | JJ175: 0 | JK175: 0 | JL175: 0 | JM175: 0 | JN175: 0 | JO175: 0 | JP175: 0 | JQ175: 0 | JR175: 0 | JS175: 0 | JT175: 0 | JU175: 0 | JV175: 0 | JW175: 0 | JX175: 0 | JY175: 0 | JZ175: 0 | KA175: 0 | KB175: 0 | KC175: 0 | KD175: 0 | KE175: 0 | KF175: 0 | KG175: 0 | KH175: 0 | KI175: 0 | KJ175: 0
A176: 1 | B176: 1 | C176: =ImportedDataRCR!C223 -> 11 | D176: =ImportedDataRCR!D223 -> 0 | E176: =ImportedDataRCR!E223 -> N | F176: =ImportedDataRCR!F223 -> A - Abitativo | G176: =ImportedDataRCR!G223 -> 0 | H176: =ImportedDataRCR!H223 -> 0 | I176: =ImportedDataRCR!I223 -> Privata | J176: =ImportedDataRCR!F$168 -> 10 | K176: =ImportedDataRCR!J223 -> N | L176: =ImportedDataRCR!K223 -> 0 | M176: =ImportedDataRCR!L223 -> 0 | N176: =ImportedDataRCR!M223 -> 0 | O176: =ImportedDataRCR!N223 -> 0 | P176: =ImportedDataRCR!O223 -> N | Q176: N | R176: =ImportedDataRCR!P223 -> 2 | S176: =ImportedDataRCR!R223 -> N | T176: =ImportedDataRCR!S223 -> L0 | U176: =IF($U$163,BeniCulturali!H31,$H$59)*($S176="N") -> 0 | V176: 0.1 | W176: 0.1 | X176: 0 | Y176: 0 | Z176: 0 | AA176: Abitativa-L0 | AB176: 0 | AC176: =MAX(0,(X176)-INDEX(CostoParametrico!$E$3:$L$22,MATCH($AA176,CostoParametrico!$D$3:$D$22,0),1)-AD176-AE176)*OR($E$90<>"S",$F$90=0,$H$1<2)*OR($D$20="P",AND($D$20="R",$BO176="B"),$BO176="A") -> 0 | AD176: =MAX(0,(X176)-INDEX(CostoParametrico!$E$3:$L$22,MATCH($AA176,CostoParametrico!$D$3:$D$22,0),2)-AE176)*OR($D$20="P",AND($D$20="R",$BO176="B"),$BO176="A") -> 0 | AE176: =MAX(0,(X176)-INDEX(CostoParametrico!$E$3:$L$22,MATCH($AA176,CostoParametrico!$D$3:$D$22,0),3))*OR($D$20="P",AND($D$20="R",$BO176="B"),$BO176="A") -> 0 | AF176: 0 | AG176: =MAX(0,(X176+Y176)-INDEX(CostoParametrico!$E$3:$L$22,MATCH($AA176,CostoParametrico!$D$3:$D$22,0),1)-AC176-AD176-AE176-AH176-AI176)*OR($E$90<>"S",$F$90=0,$H$1<2)*OR($D$20="P",AND($D$20="R",$BO176="B"),$BO176="A") -> 0 | AH176: =MAX(0,(X176+Y176)-INDEX(CostoParametrico!$E$3:$L$22,MATCH($AA176,CostoParametrico!$D$3:$D$22,0),2)-AD176-AE176-AI176)*OR($D$20="P",AND($D$20="R",$BO176="B"),$BO176="A") -> 0 | AI176: =MAX(0,(X176+Y176)-INDEX(CostoParametrico!$E$3:$L$22,MATCH($AA176,CostoParametrico!$D$3:$D$22,0),3)-AE176)*OR($D$20="P",AND($D$20="R",$BO176="B"),$BO176="A") -> 0 | AJ176: =INDEX(CostoParametrico!$E$3:$L$22,MATCH($AA176,CostoParametrico!$D$3:$D$22,0),5) -> 400 | AK176: =INDEX(CostoParametrico!$E$3:$L$22,MATCH($AA176,CostoParametrico!$D$3:$D$22,0),6) -> 330 | AL176: =INDEX(CostoParametrico!$E$3:$L$22,MATCH($AA176,CostoParametrico!$D$3:$D$22,0),7) -> 300 | AM176: =INDEX(CostoParametrico!$E$3:$L$22,MATCH($AA176,CostoParametrico!$D$3:$D$22,0),8) -> 300 | AN176: 0 | AO176: 0 | AP176: 0 | AQ176: 0 | AR176: 0 | AS176: 0 | AT176: 0 | AU176: 1 | AV176: 0 | AW176: 0 | AX176: 0 | AY176: 1e-10 | AZ176: 0 | BA176: 0 | BB176: 0 | BC176: 0 | BD176: 0 | BE176: 0 | BF176: 0 | BG176: 0 | BH176: 0 | BI176: 0 | BJ176: 0 | BK176: 0 | BL176: 0 | BM176: 1.1 | BN176: N | BO176: A | BP176: 0 | BQ176: 0 | BR176: N | BS176: 1 | BT176: 0.1 | BU176: 0 | CA176: 0 | CB176: 0 | CC176: 0 | CD176: 0 | CE176: 0 | CF176: 0 | CG176: 0 | CH176: 0 | CI176: 0 | CJ176: 0 | CK176: 0 | CL176: 0 | CM176: 0 | CN176: 0 | CO176: 0 | CP176: 0 | CQ176: 0 | CR176: 0 | CS176: 0 | CT176: 0 | CU176: 0 | CV176: 0 | CW176: 0 | CX176: 0 | CY176: =EJ176/INDIRECT($BZ$160&CY$160) -> 0 | CZ176: 0 | DA176: 0 | DB176: 0 | DC176: 0 | DD176: 0 | DE176: 0 | DF176: 0 | DG176: 0 | DL176: 0 | DM176: 0 | DN176: 0 | DO176: 0 | DP176: 0 | DQ176: 0 | DR176: 0 | DS176: 0 | DT176: 0 | DU176: 0 | DV176: 0 | DW176: 0 | DX176: 0 | DY176: 0 | DZ176: 0 | EA176: 0 | EB176: 0 | EC176: 0 | ED176: 0 | EE176: 0 | EF176: 0 | EG176: 0 | EH176: 0 | EI176: 0 | EJ176: 0 | EK176: 0 | EL176: 0 | EM176: 0 | EN176: 0 | EO176: 0 | EP176: 0 | EQ176: 0 | ER176: 0 | EW176: 0 | EX176: 0 | EY176: 0 | EZ176: 0 | FA176: 0 | FB176: 0 | FC176: 0 | FD176: 0 | FE176: 0 | FF176: 0 | FG176: 0 | FH176: 0 | FI176: 0 | FJ176: 0 | FK176: 0 | FL176: 0 | FM176: 0 | FN176: 0 | FO176: 0 | FP176: 0 | FQ176: 0 | FR176: 0 | FS176: 0 | FT176: 0 | FU176: =$Z176*INDIRECT($EV$161&IF($BS176=0,"P","Q")&(FU$160-$EV$162+5))+( IQ176-$Z176*INDIRECT($EV$161&"P"&(FU$160-$EV$162+5)) )*(1+$BS176*INDIRECT($EV$160&FU$160)/100) -> 0 | FV176: 0 | FW176: 0 | FX176: 0 | FY176: 0 | FZ176: 0 | GA176: 0 | GB176: 0 | GC176: 0 | GH176: 0 | GI176: =MAX(0,MIN($BB176-SUM(GJ176:$GO176),EX176)) -> 0 | GJ176: =MAX(0,MIN($BB176-SUM(GK176:$GO176),EY176)) -> 0 | GK176: =MAX(0,MIN($BB176-SUM(GL176:$GO176),EZ176)) -> 0 | GL176: =MAX(0,MIN($BB176-SUM(GM176:$GO176),FA176)) -> 0 | GM176: =MAX(0,MIN($BB176-SUM(GN176:$GO176),FB176)) -> 0 | GN176: =MAX(0,MIN($BB176-SUM(GO176:$GO176),FC176)) -> 0 | GO176: 0 | GP176: 0 | GQ176: 0 | GR176: =MAX(0,MIN($BB176-SUM($GI176:$GO176,$GQ176:GQ176),FG176)) -> 0 | GS176: =MAX(0,MIN($BB176-SUM($GI176:$GO176,$GQ176:GR176),FH176)) -> 0 | GT176: =MAX(0,MIN($BB176-SUM($GI176:$GO176,$GQ176:GS176),FI176)) -> 0 | GU176: =MAX(0,MIN($BB176-SUM($GI176:$GO176,$GQ176:GT176),FJ176)) -> 0 | GV176: =MAX(0,MIN($BB176-SUM($GI176:$GO176,$GQ176:GU176),FK176)) -> 0 | GW176: =MAX(0,MIN($BB176-SUM($GI176:$GO176,$GQ176:GV176),FL176)) -> 0 | GX176: =MAX(0,MIN($BB176-SUM($GI176:$GO176,$GQ176:GW176),FM176)) -> 0 | GY176: =MAX(0,MIN($BB176-SUM($GI176:$GO176,$GQ176:GX176),FN176)) -> 0 | GZ176: =MAX(0,MIN($BB176-SUM($GI176:$GO176,$GQ176:GY176),FO176)) -> 0 | HA176: =MAX(0,MIN($BB176-SUM($GI176:$GO176,$GQ176:GZ176),FP176)) -> 0 | HB176: =MAX(0,MIN($BB176-SUM($GI176:$GO176,$GQ176:HA176),FQ176)) -> 0 | HC176: =MAX(0,MIN($BB176-SUM($GI176:$GO176,$GQ176:HB176),FR176)) -> 0 | HD176: =MAX(0,MIN($BB176-SUM($GI176:$GO176,$GQ176:HC176),FS176)) -> 0 | HE176: =MAX(0,MIN($BB176-SUM($GI176:$GO176,$GQ176:HD176),FT176)) -> 0 | HF176: =MAX(0,MIN($BB176-SUM($GI176:$GO176,$GQ176:HE176),FU176)) -> 0 | HG176: =MAX(0,MIN($BB176-SUM($GI176:$GO176,$GQ176:HF176),FV176)) -> 0 | HH176: =MAX(0,MIN($BB176-SUM($GI176:$GO176,$GQ176:HG176),FW176)) -> 0 | HI176: =MAX(0,MIN($BB176-SUM($GI176:$GO176,$GQ176:HH176),FX176)) -> 0 | HJ176: =MAX(0,MIN($BB176-SUM($GI176:$GO176,$GQ176:HI176),FY176)) -> 0 | HK176: =MAX(0,MIN($BB176-SUM($GI176:$GO176,$GQ176:HJ176),FZ176)) -> 0 | HL176: =MAX(0,MIN($BB176-SUM($GI176:$GO176,$GQ176:HK176),GA176)) -> 0 | HM176: =MAX(0,MIN($BB176-SUM($GI176:$GO176,$GQ176:HL176),GB176)) -> 0 | HN176: =MAX(0,MIN($BB176-SUM($GI176:$GO176,$GQ176:HM176),GC176)) -> 0 | HS176: 0 | HT176: 0 | HU176: 0 | HV176: 0 | HW176: 0 | HX176: 0 | HY176: 0 | HZ176: 0 | IA176: 0 | IB176: 0 | IC176: 0 | ID176: 0 | IE176: 0 | IF176: 0 | IG176: 0 | IH176: 0 | II176: 0 | IJ176: 0 | IK176: 0 | IL176: 0 | IM176: 0 | IN176: 0 | IO176: 0 | IP176: 0 | IQ176: =MIN($BQ176,$A176*$AN176,$A176*$AR176)*INDIRECT($HR$160&IQ$160) -> 0 | IR176: 0 | IS176: 0 | IT176: 0 | IU176: 0 | IV176: 0 | IW176: 0 | IX176: 0 | IY176: 0 | JD176: 0 | JE176: 0 | JF176: 0 | JG176: 0 | JH176: 0 | JI176: 0 | JJ176: 0 | JK176: 0 | JL176: 0 | JM176: 0 | JN176: 0 | JO176: 0 | JP176: 0 | JQ176: 0 | JR176: 0 | JS176: 0 | JT176: 0 | JU176: 0 | JV176: 0 | JW176: 0 | JX176: 0 | JY176: 0 | JZ176: 0 | KA176: 0 | KB176: =HF176/INDIRECT($JC$160&KB$160) -> 0 | KC176: 0 | KD176: 0 | KE176: 0 | KF176: 0 | KG176: 0 | KH176: 0 | KI176: 0 | KJ176: 0
A177: 1 | B177: 1 | C177: =ImportedDataRCR!C224 -> 12 | D177: =ImportedDataRCR!D224 -> 0 | E177: =ImportedDataRCR!E224 -> N | F177: =ImportedDataRCR!F224 -> A - Abitativo | G177: =ImportedDataRCR!G224 -> 0 | H177: =ImportedDataRCR!H224 -> 0 | I177: =ImportedDataRCR!I224 -> Privata | J177: =ImportedDataRCR!F$168 -> 10 | K177: =ImportedDataRCR!J224 -> N | L177: =ImportedDataRCR!K224 -> 0 | M177: =ImportedDataRCR!L224 -> 0 | N177: =ImportedDataRCR!M224 -> 0 | O177: =ImportedDataRCR!N224 -> 0 | P177: =ImportedDataRCR!O224 -> N | Q177: N | R177: =ImportedDataRCR!P224 -> 2 | S177: =ImportedDataRCR!R224 -> N | T177: =ImportedDataRCR!S224 -> L0 | U177: =IF($U$163,BeniCulturali!H32,$H$59)*($S177="N") -> 0 | V177: 0.1 | W177: 0.1 | X177: 0 | Y177: 0 | Z177: 0 | AA177: Abitativa-L0 | AB177: 0 | AC177: =MAX(0,(X177)-INDEX(CostoParametrico!$E$3:$L$22,MATCH($AA177,CostoParametrico!$D$3:$D$22,0),1)-AD177-AE177)*OR($E$90<>"S",$F$90=0,$H$1<2)*OR($D$20="P",AND($D$20="R",$BO177="B"),$BO177="A") -> 0 | AD177: =MAX(0,(X177)-INDEX(CostoParametrico!$E$3:$L$22,MATCH($AA177,CostoParametrico!$D$3:$D$22,0),2)-AE177)*OR($D$20="P",AND($D$20="R",$BO177="B"),$BO177="A") -> 0 | AE177: =MAX(0,(X177)-INDEX(CostoParametrico!$E$3:$L$22,MATCH($AA177,CostoParametrico!$D$3:$D$22,0),3))*OR($D$20="P",AND($D$20="R",$BO177="B"),$BO177="A") -> 0 | AF177: 0 | AG177: =MAX(0,(X177+Y177)-INDEX(CostoParametrico!$E$3:$L$22,MATCH($AA177,CostoParametrico!$D$3:$D$22,0),1)-AC177-AD177-AE177-AH177-AI177)*OR($E$90<>"S",$F$90=0,$H$1<2)*OR($D$20="P",AND($D$20="R",$BO177="B"),$BO177="A") -> 0 | AH177: =MAX(0,(X177+Y177)-INDEX(CostoParametrico!$E$3:$L$22,MATCH($AA177,CostoParametrico!$D$3:$D$22,0),2)-AD177-AE177-AI177)*OR($D$20="P",AND($D$20="R",$BO177="B"),$BO177="A") -> 0 | AI177: =MAX(0,(X177+Y177)-INDEX(CostoParametrico!$E$3:$L$22,MATCH($AA177,CostoParametrico!$D$3:$D$22,0),3)-AE177)*OR($D$20="P",AND($D$20="R",$BO177="B"),$BO177="A") -> 0 | AJ177: =INDEX(CostoParametrico!$E$3:$L$22,MATCH($AA177,CostoParametrico!$D$3:$D$22,0),5) -> 400 | AK177: =INDEX(CostoParametrico!$E$3:$L$22,MATCH($AA177,CostoParametrico!$D$3:$D$22,0),6) -> 330 | AL177: =INDEX(CostoParametrico!$E$3:$L$22,MATCH($AA177,CostoParametrico!$D$3:$D$22,0),7) -> 300 | AM177: =INDEX(CostoParametrico!$E$3:$L$22,MATCH($AA177,CostoParametrico!$D$3:$D$22,0),8) -> 300 | AN177: 0 | AO177: 0 | AP177: 0 | AQ177: 0 | AR177: 0 | AS177: 0 | AT177: 0 | AU177: 1 | AV177: 0 | AW177: 0 | AX177: 0 | AY177: 1e-10 | AZ177: 0 | BA177: 0 | BB177: 0 | BC177: 0 | BD177: 0 | BE177: 0 | BF177: 0 | BG177: 0 | BH177: 0 | BI177: 0 | BJ177: 0 | BK177: 0 | BL177: 0 | BM177: 1.1 | BN177: N | BO177: A | BP177: 0 | BQ177: 0 | BR177: N | BS177: 1 | BT177: 0.1 | BU177: 0 | CA177: 0 | CB177: 0 | CC177: 0 | CD177: 0 | CE177: 0 | CF177: 0 | CG177: 0 | CH177: 0 | CI177: 0 | CJ177: =DU177/INDIRECT($BZ$160&CJ$160) -> 0 | CK177: 0 | CL177: 0 | CM177: 0 | CN177: 0 | CO177: 0 | CP177: 0 | CQ177: 0 | CR177: 0 | CS177: 0 | CT177: 0 | CU177: 0 | CV177: 0 | CW177: 0 | CX177: 0 | CY177: 0 | CZ177: 0 | DA177: 0 | DB177: 0 | DC177: 0 | DD177: 0 | DE177: 0 | DF177: 0 | DG177: 0 | DL177: 0 | DM177: 0 | DN177: 0 | DO177: 0 | DP177: 0 | DQ177: 0 | DR177: 0 | DS177: 0 | DT177: 0 | DU177: 0 | DV177: 0 | DW177: 0 | DX177: 0 | DY177: 0 | DZ177: 0 | EA177: 0 | EB177: 0 | EC177: 0 | ED177: 0 | EE177: 0 | EF177: 0 | EG177: 0 | EH177: 0 | EI177: 0 | EJ177: 0 | EK177: 0 | EL177: 0 | EM177: 0 | EN177: 0 | EO177: 0 | EP177: 0 | EQ177: 0 | ER177: 0 | EW177: 0 | EX177: 0 | EY177: 0 | EZ177: 0 | FA177: 0 | FB177: 0 | FC177: 0 | FD177: 0 | FE177: 0 | FF177: =$Z177*INDIRECT($EV$161&IF($BS177=0,"P","Q")&(FF$160-$EV$162+5))+( IB177-$Z177*INDIRECT($EV$161&"P"&(FF$160-$EV$162+5)) )*(1+$BS177*INDIRECT($EV$160&FF$160)/100) -> 0 | FG177: 0 | FH177: 0 | FI177: 0 | FJ177: 0 | FK177: 0 | FL177: 0 | FM177: 0 | FN177: 0 | FO177: 0 | FP177: 0 | FQ177: 0 | FR177: 0 | FS177: 0 | FT177: 0 | FU177: 0 | FV177: 0 | FW177: 0 | FX177: 0 | FY177: 0 | FZ177: 0 | GA177: 0 | GB177: 0 | GC177: 0 | GH177: 0 | GI177: =MAX(0,MIN($BB177-SUM(GJ177:$GO177),EX177)) -> 0 | GJ177: =MAX(0,MIN($BB177-SUM(GK177:$GO177),EY177)) -> 0 | GK177: =MAX(0,MIN($BB177-SUM(GL177:$GO177),EZ177)) -> 0 | GL177: =MAX(0,MIN($BB177-SUM(GM177:$GO177),FA177)) -> 0 | GM177: =MAX(0,MIN($BB177-SUM(GN177:$GO177),FB177)) -> 0 | GN177: =MAX(0,MIN($BB177-SUM(GO177:$GO177),FC177)) -> 0 | GO177: 0 | GP177: 0 | GQ177: 0 | GR177: =MAX(0,MIN($BB177-SUM($GI177:$GO177,$GQ177:GQ177),FG177)) -> 0 | GS177: =MAX(0,MIN($BB177-SUM($GI177:$GO177,$GQ177:GR177),FH177)) -> 0 | GT177: =MAX(0,MIN($BB177-SUM($GI177:$GO177,$GQ177:GS177),FI177)) -> 0 | GU177: =MAX(0,MIN($BB177-SUM($GI177:$GO177,$GQ177:GT177),FJ177)) -> 0 | GV177: =MAX(0,MIN($BB177-SUM($GI177:$GO177,$GQ177:GU177),FK177)) -> 0 | GW177: =MAX(0,MIN($BB177-SUM($GI177:$GO177,$GQ177:GV177),FL177)) -> 0 | GX177: =MAX(0,MIN($BB177-SUM($GI177:$GO177,$GQ177:GW177),FM177)) -> 0 | GY177: =MAX(0,MIN($BB177-SUM($GI177:$GO177,$GQ177:GX177),FN177)) -> 0 | GZ177: =MAX(0,MIN($BB177-SUM($GI177:$GO177,$GQ177:GY177),FO177)) -> 0 | HA177: =MAX(0,MIN($BB177-SUM($GI177:$GO177,$GQ177:GZ177),FP177)) -> 0 | HB177: =MAX(0,MIN($BB177-SUM($GI177:$GO177,$GQ177:HA177),FQ177)) -> 0 | HC177: =MAX(0,MIN($BB177-SUM($GI177:$GO177,$GQ177:HB177),FR177)) -> 0 | HD177: =MAX(0,MIN($BB177-SUM($GI177:$GO177,$GQ177:HC177),FS177)) -> 0 | HE177: =MAX(0,MIN($BB177-SUM($GI177:$GO177,$GQ177:HD177),FT177)) -> 0 | HF177: =MAX(0,MIN($BB177-SUM($GI177:$GO177,$GQ177:HE177),FU177)) -> 0 | HG177: =MAX(0,MIN($BB177-SUM($GI177:$GO177,$GQ177:HF177),FV177)) -> 0 | HH177: =MAX(0,MIN($BB177-SUM($GI177:$GO177,$GQ177:HG177),FW177)) -> 0 | HI177: =MAX(0,MIN($BB177-SUM($GI177:$GO177,$GQ177:HH177),FX177)) -> 0 | HJ177: =MAX(0,MIN($BB177-SUM($GI177:$GO177,$GQ177:HI177),FY177)) -> 0 | HK177: =MAX(0,MIN($BB177-SUM($GI177:$GO177,$GQ177:HJ177),FZ177)) -> 0 | HL177: =MAX(0,MIN($BB177-SUM($GI177:$GO177,$GQ177:HK177),GA177)) -> 0 | HM177: =MAX(0,MIN($BB177-SUM($GI177:$GO177,$GQ177:HL177),GB177)) -> 0 | HN177: =MAX(0,MIN($BB177-SUM($GI177:$GO177,$GQ177:HM177),GC177)) -> 0 | HS177: 0 | HT177: 0 | HU177: 0 | HV177: 0 | HW177: 0 | HX177: 0 | HY177: 0 | HZ177: 0 | IA177: 0 | IB177: =MIN($BQ177,$A177*$AN177,$A177*$AR177)*INDIRECT($HR$160&IB$160) -> 0 | IC177: 0 | ID177: 0 | IE177: 0 | IF177: 0 | IG177: 0 | IH177: 0 | II177: 0 | IJ177: 0 | IK177: 0 | IL177: 0 | IM177: 0 | IN177: 0 | IO177: 0 | IP177: 0 | IQ177: 0 | IR177: 0 | IS177: 0 | IT177: 0 | IU177: 0 | IV177: 0 | IW177: 0 | IX177: 0 | IY177: 0 | JD177: 0 | JE177: 0 | JF177: 0 | JG177: 0 | JH177: 0 | JI177: 0 | JJ177: 0 | JK177: 0 | JL177: 0 | JM177: =GQ177/INDIRECT($JC$160&JM$160) -> 0 | JN177: 0 | JO177: 0 | JP177: 0 | JQ177: 0 | JR177: 0 | JS177: 0 | JT177: 0 | JU177: 0 | JV177: 0 | JW177: 0 | JX177: 0 | JY177: 0 | JZ177: 0 | KA177: 0 | KB177: 0 | KC177: 0 | KD177: 0 | KE177: 0 | KF177: 0 | KG177: 0 | KH177: 0 | KI177: 0 | KJ177: 0
A178: 1 | B178: 1 | C178: =ImportedDataRCR!C225 -> 13 | D178: =ImportedDataRCR!D225 -> 0 | E178: =ImportedDataRCR!E225 -> N | F178: =ImportedDataRCR!F225 -> A - Abitativo | G178: =ImportedDataRCR!G225 -> 0 | H178: =ImportedDataRCR!H225 -> 0 | I178: =ImportedDataRCR!I225 -> Privata | J178: =ImportedDataRCR!F$168 -> 10 | K178: =ImportedDataRCR!J225 -> N | L178: =ImportedDataRCR!K225 -> 0 | M178: =ImportedDataRCR!L225 -> 0 | N178: =ImportedDataRCR!M225 -> 0 | O178: =ImportedDataRCR!N225 -> 0 | P178: =ImportedDataRCR!O225 -> N | Q178: N | R178: =ImportedDataRCR!P225 -> 2 | S178: =ImportedDataRCR!R225 -> N | T178: =ImportedDataRCR!S225 -> L0 | U178: =IF($U$163,BeniCulturali!H33,$H$59)*($S178="N") -> 0 | V178: 0.1 | W178: 0.1 | X178: 0 | Y178: 0 | Z178: 0 | AA178: Abitativa-L0 | AB178: 0 | AC178: =MAX(0,(X178)-INDEX(CostoParametrico!$E$3:$L$22,MATCH($AA178,CostoParametrico!$D$3:$D$22,0),1)-AD178-AE178)*OR($E$90<>"S",$F$90=0,$H$1<2)*OR($D$20="P",AND($D$20="R",$BO178="B"),$BO178="A") -> 0 | AD178: =MAX(0,(X178)-INDEX(CostoParametrico!$E$3:$L$22,MATCH($AA178,CostoParametrico!$D$3:$D$22,0),2)-AE178)*OR($D$20="P",AND($D$20="R",$BO178="B"),$BO178="A") -> 0 | AE178: =MAX(0,(X178)-INDEX(CostoParametrico!$E$3:$L$22,MATCH($AA178,CostoParametrico!$D$3:$D$22,0),3))*OR($D$20="P",AND($D$20="R",$BO178="B"),$BO178="A") -> 0 | AF178: 0 | AG178: =MAX(0,(X178+Y178)-INDEX(CostoParametrico!$E$3:$L$22,MATCH($AA178,CostoParametrico!$D$3:$D$22,0),1)-AC178-AD178-AE178-AH178-AI178)*OR($E$90<>"S",$F$90=0,$H$1<2)*OR($D$20="P",AND($D$20="R",$BO178="B"),$BO178="A") -> 0 | AH178: =MAX(0,(X178+Y178)-INDEX(CostoParametrico!$E$3:$L$22,MATCH($AA178,CostoParametrico!$D$3:$D$22,0),2)-AD178-AE178-AI178)*OR($D$20="P",AND($D$20="R",$BO178="B"),$BO178="A") -> 0 | AI178: =MAX(0,(X178+Y178)-INDEX(CostoParametrico!$E$3:$L$22,MATCH($AA178,CostoParametrico!$D$3:$D$22,0),3)-AE178)*OR($D$20="P",AND($D$20="R",$BO178="B"),$BO178="A") -> 0 | AJ178: =INDEX(CostoParametrico!$E$3:$L$22,MATCH($AA178,CostoParametrico!$D$3:$D$22,0),5) -> 400 | AK178: =INDEX(CostoParametrico!$E$3:$L$22,MATCH($AA178,CostoParametrico!$D$3:$D$22,0),6) -> 330 | AL178: =INDEX(CostoParametrico!$E$3:$L$22,MATCH($AA178,CostoParametrico!$D$3:$D$22,0),7) -> 300 | AM178: =INDEX(CostoParametrico!$E$3:$L$22,MATCH($AA178,CostoParametrico!$D$3:$D$22,0),8) -> 300 | AN178: 0 | AO178: 0 | AP178: 0 | AQ178: 0 | AR178: 0 | AS178: 0 | AT178: 0 | AU178: 1 | AV178: 0 | AW178: 0 | AX178: 0 | AY178: 1e-10 | AZ178: 0 | BA178: 0 | BB178: 0 | BC178: 0 | BD178: 0 | BE178: 0 | BF178: 0 | BG178: 0 | BH178: 0 | BI178: 0 | BJ178: 0 | BK178: 0 | BL178: 0 | BM178: 1.1 | BN178: N | BO178: A | BP178: 0 | BQ178: 0 | BR178: N | BS178: 1 | BT178: 0.1 | BU178: 0 | CA178: 0 | CB178: 0 | CC178: 0 | CD178: 0 | CE178: 0 | CF178: 0 | CG178: 0 | CH178: 0 | CI178: 0 | CJ178: 0 | CK178: 0 | CL178: 0 | CM178: 0 | CN178: 0 | CO178: 0 | CP178: 0 | CQ178: 0 | CR178: 0 | CS178: 0 | CT178: 0 | CU178: 0 | CV178: 0 | CW178: 0 | CX178: 0 | CY178: 0 | CZ178: 0 | DA178: 0 | DB178: 0 | DC178: 0 | DD178: 0 | DE178: 0 | DF178: 0 | DG178: 0 | DL178: 0 | DM178: 0 | DN178: 0 | DO178: 0 | DP178: 0 | DQ178: 0 | DR178: 0 | DS178: 0 | DT178: 0 | DU178: 0 | DV178: 0 | DW178: 0 | DX178: 0 | DY178: 0 | DZ178: 0 | EA178: 0 | EB178: 0 | EC178: 0 | ED178: 0 | EE178: 0 | EF178: 0 | EG178: 0 | EH178: 0 | EI178: 0 | EJ178: 0 | EK178: 0 | EL178: 0 | EM178: 0 | EN178: 0 | EO178: 0 | EP178: 0 | EQ178: 0 | ER178: 0 | EW178: 0 | EX178: 0 | EY178: 0 | EZ178: 0 | FA178: 0 | FB178: 0 | FC178: 0 | FD178: 0 | FE178: 0 | FF178: 0 | FG178: 0 | FH178: 0 | FI178: 0 | FJ178: 0 | FK178: 0 | FL178: 0 | FM178: 0 | FN178: 0 | FO178: 0 | FP178: 0 | FQ178: 0 | FR178: 0 | FS178: 0 | FT178: 0 | FU178: 0 | FV178: 0 | FW178: 0 | FX178: 0 | FY178: 0 | FZ178: 0 | GA178: 0 | GB178: 0 | GC178: 0 | GH178: 0 | GI178: =MAX(0,MIN($BB178-SUM(GJ178:$GO178),EX178)) -> 0 | GJ178: =MAX(0,MIN($BB178-SUM(GK178:$GO178),EY178)) -> 0 | GK178: =MAX(0,MIN($BB178-SUM(GL178:$GO178),EZ178)) -> 0 | GL178: =MAX(0,MIN($BB178-SUM(GM178:$GO178),FA178)) -> 0 | GM178: =MAX(0,MIN($BB178-SUM(GN178:$GO178),FB178)) -> 0 | GN178: =MAX(0,MIN($BB178-SUM(GO178:$GO178),FC178)) -> 0 | GO178: 0 | GP178: 0 | GQ178: 0 | GR178: =MAX(0,MIN($BB178-SUM($GI178:$GO178,$GQ178:GQ178),FG178)) -> 0 | GS178: =MAX(0,MIN($BB178-SUM($GI178:$GO178,$GQ178:GR178),FH178)) -> 0 | GT178: =MAX(0,MIN($BB178-SUM($GI178:$GO178,$GQ178:GS178),FI178)) -> 0 | GU178: =MAX(0,MIN($BB178-SUM($GI178:$GO178,$GQ178:GT178),FJ178)) -> 0 | GV178: =MAX(0,MIN($BB178-SUM($GI178:$GO178,$GQ178:GU178),FK178)) -> 0 | GW178: =MAX(0,MIN($BB178-SUM($GI178:$GO178,$GQ178:GV178),FL178)) -> 0 | GX178: =MAX(0,MIN($BB178-SUM($GI178:$GO178,$GQ178:GW178),FM178)) -> 0 | GY178: =MAX(0,MIN($BB178-SUM($GI178:$GO178,$GQ178:GX178),FN178)) -> 0 | GZ178: =MAX(0,MIN($BB178-SUM($GI178:$GO178,$GQ178:GY178),FO178)) -> 0 | HA178: =MAX(0,MIN($BB178-SUM($GI178:$GO178,$GQ178:GZ178),FP178)) -> 0 | HB178: =MAX(0,MIN($BB178-SUM($GI178:$GO178,$GQ178:HA178),FQ178)) -> 0 | HC178: =MAX(0,MIN($BB178-SUM($GI178:$GO178,$GQ178:HB178),FR178)) -> 0 | HD178: =MAX(0,MIN($BB178-SUM($GI178:$GO178,$GQ178:HC178),FS178)) -> 0 | HE178: =MAX(0,MIN($BB178-SUM($GI178:$GO178,$GQ178:HD178),FT178)) -> 0 | HF178: =MAX(0,MIN($BB178-SUM($GI178:$GO178,$GQ178:HE178),FU178)) -> 0 | HG178: =MAX(0,MIN($BB178-SUM($GI178:$GO178,$GQ178:HF178),FV178)) -> 0 | HH178: =MAX(0,MIN($BB178-SUM($GI178:$GO178,$GQ178:HG178),FW178)) -> 0 | HI178: =MAX(0,MIN($BB178-SUM($GI178:$GO178,$GQ178:HH178),FX178)) -> 0 | HJ178: =MAX(0,MIN($BB178-SUM($GI178:$GO178,$GQ178:HI178),FY178)) -> 0 | HK178: =MAX(0,MIN($BB178-SUM($GI178:$GO178,$GQ178:HJ178),FZ178)) -> 0 | HL178: =MAX(0,MIN($BB178-SUM($GI178:$GO178,$GQ178:HK178),GA178)) -> 0 | HM178: =MAX(0,MIN($BB178-SUM($GI178:$GO178,$GQ178:HL178),GB178)) -> 0 | HN178: =MAX(0,MIN($BB178-SUM($GI178:$GO178,$GQ178:HM178),GC178)) -> 0 | HS178: 0 | HT178: 0 | HU178: 0 | HV178: 0 | HW178: 0 | HX178: 0 | HY178: 0 | HZ178: 0 | IA178: 0 | IB178: 0 | IC178: 0 | ID178: 0 | IE178: 0 | IF178: 0 | IG178: 0 | IH178: 0 | II178: 0 | IJ178: 0 | IK178: 0 | IL178: 0 | IM178: 0 | IN178: 0 | IO178: 0 | IP178: 0 | IQ178: 0 | IR178: 0 | IS178: 0 | IT178: 0 | IU178: 0 | IV178: 0 | IW178: 0 | IX178: 0 | IY178: 0 | JD178: 0 | JE178: 0 | JF178: 0 | JG178: 0 | JH178: 0 | JI178: 0 | JJ178: 0 | JK178: 0 | JL178: 0 | JM178: 0 | JN178: 0 | JO178: 0 | JP178: 0 | JQ178: 0 | JR178: 0 | JS178: 0 | JT178: 0 | JU178: 0 | JV178: 0 | JW178: 0 | JX178: 0 | JY178: 0 | JZ178: 0 | KA178: 0 | KB178: 0 | KC178: 0 | KD178: 0 | KE178: 0 | KF178: 0 | KG178: 0 | KH178: 0 | KI178: 0 | KJ178: 0
A179: 1 | B179: 1 | C179: =ImportedDataRCR!C226 -> 14 | D179: =ImportedDataRCR!D226 -> 0 | E179: =ImportedDataRCR!E226 -> N | F179: =ImportedDataRCR!F226 -> A - Abitativo | G179: =ImportedDataRCR!G226 -> 0 | H179: =ImportedDataRCR!H226 -> 0 | I179: =ImportedDataRCR!I226 -> Privata | J179: =ImportedDataRCR!F$168 -> 10 | K179: =ImportedDataRCR!J226 -> N | L179: =ImportedDataRCR!K226 -> 0 | M179: =ImportedDataRCR!L226 -> 0 | N179: =ImportedDataRCR!M226 -> 0 | O179: =ImportedDataRCR!N226 -> 0 | P179: =ImportedDataRCR!O226 -> N | Q179: N | R179: =ImportedDataRCR!P226 -> 2 | S179: =ImportedDataRCR!R226 -> N | T179: =ImportedDataRCR!S226 -> L0 | U179: =IF($U$163,BeniCulturali!H34,$H$59)*($S179="N") -> 0 | V179: 0.1 | W179: 0.1 | X179: 0 | Y179: 0 | Z179: 0 | AA179: Abitativa-L0 | AB179: 0 | AC179: =MAX(0,(X179)-INDEX(CostoParametrico!$E$3:$L$22,MATCH($AA179,CostoParametrico!$D$3:$D$22,0),1)-AD179-AE179)*OR($E$90<>"S",$F$90=0,$H$1<2)*OR($D$20="P",AND($D$20="R",$BO179="B"),$BO179="A") -> 0 | AD179: =MAX(0,(X179)-INDEX(CostoParametrico!$E$3:$L$22,MATCH($AA179,CostoParametrico!$D$3:$D$22,0),2)-AE179)*OR($D$20="P",AND($D$20="R",$BO179="B"),$BO179="A") -> 0 | AE179: =MAX(0,(X179)-INDEX(CostoParametrico!$E$3:$L$22,MATCH($AA179,CostoParametrico!$D$3:$D$22,0),3))*OR($D$20="P",AND($D$20="R",$BO179="B"),$BO179="A") -> 0 | AF179: 0 | AG179: =MAX(0,(X179+Y179)-INDEX(CostoParametrico!$E$3:$L$22,MATCH($AA179,CostoParametrico!$D$3:$D$22,0),1)-AC179-AD179-AE179-AH179-AI179)*OR($E$90<>"S",$F$90=0,$H$1<2)*OR($D$20="P",AND($D$20="R",$BO179="B"),$BO179="A") -> 0 | AH179: =MAX(0,(X179+Y179)-INDEX(CostoParametrico!$E$3:$L$22,MATCH($AA179,CostoParametrico!$D$3:$D$22,0),2)-AD179-AE179-AI179)*OR($D$20="P",AND($D$20="R",$BO179="B"),$BO179="A") -> 0 | AI179: =MAX(0,(X179+Y179)-INDEX(CostoParametrico!$E$3:$L$22,MATCH($AA179,CostoParametrico!$D$3:$D$22,0),3)-AE179)*OR($D$20="P",AND($D$20="R",$BO179="B"),$BO179="A") -> 0 | AJ179: =INDEX(CostoParametrico!$E$3:$L$22,MATCH($AA179,CostoParametrico!$D$3:$D$22,0),5) -> 400 | AK179: =INDEX(CostoParametrico!$E$3:$L$22,MATCH($AA179,CostoParametrico!$D$3:$D$22,0),6) -> 330 | AL179: =INDEX(CostoParametrico!$E$3:$L$22,MATCH($AA179,CostoParametrico!$D$3:$D$22,0),7) -> 300 | AM179: =INDEX(CostoParametrico!$E$3:$L$22,MATCH($AA179,CostoParametrico!$D$3:$D$22,0),8) -> 300 | AN179: 0 | AO179: 0 | AP179: 0 | AQ179: 0 | AR179: 0 | AS179: 0 | AT179: 0 | AU179: 1 | AV179: 0 | AW179: 0 | AX179: 0 | AY179: 1e-10 | AZ179: 0 | BA179: 0 | BB179: 0 | BC179: 0 | BD179: 0 | BE179: 0 | BF179: 0 | BG179: 0 | BH179: 0 | BI179: 0 | BJ179: 0 | BK179: 0 | BL179: 0 | BM179: 1.1 | BN179: N | BO179: A | BP179: 0 | BQ179: 0 | BR179: N | BS179: 1 | BT179: 0.1 | BU179: 0 | CA179: 0 | CB179: 0 | CC179: 0 | CD179: 0 | CE179: 0 | CF179: 0 | CG179: 0 | CH179: 0 | CI179: 0 | CJ179: 0 | CK179: 0 | CL179: 0 | CM179: 0 | CN179: 0 | CO179: 0 | CP179: 0 | CQ179: 0 | CR179: 0 | CS179: 0 | CT179: 0 | CU179: 0 | CV179: 0 | CW179: 0 | CX179: 0 | CY179: 0 | CZ179: 0 | DA179: 0 | DB179: 0 | DC179: 0 | DD179: 0 | DE179: 0 | DF179: 0 | DG179: 0 | DL179: 0 | DM179: 0 | DN179: 0 | DO179: 0 | DP179: 0 | DQ179: 0 | DR179: 0 | DS179: 0 | DT179: 0 | DU179: 0 | DV179: 0 | DW179: 0 | DX179: 0 | DY179: 0 | DZ179: 0 | EA179: 0 | EB179: 0 | EC179: 0 | ED179: 0 | EE179: 0 | EF179: 0 | EG179: 0 | EH179: 0 | EI179: 0 | EJ179: 0 | EK179: 0 | EL179: 0 | EM179: 0 | EN179: 0 | EO179: 0 | EP179: 0 | EQ179: 0 | ER179: 0 | EW179: 0 | EX179: 0 | EY179: 0 | EZ179: 0 | FA179: 0 | FB179: 0 | FC179: 0 | FD179: 0 | FE179: 0 | FF179: 0 | FG179: 0 | FH179: 0 | FI179: 0 | FJ179: 0 | FK179: 0 | FL179: 0 | FM179: 0 | FN179: 0 | FO179: 0 | FP179: 0 | FQ179: 0 | FR179: 0 | FS179: 0 | FT179: 0 | FU179: 0 | FV179: 0 | FW179: 0 | FX179: 0 | FY179: 0 | FZ179: 0 | GA179: 0 | GB179: 0 | GC179: 0 | GH179: 0 | GI179: =MAX(0,MIN($BB179-SUM(GJ179:$GO179),EX179)) -> 0 | GJ179: =MAX(0,MIN($BB179-SUM(GK179:$GO179),EY179)) -> 0 | GK179: =MAX(0,MIN($BB179-SUM(GL179:$GO179),EZ179)) -> 0 | GL179: =MAX(0,MIN($BB179-SUM(GM179:$GO179),FA179)) -> 0 | GM179: =MAX(0,MIN($BB179-SUM(GN179:$GO179),FB179)) -> 0 | GN179: =MAX(0,MIN($BB179-SUM(GO179:$GO179),FC179)) -> 0 | GO179: 0 | GP179: 0 | GQ179: 0 | GR179: =MAX(0,MIN($BB179-SUM($GI179:$GO179,$GQ179:GQ179),FG179)) -> 0 | GS179: =MAX(0,MIN($BB179-SUM($GI179:$GO179,$GQ179:GR179),FH179)) -> 0 | GT179: =MAX(0,MIN($BB179-SUM($GI179:$GO179,$GQ179:GS179),FI179)) -> 0 | GU179: =MAX(0,MIN($BB179-SUM($GI179:$GO179,$GQ179:GT179),FJ179)) -> 0 | GV179: =MAX(0,MIN($BB179-SUM($GI179:$GO179,$GQ179:GU179),FK179)) -> 0 | GW179: =MAX(0,MIN($BB179-SUM($GI179:$GO179,$GQ179:GV179),FL179)) -> 0 | GX179: =MAX(0,MIN($BB179-SUM($GI179:$GO179,$GQ179:GW179),FM179)) -> 0 | GY179: =MAX(0,MIN($BB179-SUM($GI179:$GO179,$GQ179:GX179),FN179)) -> 0 | GZ179: =MAX(0,MIN($BB179-SUM($GI179:$GO179,$GQ179:GY179),FO179)) -> 0 | HA179: =MAX(0,MIN($BB179-SUM($GI179:$GO179,$GQ179:GZ179),FP179)) -> 0 | HB179: =MAX(0,MIN($BB179-SUM($GI179:$GO179,$GQ179:HA179),FQ179)) -> 0 | HC179: =MAX(0,MIN($BB179-SUM($GI179:$GO179,$GQ179:HB179),FR179)) -> 0 | HD179: =MAX(0,MIN($BB179-SUM($GI179:$GO179,$GQ179:HC179),FS179)) -> 0 | HE179: =MAX(0,MIN($BB179-SUM($GI179:$GO179,$GQ179:HD179),FT179)) -> 0 | HF179: =MAX(0,MIN($BB179-SUM($GI179:$GO179,$GQ179:HE179),FU179)) -> 0 | HG179: =MAX(0,MIN($BB179-SUM($GI179:$GO179,$GQ179:HF179),FV179)) -> 0 | HH179: =MAX(0,MIN($BB179-SUM($GI179:$GO179,$GQ179:HG179),FW179)) -> 0 | HI179: =MAX(0,MIN($BB179-SUM($GI179:$GO179,$GQ179:HH179),FX179)) -> 0 | HJ179: =MAX(0,MIN($BB179-SUM($GI179:$GO179,$GQ179:HI179),FY179)) -> 0 | HK179: =MAX(0,MIN($BB179-SUM($GI179:$GO179,$GQ179:HJ179),FZ179)) -> 0 | HL179: =MAX(0,MIN($BB179-SUM($GI179:$GO179,$GQ179:HK179),GA179)) -> 0 | HM179: =MAX(0,MIN($BB179-SUM($GI179:$GO179,$GQ179:HL179),GB179)) -> 0 | HN179: =MAX(0,MIN($BB179-SUM($GI179:$GO179,$GQ179:HM179),GC179)) -> 0 | HS179: 0 | HT179: 0 | HU179: 0 | HV179: 0 | HW179: 0 | HX179: 0 | HY179: 0 | HZ179: 0 | IA179: 0 | IB179: 0 | IC179: 0 | ID179: 0 | IE179: 0 | IF179: 0 | IG179: 0 | IH179: 0 | II179: 0 | IJ179: 0 | IK179: 0 | IL179: 0 | IM179: 0 | IN179: 0 | IO179: 0 | IP179: 0 | IQ179: 0 | IR179: 0 | IS179: 0 | IT179: 0 | IU179: 0 | IV179: 0 | IW179: 0 | IX179: 0 | IY179: 0 | JD179: 0 | JE179: 0 | JF179: 0 | JG179: 0 | JH179: 0 | JI179: 0 | JJ179: 0 | JK179: 0 | JL179: 0 | JM179: 0 | JN179: 0 | JO179: 0 | JP179: 0 | JQ179: 0 | JR179: 0 | JS179: 0 | JT179: 0 | JU179: 0 | JV179: 0 | JW179: 0 | JX179: 0 | JY179: 0 | JZ179: 0 | KA179: 0 | KB179: 0 | KC179: 0 | KD179: 0 | KE179: 0 | KF179: 0 | KG179: 0 | KH179: 0 | KI179: 0 | KJ179: 0
A180: 1 | B180: 1 | C180: =ImportedDataRCR!C227 -> 15 | D180: =ImportedDataRCR!D227 -> 0 | E180: =ImportedDataRCR!E227 -> N | F180: =ImportedDataRCR!F227 -> A - Abitativo | G180: =ImportedDataRCR!G227 -> 0 | H180: =ImportedDataRCR!H227 -> 0 | I180: =ImportedDataRCR!I227 -> Privata | J180: =ImportedDataRCR!F$168 -> 10 | K180: =ImportedDataRCR!J227 -> N | L180: =ImportedDataRCR!K227 -> 0 | M180: =ImportedDataRCR!L227 -> 0 | N180: =ImportedDataRCR!M227 -> 0 | O180: =ImportedDataRCR!N227 -> 0 | P180: =ImportedDataRCR!O227 -> N | Q180: N | R180: =ImportedDataRCR!P227 -> 2 | S180: =ImportedDataRCR!R227 -> N | T180: =ImportedDataRCR!S227 -> L0 | U180: =IF($U$163,BeniCulturali!H35,$H$59)*($S180="N") -> 0 | V180: 0.1 | W180: 0.1 | X180: 0 | Y180: 0 | Z180: 0 | AA180: Abitativa-L0 | AB180: 0 | AC180: =MAX(0,(X180)-INDEX(CostoParametrico!$E$3:$L$22,MATCH($AA180,CostoParametrico!$D$3:$D$22,0),1)-AD180-AE180)*OR($E$90<>"S",$F$90=0,$H$1<2)*OR($D$20="P",AND($D$20="R",$BO180="B"),$BO180="A") -> 0 | AD180: =MAX(0,(X180)-INDEX(CostoParametrico!$E$3:$L$22,MATCH($AA180,CostoParametrico!$D$3:$D$22,0),2)-AE180)*OR($D$20="P",AND($D$20="R",$BO180="B"),$BO180="A") -> 0 | AE180: =MAX(0,(X180)-INDEX(CostoParametrico!$E$3:$L$22,MATCH($AA180,CostoParametrico!$D$3:$D$22,0),3))*OR($D$20="P",AND($D$20="R",$BO180="B"),$BO180="A") -> 0 | AF180: 0 | AG180: =MAX(0,(X180+Y180)-INDEX(CostoParametrico!$E$3:$L$22,MATCH($AA180,CostoParametrico!$D$3:$D$22,0),1)-AC180-AD180-AE180-AH180-AI180)*OR($E$90<>"S",$F$90=0,$H$1<2)*OR($D$20="P",AND($D$20="R",$BO180="B"),$BO180="A") -> 0 | AH180: =MAX(0,(X180+Y180)-INDEX(CostoParametrico!$E$3:$L$22,MATCH($AA180,CostoParametrico!$D$3:$D$22,0),2)-AD180-AE180-AI180)*OR($D$20="P",AND($D$20="R",$BO180="B"),$BO180="A") -> 0 | AI180: =MAX(0,(X180+Y180)-INDEX(CostoParametrico!$E$3:$L$22,MATCH($AA180,CostoParametrico!$D$3:$D$22,0),3)-AE180)*OR($D$20="P",AND($D$20="R",$BO180="B"),$BO180="A") -> 0 | AJ180: =INDEX(CostoParametrico!$E$3:$L$22,MATCH($AA180,CostoParametrico!$D$3:$D$22,0),5) -> 400 | AK180: =INDEX(CostoParametrico!$E$3:$L$22,MATCH($AA180,CostoParametrico!$D$3:$D$22,0),6) -> 330 | AL180: =INDEX(CostoParametrico!$E$3:$L$22,MATCH($AA180,CostoParametrico!$D$3:$D$22,0),7) -> 300 | AM180: =INDEX(CostoParametrico!$E$3:$L$22,MATCH($AA180,CostoParametrico!$D$3:$D$22,0),8) -> 300 | AN180: 0 | AO180: 0 | AP180: 0 | AQ180: 0 | AR180: 0 | AS180: 0 | AT180: 0 | AU180: 1 | AV180: 0 | AW180: 0 | AX180: 0 | AY180: 1e-10 | AZ180: 0 | BA180: 0 | BB180: 0 | BC180: 0 | BD180: 0 | BE180: 0 | BF180: 0 | BG180: 0 | BH180: 0 | BI180: 0 | BJ180: 0 | BK180: 0 | BL180: 0 | BM180: 1.1 | BN180: N | BO180: A | BP180: 0 | BQ180: 0 | BR180: N | BS180: 1 | BT180: 0.1 | BU180: 0 | CA180: 0 | CB180: 0 | CC180: 0 | CD180: 0 | CE180: 0 | CF180: 0 | CG180: 0 | CH180: 0 | CI180: 0 | CJ180: 0 | CK180: 0 | CL180: 0 | CM180: 0 | CN180: 0 | CO180: 0 | CP180: 0 | CQ180: 0 | CR180: 0 | CS180: 0 | CT180: 0 | CU180: 0 | CV180: 0 | CW180: 0 | CX180: 0 | CY180: 0 | CZ180: 0 | DA180: 0 | DB180: 0 | DC180: 0 | DD180: 0 | DE180: 0 | DF180: 0 | DG180: 0 | DL180: 0 | DM180: 0 | DN180: 0 | DO180: 0 | DP180: 0 | DQ180: 0 | DR180: 0 | DS180: 0 | DT180: 0 | DU180: 0 | DV180: 0 | DW180: 0 | DX180: 0 | DY180: 0 | DZ180: 0 | EA180: 0 | EB180: 0 | EC180: 0 | ED180: 0 | EE180: 0 | EF180: 0 | EG180: 0 | EH180: 0 | EI180: 0 | EJ180: 0 | EK180: 0 | EL180: 0 | EM180: 0 | EN180: 0 | EO180: 0 | EP180: 0 | EQ180: 0 | ER180: 0 | EW180: 0 | EX180: 0 | EY180: 0 | EZ180: 0 | FA180: 0 | FB180: 0 | FC180: 0 | FD180: 0 | FE180: 0 | FF180: 0 | FG180: 0 | FH180: 0 | FI180: 0 | FJ180: 0 | FK180: 0 | FL180: 0 | FM180: 0 | FN180: 0 | FO180: 0 | FP180: 0 | FQ180: 0 | FR180: 0 | FS180: 0 | FT180: 0 | FU180: 0 | FV180: 0 | FW180: 0 | FX180: 0 | FY180: 0 | FZ180: 0 | GA180: 0 | GB180: 0 | GC180: 0 | GH180: 0 | GI180: =MAX(0,MIN($BB180-SUM(GJ180:$GO180),EX180)) -> 0 | GJ180: =MAX(0,MIN($BB180-SUM(GK180:$GO180),EY180)) -> 0 | GK180: =MAX(0,MIN($BB180-SUM(GL180:$GO180),EZ180)) -> 0 | GL180: =MAX(0,MIN($BB180-SUM(GM180:$GO180),FA180)) -> 0 | GM180: =MAX(0,MIN($BB180-SUM(GN180:$GO180),FB180)) -> 0 | GN180: =MAX(0,MIN($BB180-SUM(GO180:$GO180),FC180)) -> 0 | GO180: 0 | GP180: 0 | GQ180: 0 | GR180: =MAX(0,MIN($BB180-SUM($GI180:$GO180,$GQ180:GQ180),FG180)) -> 0 | GS180: =MAX(0,MIN($BB180-SUM($GI180:$GO180,$GQ180:GR180),FH180)) -> 0 | GT180: =MAX(0,MIN($BB180-SUM($GI180:$GO180,$GQ180:GS180),FI180)) -> 0 | GU180: =MAX(0,MIN($BB180-SUM($GI180:$GO180,$GQ180:GT180),FJ180)) -> 0 | GV180: =MAX(0,MIN($BB180-SUM($GI180:$GO180,$GQ180:GU180),FK180)) -> 0 | GW180: =MAX(0,MIN($BB180-SUM($GI180:$GO180,$GQ180:GV180),FL180)) -> 0 | GX180: =MAX(0,MIN($BB180-SUM($GI180:$GO180,$GQ180:GW180),FM180)) -> 0 | GY180: =MAX(0,MIN($BB180-SUM($GI180:$GO180,$GQ180:GX180),FN180)) -> 0 | GZ180: =MAX(0,MIN($BB180-SUM($GI180:$GO180,$GQ180:GY180),FO180)) -> 0 | HA180: =MAX(0,MIN($BB180-SUM($GI180:$GO180,$GQ180:GZ180),FP180)) -> 0 | HB180: =MAX(0,MIN($BB180-SUM($GI180:$GO180,$GQ180:HA180),FQ180)) -> 0 | HC180: =MAX(0,MIN($BB180-SUM($GI180:$GO180,$GQ180:HB180),FR180)) -> 0 | HD180: =MAX(0,MIN($BB180-SUM($GI180:$GO180,$GQ180:HC180),FS180)) -> 0 | HE180: =MAX(0,MIN($BB180-SUM($GI180:$GO180,$GQ180:HD180),FT180)) -> 0 | HF180: =MAX(0,MIN($BB180-SUM($GI180:$GO180,$GQ180:HE180),FU180)) -> 0 | HG180: =MAX(0,MIN($BB180-SUM($GI180:$GO180,$GQ180:HF180),FV180)) -> 0 | HH180: =MAX(0,MIN($BB180-SUM($GI180:$GO180,$GQ180:HG180),FW180)) -> 0 | HI180: =MAX(0,MIN($BB180-SUM($GI180:$GO180,$GQ180:HH180),FX180)) -> 0 | HJ180: =MAX(0,MIN($BB180-SUM($GI180:$GO180,$GQ180:HI180),FY180)) -> 0 | HK180: =MAX(0,MIN($BB180-SUM($GI180:$GO180,$GQ180:HJ180),FZ180)) -> 0 | HL180: =MAX(0,MIN($BB180-SUM($GI180:$GO180,$GQ180:HK180),GA180)) -> 0 | HM180: =MAX(0,MIN($BB180-SUM($GI180:$GO180,$GQ180:HL180),GB180)) -> 0 | HN180: =MAX(0,MIN($BB180-SUM($GI180:$GO180,$GQ180:HM180),GC180)) -> 0 | HS180: 0 | HT180: 0 | HU180: 0 | HV180: 0 | HW180: 0 | HX180: 0 | HY180: 0 | HZ180: 0 | IA180: 0 | IB180: 0 | IC180: 0 | ID180: 0 | IE180: 0 | IF180: 0 | IG180: 0 | IH180: 0 | II180: 0 | IJ180: 0 | IK180: 0 | IL180: 0 | IM180: 0 | IN180: 0 | IO180: 0 | IP180: 0 | IQ180: 0 | IR180: 0 | IS180: 0 | IT180: 0 | IU180: 0 | IV180: 0 | IW180: 0 | IX180: 0 | IY180: 0 | JD180: 0 | JE180: 0 | JF180: 0 | JG180: 0 | JH180: 0 | JI180: 0 | JJ180: 0 | JK180: 0 | JL180: 0 | JM180: 0 | JN180: 0 | JO180: 0 | JP180: 0 | JQ180: 0 | JR180: 0 | JS180: 0 | JT180: 0 | JU180: 0 | JV180: 0 | JW180: 0 | JX180: 0 | JY180: 0 | JZ180: 0 | KA180: 0 | KB180: 0 | KC180: 0 | KD180: 0 | KE180: 0 | KF180: 0 | KG180: 0 | KH180: 0 | KI180: 0 | KJ180: 0
A181: 1 | B181: 1 | C181: =ImportedDataRCR!C228 -> 16 | D181: =ImportedDataRCR!D228 -> 0 | E181: =ImportedDataRCR!E228 -> N | F181: =ImportedDataRCR!F228 -> A - Abitativo | G181: =ImportedDataRCR!G228 -> 0 | H181: =ImportedDataRCR!H228 -> 0 | I181: =ImportedDataRCR!I228 -> Privata | J181: =ImportedDataRCR!F$168 -> 10 | K181: =ImportedDataRCR!J228 -> N | L181: =ImportedDataRCR!K228 -> 0 | M181: =ImportedDataRCR!L228 -> 0 | N181: =ImportedDataRCR!M228 -> 0 | O181: =ImportedDataRCR!N228 -> 0 | P181: =ImportedDataRCR!O228 -> N | Q181: N | R181: =ImportedDataRCR!P228 -> 2 | S181: =ImportedDataRCR!R228 -> N | T181: =ImportedDataRCR!S228 -> L0 | U181: =IF($U$163,BeniCulturali!H36,$H$59)*($S181="N") -> 0 | V181: 0.1 | W181: 0.1 | X181: 0 | Y181: 0 | Z181: 0 | AA181: Abitativa-L0 | AB181: 0 | AC181: =MAX(0,(X181)-INDEX(CostoParametrico!$E$3:$L$22,MATCH($AA181,CostoParametrico!$D$3:$D$22,0),1)-AD181-AE181)*OR($E$90<>"S",$F$90=0,$H$1<2)*OR($D$20="P",AND($D$20="R",$BO181="B"),$BO181="A") -> 0 | AD181: =MAX(0,(X181)-INDEX(CostoParametrico!$E$3:$L$22,MATCH($AA181,CostoParametrico!$D$3:$D$22,0),2)-AE181)*OR($D$20="P",AND($D$20="R",$BO181="B"),$BO181="A") -> 0 | AE181: =MAX(0,(X181)-INDEX(CostoParametrico!$E$3:$L$22,MATCH($AA181,CostoParametrico!$D$3:$D$22,0),3))*OR($D$20="P",AND($D$20="R",$BO181="B"),$BO181="A") -> 0 | AF181: 0 | AG181: =MAX(0,(X181+Y181)-INDEX(CostoParametrico!$E$3:$L$22,MATCH($AA181,CostoParametrico!$D$3:$D$22,0),1)-AC181-AD181-AE181-AH181-AI181)*OR($E$90<>"S",$F$90=0,$H$1<2)*OR($D$20="P",AND($D$20="R",$BO181="B"),$BO181="A") -> 0 | AH181: =MAX(0,(X181+Y181)-INDEX(CostoParametrico!$E$3:$L$22,MATCH($AA181,CostoParametrico!$D$3:$D$22,0),2)-AD181-AE181-AI181)*OR($D$20="P",AND($D$20="R",$BO181="B"),$BO181="A") -> 0 | AI181: =MAX(0,(X181+Y181)-INDEX(CostoParametrico!$E$3:$L$22,MATCH($AA181,CostoParametrico!$D$3:$D$22,0),3)-AE181)*OR($D$20="P",AND($D$20="R",$BO181="B"),$BO181="A") -> 0 | AJ181: =INDEX(CostoParametrico!$E$3:$L$22,MATCH($AA181,CostoParametrico!$D$3:$D$22,0),5) -> 400 | AK181: =INDEX(CostoParametrico!$E$3:$L$22,MATCH($AA181,CostoParametrico!$D$3:$D$22,0),6) -> 330 | AL181: =INDEX(CostoParametrico!$E$3:$L$22,MATCH($AA181,CostoParametrico!$D$3:$D$22,0),7) -> 300 | AM181: =INDEX(CostoParametrico!$E$3:$L$22,MATCH($AA181,CostoParametrico!$D$3:$D$22,0),8) -> 300 | AN181: 0 | AO181: 0 | AP181: 0 | AQ181: 0 | AR181: 0 | AS181: 0 | AT181: 0 | AU181: 1 | AV181: 0 | AW181: 0 | AX181: 0 | AY181: 1e-10 | AZ181: 0 | BA181: 0 | BB181: 0 | BC181: 0 | BD181: 0 | BE181: 0 | BF181: 0 | BG181: 0 | BH181: 0 | BI181: 0 | BJ181: 0 | BK181: 0 | BL181: 0 | BM181: 1.1 | BN181: N | BO181: A | BP181: 0 | BQ181: 0 | BR181: N | BS181: 1 | BT181: 0.1 | BU181: 0 | CA181: 0 | CB181: 0 | CC181: 0 | CD181: 0 | CE181: 0 | CF181: 0 | CG181: 0 | CH181: 0 | CI181: 0 | CJ181: 0 | CK181: 0 | CL181: 0 | CM181: 0 | CN181: 0 | CO181: 0 | CP181: 0 | CQ181: 0 | CR181: 0 | CS181: 0 | CT181: 0 | CU181: 0 | CV181: 0 | CW181: 0 | CX181: 0 | CY181: 0 | CZ181: 0 | DA181: 0 | DB181: 0 | DC181: 0 | DD181: 0 | DE181: 0 | DF181: 0 | DG181: 0 | DL181: 0 | DM181: 0 | DN181: 0 | DO181: 0 | DP181: 0 | DQ181: 0 | DR181: 0 | DS181: 0 | DT181: 0 | DU181: 0 | DV181: 0 | DW181: 0 | DX181: 0 | DY181: 0 | DZ181: 0 | EA181: 0 | EB181: 0 | EC181: 0 | ED181: 0 | EE181: 0 | EF181: 0 | EG181: 0 | EH181: 0 | EI181: 0 | EJ181: 0 | EK181: 0 | EL181: 0 | EM181: 0 | EN181: 0 | EO181: 0 | EP181: 0 | EQ181: 0 | ER181: 0 | EW181: 0 | EX181: 0 | EY181: 0 | EZ181: 0 | FA181: 0 | FB181: 0 | FC181: 0 | FD181: 0 | FE181: 0 | FF181: 0 | FG181: 0 | FH181: 0 | FI181: 0 | FJ181: 0 | FK181: 0 | FL181: 0 | FM181: 0 | FN181: 0 | FO181: 0 | FP181: 0 | FQ181: 0 | FR181: 0 | FS181: 0 | FT181: 0 | FU181: 0 | FV181: 0 | FW181: 0 | FX181: 0 | FY181: 0 | FZ181: 0 | GA181: 0 | GB181: 0 | GC181: 0 | GH181: 0 | GI181: =MAX(0,MIN($BB181-SUM(GJ181:$GO181),EX181)) -> 0 | GJ181: =MAX(0,MIN($BB181-SUM(GK181:$GO181),EY181)) -> 0 | GK181: =MAX(0,MIN($BB181-SUM(GL181:$GO181),EZ181)) -> 0 | GL181: =MAX(0,MIN($BB181-SUM(GM181:$GO181),FA181)) -> 0 | GM181: =MAX(0,MIN($BB181-SUM(GN181:$GO181),FB181)) -> 0 | GN181: =MAX(0,MIN($BB181-SUM(GO181:$GO181),FC181)) -> 0 | GO181: 0 | GP181: 0 | GQ181: 0 | GR181: =MAX(0,MIN($BB181-SUM($GI181:$GO181,$GQ181:GQ181),FG181)) -> 0 | GS181: =MAX(0,MIN($BB181-SUM($GI181:$GO181,$GQ181:GR181),FH181)) -> 0 | GT181: =MAX(0,MIN($BB181-SUM($GI181:$GO181,$GQ181:GS181),FI181)) -> 0 | GU181: =MAX(0,MIN($BB181-SUM($GI181:$GO181,$GQ181:GT181),FJ181)) -> 0 | GV181: =MAX(0,MIN($BB181-SUM($GI181:$GO181,$GQ181:GU181),FK181)) -> 0 | GW181: =MAX(0,MIN($BB181-SUM($GI181:$GO181,$GQ181:GV181),FL181)) -> 0 | GX181: =MAX(0,MIN($BB181-SUM($GI181:$GO181,$GQ181:GW181),FM181)) -> 0 | GY181: =MAX(0,MIN($BB181-SUM($GI181:$GO181,$GQ181:GX181),FN181)) -> 0 | GZ181: =MAX(0,MIN($BB181-SUM($GI181:$GO181,$GQ181:GY181),FO181)) -> 0 | HA181: =MAX(0,MIN($BB181-SUM($GI181:$GO181,$GQ181:GZ181),FP181)) -> 0 | HB181: =MAX(0,MIN($BB181-SUM($GI181:$GO181,$GQ181:HA181),FQ181)) -> 0 | HC181: =MAX(0,MIN($BB181-SUM($GI181:$GO181,$GQ181:HB181),FR181)) -> 0 | HD181: =MAX(0,MIN($BB181-SUM($GI181:$GO181,$GQ181:HC181),FS181)) -> 0 | HE181: =MAX(0,MIN($BB181-SUM($GI181:$GO181,$GQ181:HD181),FT181)) -> 0 | HF181: =MAX(0,MIN($BB181-SUM($GI181:$GO181,$GQ181:HE181),FU181)) -> 0 | HG181: =MAX(0,MIN($BB181-SUM($GI181:$GO181,$GQ181:HF181),FV181)) -> 0 | HH181: =MAX(0,MIN($BB181-SUM($GI181:$GO181,$GQ181:HG181),FW181)) -> 0 | HI181: =MAX(0,MIN($BB181-SUM($GI181:$GO181,$GQ181:HH181),FX181)) -> 0 | HJ181: =MAX(0,MIN($BB181-SUM($GI181:$GO181,$GQ181:HI181),FY181)) -> 0 | HK181: =MAX(0,MIN($BB181-SUM($GI181:$GO181,$GQ181:HJ181),FZ181)) -> 0 | HL181: =MAX(0,MIN($BB181-SUM($GI181:$GO181,$GQ181:HK181),GA181)) -> 0 | HM181: =MAX(0,MIN($BB181-SUM($GI181:$GO181,$GQ181:HL181),GB181)) -> 0 | HN181: =MAX(0,MIN($BB181-SUM($GI181:$GO181,$GQ181:HM181),GC181)) -> 0 | HS181: 0 | HT181: 0 | HU181: 0 | HV181: 0 | HW181: 0 | HX181: 0 | HY181: 0 | HZ181: 0 | IA181: 0 | IB181: 0 | IC181: 0 | ID181: 0 | IE181: 0 | IF181: 0 | IG181: 0 | IH181: 0 | II181: 0 | IJ181: 0 | IK181: 0 | IL181: 0 | IM181: 0 | IN181: 0 | IO181: 0 | IP181: 0 | IQ181: 0 | IR181: 0 | IS181: 0 | IT181: 0 | IU181: 0 | IV181: 0 | IW181: 0 | IX181: 0 | IY181: 0 | JD181: 0 | JE181: 0 | JF181: 0 | JG181: 0 | JH181: 0 | JI181: 0 | JJ181: 0 | JK181: 0 | JL181: 0 | JM181: 0 | JN181: 0 | JO181: 0 | JP181: 0 | JQ181: 0 | JR181: 0 | JS181: 0 | JT181: 0 | JU181: 0 | JV181: 0 | JW181: 0 | JX181: 0 | JY181: 0 | JZ181: 0 | KA181: 0 | KB181: 0 | KC181: 0 | KD181: 0 | KE181: 0 | KF181: 0 | KG181: 0 | KH181: 0 | KI181: 0 | KJ181: 0
A182: 1 | B182: 1 | C182: =ImportedDataRCR!C229 -> 17 | D182: =ImportedDataRCR!D229 -> 0 | E182: =ImportedDataRCR!E229 -> N | F182: =ImportedDataRCR!F229 -> A - Abitativo | G182: =ImportedDataRCR!G229 -> 0 | H182: =ImportedDataRCR!H229 -> 0 | I182: =ImportedDataRCR!I229 -> Privata | J182: =ImportedDataRCR!F$168 -> 10 | K182: =ImportedDataRCR!J229 -> N | L182: =ImportedDataRCR!K229 -> 0 | M182: =ImportedDataRCR!L229 -> 0 | N182: =ImportedDataRCR!M229 -> 0 | O182: =ImportedDataRCR!N229 -> 0 | P182: =ImportedDataRCR!O229 -> N | Q182: N | R182: =ImportedDataRCR!P229 -> 2 | S182: =ImportedDataRCR!R229 -> N | T182: =ImportedDataRCR!S229 -> L0 | U182: =IF($U$163,BeniCulturali!H37,$H$59)*($S182="N") -> 0 | V182: 0.1 | W182: 0.1 | X182: 0 | Y182: 0 | Z182: 0 | AA182: Abitativa-L0 | AB182: 0 | AC182: =MAX(0,(X182)-INDEX(CostoParametrico!$E$3:$L$22,MATCH($AA182,CostoParametrico!$D$3:$D$22,0),1)-AD182-AE182)*OR($E$90<>"S",$F$90=0,$H$1<2)*OR($D$20="P",AND($D$20="R",$BO182="B"),$BO182="A") -> 0 | AD182: =MAX(0,(X182)-INDEX(CostoParametrico!$E$3:$L$22,MATCH($AA182,CostoParametrico!$D$3:$D$22,0),2)-AE182)*OR($D$20="P",AND($D$20="R",$BO182="B"),$BO182="A") -> 0 | AE182: =MAX(0,(X182)-INDEX(CostoParametrico!$E$3:$L$22,MATCH($AA182,CostoParametrico!$D$3:$D$22,0),3))*OR($D$20="P",AND($D$20="R",$BO182="B"),$BO182="A") -> 0 | AF182: 0 | AG182: =MAX(0,(X182+Y182)-INDEX(CostoParametrico!$E$3:$L$22,MATCH($AA182,CostoParametrico!$D$3:$D$22,0),1)-AC182-AD182-AE182-AH182-AI182)*OR($E$90<>"S",$F$90=0,$H$1<2)*OR($D$20="P",AND($D$20="R",$BO182="B"),$BO182="A") -> 0 | AH182: =MAX(0,(X182+Y182)-INDEX(CostoParametrico!$E$3:$L$22,MATCH($AA182,CostoParametrico!$D$3:$D$22,0),2)-AD182-AE182-AI182)*OR($D$20="P",AND($D$20="R",$BO182="B"),$BO182="A") -> 0 | AI182: =MAX(0,(X182+Y182)-INDEX(CostoParametrico!$E$3:$L$22,MATCH($AA182,CostoParametrico!$D$3:$D$22,0),3)-AE182)*OR($D$20="P",AND($D$20="R",$BO182="B"),$BO182="A") -> 0 | AJ182: =INDEX(CostoParametrico!$E$3:$L$22,MATCH($AA182,CostoParametrico!$D$3:$D$22,0),5) -> 400 | AK182: =INDEX(CostoParametrico!$E$3:$L$22,MATCH($AA182,CostoParametrico!$D$3:$D$22,0),6) -> 330 | AL182: =INDEX(CostoParametrico!$E$3:$L$22,MATCH($AA182,CostoParametrico!$D$3:$D$22,0),7) -> 300 | AM182: =INDEX(CostoParametrico!$E$3:$L$22,MATCH($AA182,CostoParametrico!$D$3:$D$22,0),8) -> 300 | AN182: 0 | AO182: 0 | AP182: 0 | AQ182: 0 | AR182: 0 | AS182: 0 | AT182: 0 | AU182: 1 | AV182: 0 | AW182: 0 | AX182: 0 | AY182: 1e-10 | AZ182: 0 | BA182: 0 | BB182: 0 | BC182: 0 | BD182: 0 | BE182: 0 | BF182: 0 | BG182: 0 | BH182: 0 | BI182: 0 | BJ182: 0 | BK182: 0 | BL182: 0 | BM182: 1.1 | BN182: N | BO182: A | BP182: 0 | BQ182: 0 | BR182: N | BS182: 1 | BT182: 0.1 | BU182: 0 | CA182: 0 | CB182: 0 | CC182: 0 | CD182: 0 | CE182: 0 | CF182: 0 | CG182: 0 | CH182: 0 | CI182: 0 | CJ182: 0 | CK182: 0 | CL182: 0 | CM182: 0 | CN182: 0 | CO182: 0 | CP182: 0 | CQ182: 0 | CR182: 0 | CS182: 0 | CT182: 0 | CU182: 0 | CV182: 0 | CW182: 0 | CX182: 0 | CY182: 0 | CZ182: 0 | DA182: 0 | DB182: 0 | DC182: 0 | DD182: 0 | DE182: 0 | DF182: 0 | DG182: 0 | DL182: 0 | DM182: 0 | DN182: 0 | DO182: 0 | DP182: 0 | DQ182: 0 | DR182: 0 | DS182: 0 | DT182: 0 | DU182: 0 | DV182: 0 | DW182: 0 | DX182: 0 | DY182: 0 | DZ182: 0 | EA182: 0 | EB182: 0 | EC182: 0 | ED182: 0 | EE182: 0 | EF182: 0 | EG182: 0 | EH182: 0 | EI182: 0 | EJ182: 0 | EK182: 0 | EL182: 0 | EM182: 0 | EN182: 0 | EO182: 0 | EP182: 0 | EQ182: 0 | ER182: 0 | EW182: 0 | EX182: 0 | EY182: 0 | EZ182: 0 | FA182: 0 | FB182: 0 | FC182: 0 | FD182: 0 | FE182: 0 | FF182: 0 | FG182: 0 | FH182: 0 | FI182: 0 | FJ182: 0 | FK182: 0 | FL182: 0 | FM182: 0 | FN182: 0 | FO182: 0 | FP182: 0 | FQ182: 0 | FR182: 0 | FS182: 0 | FT182: 0 | FU182: 0 | FV182: 0 | FW182: 0 | FX182: 0 | FY182: 0 | FZ182: 0 | GA182: 0 | GB182: 0 | GC182: 0 | GH182: 0 | GI182: =MAX(0,MIN($BB182-SUM(GJ182:$GO182),EX182)) -> 0 | GJ182: =MAX(0,MIN($BB182-SUM(GK182:$GO182),EY182)) -> 0 | GK182: =MAX(0,MIN($BB182-SUM(GL182:$GO182),EZ182)) -> 0 | GL182: =MAX(0,MIN($BB182-SUM(GM182:$GO182),FA182)) -> 0 | GM182: =MAX(0,MIN($BB182-SUM(GN182:$GO182),FB182)) -> 0 | GN182: =MAX(0,MIN($BB182-SUM(GO182:$GO182),FC182)) -> 0 | GO182: 0 | GP182: 0 | GQ182: 0 | GR182: =MAX(0,MIN($BB182-SUM($GI182:$GO182,$GQ182:GQ182),FG182)) -> 0 | GS182: =MAX(0,MIN($BB182-SUM($GI182:$GO182,$GQ182:GR182),FH182)) -> 0 | GT182: =MAX(0,MIN($BB182-SUM($GI182:$GO182,$GQ182:GS182),FI182)) -> 0 | GU182: =MAX(0,MIN($BB182-SUM($GI182:$GO182,$GQ182:GT182),FJ182)) -> 0 | GV182: =MAX(0,MIN($BB182-SUM($GI182:$GO182,$GQ182:GU182),FK182)) -> 0 | GW182: =MAX(0,MIN($BB182-SUM($GI182:$GO182,$GQ182:GV182),FL182)) -> 0 | GX182: =MAX(0,MIN($BB182-SUM($GI182:$GO182,$GQ182:GW182),FM182)) -> 0 | GY182: =MAX(0,MIN($BB182-SUM($GI182:$GO182,$GQ182:GX182),FN182)) -> 0 | GZ182: =MAX(0,MIN($BB182-SUM($GI182:$GO182,$GQ182:GY182),FO182)) -> 0 | HA182: =MAX(0,MIN($BB182-SUM($GI182:$GO182,$GQ182:GZ182),FP182)) -> 0 | HB182: =MAX(0,MIN($BB182-SUM($GI182:$GO182,$GQ182:HA182),FQ182)) -> 0 | HC182: =MAX(0,MIN($BB182-SUM($GI182:$GO182,$GQ182:HB182),FR182)) -> 0 | HD182: =MAX(0,MIN($BB182-SUM($GI182:$GO182,$GQ182:HC182),FS182)) -> 0 | HE182: =MAX(0,MIN($BB182-SUM($GI182:$GO182,$GQ182:HD182),FT182)) -> 0 | HF182: =MAX(0,MIN($BB182-SUM($GI182:$GO182,$GQ182:HE182),FU182)) -> 0 | HG182: =MAX(0,MIN($BB182-SUM($GI182:$GO182,$GQ182:HF182),FV182)) -> 0 | HH182: =MAX(0,MIN($BB182-SUM($GI182:$GO182,$GQ182:HG182),FW182)) -> 0 | HI182: =MAX(0,MIN($BB182-SUM($GI182:$GO182,$GQ182:HH182),FX182)) -> 0 | HJ182: =MAX(0,MIN($BB182-SUM($GI182:$GO182,$GQ182:HI182),FY182)) -> 0 | HK182: =MAX(0,MIN($BB182-SUM($GI182:$GO182,$GQ182:HJ182),FZ182)) -> 0 | HL182: =MAX(0,MIN($BB182-SUM($GI182:$GO182,$GQ182:HK182),GA182)) -> 0 | HM182: =MAX(0,MIN($BB182-SUM($GI182:$GO182,$GQ182:HL182),GB182)) -> 0 | HN182: =MAX(0,MIN($BB182-SUM($GI182:$GO182,$GQ182:HM182),GC182)) -> 0 | HS182: 0 | HT182: =MIN($BQ182,$A182*$AN182,$A182*$AR182)*INDIRECT($HR$160&HT$160) -> 0 | HU182: 0 | HV182: 0 | HW182: 0 | HX182: 0 | HY182: 0 | HZ182: 0 | IA182: 0 | IB182: 0 | IC182: 0 | ID182: 0 | IE182: 0 | IF182: 0 | IG182: 0 | IH182: 0 | II182: 0 | IJ182: 0 | IK182: 0 | IL182: 0 | IM182: 0 | IN182: 0 | IO182: 0 | IP182: 0 | IQ182: 0 | IR182: 0 | IS182: 0 | IT182: 0 | IU182: 0 | IV182: 0 | IW182: 0 | IX182: 0 | IY182: 0 | JD182: 0 | JE182: 0 | JF182: 0 | JG182: 0 | JH182: 0 | JI182: 0 | JJ182: 0 | JK182: 0 | JL182: 0 | JM182: 0 | JN182: 0 | JO182: 0 | JP182: 0 | JQ182: 0 | JR182: 0 | JS182: 0 | JT182: 0 | JU182: 0 | JV182: 0 | JW182: 0 | JX182: 0 | JY182: 0 | JZ182: 0 | KA182: 0 | KB182: 0 | KC182: 0 | KD182: 0 | KE182: 0 | KF182: 0 | KG182: 0 | KH182: 0 | KI182: 0 | KJ182: 0
A183: 1 | B183: 1 | C183: =ImportedDataRCR!C230 -> 18 | D183: =ImportedDataRCR!D230 -> 0 | E183: =ImportedDataRCR!E230 -> N | F183: =ImportedDataRCR!F230 -> A - Abitativo | G183: =ImportedDataRCR!G230 -> 0 | H183: =ImportedDataRCR!H230 -> 0 | I183: =ImportedDataRCR!I230 -> Privata | J183: =ImportedDataRCR!F$168 -> 10 | K183: =ImportedDataRCR!J230 -> N | L183: =ImportedDataRCR!K230 -> 0 | M183: =ImportedDataRCR!L230 -> 0 | N183: =ImportedDataRCR!M230 -> 0 | O183: =ImportedDataRCR!N230 -> 0 | P183: =ImportedDataRCR!O230 -> N | Q183: N | R183: =ImportedDataRCR!P230 -> 2 | S183: =ImportedDataRCR!R230 -> N | T183: =ImportedDataRCR!S230 -> L0 | U183: =IF($U$163,BeniCulturali!H38,$H$59)*($S183="N") -> 0 | V183: 0.1 | W183: 0.1 | X183: 0 | Y183: 0 | Z183: 0 | AA183: Abitativa-L0 | AB183: 0 | AC183: =MAX(0,(X183)-INDEX(CostoParametrico!$E$3:$L$22,MATCH($AA183,CostoParametrico!$D$3:$D$22,0),1)-AD183-AE183)*OR($E$90<>"S",$F$90=0,$H$1<2)*OR($D$20="P",AND($D$20="R",$BO183="B"),$BO183="A") -> 0 | AD183: =MAX(0,(X183)-INDEX(CostoParametrico!$E$3:$L$22,MATCH($AA183,CostoParametrico!$D$3:$D$22,0),2)-AE183)*OR($D$20="P",AND($D$20="R",$BO183="B"),$BO183="A") -> 0 | AE183: =MAX(0,(X183)-INDEX(CostoParametrico!$E$3:$L$22,MATCH($AA183,CostoParametrico!$D$3:$D$22,0),3))*OR($D$20="P",AND($D$20="R",$BO183="B"),$BO183="A") -> 0 | AF183: 0 | AG183: =MAX(0,(X183+Y183)-INDEX(CostoParametrico!$E$3:$L$22,MATCH($AA183,CostoParametrico!$D$3:$D$22,0),1)-AC183-AD183-AE183-AH183-AI183)*OR($E$90<>"S",$F$90=0,$H$1<2)*OR($D$20="P",AND($D$20="R",$BO183="B"),$BO183="A") -> 0 | AH183: =MAX(0,(X183+Y183)-INDEX(CostoParametrico!$E$3:$L$22,MATCH($AA183,CostoParametrico!$D$3:$D$22,0),2)-AD183-AE183-AI183)*OR($D$20="P",AND($D$20="R",$BO183="B"),$BO183="A") -> 0 | AI183: =MAX(0,(X183+Y183)-INDEX(CostoParametrico!$E$3:$L$22,MATCH($AA183,CostoParametrico!$D$3:$D$22,0),3)-AE183)*OR($D$20="P",AND($D$20="R",$BO183="B"),$BO183="A") -> 0 | AJ183: =INDEX(CostoParametrico!$E$3:$L$22,MATCH($AA183,CostoParametrico!$D$3:$D$22,0),5) -> 400 | AK183: =INDEX(CostoParametrico!$E$3:$L$22,MATCH($AA183,CostoParametrico!$D$3:$D$22,0),6) -> 330 | AL183: =INDEX(CostoParametrico!$E$3:$L$22,MATCH($AA183,CostoParametrico!$D$3:$D$22,0),7) -> 300 | AM183: =INDEX(CostoParametrico!$E$3:$L$22,MATCH($AA183,CostoParametrico!$D$3:$D$22,0),8) -> 300 | AN183: 0 | AO183: 0 | AP183: 0 | AQ183: 0 | AR183: 0 | AS183: 0 | AT183: 0 | AU183: 1 | AV183: 0 | AW183: 0 | AX183: 0 | AY183: 1e-10 | AZ183: 0 | BA183: 0 | BB183: 0 | BC183: 0 | BD183: 0 | BE183: 0 | BF183: 0 | BG183: 0 | BH183: 0 | BI183: 0 | BJ183: 0 | BK183: 0 | BL183: 0 | BM183: 1.1 | BN183: N | BO183: A | BP183: 0 | BQ183: 0 | BR183: N | BS183: 1 | BT183: 0.1 | BU183: 0 | CA183: 0 | CB183: 0 | CC183: 0 | CD183: 0 | CE183: 0 | CF183: 0 | CG183: 0 | CH183: 0 | CI183: 0 | CJ183: 0 | CK183: 0 | CL183: 0 | CM183: 0 | CN183: 0 | CO183: 0 | CP183: 0 | CQ183: 0 | CR183: 0 | CS183: 0 | CT183: 0 | CU183: 0 | CV183: 0 | CW183: 0 | CX183: 0 | CY183: 0 | CZ183: 0 | DA183: 0 | DB183: 0 | DC183: 0 | DD183: 0 | DE183: 0 | DF183: 0 | DG183: 0 | DL183: 0 | DM183: 0 | DN183: 0 | DO183: 0 | DP183: 0 | DQ183: 0 | DR183: 0 | DS183: 0 | DT183: 0 | DU183: 0 | DV183: 0 | DW183: 0 | DX183: 0 | DY183: 0 | DZ183: 0 | EA183: 0 | EB183: 0 | EC183: 0 | ED183: 0 | EE183: 0 | EF183: 0 | EG183: 0 | EH183: 0 | EI183: 0 | EJ183: 0 | EK183: 0 | EL183: 0 | EM183: 0 | EN183: 0 | EO183: 0 | EP183: 0 | EQ183: 0 | ER183: 0 | EW183: 0 | EX183: 0 | EY183: 0 | EZ183: 0 | FA183: 0 | FB183: 0 | FC183: 0 | FD183: 0 | FE183: 0 | FF183: 0 | FG183: 0 | FH183: 0 | FI183: 0 | FJ183: 0 | FK183: 0 | FL183: 0 | FM183: 0 | FN183: 0 | FO183: 0 | FP183: 0 | FQ183: 0 | FR183: 0 | FS183: 0 | FT183: 0 | FU183: 0 | FV183: 0 | FW183: 0 | FX183: 0 | FY183: 0 | FZ183: 0 | GA183: 0 | GB183: 0 | GC183: 0 | GH183: 0 | GI183: =MAX(0,MIN($BB183-SUM(GJ183:$GO183),EX183)) -> 0 | GJ183: =MAX(0,MIN($BB183-SUM(GK183:$GO183),EY183)) -> 0 | GK183: =MAX(0,MIN($BB183-SUM(GL183:$GO183),EZ183)) -> 0 | GL183: =MAX(0,MIN($BB183-SUM(GM183:$GO183),FA183)) -> 0 | GM183: =MAX(0,MIN($BB183-SUM(GN183:$GO183),FB183)) -> 0 | GN183: =MAX(0,MIN($BB183-SUM(GO183:$GO183),FC183)) -> 0 | GO183: 0 | GP183: 0 | GQ183: 0 | GR183: =MAX(0,MIN($BB183-SUM($GI183:$GO183,$GQ183:GQ183),FG183)) -> 0 | GS183: =MAX(0,MIN($BB183-SUM($GI183:$GO183,$GQ183:GR183),FH183)) -> 0 | GT183: =MAX(0,MIN($BB183-SUM($GI183:$GO183,$GQ183:GS183),FI183)) -> 0 | GU183: =MAX(0,MIN($BB183-SUM($GI183:$GO183,$GQ183:GT183),FJ183)) -> 0 | GV183: =MAX(0,MIN($BB183-SUM($GI183:$GO183,$GQ183:GU183),FK183)) -> 0 | GW183: =MAX(0,MIN($BB183-SUM($GI183:$GO183,$GQ183:GV183),FL183)) -> 0 | GX183: =MAX(0,MIN($BB183-SUM($GI183:$GO183,$GQ183:GW183),FM183)) -> 0 | GY183: =MAX(0,MIN($BB183-SUM($GI183:$GO183,$GQ183:GX183),FN183)) -> 0 | GZ183: =MAX(0,MIN($BB183-SUM($GI183:$GO183,$GQ183:GY183),FO183)) -> 0 | HA183: =MAX(0,MIN($BB183-SUM($GI183:$GO183,$GQ183:GZ183),FP183)) -> 0 | HB183: =MAX(0,MIN($BB183-SUM($GI183:$GO183,$GQ183:HA183),FQ183)) -> 0 | HC183: =MAX(0,MIN($BB183-SUM($GI183:$GO183,$GQ183:HB183),FR183)) -> 0 | HD183: =MAX(0,MIN($BB183-SUM($GI183:$GO183,$GQ183:HC183),FS183)) -> 0 | HE183: =MAX(0,MIN($BB183-SUM($GI183:$GO183,$GQ183:HD183),FT183)) -> 0 | HF183: =MAX(0,MIN($BB183-SUM($GI183:$GO183,$GQ183:HE183),FU183)) -> 0 | HG183: =MAX(0,MIN($BB183-SUM($GI183:$GO183,$GQ183:HF183),FV183)) -> 0 | HH183: =MAX(0,MIN($BB183-SUM($GI183:$GO183,$GQ183:HG183),FW183)) -> 0 | HI183: =MAX(0,MIN($BB183-SUM($GI183:$GO183,$GQ183:HH183),FX183)) -> 0 | HJ183: =MAX(0,MIN($BB183-SUM($GI183:$GO183,$GQ183:HI183),FY183)) -> 0 | HK183: =MAX(0,MIN($BB183-SUM($GI183:$GO183,$GQ183:HJ183),FZ183)) -> 0 | HL183: =MAX(0,MIN($BB183-SUM($GI183:$GO183,$GQ183:HK183),GA183)) -> 0 | HM183: =MAX(0,MIN($BB183-SUM($GI183:$GO183,$GQ183:HL183),GB183)) -> 0 | HN183: =MAX(0,MIN($BB183-SUM($GI183:$GO183,$GQ183:HM183),GC183)) -> 0 | HS183: 0 | HT183: 0 | HU183: 0 | HV183: 0 | HW183: 0 | HX183: 0 | HY183: 0 | HZ183: 0 | IA183: 0 | IB183: 0 | IC183: 0 | ID183: 0 | IE183: 0 | IF183: 0 | IG183: 0 | IH183: 0 | II183: 0 | IJ183: 0 | IK183: 0 | IL183: 0 | IM183: 0 | IN183: 0 | IO183: 0 | IP183: 0 | IQ183: 0 | IR183: 0 | IS183: 0 | IT183: 0 | IU183: 0 | IV183: 0 | IW183: 0 | IX183: 0 | IY183: 0 | JD183: 0 | JE183: 0 | JF183: 0 | JG183: 0 | JH183: 0 | JI183: 0 | JJ183: 0 | JK183: 0 | JL183: 0 | JM183: 0 | JN183: 0 | JO183: 0 | JP183: 0 | JQ183: 0 | JR183: 0 | JS183: 0 | JT183: 0 | JU183: 0 | JV183: 0 | JW183: 0 | JX183: 0 | JY183: 0 | JZ183: 0 | KA183: 0 | KB183: 0 | KC183: 0 | KD183: 0 | KE183: 0 | KF183: 0 | KG183: 0 | KH183: 0 | KI183: 0 | KJ183: 0
A184: 1 | B184: 1 | C184: =ImportedDataRCR!C231 -> 19 | D184: =ImportedDataRCR!D231 -> 0 | E184: =ImportedDataRCR!E231 -> N | F184: =ImportedDataRCR!F231 -> A - Abitativo | G184: =ImportedDataRCR!G231 -> 0 | H184: =ImportedDataRCR!H231 -> 0 | I184: =ImportedDataRCR!I231 -> Privata | J184: =ImportedDataRCR!F$168 -> 10 | K184: =ImportedDataRCR!J231 -> N | L184: =ImportedDataRCR!K231 -> 0 | M184: =ImportedDataRCR!L231 -> 0 | N184: =ImportedDataRCR!M231 -> 0 | O184: =ImportedDataRCR!N231 -> 0 | P184: =ImportedDataRCR!O231 -> N | Q184: N | R184: =ImportedDataRCR!P231 -> 2 | S184: =ImportedDataRCR!R231 -> N | T184: =ImportedDataRCR!S231 -> L0 | U184: =IF($U$163,BeniCulturali!H39,$H$59)*($S184="N") -> 0 | V184: 0.1 | W184: 0.1 | X184: 0 | Y184: 0 | Z184: 0 | AA184: Abitativa-L0 | AB184: 0 | AC184: =MAX(0,(X184)-INDEX(CostoParametrico!$E$3:$L$22,MATCH($AA184,CostoParametrico!$D$3:$D$22,0),1)-AD184-AE184)*OR($E$90<>"S",$F$90=0,$H$1<2)*OR($D$20="P",AND($D$20="R",$BO184="B"),$BO184="A") -> 0 | AD184: =MAX(0,(X184)-INDEX(CostoParametrico!$E$3:$L$22,MATCH($AA184,CostoParametrico!$D$3:$D$22,0),2)-AE184)*OR($D$20="P",AND($D$20="R",$BO184="B"),$BO184="A") -> 0 | AE184: =MAX(0,(X184)-INDEX(CostoParametrico!$E$3:$L$22,MATCH($AA184,CostoParametrico!$D$3:$D$22,0),3))*OR($D$20="P",AND($D$20="R",$BO184="B"),$BO184="A") -> 0 | AF184: 0 | AG184: =MAX(0,(X184+Y184)-INDEX(CostoParametrico!$E$3:$L$22,MATCH($AA184,CostoParametrico!$D$3:$D$22,0),1)-AC184-AD184-AE184-AH184-AI184)*OR($E$90<>"S",$F$90=0,$H$1<2)*OR($D$20="P",AND($D$20="R",$BO184="B"),$BO184="A") -> 0 | AH184: =MAX(0,(X184+Y184)-INDEX(CostoParametrico!$E$3:$L$22,MATCH($AA184,CostoParametrico!$D$3:$D$22,0),2)-AD184-AE184-AI184)*OR($D$20="P",AND($D$20="R",$BO184="B"),$BO184="A") -> 0 | AI184: =MAX(0,(X184+Y184)-INDEX(CostoParametrico!$E$3:$L$22,MATCH($AA184,CostoParametrico!$D$3:$D$22,0),3)-AE184)*OR($D$20="P",AND($D$20="R",$BO184="B"),$BO184="A") -> 0 | AJ184: =INDEX(CostoParametrico!$E$3:$L$22,MATCH($AA184,CostoParametrico!$D$3:$D$22,0),5) -> 400 | AK184: =INDEX(CostoParametrico!$E$3:$L$22,MATCH($AA184,CostoParametrico!$D$3:$D$22,0),6) -> 330 | AL184: =INDEX(CostoParametrico!$E$3:$L$22,MATCH($AA184,CostoParametrico!$D$3:$D$22,0),7) -> 300 | AM184: =INDEX(CostoParametrico!$E$3:$L$22,MATCH($AA184,CostoParametrico!$D$3:$D$22,0),8) -> 300 | AN184: 0 | AO184: 0 | AP184: 0 | AQ184: 0 | AR184: 0 | AS184: 0 | AT184: 0 | AU184: 1 | AV184: 0 | AW184: 0 | AX184: 0 | AY184: 1e-10 | AZ184: 0 | BA184: 0 | BB184: 0 | BC184: 0 | BD184: 0 | BE184: 0 | BF184: 0 | BG184: 0 | BH184: 0 | BI184: 0 | BJ184: 0 | BK184: 0 | BL184: 0 | BM184: 1.1 | BN184: N | BO184: A | BP184: 0 | BQ184: 0 | BR184: N | BS184: 1 | BT184: 0.1 | BU184: 0 | CA184: 0 | CB184: 0 | CC184: 0 | CD184: 0 | CE184: 0 | CF184: 0 | CG184: 0 | CH184: 0 | CI184: 0 | CJ184: 0 | CK184: 0 | CL184: 0 | CM184: 0 | CN184: 0 | CO184: 0 | CP184: 0 | CQ184: 0 | CR184: 0 | CS184: 0 | CT184: 0 | CU184: 0 | CV184: 0 | CW184: 0 | CX184: 0 | CY184: 0 | CZ184: 0 | DA184: 0 | DB184: 0 | DC184: 0 | DD184: 0 | DE184: 0 | DF184: 0 | DG184: 0 | DL184: 0 | DM184: 0 | DN184: 0 | DO184: 0 | DP184: 0 | DQ184: 0 | DR184: 0 | DS184: 0 | DT184: 0 | DU184: 0 | DV184: 0 | DW184: 0 | DX184: 0 | DY184: 0 | DZ184: 0 | EA184: 0 | EB184: 0 | EC184: 0 | ED184: 0 | EE184: 0 | EF184: 0 | EG184: 0 | EH184: 0 | EI184: 0 | EJ184: 0 | EK184: 0 | EL184: 0 | EM184: 0 | EN184: 0 | EO184: 0 | EP184: 0 | EQ184: 0 | ER184: 0 | EW184: 0 | EX184: 0 | EY184: 0 | EZ184: 0 | FA184: 0 | FB184: 0 | FC184: 0 | FD184: 0 | FE184: 0 | FF184: 0 | FG184: 0 | FH184: 0 | FI184: 0 | FJ184: 0 | FK184: 0 | FL184: 0 | FM184: 0 | FN184: 0 | FO184: 0 | FP184: 0 | FQ184: 0 | FR184: 0 | FS184: 0 | FT184: 0 | FU184: 0 | FV184: 0 | FW184: 0 | FX184: 0 | FY184: 0 | FZ184: 0 | GA184: 0 | GB184: 0 | GC184: 0 | GH184: 0 | GI184: =MAX(0,MIN($BB184-SUM(GJ184:$GO184),EX184)) -> 0 | GJ184: =MAX(0,MIN($BB184-SUM(GK184:$GO184),EY184)) -> 0 | GK184: =MAX(0,MIN($BB184-SUM(GL184:$GO184),EZ184)) -> 0 | GL184: =MAX(0,MIN($BB184-SUM(GM184:$GO184),FA184)) -> 0 | GM184: =MAX(0,MIN($BB184-SUM(GN184:$GO184),FB184)) -> 0 | GN184: =MAX(0,MIN($BB184-SUM(GO184:$GO184),FC184)) -> 0 | GO184: 0 | GP184: 0 | GQ184: 0 | GR184: =MAX(0,MIN($BB184-SUM($GI184:$GO184,$GQ184:GQ184),FG184)) -> 0 | GS184: =MAX(0,MIN($BB184-SUM($GI184:$GO184,$GQ184:GR184),FH184)) -> 0 | GT184: =MAX(0,MIN($BB184-SUM($GI184:$GO184,$GQ184:GS184),FI184)) -> 0 | GU184: =MAX(0,MIN($BB184-SUM($GI184:$GO184,$GQ184:GT184),FJ184)) -> 0 | GV184: =MAX(0,MIN($BB184-SUM($GI184:$GO184,$GQ184:GU184),FK184)) -> 0 | GW184: =MAX(0,MIN($BB184-SUM($GI184:$GO184,$GQ184:GV184),FL184)) -> 0 | GX184: =MAX(0,MIN($BB184-SUM($GI184:$GO184,$GQ184:GW184),FM184)) -> 0 | GY184: =MAX(0,MIN($BB184-SUM($GI184:$GO184,$GQ184:GX184),FN184)) -> 0 | GZ184: =MAX(0,MIN($BB184-SUM($GI184:$GO184,$GQ184:GY184),FO184)) -> 0 | HA184: =MAX(0,MIN($BB184-SUM($GI184:$GO184,$GQ184:GZ184),FP184)) -> 0 | HB184: =MAX(0,MIN($BB184-SUM($GI184:$GO184,$GQ184:HA184),FQ184)) -> 0 | HC184: =MAX(0,MIN($BB184-SUM($GI184:$GO184,$GQ184:HB184),FR184)) -> 0 | HD184: =MAX(0,MIN($BB184-SUM($GI184:$GO184,$GQ184:HC184),FS184)) -> 0 | HE184: =MAX(0,MIN($BB184-SUM($GI184:$GO184,$GQ184:HD184),FT184)) -> 0 | HF184: =MAX(0,MIN($BB184-SUM($GI184:$GO184,$GQ184:HE184),FU184)) -> 0 | HG184: =MAX(0,MIN($BB184-SUM($GI184:$GO184,$GQ184:HF184),FV184)) -> 0 | HH184: =MAX(0,MIN($BB184-SUM($GI184:$GO184,$GQ184:HG184),FW184)) -> 0 | HI184: =MAX(0,MIN($BB184-SUM($GI184:$GO184,$GQ184:HH184),FX184)) -> 0 | HJ184: =MAX(0,MIN($BB184-SUM($GI184:$GO184,$GQ184:HI184),FY184)) -> 0 | HK184: =MAX(0,MIN($BB184-SUM($GI184:$GO184,$GQ184:HJ184),FZ184)) -> 0 | HL184: =MAX(0,MIN($BB184-SUM($GI184:$GO184,$GQ184:HK184),GA184)) -> 0 | HM184: =MAX(0,MIN($BB184-SUM($GI184:$GO184,$GQ184:HL184),GB184)) -> 0 | HN184: =MAX(0,MIN($BB184-SUM($GI184:$GO184,$GQ184:HM184),GC184)) -> 0 | HS184: 0 | HT184: 0 | HU184: 0 | HV184: 0 | HW184: 0 | HX184: 0 | HY184: 0 | HZ184: 0 | IA184: 0 | IB184: 0 | IC184: 0 | ID184: 0 | IE184: 0 | IF184: 0 | IG184: 0 | IH184: 0 | II184: 0 | IJ184: 0 | IK184: 0 | IL184: 0 | IM184: 0 | IN184: 0 | IO184: 0 | IP184: 0 | IQ184: 0 | IR184: 0 | IS184: 0 | IT184: 0 | IU184: 0 | IV184: 0 | IW184: 0 | IX184: 0 | IY184: 0 | JD184: 0 | JE184: 0 | JF184: 0 | JG184: 0 | JH184: 0 | JI184: 0 | JJ184: 0 | JK184: 0 | JL184: 0 | JM184: 0 | JN184: 0 | JO184: 0 | JP184: 0 | JQ184: 0 | JR184: 0 | JS184: 0 | JT184: 0 | JU184: 0 | JV184: 0 | JW184: 0 | JX184: 0 | JY184: 0 | JZ184: 0 | KA184: 0 | KB184: 0 | KC184: 0 | KD184: 0 | KE184: 0 | KF184: 0 | KG184: 0 | KH184: 0 | KI184: 0 | KJ184: 0
A185: 1 | B185: 1 | C185: =ImportedDataRCR!C232 -> 20 | D185: =ImportedDataRCR!D232 -> 0 | E185: =ImportedDataRCR!E232 -> N | F185: =ImportedDataRCR!F232 -> A - Abitativo | G185: =ImportedDataRCR!G232 -> 0 | H185: =ImportedDataRCR!H232 -> 0 | I185: =ImportedDataRCR!I232 -> Privata | J185: =ImportedDataRCR!F$168 -> 10 | K185: =ImportedDataRCR!J232 -> N | L185: =ImportedDataRCR!K232 -> 0 | M185: =ImportedDataRCR!L232 -> 0 | N185: =ImportedDataRCR!M232 -> 0 | O185: =ImportedDataRCR!N232 -> 0 | P185: =ImportedDataRCR!O232 -> N | Q185: N | R185: =ImportedDataRCR!P232 -> 2 | S185: =ImportedDataRCR!R232 -> N | T185: =ImportedDataRCR!S232 -> L0 | U185: =IF($U$163,BeniCulturali!H40,$H$59)*($S185="N") -> 0 | V185: 0.1 | W185: 0.1 | X185: 0 | Y185: 0 | Z185: 0 | AA185: Abitativa-L0 | AB185: 0 | AC185: =MAX(0,(X185)-INDEX(CostoParametrico!$E$3:$L$22,MATCH($AA185,CostoParametrico!$D$3:$D$22,0),1)-AD185-AE185)*OR($E$90<>"S",$F$90=0,$H$1<2)*OR($D$20="P",AND($D$20="R",$BO185="B"),$BO185="A") -> 0 | AD185: =MAX(0,(X185)-INDEX(CostoParametrico!$E$3:$L$22,MATCH($AA185,CostoParametrico!$D$3:$D$22,0),2)-AE185)*OR($D$20="P",AND($D$20="R",$BO185="B"),$BO185="A") -> 0 | AE185: =MAX(0,(X185)-INDEX(CostoParametrico!$E$3:$L$22,MATCH($AA185,CostoParametrico!$D$3:$D$22,0),3))*OR($D$20="P",AND($D$20="R",$BO185="B"),$BO185="A") -> 0 | AF185: 0 | AG185: =MAX(0,(X185+Y185)-INDEX(CostoParametrico!$E$3:$L$22,MATCH($AA185,CostoParametrico!$D$3:$D$22,0),1)-AC185-AD185-AE185-AH185-AI185)*OR($E$90<>"S",$F$90=0,$H$1<2)*OR($D$20="P",AND($D$20="R",$BO185="B"),$BO185="A") -> 0 | AH185: =MAX(0,(X185+Y185)-INDEX(CostoParametrico!$E$3:$L$22,MATCH($AA185,CostoParametrico!$D$3:$D$22,0),2)-AD185-AE185-AI185)*OR($D$20="P",AND($D$20="R",$BO185="B"),$BO185="A") -> 0 | AI185: =MAX(0,(X185+Y185)-INDEX(CostoParametrico!$E$3:$L$22,MATCH($AA185,CostoParametrico!$D$3:$D$22,0),3)-AE185)*OR($D$20="P",AND($D$20="R",$BO185="B"),$BO185="A") -> 0 | AJ185: =INDEX(CostoParametrico!$E$3:$L$22,MATCH($AA185,CostoParametrico!$D$3:$D$22,0),5) -> 400 | AK185: =INDEX(CostoParametrico!$E$3:$L$22,MATCH($AA185,CostoParametrico!$D$3:$D$22,0),6) -> 330 | AL185: =INDEX(CostoParametrico!$E$3:$L$22,MATCH($AA185,CostoParametrico!$D$3:$D$22,0),7) -> 300 | AM185: =INDEX(CostoParametrico!$E$3:$L$22,MATCH($AA185,CostoParametrico!$D$3:$D$22,0),8) -> 300 | AN185: 0 | AO185: 0 | AP185: 0 | AQ185: 0 | AR185: 0 | AS185: 0 | AT185: 0 | AU185: 1 | AV185: 0 | AW185: 0 | AX185: 0 | AY185: 1e-10 | AZ185: 0 | BA185: 0 | BB185: 0 | BC185: 0 | BD185: 0 | BE185: 0 | BF185: 0 | BG185: 0 | BH185: 0 | BI185: 0 | BJ185: 0 | BK185: 0 | BL185: 0 | BM185: 1.1 | BN185: N | BO185: A | BP185: 0 | BQ185: 0 | BR185: N | BS185: 1 | BT185: 0.1 | BU185: 0 | CA185: 0 | CB185: 0 | CC185: 0 | CD185: 0 | CE185: 0 | CF185: 0 | CG185: 0 | CH185: 0 | CI185: 0 | CJ185: 0 | CK185: 0 | CL185: 0 | CM185: 0 | CN185: 0 | CO185: 0 | CP185: 0 | CQ185: 0 | CR185: 0 | CS185: 0 | CT185: 0 | CU185: 0 | CV185: 0 | CW185: 0 | CX185: 0 | CY185: 0 | CZ185: 0 | DA185: 0 | DB185: 0 | DC185: 0 | DD185: 0 | DE185: 0 | DF185: 0 | DG185: 0 | DL185: 0 | DM185: 0 | DN185: 0 | DO185: 0 | DP185: 0 | DQ185: 0 | DR185: 0 | DS185: 0 | DT185: 0 | DU185: 0 | DV185: 0 | DW185: 0 | DX185: 0 | DY185: 0 | DZ185: 0 | EA185: 0 | EB185: 0 | EC185: 0 | ED185: 0 | EE185: 0 | EF185: 0 | EG185: 0 | EH185: 0 | EI185: 0 | EJ185: 0 | EK185: 0 | EL185: 0 | EM185: 0 | EN185: 0 | EO185: 0 | EP185: 0 | EQ185: 0 | ER185: 0 | EW185: 0 | EX185: 0 | EY185: 0 | EZ185: 0 | FA185: 0 | FB185: 0 | FC185: 0 | FD185: 0 | FE185: 0 | FF185: 0 | FG185: 0 | FH185: 0 | FI185: 0 | FJ185: 0 | FK185: 0 | FL185: 0 | FM185: 0 | FN185: 0 | FO185: 0 | FP185: 0 | FQ185: 0 | FR185: 0 | FS185: 0 | FT185: 0 | FU185: 0 | FV185: 0 | FW185: 0 | FX185: 0 | FY185: 0 | FZ185: 0 | GA185: 0 | GB185: 0 | GC185: 0 | GH185: 0 | GI185: =MAX(0,MIN($BB185-SUM(GJ185:$GO185),EX185)) -> 0 | GJ185: =MAX(0,MIN($BB185-SUM(GK185:$GO185),EY185)) -> 0 | GK185: =MAX(0,MIN($BB185-SUM(GL185:$GO185),EZ185)) -> 0 | GL185: =MAX(0,MIN($BB185-SUM(GM185:$GO185),FA185)) -> 0 | GM185: =MAX(0,MIN($BB185-SUM(GN185:$GO185),FB185)) -> 0 | GN185: =MAX(0,MIN($BB185-SUM(GO185:$GO185),FC185)) -> 0 | GO185: 0 | GP185: 0 | GQ185: 0 | GR185: =MAX(0,MIN($BB185-SUM($GI185:$GO185,$GQ185:GQ185),FG185)) -> 0 | GS185: =MAX(0,MIN($BB185-SUM($GI185:$GO185,$GQ185:GR185),FH185)) -> 0 | GT185: =MAX(0,MIN($BB185-SUM($GI185:$GO185,$GQ185:GS185),FI185)) -> 0 | GU185: =MAX(0,MIN($BB185-SUM($GI185:$GO185,$GQ185:GT185),FJ185)) -> 0 | GV185: =MAX(0,MIN($BB185-SUM($GI185:$GO185,$GQ185:GU185),FK185)) -> 0 | GW185: =MAX(0,MIN($BB185-SUM($GI185:$GO185,$GQ185:GV185),FL185)) -> 0 | GX185: =MAX(0,MIN($BB185-SUM($GI185:$GO185,$GQ185:GW185),FM185)) -> 0 | GY185: =MAX(0,MIN($BB185-SUM($GI185:$GO185,$GQ185:GX185),FN185)) -> 0 | GZ185: =MAX(0,MIN($BB185-SUM($GI185:$GO185,$GQ185:GY185),FO185)) -> 0 | HA185: =MAX(0,MIN($BB185-SUM($GI185:$GO185,$GQ185:GZ185),FP185)) -> 0 | HB185: =MAX(0,MIN($BB185-SUM($GI185:$GO185,$GQ185:HA185),FQ185)) -> 0 | HC185: =MAX(0,MIN($BB185-SUM($GI185:$GO185,$GQ185:HB185),FR185)) -> 0 | HD185: =MAX(0,MIN($BB185-SUM($GI185:$GO185,$GQ185:HC185),FS185)) -> 0 | HE185: =MAX(0,MIN($BB185-SUM($GI185:$GO185,$GQ185:HD185),FT185)) -> 0 | HF185: =MAX(0,MIN($BB185-SUM($GI185:$GO185,$GQ185:HE185),FU185)) -> 0 | HG185: =MAX(0,MIN($BB185-SUM($GI185:$GO185,$GQ185:HF185),FV185)) -> 0 | HH185: =MAX(0,MIN($BB185-SUM($GI185:$GO185,$GQ185:HG185),FW185)) -> 0 | HI185: =MAX(0,MIN($BB185-SUM($GI185:$GO185,$GQ185:HH185),FX185)) -> 0 | HJ185: =MAX(0,MIN($BB185-SUM($GI185:$GO185,$GQ185:HI185),FY185)) -> 0 | HK185: =MAX(0,MIN($BB185-SUM($GI185:$GO185,$GQ185:HJ185),FZ185)) -> 0 | HL185: =MAX(0,MIN($BB185-SUM($GI185:$GO185,$GQ185:HK185),GA185)) -> 0 | HM185: =MAX(0,MIN($BB185-SUM($GI185:$GO185,$GQ185:HL185),GB185)) -> 0 | HN185: =MAX(0,MIN($BB185-SUM($GI185:$GO185,$GQ185:HM185),GC185)) -> 0 | HS185: 0 | HT185: 0 | HU185: 0 | HV185: 0 | HW185: 0 | HX185: 0 | HY185: 0 | HZ185: 0 | IA185: 0 | IB185: 0 | IC185: 0 | ID185: 0 | IE185: 0 | IF185: 0 | IG185: 0 | IH185: 0 | II185: 0 | IJ185: 0 | IK185: 0 | IL185: 0 | IM185: 0 | IN185: 0 | IO185: 0 | IP185: 0 | IQ185: 0 | IR185: 0 | IS185: 0 | IT185: 0 | IU185: 0 | IV185: 0 | IW185: 0 | IX185: 0 | IY185: 0 | JD185: 0 | JE185: 0 | JF185: 0 | JG185: 0 | JH185: 0 | JI185: 0 | JJ185: 0 | JK185: 0 | JL185: 0 | JM185: 0 | JN185: 0 | JO185: 0 | JP185: 0 | JQ185: 0 | JR185: 0 | JS185: 0 | JT185: 0 | JU185: 0 | JV185: 0 | JW185: 0 | JX185: 0 | JY185: 0 | JZ185: 0 | KA185: 0 | KB185: 0 | KC185: 0 | KD185: 0 | KE185: 0 | KF185: 0 | KG185: 0 | KH185: 0 | KI185: 0 | KJ185: 0
A186: 1 | B186: 1 | C186: =ImportedDataRCR!C233 -> 21 | D186: =ImportedDataRCR!D233 -> 0 | E186: =ImportedDataRCR!E233 -> N | F186: =ImportedDataRCR!F233 -> A - Abitativo | G186: =ImportedDataRCR!G233 -> 0 | H186: =ImportedDataRCR!H233 -> 0 | I186: =ImportedDataRCR!I233 -> Privata | J186: =ImportedDataRCR!F$168 -> 10 | K186: =ImportedDataRCR!J233 -> N | L186: =ImportedDataRCR!K233 -> 0 | M186: =ImportedDataRCR!L233 -> 0 | N186: =ImportedDataRCR!M233 -> 0 | O186: =ImportedDataRCR!N233 -> 0 | P186: =ImportedDataRCR!O233 -> N | Q186: N | R186: =ImportedDataRCR!P233 -> 2 | S186: =ImportedDataRCR!R233 -> N | T186: =ImportedDataRCR!S233 -> L0 | U186: =IF($U$163,BeniCulturali!H41,$H$59)*($S186="N") -> 0 | V186: 0.1 | W186: 0.1 | X186: 0 | Y186: 0 | Z186: 0 | AA186: Abitativa-L0 | AB186: 0 | AC186: =MAX(0,(X186)-INDEX(CostoParametrico!$E$3:$L$22,MATCH($AA186,CostoParametrico!$D$3:$D$22,0),1)-AD186-AE186)*OR($E$90<>"S",$F$90=0,$H$1<2)*OR($D$20="P",AND($D$20="R",$BO186="B"),$BO186="A") -> 0 | AD186: =MAX(0,(X186)-INDEX(CostoParametrico!$E$3:$L$22,MATCH($AA186,CostoParametrico!$D$3:$D$22,0),2)-AE186)*OR($D$20="P",AND($D$20="R",$BO186="B"),$BO186="A") -> 0 | AE186: =MAX(0,(X186)-INDEX(CostoParametrico!$E$3:$L$22,MATCH($AA186,CostoParametrico!$D$3:$D$22,0),3))*OR($D$20="P",AND($D$20="R",$BO186="B"),$BO186="A") -> 0 | AF186: 0 | AG186: =MAX(0,(X186+Y186)-INDEX(CostoParametrico!$E$3:$L$22,MATCH($AA186,CostoParametrico!$D$3:$D$22,0),1)-AC186-AD186-AE186-AH186-AI186)*OR($E$90<>"S",$F$90=0,$H$1<2)*OR($D$20="P",AND($D$20="R",$BO186="B"),$BO186="A") -> 0 | AH186: =MAX(0,(X186+Y186)-INDEX(CostoParametrico!$E$3:$L$22,MATCH($AA186,CostoParametrico!$D$3:$D$22,0),2)-AD186-AE186-AI186)*OR($D$20="P",AND($D$20="R",$BO186="B"),$BO186="A") -> 0 | AI186: =MAX(0,(X186+Y186)-INDEX(CostoParametrico!$E$3:$L$22,MATCH($AA186,CostoParametrico!$D$3:$D$22,0),3)-AE186)*OR($D$20="P",AND($D$20="R",$BO186="B"),$BO186="A") -> 0 | AJ186: =INDEX(CostoParametrico!$E$3:$L$22,MATCH($AA186,CostoParametrico!$D$3:$D$22,0),5) -> 400 | AK186: =INDEX(CostoParametrico!$E$3:$L$22,MATCH($AA186,CostoParametrico!$D$3:$D$22,0),6) -> 330 | AL186: =INDEX(CostoParametrico!$E$3:$L$22,MATCH($AA186,CostoParametrico!$D$3:$D$22,0),7) -> 300 | AM186: =INDEX(CostoParametrico!$E$3:$L$22,MATCH($AA186,CostoParametrico!$D$3:$D$22,0),8) -> 300 | AN186: 0 | AO186: 0 | AP186: 0 | AQ186: 0 | AR186: 0 | AS186: 0 | AT186: 0 | AU186: 1 | AV186: 0 | AW186: 0 | AX186: 0 | AY186: 1e-10 | AZ186: 0 | BA186: 0 | BB186: 0 | BC186: 0 | BD186: 0 | BE186: 0 | BF186: 0 | BG186: 0 | BH186: 0 | BI186: 0 | BJ186: 0 | BK186: 0 | BL186: 0 | BM186: 1.1 | BN186: N | BO186: A | BP186: 0 | BQ186: 0 | BR186: N | BS186: 1 | BT186: 0.1 | BU186: 0 | CA186: 0 | CB186: 0 | CC186: 0 | CD186: 0 | CE186: 0 | CF186: 0 | CG186: 0 | CH186: 0 | CI186: 0 | CJ186: 0 | CK186: 0 | CL186: 0 | CM186: 0 | CN186: 0 | CO186: 0 | CP186: 0 | CQ186: 0 | CR186: 0 | CS186: 0 | CT186: 0 | CU186: 0 | CV186: 0 | CW186: 0 | CX186: 0 | CY186: 0 | CZ186: 0 | DA186: 0 | DB186: 0 | DC186: 0 | DD186: 0 | DE186: 0 | DF186: 0 | DG186: 0 | DL186: 0 | DM186: 0 | DN186: 0 | DO186: 0 | DP186: 0 | DQ186: 0 | DR186: 0 | DS186: 0 | DT186: 0 | DU186: 0 | DV186: 0 | DW186: 0 | DX186: 0 | DY186: 0 | DZ186: 0 | EA186: 0 | EB186: 0 | EC186: 0 | ED186: 0 | EE186: 0 | EF186: 0 | EG186: 0 | EH186: 0 | EI186: 0 | EJ186: 0 | EK186: 0 | EL186: 0 | EM186: 0 | EN186: 0 | EO186: 0 | EP186: 0 | EQ186: 0 | ER186: 0 | EW186: 0 | EX186: 0 | EY186: 0 | EZ186: 0 | FA186: 0 | FB186: 0 | FC186: 0 | FD186: 0 | FE186: 0 | FF186: 0 | FG186: 0 | FH186: 0 | FI186: 0 | FJ186: 0 | FK186: 0 | FL186: 0 | FM186: 0 | FN186: 0 | FO186: 0 | FP186: 0 | FQ186: 0 | FR186: 0 | FS186: 0 | FT186: 0 | FU186: 0 | FV186: 0 | FW186: 0 | FX186: 0 | FY186: 0 | FZ186: 0 | GA186: 0 | GB186: 0 | GC186: 0 | GH186: 0 | GI186: =MAX(0,MIN($BB186-SUM(GJ186:$GO186),EX186)) -> 0 | GJ186: =MAX(0,MIN($BB186-SUM(GK186:$GO186),EY186)) -> 0 | GK186: =MAX(0,MIN($BB186-SUM(GL186:$GO186),EZ186)) -> 0 | GL186: =MAX(0,MIN($BB186-SUM(GM186:$GO186),FA186)) -> 0 | GM186: =MAX(0,MIN($BB186-SUM(GN186:$GO186),FB186)) -> 0 | GN186: =MAX(0,MIN($BB186-SUM(GO186:$GO186),FC186)) -> 0 | GO186: 0 | GP186: 0 | GQ186: 0 | GR186: =MAX(0,MIN($BB186-SUM($GI186:$GO186,$GQ186:GQ186),FG186)) -> 0 | GS186: =MAX(0,MIN($BB186-SUM($GI186:$GO186,$GQ186:GR186),FH186)) -> 0 | GT186: =MAX(0,MIN($BB186-SUM($GI186:$GO186,$GQ186:GS186),FI186)) -> 0 | GU186: =MAX(0,MIN($BB186-SUM($GI186:$GO186,$GQ186:GT186),FJ186)) -> 0 | GV186: =MAX(0,MIN($BB186-SUM($GI186:$GO186,$GQ186:GU186),FK186)) -> 0 | GW186: =MAX(0,MIN($BB186-SUM($GI186:$GO186,$GQ186:GV186),FL186)) -> 0 | GX186: =MAX(0,MIN($BB186-SUM($GI186:$GO186,$GQ186:GW186),FM186)) -> 0 | GY186: =MAX(0,MIN($BB186-SUM($GI186:$GO186,$GQ186:GX186),FN186)) -> 0 | GZ186: =MAX(0,MIN($BB186-SUM($GI186:$GO186,$GQ186:GY186),FO186)) -> 0 | HA186: =MAX(0,MIN($BB186-SUM($GI186:$GO186,$GQ186:GZ186),FP186)) -> 0 | HB186: =MAX(0,MIN($BB186-SUM($GI186:$GO186,$GQ186:HA186),FQ186)) -> 0 | HC186: =MAX(0,MIN($BB186-SUM($GI186:$GO186,$GQ186:HB186),FR186)) -> 0 | HD186: =MAX(0,MIN($BB186-SUM($GI186:$GO186,$GQ186:HC186),FS186)) -> 0 | HE186: =MAX(0,MIN($BB186-SUM($GI186:$GO186,$GQ186:HD186),FT186)) -> 0 | HF186: =MAX(0,MIN($BB186-SUM($GI186:$GO186,$GQ186:HE186),FU186)) -> 0 | HG186: =MAX(0,MIN($BB186-SUM($GI186:$GO186,$GQ186:HF186),FV186)) -> 0 | HH186: =MAX(0,MIN($BB186-SUM($GI186:$GO186,$GQ186:HG186),FW186)) -> 0 | HI186: =MAX(0,MIN($BB186-SUM($GI186:$GO186,$GQ186:HH186),FX186)) -> 0 | HJ186: =MAX(0,MIN($BB186-SUM($GI186:$GO186,$GQ186:HI186),FY186)) -> 0 | HK186: =MAX(0,MIN($BB186-SUM($GI186:$GO186,$GQ186:HJ186),FZ186)) -> 0 | HL186: =MAX(0,MIN($BB186-SUM($GI186:$GO186,$GQ186:HK186),GA186)) -> 0 | HM186: =MAX(0,MIN($BB186-SUM($GI186:$GO186,$GQ186:HL186),GB186)) -> 0 | HN186: =MAX(0,MIN($BB186-SUM($GI186:$GO186,$GQ186:HM186),GC186)) -> 0 | HS186: 0 | HT186: 0 | HU186: 0 | HV186: 0 | HW186: 0 | HX186: 0 | HY186: 0 | HZ186: 0 | IA186: 0 | IB186: 0 | IC186: 0 | ID186: 0 | IE186: 0 | IF186: 0 | IG186: 0 | IH186: 0 | II186: 0 | IJ186: 0 | IK186: 0 | IL186: 0 | IM186: 0 | IN186: 0 | IO186: 0 | IP186: 0 | IQ186: 0 | IR186: 0 | IS186: 0 | IT186: 0 | IU186: 0 | IV186: 0 | IW186: 0 | IX186: 0 | IY186: 0 | JD186: 0 | JE186: 0 | JF186: 0 | JG186: 0 | JH186: 0 | JI186: 0 | JJ186: 0 | JK186: 0 | JL186: 0 | JM186: 0 | JN186: 0 | JO186: 0 | JP186: 0 | JQ186: 0 | JR186: 0 | JS186: 0 | JT186: 0 | JU186: 0 | JV186: 0 | JW186: 0 | JX186: 0 | JY186: 0 | JZ186: 0 | KA186: 0 | KB186: 0 | KC186: 0 | KD186: 0 | KE186: 0 | KF186: 0 | KG186: 0 | KH186: 0 | KI186: 0 | KJ186: 0
A187: 1 | B187: 1 | C187: =ImportedDataRCR!C234 -> 22 | D187: =ImportedDataRCR!D234 -> 0 | E187: =ImportedDataRCR!E234 -> N | F187: =ImportedDataRCR!F234 -> A - Abitativo | G187: =ImportedDataRCR!G234 -> 0 | H187: =ImportedDataRCR!H234 -> 0 | I187: =ImportedDataRCR!I234 -> Privata | J187: =ImportedDataRCR!F$168 -> 10 | K187: =ImportedDataRCR!J234 -> N | L187: =ImportedDataRCR!K234 -> 0 | M187: =ImportedDataRCR!L234 -> 0 | N187: =ImportedDataRCR!M234 -> 0 | O187: =ImportedDataRCR!N234 -> 0 | P187: =ImportedDataRCR!O234 -> N | Q187: N | R187: =ImportedDataRCR!P234 -> 2 | S187: =ImportedDataRCR!R234 -> N | T187: =ImportedDataRCR!S234 -> L0 | U187: =IF($U$163,BeniCulturali!H42,$H$59)*($S187="N") -> 0 | V187: 0.1 | W187: 0.1 | X187: 0 | Y187: 0 | Z187: 0 | AA187: Abitativa-L0 | AB187: 0 | AC187: =MAX(0,(X187)-INDEX(CostoParametrico!$E$3:$L$22,MATCH($AA187,CostoParametrico!$D$3:$D$22,0),1)-AD187-AE187)*OR($E$90<>"S",$F$90=0,$H$1<2)*OR($D$20="P",AND($D$20="R",$BO187="B"),$BO187="A") -> 0 | AD187: =MAX(0,(X187)-INDEX(CostoParametrico!$E$3:$L$22,MATCH($AA187,CostoParametrico!$D$3:$D$22,0),2)-AE187)*OR($D$20="P",AND($D$20="R",$BO187="B"),$BO187="A") -> 0 | AE187: =MAX(0,(X187)-INDEX(CostoParametrico!$E$3:$L$22,MATCH($AA187,CostoParametrico!$D$3:$D$22,0),3))*OR($D$20="P",AND($D$20="R",$BO187="B"),$BO187="A") -> 0 | AF187: 0 | AG187: =MAX(0,(X187+Y187)-INDEX(CostoParametrico!$E$3:$L$22,MATCH($AA187,CostoParametrico!$D$3:$D$22,0),1)-AC187-AD187-AE187-AH187-AI187)*OR($E$90<>"S",$F$90=0,$H$1<2)*OR($D$20="P",AND($D$20="R",$BO187="B"),$BO187="A") -> 0 | AH187: =MAX(0,(X187+Y187)-INDEX(CostoParametrico!$E$3:$L$22,MATCH($AA187,CostoParametrico!$D$3:$D$22,0),2)-AD187-AE187-AI187)*OR($D$20="P",AND($D$20="R",$BO187="B"),$BO187="A") -> 0 | AI187: =MAX(0,(X187+Y187)-INDEX(CostoParametrico!$E$3:$L$22,MATCH($AA187,CostoParametrico!$D$3:$D$22,0),3)-AE187)*OR($D$20="P",AND($D$20="R",$BO187="B"),$BO187="A") -> 0 | AJ187: =INDEX(CostoParametrico!$E$3:$L$22,MATCH($AA187,CostoParametrico!$D$3:$D$22,0),5) -> 400 | AK187: =INDEX(CostoParametrico!$E$3:$L$22,MATCH($AA187,CostoParametrico!$D$3:$D$22,0),6) -> 330 | AL187: =INDEX(CostoParametrico!$E$3:$L$22,MATCH($AA187,CostoParametrico!$D$3:$D$22,0),7) -> 300 | AM187: =INDEX(CostoParametrico!$E$3:$L$22,MATCH($AA187,CostoParametrico!$D$3:$D$22,0),8) -> 300 | AN187: 0 | AO187: 0 | AP187: 0 | AQ187: 0 | AR187: 0 | AS187: 0 | AT187: 0 | AU187: 1 | AV187: 0 | AW187: 0 | AX187: 0 | AY187: 1e-10 | AZ187: 0 | BA187: 0 | BB187: 0 | BC187: 0 | BD187: 0 | BE187: 0 | BF187: 0 | BG187: 0 | BH187: 0 | BI187: 0 | BJ187: 0 | BK187: 0 | BL187: 0 | BM187: 1.1 | BN187: N | BO187: A | BP187: 0 | BQ187: 0 | BR187: N | BS187: 1 | BT187: 0.1 | BU187: 0 | CA187: 0 | CB187: 0 | CC187: 0 | CD187: 0 | CE187: 0 | CF187: 0 | CG187: 0 | CH187: 0 | CI187: 0 | CJ187: 0 | CK187: 0 | CL187: 0 | CM187: 0 | CN187: 0 | CO187: 0 | CP187: 0 | CQ187: 0 | CR187: 0 | CS187: 0 | CT187: 0 | CU187: 0 | CV187: 0 | CW187: 0 | CX187: 0 | CY187: 0 | CZ187: 0 | DA187: 0 | DB187: 0 | DC187: 0 | DD187: 0 | DE187: 0 | DF187: 0 | DG187: 0 | DL187: 0 | DM187: 0 | DN187: 0 | DO187: 0 | DP187: 0 | DQ187: 0 | DR187: 0 | DS187: 0 | DT187: 0 | DU187: 0 | DV187: 0 | DW187: 0 | DX187: 0 | DY187: 0 | DZ187: 0 | EA187: 0 | EB187: 0 | EC187: 0 | ED187: 0 | EE187: 0 | EF187: 0 | EG187: 0 | EH187: 0 | EI187: 0 | EJ187: 0 | EK187: 0 | EL187: 0 | EM187: 0 | EN187: 0 | EO187: 0 | EP187: 0 | EQ187: 0 | ER187: 0 | EW187: 0 | EX187: 0 | EY187: 0 | EZ187: 0 | FA187: 0 | FB187: 0 | FC187: 0 | FD187: 0 | FE187: 0 | FF187: 0 | FG187: 0 | FH187: 0 | FI187: 0 | FJ187: 0 | FK187: 0 | FL187: 0 | FM187: 0 | FN187: 0 | FO187: 0 | FP187: 0 | FQ187: 0 | FR187: 0 | FS187: 0 | FT187: 0 | FU187: 0 | FV187: 0 | FW187: 0 | FX187: 0 | FY187: 0 | FZ187: 0 | GA187: 0 | GB187: 0 | GC187: 0 | GH187: 0 | GI187: =MAX(0,MIN($BB187-SUM(GJ187:$GO187),EX187)) -> 0 | GJ187: =MAX(0,MIN($BB187-SUM(GK187:$GO187),EY187)) -> 0 | GK187: =MAX(0,MIN($BB187-SUM(GL187:$GO187),EZ187)) -> 0 | GL187: =MAX(0,MIN($BB187-SUM(GM187:$GO187),FA187)) -> 0 | GM187: =MAX(0,MIN($BB187-SUM(GN187:$GO187),FB187)) -> 0 | GN187: =MAX(0,MIN($BB187-SUM(GO187:$GO187),FC187)) -> 0 | GO187: 0 | GP187: 0 | GQ187: 0 | GR187: =MAX(0,MIN($BB187-SUM($GI187:$GO187,$GQ187:GQ187),FG187)) -> 0 | GS187: =MAX(0,MIN($BB187-SUM($GI187:$GO187,$GQ187:GR187),FH187)) -> 0 | GT187: =MAX(0,MIN($BB187-SUM($GI187:$GO187,$GQ187:GS187),FI187)) -> 0 | GU187: =MAX(0,MIN($BB187-SUM($GI187:$GO187,$GQ187:GT187),FJ187)) -> 0 | GV187: =MAX(0,MIN($BB187-SUM($GI187:$GO187,$GQ187:GU187),FK187)) -> 0 | GW187: =MAX(0,MIN($BB187-SUM($GI187:$GO187,$GQ187:GV187),FL187)) -> 0 | GX187: =MAX(0,MIN($BB187-SUM($GI187:$GO187,$GQ187:GW187),FM187)) -> 0 | GY187: =MAX(0,MIN($BB187-SUM($GI187:$GO187,$GQ187:GX187),FN187)) -> 0 | GZ187: =MAX(0,MIN($BB187-SUM($GI187:$GO187,$GQ187:GY187),FO187)) -> 0 | HA187: =MAX(0,MIN($BB187-SUM($GI187:$GO187,$GQ187:GZ187),FP187)) -> 0 | HB187: =MAX(0,MIN($BB187-SUM($GI187:$GO187,$GQ187:HA187),FQ187)) -> 0 | HC187: =MAX(0,MIN($BB187-SUM($GI187:$GO187,$GQ187:HB187),FR187)) -> 0 | HD187: =MAX(0,MIN($BB187-SUM($GI187:$GO187,$GQ187:HC187),FS187)) -> 0 | HE187: =MAX(0,MIN($BB187-SUM($GI187:$GO187,$GQ187:HD187),FT187)) -> 0 | HF187: =MAX(0,MIN($BB187-SUM($GI187:$GO187,$GQ187:HE187),FU187)) -> 0 | HG187: =MAX(0,MIN($BB187-SUM($GI187:$GO187,$GQ187:HF187),FV187)) -> 0 | HH187: =MAX(0,MIN($BB187-SUM($GI187:$GO187,$GQ187:HG187),FW187)) -> 0 | HI187: =MAX(0,MIN($BB187-SUM($GI187:$GO187,$GQ187:HH187),FX187)) -> 0 | HJ187: =MAX(0,MIN($BB187-SUM($GI187:$GO187,$GQ187:HI187),FY187)) -> 0 | HK187: =MAX(0,MIN($BB187-SUM($GI187:$GO187,$GQ187:HJ187),FZ187)) -> 0 | HL187: =MAX(0,MIN($BB187-SUM($GI187:$GO187,$GQ187:HK187),GA187)) -> 0 | HM187: =MAX(0,MIN($BB187-SUM($GI187:$GO187,$GQ187:HL187),GB187)) -> 0 | HN187: =MAX(0,MIN($BB187-SUM($GI187:$GO187,$GQ187:HM187),GC187)) -> 0 | HS187: 0 | HT187: 0 | HU187: 0 | HV187: 0 | HW187: 0 | HX187: 0 | HY187: 0 | HZ187: 0 | IA187: 0 | IB187: 0 | IC187: 0 | ID187: 0 | IE187: 0 | IF187: 0 | IG187: 0 | IH187: 0 | II187: 0 | IJ187: 0 | IK187: 0 | IL187: 0 | IM187: 0 | IN187: 0 | IO187: 0 | IP187: 0 | IQ187: 0 | IR187: 0 | IS187: 0 | IT187: 0 | IU187: 0 | IV187: 0 | IW187: 0 | IX187: 0 | IY187: 0 | JD187: 0 | JE187: 0 | JF187: 0 | JG187: 0 | JH187: 0 | JI187: 0 | JJ187: 0 | JK187: 0 | JL187: 0 | JM187: 0 | JN187: 0 | JO187: 0 | JP187: 0 | JQ187: 0 | JR187: 0 | JS187: 0 | JT187: 0 | JU187: 0 | JV187: 0 | JW187: 0 | JX187: 0 | JY187: 0 | JZ187: 0 | KA187: 0 | KB187: 0 | KC187: 0 | KD187: 0 | KE187: 0 | KF187: 0 | KG187: 0 | KH187: 0 | KI187: 0 | KJ187: 0
A188: 1 | B188: 1 | C188: =ImportedDataRCR!C235 -> 23 | D188: =ImportedDataRCR!D235 -> 0 | E188: =ImportedDataRCR!E235 -> N | F188: =ImportedDataRCR!F235 -> A - Abitativo | G188: =ImportedDataRCR!G235 -> 0 | H188: =ImportedDataRCR!H235 -> 0 | I188: =ImportedDataRCR!I235 -> Privata | J188: =ImportedDataRCR!F$168 -> 10 | K188: =ImportedDataRCR!J235 -> N | L188: =ImportedDataRCR!K235 -> 0 | M188: =ImportedDataRCR!L235 -> 0 | N188: =ImportedDataRCR!M235 -> 0 | O188: =ImportedDataRCR!N235 -> 0 | P188: =ImportedDataRCR!O235 -> N | Q188: N | R188: =ImportedDataRCR!P235 -> 2 | S188: =ImportedDataRCR!R235 -> N | T188: =ImportedDataRCR!S235 -> L0 | U188: =IF($U$163,BeniCulturali!H43,$H$59)*($S188="N") -> 0 | V188: 0.1 | W188: 0.1 | X188: 0 | Y188: 0 | Z188: 0 | AA188: Abitativa-L0 | AB188: 0 | AC188: =MAX(0,(X188)-INDEX(CostoParametrico!$E$3:$L$22,MATCH($AA188,CostoParametrico!$D$3:$D$22,0),1)-AD188-AE188)*OR($E$90<>"S",$F$90=0,$H$1<2)*OR($D$20="P",AND($D$20="R",$BO188="B"),$BO188="A") -> 0 | AD188: =MAX(0,(X188)-INDEX(CostoParametrico!$E$3:$L$22,MATCH($AA188,CostoParametrico!$D$3:$D$22,0),2)-AE188)*OR($D$20="P",AND($D$20="R",$BO188="B"),$BO188="A") -> 0 | AE188: =MAX(0,(X188)-INDEX(CostoParametrico!$E$3:$L$22,MATCH($AA188,CostoParametrico!$D$3:$D$22,0),3))*OR($D$20="P",AND($D$20="R",$BO188="B"),$BO188="A") -> 0 | AF188: 0 | AG188: =MAX(0,(X188+Y188)-INDEX(CostoParametrico!$E$3:$L$22,MATCH($AA188,CostoParametrico!$D$3:$D$22,0),1)-AC188-AD188-AE188-AH188-AI188)*OR($E$90<>"S",$F$90=0,$H$1<2)*OR($D$20="P",AND($D$20="R",$BO188="B"),$BO188="A") -> 0 | AH188: =MAX(0,(X188+Y188)-INDEX(CostoParametrico!$E$3:$L$22,MATCH($AA188,CostoParametrico!$D$3:$D$22,0),2)-AD188-AE188-AI188)*OR($D$20="P",AND($D$20="R",$BO188="B"),$BO188="A") -> 0 | AI188: =MAX(0,(X188+Y188)-INDEX(CostoParametrico!$E$3:$L$22,MATCH($AA188,CostoParametrico!$D$3:$D$22,0),3)-AE188)*OR($D$20="P",AND($D$20="R",$BO188="B"),$BO188="A") -> 0 | AJ188: =INDEX(CostoParametrico!$E$3:$L$22,MATCH($AA188,CostoParametrico!$D$3:$D$22,0),5) -> 400 | AK188: =INDEX(CostoParametrico!$E$3:$L$22,MATCH($AA188,CostoParametrico!$D$3:$D$22,0),6) -> 330 | AL188: =INDEX(CostoParametrico!$E$3:$L$22,MATCH($AA188,CostoParametrico!$D$3:$D$22,0),7) -> 300 | AM188: =INDEX(CostoParametrico!$E$3:$L$22,MATCH($AA188,CostoParametrico!$D$3:$D$22,0),8) -> 300 | AN188: 0 | AO188: 0 | AP188: 0 | AQ188: 0 | AR188: 0 | AS188: 0 | AT188: 0 | AU188: 1 | AV188: 0 | AW188: 0 | AX188: 0 | AY188: 1e-10 | AZ188: 0 | BA188: 0 | BB188: 0 | BC188: 0 | BD188: 0 | BE188: 0 | BF188: 0 | BG188: 0 | BH188: 0 | BI188: 0 | BJ188: 0 | BK188: 0 | BL188: 0 | BM188: 1.1 | BN188: N | BO188: A | BP188: 0 | BQ188: 0 | BR188: N | BS188: 1 | BT188: 0.1 | BU188: 0 | CA188: 0 | CB188: 0 | CC188: 0 | CD188: 0 | CE188: 0 | CF188: 0 | CG188: 0 | CH188: 0 | CI188: 0 | CJ188: 0 | CK188: 0 | CL188: 0 | CM188: 0 | CN188: 0 | CO188: 0 | CP188: 0 | CQ188: 0 | CR188: 0 | CS188: 0 | CT188: 0 | CU188: 0 | CV188: 0 | CW188: 0 | CX188: 0 | CY188: 0 | CZ188: 0 | DA188: 0 | DB188: 0 | DC188: 0 | DD188: 0 | DE188: 0 | DF188: 0 | DG188: 0 | DL188: 0 | DM188: 0 | DN188: 0 | DO188: 0 | DP188: 0 | DQ188: 0 | DR188: 0 | DS188: 0 | DT188: 0 | DU188: 0 | DV188: 0 | DW188: 0 | DX188: 0 | DY188: 0 | DZ188: 0 | EA188: 0 | EB188: 0 | EC188: 0 | ED188: 0 | EE188: 0 | EF188: 0 | EG188: 0 | EH188: 0 | EI188: 0 | EJ188: 0 | EK188: 0 | EL188: 0 | EM188: 0 | EN188: 0 | EO188: 0 | EP188: 0 | EQ188: 0 | ER188: 0 | EW188: 0 | EX188: 0 | EY188: 0 | EZ188: 0 | FA188: 0 | FB188: 0 | FC188: 0 | FD188: 0 | FE188: 0 | FF188: 0 | FG188: 0 | FH188: 0 | FI188: 0 | FJ188: 0 | FK188: 0 | FL188: 0 | FM188: 0 | FN188: 0 | FO188: 0 | FP188: 0 | FQ188: 0 | FR188: 0 | FS188: 0 | FT188: 0 | FU188: 0 | FV188: 0 | FW188: 0 | FX188: 0 | FY188: 0 | FZ188: 0 | GA188: 0 | GB188: 0 | GC188: 0 | GH188: 0 | GI188: =MAX(0,MIN($BB188-SUM(GJ188:$GO188),EX188)) -> 0 | GJ188: =MAX(0,MIN($BB188-SUM(GK188:$GO188),EY188)) -> 0 | GK188: =MAX(0,MIN($BB188-SUM(GL188:$GO188),EZ188)) -> 0 | GL188: =MAX(0,MIN($BB188-SUM(GM188:$GO188),FA188)) -> 0 | GM188: =MAX(0,MIN($BB188-SUM(GN188:$GO188),FB188)) -> 0 | GN188: =MAX(0,MIN($BB188-SUM(GO188:$GO188),FC188)) -> 0 | GO188: 0 | GP188: 0 | GQ188: 0 | GR188: =MAX(0,MIN($BB188-SUM($GI188:$GO188,$GQ188:GQ188),FG188)) -> 0 | GS188: =MAX(0,MIN($BB188-SUM($GI188:$GO188,$GQ188:GR188),FH188)) -> 0 | GT188: =MAX(0,MIN($BB188-SUM($GI188:$GO188,$GQ188:GS188),FI188)) -> 0 | GU188: =MAX(0,MIN($BB188-SUM($GI188:$GO188,$GQ188:GT188),FJ188)) -> 0 | GV188: =MAX(0,MIN($BB188-SUM($GI188:$GO188,$GQ188:GU188),FK188)) -> 0 | GW188: =MAX(0,MIN($BB188-SUM($GI188:$GO188,$GQ188:GV188),FL188)) -> 0 | GX188: =MAX(0,MIN($BB188-SUM($GI188:$GO188,$GQ188:GW188),FM188)) -> 0 | GY188: =MAX(0,MIN($BB188-SUM($GI188:$GO188,$GQ188:GX188),FN188)) -> 0 | GZ188: =MAX(0,MIN($BB188-SUM($GI188:$GO188,$GQ188:GY188),FO188)) -> 0 | HA188: =MAX(0,MIN($BB188-SUM($GI188:$GO188,$GQ188:GZ188),FP188)) -> 0 | HB188: =MAX(0,MIN($BB188-SUM($GI188:$GO188,$GQ188:HA188),FQ188)) -> 0 | HC188: =MAX(0,MIN($BB188-SUM($GI188:$GO188,$GQ188:HB188),FR188)) -> 0 | HD188: =MAX(0,MIN($BB188-SUM($GI188:$GO188,$GQ188:HC188),FS188)) -> 0 | HE188: =MAX(0,MIN($BB188-SUM($GI188:$GO188,$GQ188:HD188),FT188)) -> 0 | HF188: =MAX(0,MIN($BB188-SUM($GI188:$GO188,$GQ188:HE188),FU188)) -> 0 | HG188: =MAX(0,MIN($BB188-SUM($GI188:$GO188,$GQ188:HF188),FV188)) -> 0 | HH188: =MAX(0,MIN($BB188-SUM($GI188:$GO188,$GQ188:HG188),FW188)) -> 0 | HI188: =MAX(0,MIN($BB188-SUM($GI188:$GO188,$GQ188:HH188),FX188)) -> 0 | HJ188: =MAX(0,MIN($BB188-SUM($GI188:$GO188,$GQ188:HI188),FY188)) -> 0 | HK188: =MAX(0,MIN($BB188-SUM($GI188:$GO188,$GQ188:HJ188),FZ188)) -> 0 | HL188: =MAX(0,MIN($BB188-SUM($GI188:$GO188,$GQ188:HK188),GA188)) -> 0 | HM188: =MAX(0,MIN($BB188-SUM($GI188:$GO188,$GQ188:HL188),GB188)) -> 0 | HN188: =MAX(0,MIN($BB188-SUM($GI188:$GO188,$GQ188:HM188),GC188)) -> 0 | HS188: 0 | HT188: 0 | HU188: 0 | HV188: 0 | HW188: 0 | HX188: 0 | HY188: 0 | HZ188: 0 | IA188: 0 | IB188: 0 | IC188: 0 | ID188: 0 | IE188: 0 | IF188: 0 | IG188: 0 | IH188: 0 | II188: 0 | IJ188: 0 | IK188: 0 | IL188: 0 | IM188: 0 | IN188: 0 | IO188: 0 | IP188: 0 | IQ188: 0 | IR188: 0 | IS188: 0 | IT188: 0 | IU188: 0 | IV188: 0 | IW188: 0 | IX188: 0 | IY188: 0 | JD188: 0 | JE188: 0 | JF188: 0 | JG188: 0 | JH188: 0 | JI188: 0 | JJ188: 0 | JK188: 0 | JL188: 0 | JM188: 0 | JN188: 0 | JO188: 0 | JP188: 0 | JQ188: 0 | JR188: 0 | JS188: 0 | JT188: 0 | JU188: 0 | JV188: 0 | JW188: 0 | JX188: 0 | JY188: 0 | JZ188: 0 | KA188: 0 | KB188: 0 | KC188: 0 | KD188: 0 | KE188: 0 | KF188: 0 | KG188: 0 | KH188: 0 | KI188: 0 | KJ188: 0
A189: 1 | B189: 1 | C189: =ImportedDataRCR!C236 -> 24 | D189: =ImportedDataRCR!D236 -> 0 | E189: =ImportedDataRCR!E236 -> N | F189: =ImportedDataRCR!F236 -> A - Abitativo | G189: =ImportedDataRCR!G236 -> 0 | H189: =ImportedDataRCR!H236 -> 0 | I189: =ImportedDataRCR!I236 -> Privata | J189: =ImportedDataRCR!F$168 -> 10 | K189: =ImportedDataRCR!J236 -> N | L189: =ImportedDataRCR!K236 -> 0 | M189: =ImportedDataRCR!L236 -> 0 | N189: =ImportedDataRCR!M236 -> 0 | O189: =ImportedDataRCR!N236 -> 0 | P189: =ImportedDataRCR!O236 -> N | Q189: N | R189: =ImportedDataRCR!P236 -> 2 | S189: =ImportedDataRCR!R236 -> N | T189: =ImportedDataRCR!S236 -> L0 | U189: =IF($U$163,BeniCulturali!H44,$H$59)*($S189="N") -> 0 | V189: 0.1 | W189: 0.1 | X189: 0 | Y189: 0 | Z189: 0 | AA189: Abitativa-L0 | AB189: 0 | AC189: =MAX(0,(X189)-INDEX(CostoParametrico!$E$3:$L$22,MATCH($AA189,CostoParametrico!$D$3:$D$22,0),1)-AD189-AE189)*OR($E$90<>"S",$F$90=0,$H$1<2)*OR($D$20="P",AND($D$20="R",$BO189="B"),$BO189="A") -> 0 | AD189: =MAX(0,(X189)-INDEX(CostoParametrico!$E$3:$L$22,MATCH($AA189,CostoParametrico!$D$3:$D$22,0),2)-AE189)*OR($D$20="P",AND($D$20="R",$BO189="B"),$BO189="A") -> 0 | AE189: =MAX(0,(X189)-INDEX(CostoParametrico!$E$3:$L$22,MATCH($AA189,CostoParametrico!$D$3:$D$22,0),3))*OR($D$20="P",AND($D$20="R",$BO189="B"),$BO189="A") -> 0 | AF189: 0 | AG189: =MAX(0,(X189+Y189)-INDEX(CostoParametrico!$E$3:$L$22,MATCH($AA189,CostoParametrico!$D$3:$D$22,0),1)-AC189-AD189-AE189-AH189-AI189)*OR($E$90<>"S",$F$90=0,$H$1<2)*OR($D$20="P",AND($D$20="R",$BO189="B"),$BO189="A") -> 0 | AH189: =MAX(0,(X189+Y189)-INDEX(CostoParametrico!$E$3:$L$22,MATCH($AA189,CostoParametrico!$D$3:$D$22,0),2)-AD189-AE189-AI189)*OR($D$20="P",AND($D$20="R",$BO189="B"),$BO189="A") -> 0 | AI189: =MAX(0,(X189+Y189)-INDEX(CostoParametrico!$E$3:$L$22,MATCH($AA189,CostoParametrico!$D$3:$D$22,0),3)-AE189)*OR($D$20="P",AND($D$20="R",$BO189="B"),$BO189="A") -> 0 | AJ189: =INDEX(CostoParametrico!$E$3:$L$22,MATCH($AA189,CostoParametrico!$D$3:$D$22,0),5) -> 400 | AK189: =INDEX(CostoParametrico!$E$3:$L$22,MATCH($AA189,CostoParametrico!$D$3:$D$22,0),6) -> 330 | AL189: =INDEX(CostoParametrico!$E$3:$L$22,MATCH($AA189,CostoParametrico!$D$3:$D$22,0),7) -> 300 | AM189: =INDEX(CostoParametrico!$E$3:$L$22,MATCH($AA189,CostoParametrico!$D$3:$D$22,0),8) -> 300 | AN189: 0 | AO189: 0 | AP189: 0 | AQ189: 0 | AR189: 0 | AS189: 0 | AT189: 0 | AU189: 1 | AV189: 0 | AW189: 0 | AX189: 0 | AY189: 1e-10 | AZ189: 0 | BA189: 0 | BB189: 0 | BC189: 0 | BD189: 0 | BE189: 0 | BF189: 0 | BG189: 0 | BH189: 0 | BI189: 0 | BJ189: 0 | BK189: 0 | BL189: 0 | BM189: 1.1 | BN189: N | BO189: A | BP189: 0 | BQ189: 0 | BR189: N | BS189: 1 | BT189: 0.1 | BU189: 0 | CA189: 0 | CB189: 0 | CC189: 0 | CD189: 0 | CE189: 0 | CF189: 0 | CG189: 0 | CH189: 0 | CI189: 0 | CJ189: 0 | CK189: 0 | CL189: 0 | CM189: 0 | CN189: 0 | CO189: 0 | CP189: 0 | CQ189: 0 | CR189: 0 | CS189: 0 | CT189: 0 | CU189: 0 | CV189: 0 | CW189: 0 | CX189: 0 | CY189: 0 | CZ189: 0 | DA189: 0 | DB189: 0 | DC189: 0 | DD189: 0 | DE189: 0 | DF189: 0 | DG189: 0 | DL189: 0 | DM189: 0 | DN189: 0 | DO189: 0 | DP189: 0 | DQ189: 0 | DR189: 0 | DS189: 0 | DT189: 0 | DU189: 0 | DV189: 0 | DW189: 0 | DX189: 0 | DY189: 0 | DZ189: 0 | EA189: 0 | EB189: =FM189-GX189 -> 0 | EC189: 0 | ED189: 0 | EE189: 0 | EF189: 0 | EG189: 0 | EH189: 0 | EI189: 0 | EJ189: 0 | EK189: 0 | EL189: 0 | EM189: 0 | EN189: 0 | EO189: 0 | EP189: 0 | EQ189: 0 | ER189: 0 | EW189: 0 | EX189: 0 | EY189: 0 | EZ189: 0 | FA189: 0 | FB189: 0 | FC189: 0 | FD189: 0 | FE189: 0 | FF189: 0 | FG189: 0 | FH189: 0 | FI189: 0 | FJ189: 0 | FK189: 0 | FL189: 0 | FM189: 0 | FN189: 0 | FO189: 0 | FP189: 0 | FQ189: 0 | FR189: 0 | FS189: 0 | FT189: 0 | FU189: 0 | FV189: 0 | FW189: 0 | FX189: 0 | FY189: 0 | FZ189: 0 | GA189: 0 | GB189: 0 | GC189: 0 | GH189: 0 | GI189: =MAX(0,MIN($BB189-SUM(GJ189:$GO189),EX189)) -> 0 | GJ189: =MAX(0,MIN($BB189-SUM(GK189:$GO189),EY189)) -> 0 | GK189: =MAX(0,MIN($BB189-SUM(GL189:$GO189),EZ189)) -> 0 | GL189: =MAX(0,MIN($BB189-SUM(GM189:$GO189),FA189)) -> 0 | GM189: =MAX(0,MIN($BB189-SUM(GN189:$GO189),FB189)) -> 0 | GN189: =MAX(0,MIN($BB189-SUM(GO189:$GO189),FC189)) -> 0 | GO189: 0 | GP189: 0 | GQ189: 0 | GR189: =MAX(0,MIN($BB189-SUM($GI189:$GO189,$GQ189:GQ189),FG189)) -> 0 | GS189: =MAX(0,MIN($BB189-SUM($GI189:$GO189,$GQ189:GR189),FH189)) -> 0 | GT189: =MAX(0,MIN($BB189-SUM($GI189:$GO189,$GQ189:GS189),FI189)) -> 0 | GU189: =MAX(0,MIN($BB189-SUM($GI189:$GO189,$GQ189:GT189),FJ189)) -> 0 | GV189: =MAX(0,MIN($BB189-SUM($GI189:$GO189,$GQ189:GU189),FK189)) -> 0 | GW189: =MAX(0,MIN($BB189-SUM($GI189:$GO189,$GQ189:GV189),FL189)) -> 0 | GX189: =MAX(0,MIN($BB189-SUM($GI189:$GO189,$GQ189:GW189),FM189)) -> 0 | GY189: =MAX(0,MIN($BB189-SUM($GI189:$GO189,$GQ189:GX189),FN189)) -> 0 | GZ189: =MAX(0,MIN($BB189-SUM($GI189:$GO189,$GQ189:GY189),FO189)) -> 0 | HA189: =MAX(0,MIN($BB189-SUM($GI189:$GO189,$GQ189:GZ189),FP189)) -> 0 | HB189: =MAX(0,MIN($BB189-SUM($GI189:$GO189,$GQ189:HA189),FQ189)) -> 0 | HC189: =MAX(0,MIN($BB189-SUM($GI189:$GO189,$GQ189:HB189),FR189)) -> 0 | HD189: =MAX(0,MIN($BB189-SUM($GI189:$GO189,$GQ189:HC189),FS189)) -> 0 | HE189: =MAX(0,MIN($BB189-SUM($GI189:$GO189,$GQ189:HD189),FT189)) -> 0 | HF189: =MAX(0,MIN($BB189-SUM($GI189:$GO189,$GQ189:HE189),FU189)) -> 0 | HG189: =MAX(0,MIN($BB189-SUM($GI189:$GO189,$GQ189:HF189),FV189)) -> 0 | HH189: =MAX(0,MIN($BB189-SUM($GI189:$GO189,$GQ189:HG189),FW189)) -> 0 | HI189: =MAX(0,MIN($BB189-SUM($GI189:$GO189,$GQ189:HH189),FX189)) -> 0 | HJ189: =MAX(0,MIN($BB189-SUM($GI189:$GO189,$GQ189:HI189),FY189)) -> 0 | HK189: =MAX(0,MIN($BB189-SUM($GI189:$GO189,$GQ189:HJ189),FZ189)) -> 0 | HL189: =MAX(0,MIN($BB189-SUM($GI189:$GO189,$GQ189:HK189),GA189)) -> 0 | HM189: =MAX(0,MIN($BB189-SUM($GI189:$GO189,$GQ189:HL189),GB189)) -> 0 | HN189: =MAX(0,MIN($BB189-SUM($GI189:$GO189,$GQ189:HM189),GC189)) -> 0 | HS189: 0 | HT189: 0 | HU189: 0 | HV189: 0 | HW189: 0 | HX189: 0 | HY189: 0 | HZ189: 0 | IA189: 0 | IB189: 0 | IC189: 0 | ID189: 0 | IE189: 0 | IF189: 0 | IG189: 0 | IH189: 0 | II189: 0 | IJ189: 0 | IK189: 0 | IL189: 0 | IM189: 0 | IN189: 0 | IO189: 0 | IP189: 0 | IQ189: 0 | IR189: 0 | IS189: 0 | IT189: 0 | IU189: 0 | IV189: 0 | IW189: 0 | IX189: 0 | IY189: 0 | JD189: 0 | JE189: 0 | JF189: 0 | JG189: 0 | JH189: 0 | JI189: 0 | JJ189: 0 | JK189: 0 | JL189: 0 | JM189: 0 | JN189: 0 | JO189: 0 | JP189: 0 | JQ189: 0 | JR189: 0 | JS189: 0 | JT189: 0 | JU189: 0 | JV189: 0 | JW189: 0 | JX189: 0 | JY189: 0 | JZ189: 0 | KA189: 0 | KB189: 0 | KC189: 0 | KD189: 0 | KE189: 0 | KF189: 0 | KG189: 0 | KH189: 0 | KI189: 0 | KJ189: 0
A190: 1 | B190: 1 | C190: =ImportedDataRCR!C237 -> 25 | D190: =ImportedDataRCR!D237 -> 0 | E190: =ImportedDataRCR!E237 -> N | F190: =ImportedDataRCR!F237 -> A - Abitativo | G190: =ImportedDataRCR!G237 -> 0 | H190: =ImportedDataRCR!H237 -> 0 | I190: =ImportedDataRCR!I237 -> Privata | J190: =ImportedDataRCR!F$168 -> 10 | K190: =ImportedDataRCR!J237 -> N | L190: =ImportedDataRCR!K237 -> 0 | M190: =ImportedDataRCR!L237 -> 0 | N190: =ImportedDataRCR!M237 -> 0 | O190: =ImportedDataRCR!N237 -> 0 | P190: =ImportedDataRCR!O237 -> N | Q190: N | R190: =ImportedDataRCR!P237 -> 2 | S190: =ImportedDataRCR!R237 -> N | T190: =ImportedDataRCR!S237 -> L0 | U190: =IF($U$163,BeniCulturali!H45,$H$59)*($S190="N") -> 0 | V190: 0.1 | W190: 0.1 | X190: 0 | Y190: 0 | Z190: 0 | AA190: Abitativa-L0 | AB190: 0 | AC190: =MAX(0,(X190)-INDEX(CostoParametrico!$E$3:$L$22,MATCH($AA190,CostoParametrico!$D$3:$D$22,0),1)-AD190-AE190)*OR($E$90<>"S",$F$90=0,$H$1<2)*OR($D$20="P",AND($D$20="R",$BO190="B"),$BO190="A") -> 0 | AD190: =MAX(0,(X190)-INDEX(CostoParametrico!$E$3:$L$22,MATCH($AA190,CostoParametrico!$D$3:$D$22,0),2)-AE190)*OR($D$20="P",AND($D$20="R",$BO190="B"),$BO190="A") -> 0 | AE190: =MAX(0,(X190)-INDEX(CostoParametrico!$E$3:$L$22,MATCH($AA190,CostoParametrico!$D$3:$D$22,0),3))*OR($D$20="P",AND($D$20="R",$BO190="B"),$BO190="A") -> 0 | AF190: 0 | AG190: =MAX(0,(X190+Y190)-INDEX(CostoParametrico!$E$3:$L$22,MATCH($AA190,CostoParametrico!$D$3:$D$22,0),1)-AC190-AD190-AE190-AH190-AI190)*OR($E$90<>"S",$F$90=0,$H$1<2)*OR($D$20="P",AND($D$20="R",$BO190="B"),$BO190="A") -> 0 | AH190: =MAX(0,(X190+Y190)-INDEX(CostoParametrico!$E$3:$L$22,MATCH($AA190,CostoParametrico!$D$3:$D$22,0),2)-AD190-AE190-AI190)*OR($D$20="P",AND($D$20="R",$BO190="B"),$BO190="A") -> 0 | AI190: =MAX(0,(X190+Y190)-INDEX(CostoParametrico!$E$3:$L$22,MATCH($AA190,CostoParametrico!$D$3:$D$22,0),3)-AE190)*OR($D$20="P",AND($D$20="R",$BO190="B"),$BO190="A") -> 0 | AJ190: =INDEX(CostoParametrico!$E$3:$L$22,MATCH($AA190,CostoParametrico!$D$3:$D$22,0),5) -> 400 | AK190: =INDEX(CostoParametrico!$E$3:$L$22,MATCH($AA190,CostoParametrico!$D$3:$D$22,0),6) -> 330 | AL190: =INDEX(CostoParametrico!$E$3:$L$22,MATCH($AA190,CostoParametrico!$D$3:$D$22,0),7) -> 300 | AM190: =INDEX(CostoParametrico!$E$3:$L$22,MATCH($AA190,CostoParametrico!$D$3:$D$22,0),8) -> 300 | AN190: 0 | AO190: 0 | AP190: 0 | AQ190: 0 | AR190: 0 | AS190: 0 | AT190: 0 | AU190: 1 | AV190: 0 | AW190: 0 | AX190: 0 | AY190: 1e-10 | AZ190: 0 | BA190: 0 | BB190: 0 | BC190: 0 | BD190: 0 | BE190: 0 | BF190: 0 | BG190: 0 | BH190: 0 | BI190: 0 | BJ190: 0 | BK190: 0 | BL190: 0 | BM190: 1.1 | BN190: N | BO190: A | BP190: 0 | BQ190: 0 | BR190: N | BS190: 1 | BT190: 0.1 | BU190: 0 | CA190: 0 | CB190: 0 | CC190: 0 | CD190: 0 | CE190: 0 | CF190: 0 | CG190: 0 | CH190: 0 | CI190: 0 | CJ190: 0 | CK190: 0 | CL190: 0 | CM190: 0 | CN190: 0 | CO190: 0 | CP190: 0 | CQ190: 0 | CR190: 0 | CS190: 0 | CT190: 0 | CU190: 0 | CV190: 0 | CW190: 0 | CX190: 0 | CY190: 0 | CZ190: 0 | DA190: 0 | DB190: 0 | DC190: 0 | DD190: 0 | DE190: 0 | DF190: 0 | DG190: 0 | DL190: 0 | DM190: =EX190-GI190 -> 0 | DN190: 0 | DO190: 0 | DP190: 0 | DQ190: 0 | DR190: 0 | DS190: 0 | DT190: 0 | DU190: 0 | DV190: 0 | DW190: 0 | DX190: 0 | DY190: 0 | DZ190: 0 | EA190: 0 | EB190: 0 | EC190: 0 | ED190: 0 | EE190: 0 | EF190: 0 | EG190: 0 | EH190: 0 | EI190: 0 | EJ190: 0 | EK190: 0 | EL190: 0 | EM190: 0 | EN190: 0 | EO190: 0 | EP190: 0 | EQ190: 0 | ER190: 0 | EW190: 0 | EX190: 0 | EY190: 0 | EZ190: 0 | FA190: 0 | FB190: 0 | FC190: 0 | FD190: 0 | FE190: 0 | FF190: 0 | FG190: 0 | FH190: 0 | FI190: 0 | FJ190: 0 | FK190: 0 | FL190: 0 | FM190: 0 | FN190: 0 | FO190: 0 | FP190: 0 | FQ190: 0 | FR190: 0 | FS190: 0 | FT190: 0 | FU190: 0 | FV190: 0 | FW190: 0 | FX190: 0 | FY190: 0 | FZ190: 0 | GA190: 0 | GB190: 0 | GC190: 0 | GH190: 0 | GI190: =MAX(0,MIN($BB190-SUM(GJ190:$GO190),EX190)) -> 0 | GJ190: =MAX(0,MIN($BB190-SUM(GK190:$GO190),EY190)) -> 0 | GK190: =MAX(0,MIN($BB190-SUM(GL190:$GO190),EZ190)) -> 0 | GL190: =MAX(0,MIN($BB190-SUM(GM190:$GO190),FA190)) -> 0 | GM190: =MAX(0,MIN($BB190-SUM(GN190:$GO190),FB190)) -> 0 | GN190: =MAX(0,MIN($BB190-SUM(GO190:$GO190),FC190)) -> 0 | GO190: 0 | GP190: 0 | GQ190: 0 | GR190: =MAX(0,MIN($BB190-SUM($GI190:$GO190,$GQ190:GQ190),FG190)) -> 0 | GS190: =MAX(0,MIN($BB190-SUM($GI190:$GO190,$GQ190:GR190),FH190)) -> 0 | GT190: =MAX(0,MIN($BB190-SUM($GI190:$GO190,$GQ190:GS190),FI190)) -> 0 | GU190: =MAX(0,MIN($BB190-SUM($GI190:$GO190,$GQ190:GT190),FJ190)) -> 0 | GV190: =MAX(0,MIN($BB190-SUM($GI190:$GO190,$GQ190:GU190),FK190)) -> 0 | GW190: =MAX(0,MIN($BB190-SUM($GI190:$GO190,$GQ190:GV190),FL190)) -> 0 | GX190: =MAX(0,MIN($BB190-SUM($GI190:$GO190,$GQ190:GW190),FM190)) -> 0 | GY190: =MAX(0,MIN($BB190-SUM($GI190:$GO190,$GQ190:GX190),FN190)) -> 0 | GZ190: =MAX(0,MIN($BB190-SUM($GI190:$GO190,$GQ190:GY190),FO190)) -> 0 | HA190: =MAX(0,MIN($BB190-SUM($GI190:$GO190,$GQ190:GZ190),FP190)) -> 0 | HB190: =MAX(0,MIN($BB190-SUM($GI190:$GO190,$GQ190:HA190),FQ190)) -> 0 | HC190: =MAX(0,MIN($BB190-SUM($GI190:$GO190,$GQ190:HB190),FR190)) -> 0 | HD190: =MAX(0,MIN($BB190-SUM($GI190:$GO190,$GQ190:HC190),FS190)) -> 0 | HE190: =MAX(0,MIN($BB190-SUM($GI190:$GO190,$GQ190:HD190),FT190)) -> 0 | HF190: =MAX(0,MIN($BB190-SUM($GI190:$GO190,$GQ190:HE190),FU190)) -> 0 | HG190: =MAX(0,MIN($BB190-SUM($GI190:$GO190,$GQ190:HF190),FV190)) -> 0 | HH190: =MAX(0,MIN($BB190-SUM($GI190:$GO190,$GQ190:HG190),FW190)) -> 0 | HI190: =MAX(0,MIN($BB190-SUM($GI190:$GO190,$GQ190:HH190),FX190)) -> 0 | HJ190: =MAX(0,MIN($BB190-SUM($GI190:$GO190,$GQ190:HI190),FY190)) -> 0 | HK190: =MAX(0,MIN($BB190-SUM($GI190:$GO190,$GQ190:HJ190),FZ190)) -> 0 | HL190: =MAX(0,MIN($BB190-SUM($GI190:$GO190,$GQ190:HK190),GA190)) -> 0 | HM190: =MAX(0,MIN($BB190-SUM($GI190:$GO190,$GQ190:HL190),GB190)) -> 0 | HN190: =MAX(0,MIN($BB190-SUM($GI190:$GO190,$GQ190:HM190),GC190)) -> 0 | HS190: 0 | HT190: 0 | HU190: 0 | HV190: 0 | HW190: 0 | HX190: 0 | HY190: 0 | HZ190: 0 | IA190: 0 | IB190: 0 | IC190: 0 | ID190: 0 | IE190: 0 | IF190: 0 | IG190: 0 | IH190: 0 | II190: 0 | IJ190: 0 | IK190: 0 | IL190: 0 | IM190: 0 | IN190: 0 | IO190: 0 | IP190: 0 | IQ190: 0 | IR190: 0 | IS190: 0 | IT190: 0 | IU190: 0 | IV190: 0 | IW190: 0 | IX190: 0 | IY190: 0 | JD190: 0 | JE190: 0 | JF190: 0 | JG190: 0 | JH190: 0 | JI190: 0 | JJ190: 0 | JK190: 0 | JL190: 0 | JM190: 0 | JN190: 0 | JO190: 0 | JP190: 0 | JQ190: 0 | JR190: 0 | JS190: 0 | JT190: 0 | JU190: 0 | JV190: 0 | JW190: 0 | JX190: 0 | JY190: 0 | JZ190: 0 | KA190: 0 | KB190: 0 | KC190: 0 | KD190: 0 | KE190: 0 | KF190: 0 | KG190: 0 | KH190: 0 | KI190: 0 | KJ190: 0
A191: 1 | B191: 1 | C191: =ImportedDataRCR!C238 -> 26 | D191: =ImportedDataRCR!D238 -> 0 | E191: =ImportedDataRCR!E238 -> N | F191: =ImportedDataRCR!F238 -> A - Abitativo | G191: =ImportedDataRCR!G238 -> 0 | H191: =ImportedDataRCR!H238 -> 0 | I191: =ImportedDataRCR!I238 -> Privata | J191: =ImportedDataRCR!F$168 -> 10 | K191: =ImportedDataRCR!J238 -> N | L191: =ImportedDataRCR!K238 -> 0 | M191: =ImportedDataRCR!L238 -> 0 | N191: =ImportedDataRCR!M238 -> 0 | O191: =ImportedDataRCR!N238 -> 0 | P191: =ImportedDataRCR!O238 -> N | Q191: N | R191: =ImportedDataRCR!P238 -> 2 | S191: =ImportedDataRCR!R238 -> N | T191: =ImportedDataRCR!S238 -> L0 | U191: =IF($U$163,BeniCulturali!H46,$H$59)*($S191="N") -> 0 | V191: 0.1 | W191: 0.1 | X191: 0 | Y191: 0 | Z191: 0 | AA191: Abitativa-L0 | AB191: 0 | AC191: =MAX(0,(X191)-INDEX(CostoParametrico!$E$3:$L$22,MATCH($AA191,CostoParametrico!$D$3:$D$22,0),1)-AD191-AE191)*OR($E$90<>"S",$F$90=0,$H$1<2)*OR($D$20="P",AND($D$20="R",$BO191="B"),$BO191="A") -> 0 | AD191: =MAX(0,(X191)-INDEX(CostoParametrico!$E$3:$L$22,MATCH($AA191,CostoParametrico!$D$3:$D$22,0),2)-AE191)*OR($D$20="P",AND($D$20="R",$BO191="B"),$BO191="A") -> 0 | AE191: =MAX(0,(X191)-INDEX(CostoParametrico!$E$3:$L$22,MATCH($AA191,CostoParametrico!$D$3:$D$22,0),3))*OR($D$20="P",AND($D$20="R",$BO191="B"),$BO191="A") -> 0 | AF191: 0 | AG191: =MAX(0,(X191+Y191)-INDEX(CostoParametrico!$E$3:$L$22,MATCH($AA191,CostoParametrico!$D$3:$D$22,0),1)-AC191-AD191-AE191-AH191-AI191)*OR($E$90<>"S",$F$90=0,$H$1<2)*OR($D$20="P",AND($D$20="R",$BO191="B"),$BO191="A") -> 0 | AH191: =MAX(0,(X191+Y191)-INDEX(CostoParametrico!$E$3:$L$22,MATCH($AA191,CostoParametrico!$D$3:$D$22,0),2)-AD191-AE191-AI191)*OR($D$20="P",AND($D$20="R",$BO191="B"),$BO191="A") -> 0 | AI191: =MAX(0,(X191+Y191)-INDEX(CostoParametrico!$E$3:$L$22,MATCH($AA191,CostoParametrico!$D$3:$D$22,0),3)-AE191)*OR($D$20="P",AND($D$20="R",$BO191="B"),$BO191="A") -> 0 | AJ191: =INDEX(CostoParametrico!$E$3:$L$22,MATCH($AA191,CostoParametrico!$D$3:$D$22,0),5) -> 400 | AK191: =INDEX(CostoParametrico!$E$3:$L$22,MATCH($AA191,CostoParametrico!$D$3:$D$22,0),6) -> 330 | AL191: =INDEX(CostoParametrico!$E$3:$L$22,MATCH($AA191,CostoParametrico!$D$3:$D$22,0),7) -> 300 | AM191: =INDEX(CostoParametrico!$E$3:$L$22,MATCH($AA191,CostoParametrico!$D$3:$D$22,0),8) -> 300 | AN191: 0 | AO191: 0 | AP191: 0 | AQ191: 0 | AR191: 0 | AS191: 0 | AT191: 0 | AU191: 1 | AV191: 0 | AW191: 0 | AX191: 0 | AY191: 1e-10 | AZ191: 0 | BA191: 0 | BB191: 0 | BC191: 0 | BD191: 0 | BE191: 0 | BF191: 0 | BG191: 0 | BH191: 0 | BI191: 0 | BJ191: 0 | BK191: 0 | BL191: 0 | BM191: 1.1 | BN191: N | BO191: A | BP191: 0 | BQ191: 0 | BR191: N | BS191: 1 | BT191: 0.1 | BU191: 0 | CA191: 0 | CB191: 0 | CC191: 0 | CD191: 0 | CE191: 0 | CF191: 0 | CG191: 0 | CH191: 0 | CI191: 0 | CJ191: 0 | CK191: 0 | CL191: 0 | CM191: 0 | CN191: 0 | CO191: 0 | CP191: 0 | CQ191: 0 | CR191: 0 | CS191: 0 | CT191: 0 | CU191: 0 | CV191: 0 | CW191: 0 | CX191: 0 | CY191: 0 | CZ191: 0 | DA191: 0 | DB191: 0 | DC191: 0 | DD191: 0 | DE191: 0 | DF191: 0 | DG191: 0 | DL191: 0 | DM191: 0 | DN191: 0 | DO191: 0 | DP191: 0 | DQ191: 0 | DR191: 0 | DS191: 0 | DT191: 0 | DU191: 0 | DV191: 0 | DW191: 0 | DX191: 0 | DY191: 0 | DZ191: 0 | EA191: 0 | EB191: 0 | EC191: 0 | ED191: 0 | EE191: 0 | EF191: 0 | EG191: 0 | EH191: 0 | EI191: 0 | EJ191: 0 | EK191: 0 | EL191: 0 | EM191: 0 | EN191: 0 | EO191: 0 | EP191: 0 | EQ191: 0 | ER191: 0 | EW191: 0 | EX191: 0 | EY191: 0 | EZ191: 0 | FA191: 0 | FB191: 0 | FC191: 0 | FD191: 0 | FE191: 0 | FF191: 0 | FG191: 0 | FH191: 0 | FI191: 0 | FJ191: 0 | FK191: 0 | FL191: 0 | FM191: 0 | FN191: 0 | FO191: 0 | FP191: 0 | FQ191: 0 | FR191: 0 | FS191: 0 | FT191: 0 | FU191: 0 | FV191: 0 | FW191: 0 | FX191: 0 | FY191: 0 | FZ191: 0 | GA191: 0 | GB191: 0 | GC191: 0 | GH191: 0 | GI191: =MAX(0,MIN($BB191-SUM(GJ191:$GO191),EX191)) -> 0 | GJ191: =MAX(0,MIN($BB191-SUM(GK191:$GO191),EY191)) -> 0 | GK191: =MAX(0,MIN($BB191-SUM(GL191:$GO191),EZ191)) -> 0 | GL191: =MAX(0,MIN($BB191-SUM(GM191:$GO191),FA191)) -> 0 | GM191: =MAX(0,MIN($BB191-SUM(GN191:$GO191),FB191)) -> 0 | GN191: =MAX(0,MIN($BB191-SUM(GO191:$GO191),FC191)) -> 0 | GO191: 0 | GP191: 0 | GQ191: 0 | GR191: =MAX(0,MIN($BB191-SUM($GI191:$GO191,$GQ191:GQ191),FG191)) -> 0 | GS191: =MAX(0,MIN($BB191-SUM($GI191:$GO191,$GQ191:GR191),FH191)) -> 0 | GT191: =MAX(0,MIN($BB191-SUM($GI191:$GO191,$GQ191:GS191),FI191)) -> 0 | GU191: =MAX(0,MIN($BB191-SUM($GI191:$GO191,$GQ191:GT191),FJ191)) -> 0 | GV191: =MAX(0,MIN($BB191-SUM($GI191:$GO191,$GQ191:GU191),FK191)) -> 0 | GW191: =MAX(0,MIN($BB191-SUM($GI191:$GO191,$GQ191:GV191),FL191)) -> 0 | GX191: =MAX(0,MIN($BB191-SUM($GI191:$GO191,$GQ191:GW191),FM191)) -> 0 | GY191: =MAX(0,MIN($BB191-SUM($GI191:$GO191,$GQ191:GX191),FN191)) -> 0 | GZ191: =MAX(0,MIN($BB191-SUM($GI191:$GO191,$GQ191:GY191),FO191)) -> 0 | HA191: =MAX(0,MIN($BB191-SUM($GI191:$GO191,$GQ191:GZ191),FP191)) -> 0 | HB191: =MAX(0,MIN($BB191-SUM($GI191:$GO191,$GQ191:HA191),FQ191)) -> 0 | HC191: =MAX(0,MIN($BB191-SUM($GI191:$GO191,$GQ191:HB191),FR191)) -> 0 | HD191: =MAX(0,MIN($BB191-SUM($GI191:$GO191,$GQ191:HC191),FS191)) -> 0 | HE191: =MAX(0,MIN($BB191-SUM($GI191:$GO191,$GQ191:HD191),FT191)) -> 0 | HF191: =MAX(0,MIN($BB191-SUM($GI191:$GO191,$GQ191:HE191),FU191)) -> 0 | HG191: =MAX(0,MIN($BB191-SUM($GI191:$GO191,$GQ191:HF191),FV191)) -> 0 | HH191: =MAX(0,MIN($BB191-SUM($GI191:$GO191,$GQ191:HG191),FW191)) -> 0 | HI191: =MAX(0,MIN($BB191-SUM($GI191:$GO191,$GQ191:HH191),FX191)) -> 0 | HJ191: =MAX(0,MIN($BB191-SUM($GI191:$GO191,$GQ191:HI191),FY191)) -> 0 | HK191: =MAX(0,MIN($BB191-SUM($GI191:$GO191,$GQ191:HJ191),FZ191)) -> 0 | HL191: =MAX(0,MIN($BB191-SUM($GI191:$GO191,$GQ191:HK191),GA191)) -> 0 | HM191: =MAX(0,MIN($BB191-SUM($GI191:$GO191,$GQ191:HL191),GB191)) -> 0 | HN191: =MAX(0,MIN($BB191-SUM($GI191:$GO191,$GQ191:HM191),GC191)) -> 0 | HS191: 0 | HT191: 0 | HU191: 0 | HV191: 0 | HW191: 0 | HX191: 0 | HY191: 0 | HZ191: 0 | IA191: 0 | IB191: 0 | IC191: 0 | ID191: 0 | IE191: 0 | IF191: 0 | IG191: 0 | IH191: 0 | II191: 0 | IJ191: 0 | IK191: 0 | IL191: 0 | IM191: 0 | IN191: 0 | IO191: 0 | IP191: 0 | IQ191: 0 | IR191: 0 | IS191: 0 | IT191: 0 | IU191: 0 | IV191: 0 | IW191: 0 | IX191: 0 | IY191: 0 | JD191: 0 | JE191: 0 | JF191: 0 | JG191: 0 | JH191: 0 | JI191: 0 | JJ191: 0 | JK191: 0 | JL191: 0 | JM191: 0 | JN191: 0 | JO191: 0 | JP191: 0 | JQ191: 0 | JR191: 0 | JS191: 0 | JT191: 0 | JU191: 0 | JV191: 0 | JW191: 0 | JX191: 0 | JY191: 0 | JZ191: 0 | KA191: 0 | KB191: 0 | KC191: 0 | KD191: 0 | KE191: 0 | KF191: 0 | KG191: 0 | KH191: 0 | KI191: 0 | KJ191: 0
A192: 1 | B192: 1 | C192: =ImportedDataRCR!C239 -> 27 | D192: =ImportedDataRCR!D239 -> 0 | E192: =ImportedDataRCR!E239 -> N | F192: =ImportedDataRCR!F239 -> A - Abitativo | G192: =ImportedDataRCR!G239 -> 0 | H192: =ImportedDataRCR!H239 -> 0 | I192: =ImportedDataRCR!I239 -> Privata | J192: =ImportedDataRCR!F$168 -> 10 | K192: =ImportedDataRCR!J239 -> N | L192: =ImportedDataRCR!K239 -> 0 | M192: =ImportedDataRCR!L239 -> 0 | N192: =ImportedDataRCR!M239 -> 0 | O192: =ImportedDataRCR!N239 -> 0 | P192: =ImportedDataRCR!O239 -> N | Q192: N | R192: =ImportedDataRCR!P239 -> 2 | S192: =ImportedDataRCR!R239 -> N | T192: =ImportedDataRCR!S239 -> L0 | U192: =IF($U$163,BeniCulturali!H47,$H$59)*($S192="N") -> 0 | V192: 0.1 | W192: 0.1 | X192: 0 | Y192: 0 | Z192: 0 | AA192: Abitativa-L0 | AB192: 0 | AC192: =MAX(0,(X192)-INDEX(CostoParametrico!$E$3:$L$22,MATCH($AA192,CostoParametrico!$D$3:$D$22,0),1)-AD192-AE192)*OR($E$90<>"S",$F$90=0,$H$1<2)*OR($D$20="P",AND($D$20="R",$BO192="B"),$BO192="A") -> 0 | AD192: =MAX(0,(X192)-INDEX(CostoParametrico!$E$3:$L$22,MATCH($AA192,CostoParametrico!$D$3:$D$22,0),2)-AE192)*OR($D$20="P",AND($D$20="R",$BO192="B"),$BO192="A") -> 0 | AE192: =MAX(0,(X192)-INDEX(CostoParametrico!$E$3:$L$22,MATCH($AA192,CostoParametrico!$D$3:$D$22,0),3))*OR($D$20="P",AND($D$20="R",$BO192="B"),$BO192="A") -> 0 | AF192: 0 | AG192: =MAX(0,(X192+Y192)-INDEX(CostoParametrico!$E$3:$L$22,MATCH($AA192,CostoParametrico!$D$3:$D$22,0),1)-AC192-AD192-AE192-AH192-AI192)*OR($E$90<>"S",$F$90=0,$H$1<2)*OR($D$20="P",AND($D$20="R",$BO192="B"),$BO192="A") -> 0 | AH192: =MAX(0,(X192+Y192)-INDEX(CostoParametrico!$E$3:$L$22,MATCH($AA192,CostoParametrico!$D$3:$D$22,0),2)-AD192-AE192-AI192)*OR($D$20="P",AND($D$20="R",$BO192="B"),$BO192="A") -> 0 | AI192: =MAX(0,(X192+Y192)-INDEX(CostoParametrico!$E$3:$L$22,MATCH($AA192,CostoParametrico!$D$3:$D$22,0),3)-AE192)*OR($D$20="P",AND($D$20="R",$BO192="B"),$BO192="A") -> 0 | AJ192: =INDEX(CostoParametrico!$E$3:$L$22,MATCH($AA192,CostoParametrico!$D$3:$D$22,0),5) -> 400 | AK192: =INDEX(CostoParametrico!$E$3:$L$22,MATCH($AA192,CostoParametrico!$D$3:$D$22,0),6) -> 330 | AL192: =INDEX(CostoParametrico!$E$3:$L$22,MATCH($AA192,CostoParametrico!$D$3:$D$22,0),7) -> 300 | AM192: =INDEX(CostoParametrico!$E$3:$L$22,MATCH($AA192,CostoParametrico!$D$3:$D$22,0),8) -> 300 | AN192: 0 | AO192: 0 | AP192: 0 | AQ192: 0 | AR192: 0 | AS192: 0 | AT192: 0 | AU192: 1 | AV192: 0 | AW192: 0 | AX192: 0 | AY192: 1e-10 | AZ192: 0 | BA192: 0 | BB192: 0 | BC192: 0 | BD192: 0 | BE192: 0 | BF192: 0 | BG192: 0 | BH192: 0 | BI192: 0 | BJ192: 0 | BK192: 0 | BL192: 0 | BM192: 1.1 | BN192: N | BO192: A | BP192: 0 | BQ192: 0 | BR192: N | BS192: 1 | BT192: 0.1 | BU192: 0 | CA192: 0 | CB192: 0 | CC192: 0 | CD192: 0 | CE192: 0 | CF192: 0 | CG192: 0 | CH192: 0 | CI192: 0 | CJ192: 0 | CK192: 0 | CL192: 0 | CM192: 0 | CN192: 0 | CO192: 0 | CP192: 0 | CQ192: 0 | CR192: 0 | CS192: 0 | CT192: 0 | CU192: 0 | CV192: 0 | CW192: 0 | CX192: 0 | CY192: 0 | CZ192: 0 | DA192: 0 | DB192: 0 | DC192: 0 | DD192: 0 | DE192: 0 | DF192: 0 | DG192: 0 | DL192: 0 | DM192: 0 | DN192: 0 | DO192: 0 | DP192: 0 | DQ192: 0 | DR192: 0 | DS192: 0 | DT192: 0 | DU192: 0 | DV192: 0 | DW192: 0 | DX192: 0 | DY192: 0 | DZ192: 0 | EA192: 0 | EB192: 0 | EC192: 0 | ED192: 0 | EE192: 0 | EF192: 0 | EG192: 0 | EH192: 0 | EI192: 0 | EJ192: 0 | EK192: 0 | EL192: 0 | EM192: 0 | EN192: 0 | EO192: 0 | EP192: 0 | EQ192: 0 | ER192: 0 | EW192: 0 | EX192: 0 | EY192: 0 | EZ192: 0 | FA192: 0 | FB192: 0 | FC192: 0 | FD192: 0 | FE192: 0 | FF192: 0 | FG192: 0 | FH192: 0 | FI192: 0 | FJ192: 0 | FK192: 0 | FL192: 0 | FM192: 0 | FN192: 0 | FO192: 0 | FP192: 0 | FQ192: 0 | FR192: 0 | FS192: 0 | FT192: 0 | FU192: 0 | FV192: 0 | FW192: 0 | FX192: 0 | FY192: 0 | FZ192: 0 | GA192: 0 | GB192: 0 | GC192: 0 | GH192: 0 | GI192: =MAX(0,MIN($BB192-SUM(GJ192:$GO192),EX192)) -> 0 | GJ192: =MAX(0,MIN($BB192-SUM(GK192:$GO192),EY192)) -> 0 | GK192: =MAX(0,MIN($BB192-SUM(GL192:$GO192),EZ192)) -> 0 | GL192: =MAX(0,MIN($BB192-SUM(GM192:$GO192),FA192)) -> 0 | GM192: =MAX(0,MIN($BB192-SUM(GN192:$GO192),FB192)) -> 0 | GN192: =MAX(0,MIN($BB192-SUM(GO192:$GO192),FC192)) -> 0 | GO192: 0 | GP192: 0 | GQ192: 0 | GR192: =MAX(0,MIN($BB192-SUM($GI192:$GO192,$GQ192:GQ192),FG192)) -> 0 | GS192: =MAX(0,MIN($BB192-SUM($GI192:$GO192,$GQ192:GR192),FH192)) -> 0 | GT192: =MAX(0,MIN($BB192-SUM($GI192:$GO192,$GQ192:GS192),FI192)) -> 0 | GU192: =MAX(0,MIN($BB192-SUM($GI192:$GO192,$GQ192:GT192),FJ192)) -> 0 | GV192: =MAX(0,MIN($BB192-SUM($GI192:$GO192,$GQ192:GU192),FK192)) -> 0 | GW192: =MAX(0,MIN($BB192-SUM($GI192:$GO192,$GQ192:GV192),FL192)) -> 0 | GX192: =MAX(0,MIN($BB192-SUM($GI192:$GO192,$GQ192:GW192),FM192)) -> 0 | GY192: =MAX(0,MIN($BB192-SUM($GI192:$GO192,$GQ192:GX192),FN192)) -> 0 | GZ192: =MAX(0,MIN($BB192-SUM($GI192:$GO192,$GQ192:GY192),FO192)) -> 0 | HA192: =MAX(0,MIN($BB192-SUM($GI192:$GO192,$GQ192:GZ192),FP192)) -> 0 | HB192: =MAX(0,MIN($BB192-SUM($GI192:$GO192,$GQ192:HA192),FQ192)) -> 0 | HC192: =MAX(0,MIN($BB192-SUM($GI192:$GO192,$GQ192:HB192),FR192)) -> 0 | HD192: =MAX(0,MIN($BB192-SUM($GI192:$GO192,$GQ192:HC192),FS192)) -> 0 | HE192: =MAX(0,MIN($BB192-SUM($GI192:$GO192,$GQ192:HD192),FT192)) -> 0 | HF192: =MAX(0,MIN($BB192-SUM($GI192:$GO192,$GQ192:HE192),FU192)) -> 0 | HG192: =MAX(0,MIN($BB192-SUM($GI192:$GO192,$GQ192:HF192),FV192)) -> 0 | HH192: =MAX(0,MIN($BB192-SUM($GI192:$GO192,$GQ192:HG192),FW192)) -> 0 | HI192: =MAX(0,MIN($BB192-SUM($GI192:$GO192,$GQ192:HH192),FX192)) -> 0 | HJ192: =MAX(0,MIN($BB192-SUM($GI192:$GO192,$GQ192:HI192),FY192)) -> 0 | HK192: =MAX(0,MIN($BB192-SUM($GI192:$GO192,$GQ192:HJ192),FZ192)) -> 0 | HL192: =MAX(0,MIN($BB192-SUM($GI192:$GO192,$GQ192:HK192),GA192)) -> 0 | HM192: =MAX(0,MIN($BB192-SUM($GI192:$GO192,$GQ192:HL192),GB192)) -> 0 | HN192: =MAX(0,MIN($BB192-SUM($GI192:$GO192,$GQ192:HM192),GC192)) -> 0 | HS192: 0 | HT192: 0 | HU192: 0 | HV192: 0 | HW192: 0 | HX192: 0 | HY192: 0 | HZ192: 0 | IA192: 0 | IB192: 0 | IC192: 0 | ID192: 0 | IE192: 0 | IF192: 0 | IG192: 0 | IH192: 0 | II192: 0 | IJ192: 0 | IK192: 0 | IL192: 0 | IM192: 0 | IN192: 0 | IO192: 0 | IP192: 0 | IQ192: =MIN($BQ192,$A192*$AN192,$A192*$AR192)*INDIRECT($HR$160&IQ$160) -> 0 | IR192: 0 | IS192: 0 | IT192: 0 | IU192: 0 | IV192: 0 | IW192: 0 | IX192: 0 | IY192: 0 | JD192: 0 | JE192: 0 | JF192: 0 | JG192: 0 | JH192: 0 | JI192: 0 | JJ192: 0 | JK192: 0 | JL192: 0 | JM192: 0 | JN192: 0 | JO192: 0 | JP192: 0 | JQ192: 0 | JR192: 0 | JS192: 0 | JT192: 0 | JU192: 0 | JV192: 0 | JW192: 0 | JX192: 0 | JY192: 0 | JZ192: 0 | KA192: 0 | KB192: 0 | KC192: 0 | KD192: 0 | KE192: 0 | KF192: 0 | KG192: 0 | KH192: 0 | KI192: 0 | KJ192: 0
A193: 1 | B193: 1 | C193: =ImportedDataRCR!C240 -> 28 | D193: =ImportedDataRCR!D240 -> 0 | E193: =ImportedDataRCR!E240 -> N | F193: =ImportedDataRCR!F240 -> A - Abitativo | G193: =ImportedDataRCR!G240 -> 0 | H193: =ImportedDataRCR!H240 -> 0 | I193: =ImportedDataRCR!I240 -> Privata | J193: =ImportedDataRCR!F$168 -> 10 | K193: =ImportedDataRCR!J240 -> N | L193: =ImportedDataRCR!K240 -> 0 | M193: =ImportedDataRCR!L240 -> 0 | N193: =ImportedDataRCR!M240 -> 0 | O193: =ImportedDataRCR!N240 -> 0 | P193: =ImportedDataRCR!O240 -> N | Q193: N | R193: =ImportedDataRCR!P240 -> 2 | S193: =ImportedDataRCR!R240 -> N | T193: =ImportedDataRCR!S240 -> L0 | U193: =IF($U$163,BeniCulturali!H48,$H$59)*($S193="N") -> 0 | V193: 0.1 | W193: 0.1 | X193: 0 | Y193: 0 | Z193: 0 | AA193: Abitativa-L0 | AB193: 0 | AC193: =MAX(0,(X193)-INDEX(CostoParametrico!$E$3:$L$22,MATCH($AA193,CostoParametrico!$D$3:$D$22,0),1)-AD193-AE193)*OR($E$90<>"S",$F$90=0,$H$1<2)*OR($D$20="P",AND($D$20="R",$BO193="B"),$BO193="A") -> 0 | AD193: =MAX(0,(X193)-INDEX(CostoParametrico!$E$3:$L$22,MATCH($AA193,CostoParametrico!$D$3:$D$22,0),2)-AE193)*OR($D$20="P",AND($D$20="R",$BO193="B"),$BO193="A") -> 0 | AE193: =MAX(0,(X193)-INDEX(CostoParametrico!$E$3:$L$22,MATCH($AA193,CostoParametrico!$D$3:$D$22,0),3))*OR($D$20="P",AND($D$20="R",$BO193="B"),$BO193="A") -> 0 | AF193: 0 | AG193: =MAX(0,(X193+Y193)-INDEX(CostoParametrico!$E$3:$L$22,MATCH($AA193,CostoParametrico!$D$3:$D$22,0),1)-AC193-AD193-AE193-AH193-AI193)*OR($E$90<>"S",$F$90=0,$H$1<2)*OR($D$20="P",AND($D$20="R",$BO193="B"),$BO193="A") -> 0 | AH193: =MAX(0,(X193+Y193)-INDEX(CostoParametrico!$E$3:$L$22,MATCH($AA193,CostoParametrico!$D$3:$D$22,0),2)-AD193-AE193-AI193)*OR($D$20="P",AND($D$20="R",$BO193="B"),$BO193="A") -> 0 | AI193: =MAX(0,(X193+Y193)-INDEX(CostoParametrico!$E$3:$L$22,MATCH($AA193,CostoParametrico!$D$3:$D$22,0),3)-AE193)*OR($D$20="P",AND($D$20="R",$BO193="B"),$BO193="A") -> 0 | AJ193: =INDEX(CostoParametrico!$E$3:$L$22,MATCH($AA193,CostoParametrico!$D$3:$D$22,0),5) -> 400 | AK193: =INDEX(CostoParametrico!$E$3:$L$22,MATCH($AA193,CostoParametrico!$D$3:$D$22,0),6) -> 330 | AL193: =INDEX(CostoParametrico!$E$3:$L$22,MATCH($AA193,CostoParametrico!$D$3:$D$22,0),7) -> 300 | AM193: =INDEX(CostoParametrico!$E$3:$L$22,MATCH($AA193,CostoParametrico!$D$3:$D$22,0),8) -> 300 | AN193: 0 | AO193: 0 | AP193: 0 | AQ193: 0 | AR193: 0 | AS193: 0 | AT193: 0 | AU193: 1 | AV193: 0 | AW193: 0 | AX193: 0 | AY193: 1e-10 | AZ193: 0 | BA193: 0 | BB193: 0 | BC193: 0 | BD193: 0 | BE193: 0 | BF193: 0 | BG193: 0 | BH193: 0 | BI193: 0 | BJ193: 0 | BK193: 0 | BL193: 0 | BM193: 1.1 | BN193: N | BO193: A | BP193: 0 | BQ193: 0 | BR193: N | BS193: 1 | BT193: 0.1 | BU193: 0 | CA193: 0 | CB193: 0 | CC193: 0 | CD193: 0 | CE193: 0 | CF193: 0 | CG193: 0 | CH193: 0 | CI193: 0 | CJ193: 0 | CK193: 0 | CL193: 0 | CM193: 0 | CN193: 0 | CO193: 0 | CP193: 0 | CQ193: 0 | CR193: 0 | CS193: 0 | CT193: 0 | CU193: 0 | CV193: 0 | CW193: 0 | CX193: 0 | CY193: 0 | CZ193: 0 | DA193: 0 | DB193: 0 | DC193: 0 | DD193: 0 | DE193: 0 | DF193: 0 | DG193: 0 | DL193: 0 | DM193: 0 | DN193: 0 | DO193: 0 | DP193: 0 | DQ193: 0 | DR193: 0 | DS193: 0 | DT193: 0 | DU193: 0 | DV193: 0 | DW193: 0 | DX193: 0 | DY193: 0 | DZ193: 0 | EA193: 0 | EB193: 0 | EC193: 0 | ED193: 0 | EE193: 0 | EF193: 0 | EG193: 0 | EH193: 0 | EI193: 0 | EJ193: 0 | EK193: 0 | EL193: 0 | EM193: 0 | EN193: 0 | EO193: 0 | EP193: 0 | EQ193: 0 | ER193: 0 | EW193: 0 | EX193: 0 | EY193: 0 | EZ193: 0 | FA193: 0 | FB193: 0 | FC193: 0 | FD193: 0 | FE193: 0 | FF193: 0 | FG193: 0 | FH193: 0 | FI193: 0 | FJ193: 0 | FK193: 0 | FL193: 0 | FM193: 0 | FN193: 0 | FO193: 0 | FP193: 0 | FQ193: 0 | FR193: 0 | FS193: 0 | FT193: 0 | FU193: 0 | FV193: 0 | FW193: 0 | FX193: 0 | FY193: 0 | FZ193: 0 | GA193: 0 | GB193: 0 | GC193: 0 | GH193: 0 | GI193: =MAX(0,MIN($BB193-SUM(GJ193:$GO193),EX193)) -> 0 | GJ193: =MAX(0,MIN($BB193-SUM(GK193:$GO193),EY193)) -> 0 | GK193: =MAX(0,MIN($BB193-SUM(GL193:$GO193),EZ193)) -> 0 | GL193: =MAX(0,MIN($BB193-SUM(GM193:$GO193),FA193)) -> 0 | GM193: =MAX(0,MIN($BB193-SUM(GN193:$GO193),FB193)) -> 0 | GN193: =MAX(0,MIN($BB193-SUM(GO193:$GO193),FC193)) -> 0 | GO193: 0 | GP193: 0 | GQ193: 0 | GR193: =MAX(0,MIN($BB193-SUM($GI193:$GO193,$GQ193:GQ193),FG193)) -> 0 | GS193: =MAX(0,MIN($BB193-SUM($GI193:$GO193,$GQ193:GR193),FH193)) -> 0 | GT193: =MAX(0,MIN($BB193-SUM($GI193:$GO193,$GQ193:GS193),FI193)) -> 0 | GU193: =MAX(0,MIN($BB193-SUM($GI193:$GO193,$GQ193:GT193),FJ193)) -> 0 | GV193: =MAX(0,MIN($BB193-SUM($GI193:$GO193,$GQ193:GU193),FK193)) -> 0 | GW193: =MAX(0,MIN($BB193-SUM($GI193:$GO193,$GQ193:GV193),FL193)) -> 0 | GX193: =MAX(0,MIN($BB193-SUM($GI193:$GO193,$GQ193:GW193),FM193)) -> 0 | GY193: =MAX(0,MIN($BB193-SUM($GI193:$GO193,$GQ193:GX193),FN193)) -> 0 | GZ193: =MAX(0,MIN($BB193-SUM($GI193:$GO193,$GQ193:GY193),FO193)) -> 0 | HA193: =MAX(0,MIN($BB193-SUM($GI193:$GO193,$GQ193:GZ193),FP193)) -> 0 | HB193: =MAX(0,MIN($BB193-SUM($GI193:$GO193,$GQ193:HA193),FQ193)) -> 0 | HC193: =MAX(0,MIN($BB193-SUM($GI193:$GO193,$GQ193:HB193),FR193)) -> 0 | HD193: =MAX(0,MIN($BB193-SUM($GI193:$GO193,$GQ193:HC193),FS193)) -> 0 | HE193: =MAX(0,MIN($BB193-SUM($GI193:$GO193,$GQ193:HD193),FT193)) -> 0 | HF193: =MAX(0,MIN($BB193-SUM($GI193:$GO193,$GQ193:HE193),FU193)) -> 0 | HG193: =MAX(0,MIN($BB193-SUM($GI193:$GO193,$GQ193:HF193),FV193)) -> 0 | HH193: =MAX(0,MIN($BB193-SUM($GI193:$GO193,$GQ193:HG193),FW193)) -> 0 | HI193: =MAX(0,MIN($BB193-SUM($GI193:$GO193,$GQ193:HH193),FX193)) -> 0 | HJ193: =MAX(0,MIN($BB193-SUM($GI193:$GO193,$GQ193:HI193),FY193)) -> 0 | HK193: =MAX(0,MIN($BB193-SUM($GI193:$GO193,$GQ193:HJ193),FZ193)) -> 0 | HL193: =MAX(0,MIN($BB193-SUM($GI193:$GO193,$GQ193:HK193),GA193)) -> 0 | HM193: =MAX(0,MIN($BB193-SUM($GI193:$GO193,$GQ193:HL193),GB193)) -> 0 | HN193: =MAX(0,MIN($BB193-SUM($GI193:$GO193,$GQ193:HM193),GC193)) -> 0 | HS193: 0 | HT193: 0 | HU193: 0 | HV193: 0 | HW193: 0 | HX193: 0 | HY193: 0 | HZ193: 0 | IA193: 0 | IB193: =MIN($BQ193,$A193*$AN193,$A193*$AR193)*INDIRECT($HR$160&IB$160) -> 0 | IC193: 0 | ID193: 0 | IE193: 0 | IF193: 0 | IG193: 0 | IH193: 0 | II193: 0 | IJ193: 0 | IK193: 0 | IL193: 0 | IM193: 0 | IN193: 0 | IO193: 0 | IP193: 0 | IQ193: 0 | IR193: 0 | IS193: 0 | IT193: 0 | IU193: 0 | IV193: 0 | IW193: 0 | IX193: 0 | IY193: 0 | JD193: 0 | JE193: 0 | JF193: 0 | JG193: 0 | JH193: 0 | JI193: 0 | JJ193: 0 | JK193: 0 | JL193: 0 | JM193: 0 | JN193: 0 | JO193: 0 | JP193: 0 | JQ193: 0 | JR193: 0 | JS193: 0 | JT193: 0 | JU193: 0 | JV193: 0 | JW193: 0 | JX193: 0 | JY193: 0 | JZ193: 0 | KA193: 0 | KB193: 0 | KC193: 0 | KD193: 0 | KE193: 0 | KF193: 0 | KG193: 0 | KH193: 0 | KI193: 0 | KJ193: 0
A194: 1 | B194: 1 | C194: =ImportedDataRCR!C241 -> 29 | D194: =ImportedDataRCR!D241 -> 0 | E194: =ImportedDataRCR!E241 -> N | F194: =ImportedDataRCR!F241 -> A - Abitativo | G194: =ImportedDataRCR!G241 -> 0 | H194: =ImportedDataRCR!H241 -> 0 | I194: =ImportedDataRCR!I241 -> Privata | J194: =ImportedDataRCR!F$168 -> 10 | K194: =ImportedDataRCR!J241 -> N | L194: =ImportedDataRCR!K241 -> 0 | M194: =ImportedDataRCR!L241 -> 0 | N194: =ImportedDataRCR!M241 -> 0 | O194: =ImportedDataRCR!N241 -> 0 | P194: =ImportedDataRCR!O241 -> N | Q194: N | R194: =ImportedDataRCR!P241 -> 2 | S194: =ImportedDataRCR!R241 -> N | T194: =ImportedDataRCR!S241 -> L0 | U194: =IF($U$163,BeniCulturali!H49,$H$59)*($S194="N") -> 0 | V194: 0.1 | W194: 0.1 | X194: 0 | Y194: 0 | Z194: 0 | AA194: Abitativa-L0 | AB194: 0 | AC194: =MAX(0,(X194)-INDEX(CostoParametrico!$E$3:$L$22,MATCH($AA194,CostoParametrico!$D$3:$D$22,0),1)-AD194-AE194)*OR($E$90<>"S",$F$90=0,$H$1<2)*OR($D$20="P",AND($D$20="R",$BO194="B"),$BO194="A") -> 0 | AD194: =MAX(0,(X194)-INDEX(CostoParametrico!$E$3:$L$22,MATCH($AA194,CostoParametrico!$D$3:$D$22,0),2)-AE194)*OR($D$20="P",AND($D$20="R",$BO194="B"),$BO194="A") -> 0 | AE194: =MAX(0,(X194)-INDEX(CostoParametrico!$E$3:$L$22,MATCH($AA194,CostoParametrico!$D$3:$D$22,0),3))*OR($D$20="P",AND($D$20="R",$BO194="B"),$BO194="A") -> 0 | AF194: 0 | AG194: =MAX(0,(X194+Y194)-INDEX(CostoParametrico!$E$3:$L$22,MATCH($AA194,CostoParametrico!$D$3:$D$22,0),1)-AC194-AD194-AE194-AH194-AI194)*OR($E$90<>"S",$F$90=0,$H$1<2)*OR($D$20="P",AND($D$20="R",$BO194="B"),$BO194="A") -> 0 | AH194: =MAX(0,(X194+Y194)-INDEX(CostoParametrico!$E$3:$L$22,MATCH($AA194,CostoParametrico!$D$3:$D$22,0),2)-AD194-AE194-AI194)*OR($D$20="P",AND($D$20="R",$BO194="B"),$BO194="A") -> 0 | AI194: =MAX(0,(X194+Y194)-INDEX(CostoParametrico!$E$3:$L$22,MATCH($AA194,CostoParametrico!$D$3:$D$22,0),3)-AE194)*OR($D$20="P",AND($D$20="R",$BO194="B"),$BO194="A") -> 0 | AJ194: =INDEX(CostoParametrico!$E$3:$L$22,MATCH($AA194,CostoParametrico!$D$3:$D$22,0),5) -> 400 | AK194: =INDEX(CostoParametrico!$E$3:$L$22,MATCH($AA194,CostoParametrico!$D$3:$D$22,0),6) -> 330 | AL194: =INDEX(CostoParametrico!$E$3:$L$22,MATCH($AA194,CostoParametrico!$D$3:$D$22,0),7) -> 300 | AM194: =INDEX(CostoParametrico!$E$3:$L$22,MATCH($AA194,CostoParametrico!$D$3:$D$22,0),8) -> 300 | AN194: 0 | AO194: 0 | AP194: 0 | AQ194: 0 | AR194: 0 | AS194: 0 | AT194: 0 | AU194: 1 | AV194: 0 | AW194: 0 | AX194: 0 | AY194: 1e-10 | AZ194: 0 | BA194: 0 | BB194: 0 | BC194: 0 | BD194: 0 | BE194: 0 | BF194: 0 | BG194: 0 | BH194: 0 | BI194: 0 | BJ194: 0 | BK194: 0 | BL194: 0 | BM194: 1.1 | BN194: N | BO194: A | BP194: 0 | BQ194: 0 | BR194: N | BS194: 1 | BT194: 0.1 | BU194: 0 | CA194: 0 | CB194: 0 | CC194: 0 | CD194: 0 | CE194: 0 | CF194: 0 | CG194: 0 | CH194: 0 | CI194: 0 | CJ194: =DU194/INDIRECT($BZ$160&CJ$160) -> 0 | CK194: 0 | CL194: 0 | CM194: 0 | CN194: 0 | CO194: 0 | CP194: 0 | CQ194: 0 | CR194: 0 | CS194: 0 | CT194: 0 | CU194: 0 | CV194: 0 | CW194: 0 | CX194: 0 | CY194: 0 | CZ194: 0 | DA194: 0 | DB194: 0 | DC194: 0 | DD194: 0 | DE194: 0 | DF194: 0 | DG194: 0 | DL194: 0 | DM194: 0 | DN194: 0 | DO194: 0 | DP194: 0 | DQ194: 0 | DR194: 0 | DS194: 0 | DT194: 0 | DU194: 0 | DV194: 0 | DW194: 0 | DX194: 0 | DY194: 0 | DZ194: 0 | EA194: 0 | EB194: 0 | EC194: 0 | ED194: 0 | EE194: 0 | EF194: 0 | EG194: 0 | EH194: 0 | EI194: 0 | EJ194: 0 | EK194: 0 | EL194: 0 | EM194: 0 | EN194: 0 | EO194: 0 | EP194: 0 | EQ194: 0 | ER194: 0 | EW194: 0 | EX194: 0 | EY194: 0 | EZ194: 0 | FA194: 0 | FB194: 0 | FC194: 0 | FD194: 0 | FE194: 0 | FF194: =$Z194*INDIRECT($EV$161&IF($BS194=0,"P","Q")&(FF$160-$EV$162+5))+( IB194-$Z194*INDIRECT($EV$161&"P"&(FF$160-$EV$162+5)) )*(1+$BS194*INDIRECT($EV$160&FF$160)/100) -> 0 | FG194: 0 | FH194: 0 | FI194: 0 | FJ194: 0 | FK194: 0 | FL194: 0 | FM194: 0 | FN194: 0 | FO194: 0 | FP194: 0 | FQ194: 0 | FR194: 0 | FS194: 0 | FT194: 0 | FU194: 0 | FV194: 0 | FW194: 0 | FX194: 0 | FY194: 0 | FZ194: 0 | GA194: 0 | GB194: 0 | GC194: 0 | GH194: 0 | GI194: =MAX(0,MIN($BB194-SUM(GJ194:$GO194),EX194)) -> 0 | GJ194: =MAX(0,MIN($BB194-SUM(GK194:$GO194),EY194)) -> 0 | GK194: =MAX(0,MIN($BB194-SUM(GL194:$GO194),EZ194)) -> 0 | GL194: =MAX(0,MIN($BB194-SUM(GM194:$GO194),FA194)) -> 0 | GM194: =MAX(0,MIN($BB194-SUM(GN194:$GO194),FB194)) -> 0 | GN194: =MAX(0,MIN($BB194-SUM(GO194:$GO194),FC194)) -> 0 | GO194: 0 | GP194: 0 | GQ194: 0 | GR194: =MAX(0,MIN($BB194-SUM($GI194:$GO194,$GQ194:GQ194),FG194)) -> 0 | GS194: =MAX(0,MIN($BB194-SUM($GI194:$GO194,$GQ194:GR194),FH194)) -> 0 | GT194: =MAX(0,MIN($BB194-SUM($GI194:$GO194,$GQ194:GS194),FI194)) -> 0 | GU194: =MAX(0,MIN($BB194-SUM($GI194:$GO194,$GQ194:GT194),FJ194)) -> 0 | GV194: =MAX(0,MIN($BB194-SUM($GI194:$GO194,$GQ194:GU194),FK194)) -> 0 | GW194: =MAX(0,MIN($BB194-SUM($GI194:$GO194,$GQ194:GV194),FL194)) -> 0 | GX194: =MAX(0,MIN($BB194-SUM($GI194:$GO194,$GQ194:GW194),FM194)) -> 0 | GY194: =MAX(0,MIN($BB194-SUM($GI194:$GO194,$GQ194:GX194),FN194)) -> 0 | GZ194: =MAX(0,MIN($BB194-SUM($GI194:$GO194,$GQ194:GY194),FO194)) -> 0 | HA194: =MAX(0,MIN($BB194-SUM($GI194:$GO194,$GQ194:GZ194),FP194)) -> 0 | HB194: =MAX(0,MIN($BB194-SUM($GI194:$GO194,$GQ194:HA194),FQ194)) -> 0 | HC194: =MAX(0,MIN($BB194-SUM($GI194:$GO194,$GQ194:HB194),FR194)) -> 0 | HD194: =MAX(0,MIN($BB194-SUM($GI194:$GO194,$GQ194:HC194),FS194)) -> 0 | HE194: =MAX(0,MIN($BB194-SUM($GI194:$GO194,$GQ194:HD194),FT194)) -> 0 | HF194: =MAX(0,MIN($BB194-SUM($GI194:$GO194,$GQ194:HE194),FU194)) -> 0 | HG194: =MAX(0,MIN($BB194-SUM($GI194:$GO194,$GQ194:HF194),FV194)) -> 0 | HH194: =MAX(0,MIN($BB194-SUM($GI194:$GO194,$GQ194:HG194),FW194)) -> 0 | HI194: =MAX(0,MIN($BB194-SUM($GI194:$GO194,$GQ194:HH194),FX194)) -> 0 | HJ194: =MAX(0,MIN($BB194-SUM($GI194:$GO194,$GQ194:HI194),FY194)) -> 0 | HK194: =MAX(0,MIN($BB194-SUM($GI194:$GO194,$GQ194:HJ194),FZ194)) -> 0 | HL194: =MAX(0,MIN($BB194-SUM($GI194:$GO194,$GQ194:HK194),GA194)) -> 0 | HM194: =MAX(0,MIN($BB194-SUM($GI194:$GO194,$GQ194:HL194),GB194)) -> 0 | HN194: =MAX(0,MIN($BB194-SUM($GI194:$GO194,$GQ194:HM194),GC194)) -> 0 | HS194: 0 | HT194: 0 | HU194: 0 | HV194: 0 | HW194: 0 | HX194: 0 | HY194: 0 | HZ194: 0 | IA194: 0 | IB194: 0 | IC194: 0 | ID194: 0 | IE194: 0 | IF194: 0 | IG194: 0 | IH194: 0 | II194: 0 | IJ194: 0 | IK194: 0 | IL194: 0 | IM194: 0 | IN194: 0 | IO194: 0 | IP194: 0 | IQ194: 0 | IR194: 0 | IS194: 0 | IT194: 0 | IU194: 0 | IV194: 0 | IW194: 0 | IX194: 0 | IY194: 0 | JD194: 0 | JE194: 0 | JF194: 0 | JG194: 0 | JH194: 0 | JI194: 0 | JJ194: 0 | JK194: 0 | JL194: 0 | JM194: =GQ194/INDIRECT($JC$160&JM$160) -> 0 | JN194: 0 | JO194: 0 | JP194: 0 | JQ194: 0 | JR194: 0 | JS194: 0 | JT194: 0 | JU194: 0 | JV194: 0 | JW194: 0 | JX194: 0 | JY194: 0 | JZ194: 0 | KA194: 0 | KB194: 0 | KC194: 0 | KD194: 0 | KE194: 0 | KF194: 0 | KG194: 0 | KH194: 0 | KI194: 0 | KJ194: 0
